Workbook

Sheet Forside
A3: Efterafgrøde beslutnsingsstøtteværktøj
A5: Beslutningsstøtteværktøjet er opdateret i ferbuar 2017. Blandt andet blev der rette en del fejl ang. lovlighed af forskellige afgrøder.
A6: Beslutningsstøtteværktøjet kan for nuværende ikke håndtere de frivlillige efterafgrøder med støtte som bliver en del af landbrugspakkens implementering fra 2017, idet det endelige regelsæt ikke kendes ved værktøjets færdiggørelse.
A8: Gå til arket "Efterafgrøde beslutningsstøtte" for at starte beregneren
A15: Udviklingen af dette værktøj er støttet af:
A24: Værktøjet er i 2015 udviklet i regi af GUDP OPTIplant, og er i 2016 opdateret med støtte fra promilleafgiftsfonden for landbrug

Sheet Efterafgrøde beslutningsstøtte
A1: =Version!A1 -> Version 1.06, 18. januar 2016
A2: Beslutningsstøtteværktøj til valg af efterafgrøder
E3: =Beslutningstræ!HA40 -> Pris | F3: =Beslutningstræ!HB40 -> Nettoomkostninger | G3: =Beslutningstræ!HC40 -> Er afgrøden robust mod ukrudtsmidler? | H3: =Beslutningstræ!HD40 -> Der findes sorter, der ikke opformerer kålbrok | I3: =Beslutningstræ!HE40 -> Der findes sorter, der er sanerende for roecystenematoder | J3: =Beslutningstræ!HF40 -> Vinterfast | K3: =Beslutningstræ!HG40 -> Egen udsæd kan anvendes | L3: =Beslutningstræ!HH40 -> Hurtig og dyb rodvækst på lerjord | M3: =Beslutningstræ!HI40 -> Kvælstoffikserende | N3: =Beslutningstræ!HJ40 -> Stor kvælstof-eftervirkning | O3: =Beslutningstræ!HK40 -> Pligtig efterafgrøde | P3: =Beslutningstræ!IH40 -> Vejledning
A5: Obligatoriske spørgsmål
A6: Skal afgrøden kunne fungere som:
A7: Vælg funktion
A9: Hvilken afgrøde skal efterafgrøden sås i?
A10: Vælg afgrøde
C11: =IF('Norm lig basisnorm'!D57=FALSE,"Bemærk at der anvendes egne priser og/eller merudbytter i beregningerne",IF('Norm lig basisnorm'!D57,"","FEJL")) -> 
A12: Hvornår skal afgrøden etableres?
A13: Vælg etableringstidspunkt
A15: Jordtype på arealet
A16: Vælg jordtype
A18: Hvilken afgrøde skal sås efter efterafgrøden
A19: Vælg afgrøde
A20: =IF(OR(A7="Vælg funktion",A7="Frivillig efterafgrøde"),"","Vær opmærksom på, at gældende love og regler angående pligtige efter- og mellemafgrøder og MFO afgrøder er komplicerede og ændres jævnligt. Du skal selv kontrollere, at de efterafgrøder, du sår, overholder gældende regler.") -> 
A22: Udvælgelseskriterier. | D22: =Beslutningstræ!GZ80 -> Efterafgrøde
A23: Økonomi | D23: Ingen efterafgrøde opfylder de valgte kriterier | E23: =(Beslutningstræ!HA81) ->  | F23: =(Beslutningstræ!HB81) ->  | G23: =(Beslutningstræ!HC81) ->  | H23: =(Beslutningstræ!HD81) ->  | I23: =(Beslutningstræ!HE81) ->  | J23: =(Beslutningstræ!HF81) ->  | K23: =(Beslutningstræ!HG81) ->  | L23: =(Beslutningstræ!HH81) ->  | M23: =(Beslutningstræ!HI81) ->  | N23: =(Beslutningstræ!HJ81) ->  | O23: =(Beslutningstræ!HK81) ->  | P23: =IF(E23="","",IF(A$7<>"Pligtig mellemafgrøde",HYPERLINK("https://dyrk-plant.dlbr.dk/Web/(S(ikevr3oqnx5oe2t5cyfyknyq))/forms/Main.aspx?page=Vejledning&cropID=226","Efterafgrøder"),HYPERLINK("https://dyrk-plant.dlbr.dk/Web/(S(0x3ftyiaahcpttq0ljebuany))/forms/Main.aspx?page=Vejledning&cropID=238","Mellemafgrøder"))) -> 
A24: Etableringsomkostninger (lav pris) | B24: Ikke vigtigt | D24: =(Beslutningstræ!GZ82) ->  | E24: =(Beslutningstræ!HA82) ->  | F24: =(Beslutningstræ!HB82) ->  | G24: =(Beslutningstræ!HC82) ->  | H24: =(Beslutningstræ!HD82) ->  | I24: =(Beslutningstræ!HE82) ->  | J24: =(Beslutningstræ!HF82) ->  | K24: =(Beslutningstræ!HG82) ->  | L24: =(Beslutningstræ!HH82) ->  | M24: =(Beslutningstræ!HI82) ->  | N24: =(Beslutningstræ!HJ82) ->  | O24: =(Beslutningstræ!HK82) ->  | P24: =IF(E24="","",IF(A$7<>"Pligtig mellemafgrøde",HYPERLINK("https://dyrk-plant.dlbr.dk/Web/(S(ikevr3oqnx5oe2t5cyfyknyq))/forms/Main.aspx?page=Vejledning&cropID=226","Efterafgrøder"),HYPERLINK("https://dyrk-plant.dlbr.dk/Web/(S(0x3ftyiaahcpttq0ljebuany))/forms/Main.aspx?page=Vejledning&cropID=238","Mellemafgrøder"))) -> 
D25: =(Beslutningstræ!GZ83) ->  | E25: =(Beslutningstræ!HA83) ->  | F25: =(Beslutningstræ!HB83) ->  | G25: =(Beslutningstræ!HC83) ->  | H25: =(Beslutningstræ!HD83) ->  | I25: =(Beslutningstræ!HE83) ->  | J25: =(Beslutningstræ!HF83) ->  | K25: =(Beslutningstræ!HG83) ->  | L25: =(Beslutningstræ!HH83) ->  | M25: =(Beslutningstræ!HI83) ->  | N25: =(Beslutningstræ!HJ83) ->  | O25: =(Beslutningstræ!HK83) -> 
A26: Sædskiftesygdomme og ukrudtsmidler | D26: =(Beslutningstræ!GZ84) ->  | E26: =(Beslutningstræ!HA84) ->  | F26: =(Beslutningstræ!HB84) ->  | G26: =(Beslutningstræ!HC84) ->  | H26: =(Beslutningstræ!HD84) ->  | I26: =(Beslutningstræ!HE84) ->  | J26: =(Beslutningstræ!HF84) ->  | K26: =(Beslutningstræ!HG84) ->  | L26: =(Beslutningstræ!HH84) ->  | M26: =(Beslutningstræ!HI84) ->  | N26: =(Beslutningstræ!HJ84) ->  | O26: =(Beslutningstræ!HK84) -> 
A27: Er afgrøden robust mod ukrudtsmidler? | B27: Ikke vigtigt | D27: =(Beslutningstræ!GZ85) ->  | E27: =(Beslutningstræ!HA85) ->  | F27: =(Beslutningstræ!HB85) ->  | G27: =(Beslutningstræ!HC85) ->  | H27: =(Beslutningstræ!HD85) ->  | I27: =(Beslutningstræ!HE85) ->  | J27: =(Beslutningstræ!HF85) ->  | K27: =(Beslutningstræ!HG85) ->  | L27: =(Beslutningstræ!HH85) ->  | M27: =(Beslutningstræ!HI85) ->  | N27: =(Beslutningstræ!HJ85) ->  | O27: =(Beslutningstræ!HK85) -> 
A28: Der findes sorter, der ikke opformerer kålbrok | B28: Ikke vigtigt | D28: =(Beslutningstræ!GZ86) ->  | E28: =(Beslutningstræ!HA86) ->  | F28: =(Beslutningstræ!HB86) ->  | G28: =(Beslutningstræ!HC86) ->  | H28: =(Beslutningstræ!HD86) ->  | I28: =(Beslutningstræ!HE86) ->  | J28: =(Beslutningstræ!HF86) ->  | K28: =(Beslutningstræ!HG86) ->  | L28: =(Beslutningstræ!HH86) ->  | M28: =(Beslutningstræ!HI86) ->  | N28: =(Beslutningstræ!HJ86) ->  | O28: =(Beslutningstræ!HK86) -> 
A29: Der findes sorter, der er sanerende for roecystenematoder | B29: Ikke vigtigt | D29: =(Beslutningstræ!GZ87) ->  | E29: =(Beslutningstræ!HA87) ->  | F29: =(Beslutningstræ!HB87) ->  | G29: =(Beslutningstræ!HC87) ->  | H29: =(Beslutningstræ!HD87) ->  | I29: =(Beslutningstræ!HE87) ->  | J29: =(Beslutningstræ!HF87) ->  | K29: =(Beslutningstræ!HG87) ->  | L29: =(Beslutningstræ!HH87) ->  | M29: =(Beslutningstræ!HI87) ->  | N29: =(Beslutningstræ!HJ87) ->  | O29: =(Beslutningstræ!HK87) -> 
D30: =(Beslutningstræ!GZ88) ->  | E30: =(Beslutningstræ!HA88) ->  | F30: =(Beslutningstræ!HB88) ->  | G30: =(Beslutningstræ!HC88) ->  | H30: =(Beslutningstræ!HD88) ->  | I30: =(Beslutningstræ!HE88) ->  | J30: =(Beslutningstræ!HF88) ->  | K30: =(Beslutningstræ!HG88) ->  | L30: =(Beslutningstræ!HH88) ->  | M30: =(Beslutningstræ!HI88) ->  | N30: =(Beslutningstræ!HJ88) ->  | O30: =(Beslutningstræ!HK88) -> 
A31: Vinterfasthed og rodvækst og udsæd | D31: =(Beslutningstræ!GZ89) ->  | E31: =(Beslutningstræ!HA89) ->  | F31: =(Beslutningstræ!HB89) ->  | G31: =(Beslutningstræ!HC89) ->  | H31: =(Beslutningstræ!HD89) ->  | I31: =(Beslutningstræ!HE89) ->  | J31: =(Beslutningstræ!HF89) ->  | K31: =(Beslutningstræ!HG89) ->  | L31: =(Beslutningstræ!HH89) ->  | M31: =(Beslutningstræ!HI89) ->  | N31: =(Beslutningstræ!HJ89) ->  | O31: =(Beslutningstræ!HK89) -> 
A32: Vinterfast | B32: Ikke vigtigt | D32: =(Beslutningstræ!GZ90) ->  | E32: =(Beslutningstræ!HA90) ->  | F32: =(Beslutningstræ!HB90) ->  | G32: =(Beslutningstræ!HC90) ->  | H32: =(Beslutningstræ!HD90) ->  | I32: =(Beslutningstræ!HE90) ->  | J32: =(Beslutningstræ!HF90) ->  | K32: =(Beslutningstræ!HG90) ->  | L32: =(Beslutningstræ!HH90) ->  | M32: =(Beslutningstræ!HI90) ->  | N32: =(Beslutningstræ!HJ90) ->  | O32: =(Beslutningstræ!HK90) -> 
A33: Egen udsæd kan anvendes | B33: Ikke vigtigt | D33: =(Beslutningstræ!GZ91) ->  | E33: =(Beslutningstræ!HA91) ->  | F33: =(Beslutningstræ!HB91) ->  | G33: =(Beslutningstræ!HC91) ->  | H33: =(Beslutningstræ!HD91) ->  | I33: =(Beslutningstræ!HE91) ->  | J33: =(Beslutningstræ!HF91) ->  | K33: =(Beslutningstræ!HG91) ->  | L33: =(Beslutningstræ!HH91) ->  | M33: =(Beslutningstræ!HI91) ->  | N33: =(Beslutningstræ!HJ91) ->  | O33: =(Beslutningstræ!HK91) -> 
A34: Hurtig og dyb rodvækst på lerjord | B34: Ikke vigtigt | D34: =(Beslutningstræ!GZ92) ->  | E34: =(Beslutningstræ!HA92) ->  | F34: =(Beslutningstræ!HB92) ->  | G34: =(Beslutningstræ!HC92) ->  | H34: =(Beslutningstræ!HD92) ->  | I34: =(Beslutningstræ!HE92) ->  | J34: =(Beslutningstræ!HF92) ->  | K34: =(Beslutningstræ!HG92) ->  | L34: =(Beslutningstræ!HH92) ->  | M34: =(Beslutningstræ!HI92) ->  | N34: =(Beslutningstræ!HJ92) ->  | O34: =(Beslutningstræ!HK92) -> 
D35: =(Beslutningstræ!GZ93) ->  | E35: =(Beslutningstræ!HA93) ->  | F35: =(Beslutningstræ!HB93) ->  | G35: =(Beslutningstræ!HC93) ->  | H35: =(Beslutningstræ!HD93) ->  | I35: =(Beslutningstræ!HE93) ->  | J35: =(Beslutningstræ!HF93) ->  | K35: =(Beslutningstræ!HG93) ->  | L35: =(Beslutningstræ!HH93) ->  | M35: =(Beslutningstræ!HI93) ->  | N35: =(Beslutningstræ!HJ93) ->  | O35: =(Beslutningstræ!HK93) -> 
A36: Egenskaber mht. kvælstof | D36: =(Beslutningstræ!GZ94) ->  | E36: =(Beslutningstræ!HA94) ->  | F36: =(Beslutningstræ!HB94) ->  | G36: =(Beslutningstræ!HC94) ->  | H36: =(Beslutningstræ!HD94) ->  | I36: =(Beslutningstræ!HE94) ->  | J36: =(Beslutningstræ!HF94) ->  | K36: =(Beslutningstræ!HG94) ->  | L36: =(Beslutningstræ!HH94) ->  | M36: =(Beslutningstræ!HI94) ->  | N36: =(Beslutningstræ!HJ94) ->  | O36: =(Beslutningstræ!HK94) -> 
A37: Kvælstoffikserende | B37: Ikke vigtigt | D37: =(Beslutningstræ!GZ95) ->  | E37: =(Beslutningstræ!HA95) ->  | F37: =(Beslutningstræ!HB95) ->  | G37: =(Beslutningstræ!HC95) ->  | H37: =(Beslutningstræ!HD95) ->  | I37: =(Beslutningstræ!HE95) ->  | J37: =(Beslutningstræ!HF95) ->  | K37: =(Beslutningstræ!HG95) ->  | L37: =(Beslutningstræ!HH95) ->  | M37: =(Beslutningstræ!HI95) ->  | N37: =(Beslutningstræ!HJ95) ->  | O37: =(Beslutningstræ!HK95) -> 
A38: Stor kvælstof eftervirkning | B38: Ikke vigtigt | D38: =(Beslutningstræ!GZ96) ->  | E38: =(Beslutningstræ!HA96) ->  | F38: =(Beslutningstræ!HB96) ->  | G38: =(Beslutningstræ!HC96) ->  | H38: =(Beslutningstræ!HD96) ->  | I38: =(Beslutningstræ!HE96) ->  | J38: =(Beslutningstræ!HF96) ->  | K38: =(Beslutningstræ!HG96) ->  | L38: =(Beslutningstræ!HH96) ->  | M38: =(Beslutningstræ!HI96) ->  | N38: =(Beslutningstræ!HJ96) ->  | O38: =(Beslutningstræ!HK96) -> 
D39: =(Beslutningstræ!GZ97) ->  | E39: =(Beslutningstræ!HA97) ->  | F39: =(Beslutningstræ!HB97) ->  | G39: =(Beslutningstræ!HC97) ->  | H39: =(Beslutningstræ!HD97) ->  | I39: =(Beslutningstræ!HE97) ->  | J39: =(Beslutningstræ!HF97) ->  | K39: =(Beslutningstræ!HG97) ->  | L39: =(Beslutningstræ!HH97) ->  | M39: =(Beslutningstræ!HI97) ->  | N39: =(Beslutningstræ!HJ97) ->  | O39: =(Beslutningstræ!HK97) -> 
D40: =(Beslutningstræ!GZ98) ->  | E40: =(Beslutningstræ!HA98) ->  | F40: =(Beslutningstræ!HB98) ->  | G40: =(Beslutningstræ!HC98) ->  | H40: =(Beslutningstræ!HD98) ->  | I40: =(Beslutningstræ!HE98) ->  | J40: =(Beslutningstræ!HF98) ->  | K40: =(Beslutningstræ!HG98) ->  | L40: =(Beslutningstræ!HH98) ->  | M40: =(Beslutningstræ!HI98) ->  | N40: =(Beslutningstræ!HJ98) ->  | O40: =(Beslutningstræ!HK98) -> 
A41: SEGES P/S | D41: =(Beslutningstræ!GZ99) ->  | E41: =(Beslutningstræ!HA99) ->  | F41: =(Beslutningstræ!HB99) ->  | G41: =(Beslutningstræ!HC99) ->  | H41: =(Beslutningstræ!HD99) ->  | I41: =(Beslutningstræ!HE99) ->  | J41: =(Beslutningstræ!HF99) ->  | K41: =(Beslutningstræ!HG99) ->  | L41: =(Beslutningstræ!HH99) ->  | M41: =(Beslutningstræ!HI99) ->  | N41: =(Beslutningstræ!HJ99) ->  | O41: =(Beslutningstræ!HK99) -> 
A42: Udviklet af: | D42: =(Beslutningstræ!GZ100) ->  | E42: =(Beslutningstræ!HA100) ->  | F42: =(Beslutningstræ!HB100) ->  | G42: =(Beslutningstræ!HC100) ->  | H42: =(Beslutningstræ!HD100) ->  | I42: =(Beslutningstræ!HE100) ->  | J42: =(Beslutningstræ!HF100) ->  | K42: =(Beslutningstræ!HG100) ->  | L42: =(Beslutningstræ!HH100) ->  | M42: =(Beslutningstræ!HI100) ->  | N42: =(Beslutningstræ!HJ100) ->  | O42: =(Beslutningstræ!HK100) -> 
A43: Kristoffer Piil | D43: =(Beslutningstræ!GZ101) ->  | E43: =(Beslutningstræ!HA101) ->  | F43: =(Beslutningstræ!HB101) ->  | G43: =(Beslutningstræ!HC101) ->  | H43: =(Beslutningstræ!HD101) ->  | I43: =(Beslutningstræ!HE101) ->  | J43: =(Beslutningstræ!HF101) ->  | K43: =(Beslutningstræ!HG101) ->  | L43: =(Beslutningstræ!HH101) ->  | M43: =(Beslutningstræ!HI101) ->  | N43: =(Beslutningstræ!HJ101) ->  | O43: =(Beslutningstræ!HK101) -> 
A44: Hans S. Østergaard
A45: Erik Maegaard | E45: =IF(Beslutningstræ!HA63="xx","",Beslutningstræ!HA63) ->  | F45: =IF(Beslutningstræ!HB63="xx","",Beslutningstræ!HB63) ->  | G45: =IF(Beslutningstræ!HC63="xx","",Beslutningstræ!HC63) ->  | H45: =IF(Beslutningstræ!HD63="xx","",Beslutningstræ!HD63) ->  | I45: =IF(Beslutningstræ!HE63="xx","",Beslutningstræ!HE63) ->  | J45: =IF(Beslutningstræ!HF63="xx","",Beslutningstræ!HF63) ->  | K45: =IF(Beslutningstræ!HG63="xx","",Beslutningstræ!HG63) ->  | L45: =IF(Beslutningstræ!HH63="xx","",Beslutningstræ!HH63) ->  | M45: =IF(Beslutningstræ!HI63="xx","",Beslutningstræ!HI63) ->  | N45: =IF(Beslutningstræ!HJ63="xx","",Beslutningstræ!HJ63) ->  | O45: =IF(Beslutningstræ!HK63="xx","",Beslutningstræ!HK63) -> 
E46: =IF(Beslutningstræ!HA64="xx","",Beslutningstræ!HA64) ->  | F46: =IF(Beslutningstræ!HB64="xx","",Beslutningstræ!HB64) ->  | G46: =IF(Beslutningstræ!HC64="xx","",Beslutningstræ!HC64) ->  | H46: =IF(Beslutningstræ!HD64="xx","",Beslutningstræ!HD64) ->  | I46: =IF(Beslutningstræ!HE64="xx","",Beslutningstræ!HE64) ->  | J46: =IF(Beslutningstræ!HF64="xx","",Beslutningstræ!HF64) ->  | K46: =IF(Beslutningstræ!HG64="xx","",Beslutningstræ!HG64) ->  | L46: =IF(Beslutningstræ!HH64="xx","",Beslutningstræ!HH64) ->  | M46: =IF(Beslutningstræ!HI64="xx","",Beslutningstræ!HI64) ->  | N46: =IF(Beslutningstræ!HJ64="xx","",Beslutningstræ!HJ64) ->  | O46: =IF(Beslutningstræ!HK64="xx","",Beslutningstræ!HK64) -> 
E47: =IF(Beslutningstræ!HA65="xx","",Beslutningstræ!HA65) ->  | F47: =IF(Beslutningstræ!HB65="xx","",Beslutningstræ!HB65) ->  | G47: =IF(Beslutningstræ!HC65="xx","",Beslutningstræ!HC65) ->  | H47: =IF(Beslutningstræ!HD65="xx","",Beslutningstræ!HD65) ->  | I47: =IF(Beslutningstræ!HE65="xx","",Beslutningstræ!HE65) ->  | J47: =IF(Beslutningstræ!HF65="xx","",Beslutningstræ!HF65) ->  | K47: =IF(Beslutningstræ!HG65="xx","",Beslutningstræ!HG65) ->  | L47: =IF(Beslutningstræ!HH65="xx","",Beslutningstræ!HH65) ->  | M47: =IF(Beslutningstræ!HI65="xx","",Beslutningstræ!HI65) ->  | N47: =IF(Beslutningstræ!HJ65="xx","",Beslutningstræ!HJ65) ->  | O47: =IF(Beslutningstræ!HK65="xx","",Beslutningstræ!HK65) -> 
A48: Udviklingen af dette værktøj er støttet af: | E48: =IF(Beslutningstræ!HA66="xx","",Beslutningstræ!HA66) ->  | F48: =IF(Beslutningstræ!HB66="xx","",Beslutningstræ!HB66) ->  | G48: =IF(Beslutningstræ!HC66="xx","",Beslutningstræ!HC66) ->  | H48: =IF(Beslutningstræ!HD66="xx","",Beslutningstræ!HD66) ->  | I48: =IF(Beslutningstræ!HE66="xx","",Beslutningstræ!HE66) ->  | J48: =IF(Beslutningstræ!HF66="xx","",Beslutningstræ!HF66) ->  | K48: =IF(Beslutningstræ!HG66="xx","",Beslutningstræ!HG66) ->  | L48: =IF(Beslutningstræ!HH66="xx","",Beslutningstræ!HH66) ->  | M48: =IF(Beslutningstræ!HI66="xx","",Beslutningstræ!HI66) ->  | N48: =IF(Beslutningstræ!HJ66="xx","",Beslutningstræ!HJ66) ->  | O48: =IF(Beslutningstræ!HK66="xx","",Beslutningstræ!HK66) -> 
E49: =IF(Beslutningstræ!HA67="xx","",Beslutningstræ!HA67) ->  | F49: =IF(Beslutningstræ!HB67="xx","",Beslutningstræ!HB67) ->  | G49: =IF(Beslutningstræ!HC67="xx","",Beslutningstræ!HC67) ->  | H49: =IF(Beslutningstræ!HD67="xx","",Beslutningstræ!HD67) ->  | I49: =IF(Beslutningstræ!HE67="xx","",Beslutningstræ!HE67) ->  | J49: =IF(Beslutningstræ!HF67="xx","",Beslutningstræ!HF67) ->  | K49: =IF(Beslutningstræ!HG67="xx","",Beslutningstræ!HG67) ->  | L49: =IF(Beslutningstræ!HH67="xx","",Beslutningstræ!HH67) ->  | M49: =IF(Beslutningstræ!HI67="xx","",Beslutningstræ!HI67) ->  | N49: =IF(Beslutningstræ!HJ67="xx","",Beslutningstræ!HJ67) ->  | O49: =IF(Beslutningstræ!HK67="xx","",Beslutningstræ!HK67) -> 
E50: =IF(Beslutningstræ!HA68="xx","",Beslutningstræ!HA68) ->  | F50: =IF(Beslutningstræ!HB68="xx","",Beslutningstræ!HB68) ->  | G50: =IF(Beslutningstræ!HC68="xx","",Beslutningstræ!HC68) ->  | H50: =IF(Beslutningstræ!HD68="xx","",Beslutningstræ!HD68) ->  | I50: =IF(Beslutningstræ!HE68="xx","",Beslutningstræ!HE68) ->  | J50: =IF(Beslutningstræ!HF68="xx","",Beslutningstræ!HF68) ->  | K50: =IF(Beslutningstræ!HG68="xx","",Beslutningstræ!HG68) ->  | L50: =IF(Beslutningstræ!HH68="xx","",Beslutningstræ!HH68) ->  | M50: =IF(Beslutningstræ!HI68="xx","",Beslutningstræ!HI68) ->  | N50: =IF(Beslutningstræ!HJ68="xx","",Beslutningstræ!HJ68) ->  | O50: =IF(Beslutningstræ!HK68="xx","",Beslutningstræ!HK68) -> 
E51: =IF(Beslutningstræ!HA69="xx","",Beslutningstræ!HA69) ->  | F51: =IF(Beslutningstræ!HB69="xx","",Beslutningstræ!HB69) ->  | G51: =IF(Beslutningstræ!HC69="xx","",Beslutningstræ!HC69) ->  | H51: =IF(Beslutningstræ!HD69="xx","",Beslutningstræ!HD69) ->  | I51: =IF(Beslutningstræ!HE69="xx","",Beslutningstræ!HE69) ->  | J51: =IF(Beslutningstræ!HF69="xx","",Beslutningstræ!HF69) ->  | K51: =IF(Beslutningstræ!HG69="xx","",Beslutningstræ!HG69) ->  | L51: =IF(Beslutningstræ!HH69="xx","",Beslutningstræ!HH69) ->  | M51: =IF(Beslutningstræ!HI69="xx","",Beslutningstræ!HI69) ->  | N51: =IF(Beslutningstræ!HJ69="xx","",Beslutningstræ!HJ69) ->  | O51: =IF(Beslutningstræ!HK69="xx","",Beslutningstræ!HK69) -> 

Sheet Beslutningstræ (hidden)
GW2: Afgrøde | GY2: Rækkefølgevægtning | GZ2: 10
GQ3: 1= no ties | GT3: 5 | GW3: Tidspunkt | GY3: Vægt af udsåningstidspunkt | GZ3: 3
C4: 1. Vintersæd | D4: 1. Tidligt udlæg | GN4: nr. | GO4: defa | GP4: sys | GQ4: Check for ties | GR4: Break ties | GS4: plads | GT4: vægt
C5: 2. Vårsæd | D5: 2. Før høst | GN5: 1 | GO5: 21 | GP5: =GZ5+GO5/10 -> 2.1 | GQ5: =COUNTIF(GP$5:GP$26,GP5) -> 1 | GR5: =IF(GQ5>1,GP5+GO5/1000,GP5) -> 2.1 | GS5: =_xlfn.RANK.EQ(GR5,$GR$5:$GR$37,0) -> 1 | GT5: =GP5^$GT$3 -> 40.84101 | GW5: Pris | GX5: ='Efterafgrøde beslutningsstøtte'!B24 -> Ikke vigtigt | GY5: =VLOOKUP(GX5,Standard_karakterer,2,FALSE) -> 0 | GZ5: =GY5 -> 0
C6: 3. Majs | D6: 3. Efter høst | AY6: Middelværdier | DR6: Midelværdi kvadrat | GN6: 2 | GO6: 12 | GP6: 1.2 | GQ6: =COUNTIF(GP$5:GP$26,GP6) -> 1 | GR6: =IF(GQ6>1,GP6+GO6/1000,GP6) -> 1.2 | GS6: =IF(_xlfn.RANK.EQ(GR6,$GR$5:$GR$37,0)>GS$5,(_xlfn.RANK.EQ(GR6,$GR$5:$GR$37,0)+1),(_xlfn.RANK.EQ(GR6,$GR$5:$GR$37,0))) -> 11 | GT6: =GP6^$GT$3 -> 2.48832 | GW6: Pligtig efterafgrøde | GX6: =IF('Efterafgrøde beslutningsstøtte'!A$7=GW6,"Ja","Nej") -> Nej | GY6: =IF(GX6="Ja",0,0) -> 0 | GZ6: =GY6 -> 0
C7: 2. Vårsæd | AY7: =AVERAGE(AY41:AY74) ->  | AZ7: =AVERAGE(AZ41:AZ74) ->  | BQ7: =AVERAGE(BQ41:BQ74) ->  | BR7: =AVERAGE(BQ41:BQ74) ->  | BS7: =AVERAGE(BR41:BR74) ->  | BT7: =AVERAGE(BS41:BS74) ->  | DR7: =AVERAGE(DR41:DR74) ->  | DS7: =AVERAGE(DS41:DS74) ->  | DT7: =AVERAGE(DT41:DT74) ->  | EJ7: =AVERAGE(#REF!) ->  | EK7: =AVERAGE(EJ41:EJ74) ->  | EL7: =AVERAGE(EK41:EK74) ->  | EM7: =AVERAGE(EL41:EL74) ->  | GN7: 3 | GO7: 11 | GP7: 1.1 | GQ7: 1 | GR7: 1.1 | GS7: =IF(_xlfn.RANK.EQ(GR7,$GR$5:$GR$37,0)>GS$5,(_xlfn.RANK.EQ(GR7,$GR$5:$GR$37,0)+1),(_xlfn.RANK.EQ(GR7,$GR$5:$GR$37,0))) -> 12 | GT7: =GP7^$GT$3 -> 1.61051 | GW7: Pligtig mellemafgrøde | GX7: =IF('Efterafgrøde beslutningsstøtte'!A$7=GW7,"Ja","Nej") -> Nej | GY7: =IF(GX7="Ja",0,0) -> 0 | GZ7: 0
DR8: =IF(((DR7-AY7^2)^0.5)=0,10^-9,(DR7-AY7^2)^0.5) ->  | GN8: 4 | GO8: 10 | GP8: 1 | GQ8: 1 | GR8: 1 | GS8: 13 | GT8: 1 | GW8: MFO-efterafgrøde i blanding2) | GX8: =IF(OR('Efterafgrøde beslutningsstøtte'!A$7="Kun MFO afgrøde",'Efterafgrøde beslutningsstøtte'!A$7="Pligtig efterafgrøde og MFO afgrøde"),"Ja","Nej") -> Nej | GY8: 0 | GZ8: 0
DR9: Standard afvigelse | GN9: 5 | GO9: 9 | GP9: 0.9 | GQ9: 1 | GR9: 0.9 | GS9: 14 | GT9: 0.59049 | GW9: MFO-udlæg3) | GX9: =IF(OR('Efterafgrøde beslutningsstøtte'!A$7="Kun MFO afgrøde",'Efterafgrøde beslutningsstøtte'!A$7="Pligtig efterafgrøde og MFO afgrøde"),"Ja","Nej") -> Nej | GY9: 0 | GZ9: 0
GN10: 6 | GO10: 8 | GP10: 0.8 | GQ10: 1 | GR10: 0.8 | GS10: 15 | GT10: 0.32768 | GW10: Miljø-efterafgrøder | GX10: =IF('Efterafgrøde beslutningsstøtte'!A$7=GW10,"Ja","Nej") -> Nej | GY10: 0 | GZ10: 0
FA11: vgt | FB11: =TRANSPOSE(GT5:GT37) -> 40.84101 | FC11: 2.48832 | FD11: 1.61051 | FE11: 1 | FF11: 0.59049 | FG11: 0.32768 | FH11: 0.16807 | FI11: 0.07776 | FJ11: 0.03125 | FK11: 0.01024 | FL11: 0.00243 | FM11: 0.00032 | FN11: 5.37824 | FO11: 3.71293 | FP11: 7.59375 | FQ11: 32 | FR11: 24.76099 | FS11: 18.89568 | FT11: 14.19857 | FU11: 10.48576 | FV11: 1e-05 | FW11: 0 | FX11: 0 | FY11: 0 | FZ11: 0 | GA11: 0 | GB11: 0 | GC11: 0 | GD11: 0 | GE11: 0 | GF11: 0 | GG11: 0 | GH11: 0 | GN11: 7 | GO11: 7 | GP11: 0.7 | GQ11: 1 | GR11: 0.7 | GS11: 16 | GT11: 0.16807 | GW11: Frivillig efterafgrøde | GX11: =IF('Efterafgrøde beslutningsstøtte'!A$7=GW11,"Ja","Nej") -> Nej | GY11: 0 | GZ11: 0 | HA11: 1 | HB11: 2 | HC11: 3 | HD11: 4 | HE11: 5 | HF11: 6 | HG11: 7 | HH11: 8 | HI11: 9 | HJ11: 10 | HK11: 11 | HL11: 12 | HM11: 13 | HN11: 14 | HO11: 15 | HP11: 16 | HQ11: 17 | HR11: 18 | HS11: 19 | HT11: 20 | HU11: 21 | HV11: 22 | HW11: 23 | HX11: 24 | HY11: 25 | HZ11: 26 | IA11: 27 | IB11: 28 | IC11: 29 | ID11: 30 | IE11: 31 | IF11: 32 | IG11: 33
GN12: 8 | GO12: 6 | GP12: 0.6 | GQ12: 1 | GR12: 0.6 | GS12: 17 | GT12: 0.07776 | GW12: Grønne marker (2,3 DE-brug) | GX12: =IF('Efterafgrøde beslutningsstøtte'!A$7=GW12,"Ja","Nej") -> Nej | GY12: 0 | GZ12: 0 | HA12: =MATCH(HA$11,$GS$5:$GS$37,0) -> 1 | HB12: =MATCH(HB$11,$GS$5:$GS$37,0) -> 33 | HC12: =MATCH(HC$11,$GS$5:$GS$37,0) -> 16 | HD12: =MATCH(HD$11,$GS$5:$GS$37,0) -> 17 | HE12: =MATCH(HE$11,$GS$5:$GS$37,0) -> 18 | HF12: =MATCH(HF$11,$GS$5:$GS$37,0) -> 19 | HG12: =MATCH(HG$11,$GS$5:$GS$37,0) -> 20 | HH12: =MATCH(HH$11,$GS$5:$GS$37,0) -> 15 | HI12: 13 | HJ12: 14 | HK12: =MATCH(HK$11,$GS$5:$GS$37,0) -> 2 | HL12: =MATCH(HL$11,$GS$5:$GS$37,0) -> 3 | HM12: 4 | HN12: 5 | HO12: 6 | HP12: 7 | HQ12: 8 | HR12: 9 | HS12: 10 | HT12: 11 | HU12: 12 | HV12: 21
B13: Udfyldes af Hans! | GN13: 9 | GO13: 5 | GP13: =IF(GX13="Ja",GZ$2+GZ13+GO13/10,GZ13+GO13/10) -> 0.5 | GQ13: 1 | GR13: =IF(GQ13>1,GP13+GO13/1000,GP13) -> 0.5 | GS13: 18 | GT13: 0.03125 | GW13: Egnet til udlæg efterår i vinterkorn | GX13: =IF(Karaktermatrice!C21=1,"Ja","Nej") -> Nej | GY13: =IF(GX13="Ja",GZ$3,0) -> 0 | GZ13: 0
GN14: 10 | GO14: 4 | GP14: =IF(GX14="Ja",GZ$2+GZ14+GO14/10,GZ14+GO14/10) -> 0.4 | GQ14: 1 | GR14: 0.4 | GS14: 19 | GT14: 0.01024 | GW14: Egnet til udlæg forår | GX14: =IF(Karaktermatrice!C22=1,"Ja","Nej") -> Nej | GY14: =IF(GX14="Ja",GZ$3,0) -> 0 | GZ14: =GY14 -> 0
GN15: 11 | GO15: 3 | GP15: =IF(GX15="Ja",GZ$2+GZ15+GO15/10,GZ15+GO15/10) -> 0.3 | GQ15: 1 | GR15: 0.3 | GS15: 20 | GT15: 0.00243 | GW15: Egnet til udsåning 2-3 uger før høst | GX15: =IF(Karaktermatrice!C23=1,"Ja","Nej") -> Nej | GY15: 0 | GZ15: 0
GN16: 12 | GO16: 2 | GP16: =IF(GX16="Ja",GZ$2+GZ16+GO16/10,GZ16+GO16/10) -> 0.2 | GQ16: 1 | GR16: 0.2 | GS16: 21 | GT16: 0.00032 | GW16: Egnet til udsåning efter tidlig høst (10. august) | GX16: =IF(Karaktermatrice!C24=1,"Ja","Nej") -> Nej | GY16: 0 | GZ16: 0
GN17: 13 | GO17: 14 | GP17: =GZ17+GO17/10 -> 1.4 | GQ17: 1 | GR17: 1.4 | GS17: 9 | GT17: 5.37824 | GW17: Kvælstoffikserende | GX17: ='Efterafgrøde beslutningsstøtte'!B37 -> Ikke vigtigt | GY17: =VLOOKUP(GX17,Standard_karakterer,2,FALSE) -> 0 | GZ17: 0
GN18: 14 | GO18: 13 | GP18: 1.3 | GQ18: 1 | GR18: 1.3 | GS18: 10 | GT18: 3.71293 | GW18: Stor kvælstof-eftervirkning | GX18: ='Efterafgrøde beslutningsstøtte'!B38 -> Ikke vigtigt | GY18: 0 | GZ18: 0
GN19: 15 | GO19: 15 | GP19: 1.5 | GQ19: 1 | GR19: 1.5 | GS19: 8 | GT19: 7.59375 | GW19: Hurtig og dyb rodvækst på lerjord | GX19: ='Efterafgrøde beslutningsstøtte'!B34 -> Ikke vigtigt | GY19: 0 | GZ19: 0
GN20: 16 | GO20: 20 | GP20: 2 | GQ20: 1 | GR20: 2 | GS20: 3 | GT20: 32 | GW20: Er afgrøden robust mod ukrudtsmidler? | GX20: ='Efterafgrøde beslutningsstøtte'!B27 -> Ikke vigtigt | GY20: =VLOOKUP(GX20,Standard_karakterer,2,FALSE) -> 0 | GZ20: 0
GN21: 17 | GO21: 19 | GP21: 1.9 | GQ21: 1 | GR21: 1.9 | GS21: 4 | GT21: 24.76099 | GW21: Der findes sorter, der ikke opformerer kålbrok | GX21: ='Efterafgrøde beslutningsstøtte'!B28 -> Ikke vigtigt | GY21: =VLOOKUP(GX21,Kålbrok_karaktere,2,FALSE) -> 0 | GZ21: 0
GN22: 18 | GO22: 18 | GP22: 1.8 | GQ22: =COUNTIF(GP$5:GP$26,GP22) -> 1 | GR22: =IF(GQ22>1,GP22+GO22/1000,GP22) -> 1.8 | GS22: 5 | GT22: 18.89568 | GW22: Der findes sorter, der er sanerende for roecystenematoder | GX22: ='Efterafgrøde beslutningsstøtte'!B29 -> Ikke vigtigt | GY22: 0 | GZ22: 0
GN23: 19 | GO23: 17 | GP23: 1.7 | GQ23: 1 | GR23: =IF(GQ23>1,GP23+GO23/1000,GP23) -> 1.7 | GS23: 6 | GT23: 14.19857 | GW23: Tom plads | GX23: ='Efterafgrøde beslutningsstøtte'!B32 -> Ikke vigtigt | GY23: =VLOOKUP(GX23,Standard_karakterer,2,FALSE) -> 0 | GZ23: =GY23 -> 0
GN24: 20 | GO24: 16 | GP24: 1.6 | GQ24: 1 | GR24: =IF(GQ24>1,GP24+GO24/1000,GP24) -> 1.6 | GS24: 7 | GT24: =GP24^$GT$3 -> 10.48576 | GW24: Vinterfast | GX24: ='Efterafgrøde beslutningsstøtte'!B33 -> Ikke vigtigt | GY24: =VLOOKUP(GX24,Udsædskarakterer,2,FALSE) -> 0 | GZ24: =GY24 -> 0
GN25: 21 | GO25: 1 | GP25: 0.1 | GQ25: 1 | GR25: =IF(GQ25>1,GP25+GO25/1000,GP25) -> 0.1 | GS25: 22 | GT25: 1e-05 | GW25: Egen udsæd kan anvendes4) | GX25: Hovdespørgsmål | GY25: 0 | GZ25: =GY25 -> 0
GN26: 22 | GW26: Tiebreak | GX26: Hovdespørgsmål | GY26: 0 | GZ26: =GY26 -> 0
GN27: 23 | GX27: Hovdespørgsmål | GY27: 0 | GZ27: 0
GN28: 24 | GX28: Hovdespørgsmål | GY28: 0 | GZ28: 0
GN29: 25 | GX29: Hovdespørgsmål | GY29: 0 | GZ29: 0
GN30: 26 | GX30: Hovdespørgsmål | GY30: 0 | GZ30: 0
GN31: 27 | GX31: Hovdespørgsmål | GY31: 0 | GZ31: 0
GN32: 28 | GX32: Hovdespørgsmål | GY32: 0 | GZ32: 0
GN33: 29 | GX33: Hovdespørgsmål | GY33: 0 | GZ33: 0
GN34: 30 | GX34: Hovdespørgsmål | GY34: 0 | GZ34: 0
GN35: 31 | GX35: Hovdespørgsmål | GY35: 0 | GZ35: 0
FC36: Pil kriterie afgrøder ud | GN36: 32 | GX36: Hovdespørgsmål | GY36: 0 | GZ36: 0
AB37: Plads til fremtidige karaktere | FC37: Lav en måde at breake ties | GN37: 33 | GO37: Etableringsomkostninger (ikke prioriteret efter) | GS37: =GS5+1 -> 2 | GX37: Hovdespørgsmål | GY37: 0 | GZ37: 0
F38: 7 | G38: 8 | H38: 9 | I38: 10 | J38: 11 | K38: 12 | L38: 13 | M38: 14 | N38: 15 | O38: 16 | P38: 17 | Q38: 18 | R38: 19 | S38: 20 | T38: 21 | U38: 22 | V38: 23 | W38: 24 | X38: 25 | Y38: 26 | Z38: 27 | AA38: 28 | AB38: 29 | AC38: 30 | AD38: 31 | AE38: 32 | AF38: 33 | AG38: 34 | AH38: 35 | AI38: 36 | AJ38: 37 | AK38: 38 | AL38: 39 | DR38: Kvadrat
F39: 1 | G39: 2 | H39: 3 | I39: 4 | J39: 5 | K39: 6 | L39: 7 | M39: 8 | N39: 9 | O39: 10 | P39: 11 | Q39: 12 | R39: 13 | S39: 14 | T39: 15 | U39: 16 | V39: 17 | W39: 18 | X39: 19 | Y39: 20 | Z39: 21 | AA39: 22 | AB39: 23 | AC39: 24 | AD39: 25 | AE39: 26 | AF39: 27 | AG39: 28 | AH39: 29 | AI39: 30 | AJ39: 31 | AK39: 32 | AL39: 33 | AM39: 34 | AN39: 35 | AO39: 36 | AP39: 37 | AQ39: 38 | AR39: 39 | AS39: 40 | AY39: 1 | AZ39: 2 | BA39: 3 | BB39: 4 | BC39: 5 | BD39: 6 | BE39: 7 | BF39: 8 | BG39: 9 | BH39: 10 | BI39: 11 | BJ39: 12 | BK39: 13 | BL39: 14 | BM39: 15 | BN39: 16 | BO39: 17 | BP39: 18 | BQ39: 19 | BR39: 20 | BS39: 21 | BT39: 22 | BU39: 23 | BV39: 24 | BW39: 25 | BX39: 26 | BY39: 27 | BZ39: 28 | CA39: 29 | CB39: 30 | CC39: 31 | CD39: 32 | CE39: 33 | CH39: =AY39 -> 1 | CI39: =AZ39 -> 2 | CJ39: 3 | CK39: 4 | CL39: 5 | CM39: 6 | CN39: 7 | CO39: 8 | CP39: 9 | CQ39: 10 | CR39: 11 | CS39: 12 | CT39: 13 | CU39: 14 | CV39: 15 | CW39: 16 | CX39: 17 | CY39: 18 | CZ39: 19 | DA39: 20 | DB39: 21 | DC39: 22 | DD39: 23 | DE39: 24 | DF39: 25 | DG39: 26 | DH39: 27 | DI39: 28 | DJ39: 29 | DK39: =CB39 -> 30 | DL39: =CC39 -> 31 | DM39: =CD39 -> 32 | DN39: =CE39 -> 33 | DR39: 1 | DS39: 2 | DT39: 3 | DU39: 4 | DV39: 5 | DW39: 6 | DX39: 7 | DY39: 8 | DZ39: 9 | EA39: 10 | EB39: 11 | EC39: 12 | ED39: 13 | EE39: 14 | EF39: 15 | EG39: 16 | EH39: 17 | EI39: 18 | EJ39: 19 | EK39: 20 | EL39: 21 | EM39: 22 | EN39: 23 | EO39: 24 | EP39: 25 | EQ39: 26 | ER39: 27 | ES39: 28 | ET39: 29 | EU39: 30 | EV39: 31 | EW39: 32 | EX39: 33 | FB39: 1 | FC39: 2 | FD39: 3 | FE39: 4 | FF39: 5 | FG39: 6 | FH39: 7 | FI39: 8 | FJ39: 9 | FK39: 10 | FL39: 11 | FM39: 12 | FN39: 13 | FO39: 14 | FP39: 15 | FQ39: 16 | FR39: 17 | FS39: 18 | FT39: 19 | FU39: 20 | FV39: 21 | FW39: 22 | FX39: 23 | FY39: 24 | FZ39: 25 | GA39: 26 | GB39: 27 | GC39: 28 | GD39: 29 | GE39: 30 | GF39: 31 | GG39: 32 | GH39: 33 | GI39: Scoreberegning | HA39: =INDEX($AY39:$DP39,HA$12) -> 1 | IG39: =INDEX($AY39:$DP39,HB$12) -> 33
A40: Index | B40: Efterafgrøde | C40: Afgrøde | D40: Tidspunkt | E40: Link | F40: Pris | G40: Pligtig efterafgrøde | H40: Pligtig mellemafgrøde | I40: MFO-efterafgrøde i blanding2) | J40: MFO-udlæg | K40: Miljø-efterafgrøder | L40: Frivillig efterafgrøde | M40: Grønne marker (2,3 DE-brug) | N40: Egnet til udlæg efterår i vinterkorn | O40: Egnet til udlæg forår | P40: Egnet til udsåning 2-3 uger før høst | Q40: Egnet til udsåning efter tidlig høst (10. august) | R40: Kvælstoffikserende | S40: Stor kvælstof-eftervirkning | T40: Hurtig og dyb rodvækst på lerjord | U40: Er afgrøden robust mod ukrudtsmidler? | V40: Der findes sorter, der ikke opformerer kålbrok | W40: Der findes sorter, der er sanerende for roecystenematoder | X40: Tom plads | Y40: Vinterfast | Z40: Egen udsæd kan anvendes | AA40: Tiebreak | AB40: Kommentare til ukurdt | AL40: Nettoomkostninger | AY40: =F40 -> Pris | AZ40: Pligtig efterafgrøde | BA40: Pligtig mellemafgrøde | BB40: MFO-efterafgrøde i blanding2) | BC40: MFO-udlæg | BD40: Miljø-efterafgrøder | BE40: Frivillig efterafgrøde | BF40: Grønne marker (2,3 DE-brug) | BG40: Egnet til udlæg efterår i vinterkorn | BH40: Egnet til udlæg forår | BI40: Egnet til udsåning 2-3 uger før høst | BJ40: Egnet til udsåning efter tidlig høst (10. august) | BK40: Kvælstoffikserende | BL40: Stor kvælstof-eftervirkning | BM40: Hurtig og dyb rodvækst på lerjord | BN40: Er afgrøden robust mod ukrudtsmidler? | BO40: Der findes sorter, der ikke opformerer kålbrok | BP40: =W40 -> Der findes sorter, der er sanerende for roecystenematoder | BQ40: =Y40 -> Vinterfast | BR40: =Z40 -> Egen udsæd kan anvendes | BS40: Tiebreak | BT40: Kommentare ang. Ukrudt | CE40: Nettoomkostninger | CH40: =AY40 -> Pris | CI40: Pligtig efterafgrøde | CJ40: Pligtig mellemafgrøde | CK40: MFO-efterafgrøde i blanding2) | CL40: MFO-udlæg | CM40: Miljø-efterafgrøder | CN40: Frivillig efterafgrøde | CO40: Grønne marker (2,3 DE-brug) | CP40: Egnet til udlæg efterår i vinterkorn | CQ40: Egnet til udlæg forår | CR40: Egnet til udsåning 2-3 uger før høst | CS40: Egnet til udsåning efter tidlig høst (10. august) | CT40: Kvælstoffikserende | CU40: Stor kvælstof-eftervirkning | CV40: Hurtig og dyb rodvækst på lerjord | CW40: Er afgrøden robust mod ukrudtsmidler? | CX40: Der findes sorter, der ikke opformerer kålbrok | CY40: Der findes sorter, der er sanerende for roecystenematoder | CZ40: Vinterfast | DA40: Egen udsæd kan anvendes | DB40: Tiebreak | DC40: Kommentare ang. Ukrudt | DD40: 0 | DE40: 0 | DF40: 0 | DG40: 0 | DH40: 0 | DI40: 0 | DJ40: 0 | DK40: =CB40 -> 0 | DL40: 0 | DM40: 0 | DN40: Nettoomkostninger | DR40: =AY40 -> Pris | DS40: Pligtig efterafgrøde | DT40: Pligtig mellemafgrøde | DU40: MFO-efterafgrøde i blanding2) | DV40: MFO-udlæg | DW40: Miljø-efterafgrøder | DX40: Frivillig efterafgrøde | DY40: Grønne marker (2,3 DE-brug) | DZ40: Egnet til udlæg efterår i vinterkorn | EA40: Egnet til udlæg forår | EB40: Egnet til udsåning 2-3 uger før høst | EC40: Egnet til udsåning efter tidlig høst (10. august) | ED40: Kvælstoffikserende | EE40: Stor kvælstof-eftervirkning | EF40: Hurtig og dyb rodvækst på lerjord | EG40: Er afgrøden robust mod ukrudtsmidler? | EH40: Der findes sorter, der ikke opformerer kålbrok | EI40: Der findes sorter, der er sanerende for roecystenematoder | EJ40: Vinterfast | EK40: Egen udsæd kan anvendes | EL40: =BS40 -> Tiebreak | FB40: =DR40 -> Pris | FC40: =DS40 -> Pligtig efterafgrøde | FD40: Pligtig mellemafgrøde | FE40: MFO-efterafgrøde i blanding2) | FF40: MFO-udlæg | FG40: Miljø-efterafgrøder | FH40: Frivillig efterafgrøde | FI40: Grønne marker (2,3 DE-brug) | FJ40: Egnet til udlæg efterår i vinterkorn | FK40: Egnet til udlæg forår | FL40: Egnet til udsåning 2-3 uger før høst | FM40: Egnet til udsåning efter tidlig høst (10. august) | FN40: Kvælstoffikserende | FO40: Stor kvælstof-eftervirkning | FP40: Hurtig og dyb rodvækst på lerjord | FQ40: Er afgrøden robust mod ukrudtsmidler? | FR40: Der findes sorter, der ikke opformerer kålbrok | FS40: Der findes sorter, der er sanerende for roecystenematoder | FT40: =EJ40 -> Vinterfast | FU40: =EK40 -> Egen udsæd kan anvendes | FV40: =EL40 -> Tiebreak | FW40: 0 | FX40: 0 | FY40: 0 | FZ40: 0 | GA40: 0 | GB40: 0 | GC40: 0 | GD40: 0 | GE40: 0 | GF40: 0 | GG40: 0 | GH40: 0 | GI40: Sumprodukt vægt og Zscore | GJ40: Score | GK40: Tiebreak | GL40: Score corected for ties | GM40: Placering | GS40: Check for ties and all places | GT40: Place | GV40: Plads | GZ40: Efterafgrøde | HA40: =INDEX($AY40:$CE40,HA$12) -> Pris | HB40: =INDEX($AY40:$CE40,HB$12) -> Nettoomkostninger | HC40: =INDEX($AY40:$CE40,HC$12) -> Er afgrøden robust mod ukrudtsmidler? | HD40: =INDEX($AY40:$CE40,HD$12) -> Der findes sorter, der ikke opformerer kålbrok | HE40: Der findes sorter, der er sanerende for roecystenematoder | HF40: Vinterfast | HG40: =INDEX($AY40:$CE40,HG$12) -> Egen udsæd kan anvendes | HH40: =INDEX($AY40:$CE40,HH$12) -> Hurtig og dyb rodvækst på lerjord | HI40: Kvælstoffikserende | HJ40: Stor kvælstof-eftervirkning | HK40: Pligtig efterafgrøde | HL40: Pligtig mellemafgrøde | HM40: MFO-efterafgrøde i blanding2) | HN40: MFO-udlæg | HO40: Miljø-efterafgrøder | HP40: Frivillig efterafgrøde | HQ40: Grønne marker (2,3 DE-brug) | HR40: Egnet til udlæg efterår i vinterkorn | HS40: Egnet til udlæg forår | HT40: Egnet til udsåning 2-3 uger før høst | HU40: Egnet til udsåning efter tidlig høst (10. august) | IH40: Vejledning | II40: Kommentare ang ukrudt
A41: 1 | B41: Alm. rajgræs, dipl., udlæg | E41: =IF('Efterafgrøde beslutningsstøtte'!A$7<>"Pligtig mellemafgrøde",HYPERLINK("https://dyrk-plant.dlbr.dk/Web/(S(ikevr3oqnx5oe2t5cyfyknyq))/forms/Main.aspx?page=Vejledning&cropID=226","Efterafgrøder"),HYPERLINK("https://dyrk-plant.dlbr.dk/Web/(S(0x3ftyiaahcpttq0ljebuany))/forms/Main.aspx?page=Vejledning&cropID=238","Mellemafgrøder")) -> Efterafgrøder | F41: =VLOOKUP($A41,Karaktermatrice,F$38,FALSE) -> xx | G41: =VLOOKUP($A41,Karaktermatrice,G$38,FALSE) -> xx | H41: =VLOOKUP($A41,Karaktermatrice,H$38,FALSE) -> xx | I41: xx | J41: xx | K41: =VLOOKUP($A41,Karaktermatrice,K$38,FALSE) -> xx | L41: =VLOOKUP($A41,Karaktermatrice,L$38,FALSE) -> xx | M41: xx | N41: =VLOOKUP($A41,Karaktermatrice,N$38,FALSE) -> xx | O41: xx | P41: =VLOOKUP($A41,Karaktermatrice,P$38,FALSE) -> xx | Q41: xx | R41: xx | S41: xx | T41: xx | U41: xx | V41: xx | W41: =VLOOKUP($A41,Karaktermatrice,W$38,FALSE) -> xx | X41: xx | Y41: xx | Z41: xx | AA41: xx | AB41: =VLOOKUP($A41,Karaktermatrice,AB$38,FALSE) -> xx | AL41: =VLOOKUP($A41,Karaktermatrice,AC$38,FALSE) -> xx | AY41: =F41 -> xx | AZ41: =G41 -> xx | BA41: xx | BB41: xx | BC41: xx | BD41: xx | BE41: xx | BF41: xx | BG41: xx | BH41: xx | BI41: xx | BJ41: xx | BK41: xx | BL41: xx | BM41: xx | BN41: xx | BO41: xx | BP41: xx | BQ41: =Y41 -> xx | BR41: =Z41 -> xx | BS41: xx | BT41: =AB41 -> xx | CE41: =AL41 -> xx | CH41: =IF(AY41="xx","xx",ROUND(AY41,0)) -> xx | CI41: =IF(AZ41=0,"Nej",IF(AZ41=1,"Ja","xx")) -> xx | CJ41: =IF(BA41=0,"Nej",IF(BA41=1,"Ja","xx")) -> xx | CK41: xx | CL41: xx | CM41: =IF(BD41=0,"Nej",IF(BD41=1,"Ja","xx")) -> xx | CN41: =IF(BE41=0,"Nej",IF(BE41=1,"Ja","xx")) -> xx | CO41: xx | CP41: =IF(BG41=0,"Nej",IF(BG41=1,"Brugbar",IF(BG41=2,"God",IF(BG41=3,"Meget god","xx")))) -> xx | CQ41: =IF(BH41=0,"Nej",IF(BH41=1,"Brugbar",IF(BH41=2,"God",IF(BH41=3,"Meget god","xx")))) -> xx | CR41: xx | CS41: xx | CT41: =IF(BK41=0,"Nej",IF(BK41=1,"Ja","xx")) -> xx | CU41: =IF(BL41=0,"Lille",IF(BL41=1,"Middel",IF(BL41=2,"Over middel",IF(BL41=3,"Stor","xx")))) -> xx | CV41: =IF(BM41=0,"Nej",IF(BM41=1,"Rimelig",IF(BM41=2,"God",IF(BM41=3,"Meget god","xx")))) -> xx | CW41: =IF(BN41=0,"Nej",IF(BN41=1,"Mod visse",IF(BN41=2,"Mod mange",IF(BN41=3,"Mod de fleste","xx")))) -> xx | CX41: =IF(BO41=0,"Nej",IF(BO41=1,"Få",IF(BO41=2,"Nogle",IF(BO41=3,"Mange","xx")))) -> xx | CY41: =IF(BP41=0,"Nej",IF(BP41=1,"Få",IF(BP41=2,"Nogle",IF(BP41=3,"Mange","xx")))) -> xx | CZ41: =IF(BQ41=0,"Udvintre",IF(BQ41=1,"Dårlig",IF(BQ41=2,"God",IF(BQ41=3,"Meget god","xx")))) -> xx | DA41: =IF(BR41=0,"Nej",IF(BR41=1,"Ja","xx")) -> xx | DC41: =BT41 -> xx | DN41: =CE41 -> xx | DR41: =IF(AY41<>"xx",AY41^2,"xx") -> xx | DS41: =IF(AZ41<>"xx",AZ41^2,"xx") -> xx | DT41: =IF(BA41<>"xx",BA41^2,"xx") -> xx | DU41: =IF(BB41<>"xx",BB41^2,"xx") -> xx | DV41: =IF(BC41<>"xx",BC41^2,"xx") -> xx | DW41: =IF(BD41<>"xx",BD41^2,"xx") -> xx | DX41: =IF(BE41<>"xx",BE41^2,"xx") -> xx | DY41: =IF(BF41<>"xx",BF41^2,"xx") -> xx | DZ41: =IF(BG41<>"xx",BG41^2,"xx") -> xx | EA41: =IF(BH41<>"xx",BH41^2,"xx") -> xx | EB41: =IF(BI41<>"xx",BI41^2,"xx") -> xx | EC41: =IF(BJ41<>"xx",BJ41^2,"xx") -> xx | ED41: =IF(BK41<>"xx",BK41^2,"xx") -> xx | EE41: =IF(BL41<>"xx",BL41^2,"xx") -> xx | EF41: =IF(BM41<>"xx",BM41^2,"xx") -> xx | EG41: =IF(BN41<>"xx",BN41^2,"xx") -> xx | EH41: =IF(BO41<>"xx",BO41^2,"xx") -> xx | EI41: =IF(BP41<>"xx",BP41^2,"xx") -> xx | EJ41: =IF(BQ41<>"xx",BQ41^2,"xx") -> xx | EK41: =IF(BQ41<>"xx",BQ41^2,"xx") -> xx | EL41: =IF(BS41<>"xx",BS41^2,"xx") -> xx | FB41: =IF(DR41="xx","xx",(AY41-AY$7)/DR$8) -> xx | FC41: =IF(DS41="xx","xx",(AZ41-AZ$7)/DS$8) -> xx | FD41: =IF(DT41="xx","xx",(BA41-BA$7)/DT$8) -> xx | FE41: =IF(DU41="xx","xx",(BB41-BB$7)/DU$8) -> xx | FF41: =IF(DV41="xx","xx",(BC41-BC$7)/DV$8) -> xx | FG41: =IF(DW41="xx","xx",(BD41-BD$7)/DW$8) -> xx | FH41: =IF(DX41="xx","xx",(BE41-BE$7)/DX$8) -> xx | FI41: =IF(DY41="xx","xx",(BF41-BF$7)/DY$8) -> xx | FJ41: =IF(DZ41="xx","xx",(BG41-BG$7)/DZ$8) -> xx | FK41: =IF(EA41="xx","xx",(BH41-BH$7)/EA$8) -> xx | FL41: =IF(EB41="xx","xx",(BI41-BI$7)/EB$8) -> xx | FM41: =IF(EC41="xx","xx",(BJ41-BJ$7)/EC$8) -> xx | FN41: =IF(ED41="xx","xx",(BK41-BK$7)/ED$8) -> xx | FO41: =IF(EE41="xx","xx",(BL41-BL$7)/EE$8) -> xx | FP41: =IF(EF41="xx","xx",(BM41-BM$7)/EF$8) -> xx | FQ41: =IF(EG41="xx","xx",(BN41-BN$7)/EG$8) -> xx | FR41: =IF(EH41="xx","xx",(BO41-BO$7)/EH$8) -> xx | FS41: =IF(EI41="xx","xx",(BP41-BP$7)/EI$8) -> xx | FT41: =IF(EJ41="xx","xx",(BQ41-BR$7)/EK$8) -> xx | FU41: =IF(EK41="xx","xx",(BQ41-BS$7)/EL$8) -> xx | FV41: =IF(EL41="xx","xx",(BS41-BT$7)/EM$8) -> xx | GI41: =SUMPRODUCT($FB$11:$FV$11,FB41:FV41) -> 0 | GJ41: =IF(FB41="xx","xx",GI41) -> xx | GK41: =IF(GJ41="xx","xx",IF(COUNTIF($GJ$41:$GJ$74,GJ41)>1,RANK(AL41,AL$41:AL$70,1)/1000,0)) -> xx | GL41: =IF(OR(GJ41="xx",GK41="xx"),"xx",GK41+GJ41) -> xx | GM41: =IF(GL41="xx",99,RANK(GL41,$GL$41:$GL$112)) -> 99 | GS41: =COUNTIF($GM$41:$GM$112,GV41) -> 0 | GT41: =IF(GS41>0,MATCH(GV41,$GM$41:$GM$112,0),"xx") -> xx | GV41: 1 | GZ41: =IF($GS41=0,"xx",INDEX($B$41:$B$112,$GT41)) -> xx | HA41: =IF($GS41=0,"xx",INDEX($CH$41:$DN$112,$GT41,HA$12)) -> xx | HB41: =IF($GS41=0,"xx",INDEX($CH$41:$DN$112,$GT41,HB$12)) -> xx | HC41: =IF($GS41=0,"xx",INDEX($CH$41:$DN$112,$GT41,HC$12)) -> xx | HD41: =IF($GS41=0,"xx",INDEX($CH$41:$DN$112,$GT41,HD$12)) -> xx | HE41: xx | HF41: xx | HG41: xx | HH41: xx | HI41: xx | HJ41: xx | HK41: xx | HL41: xx | HM41: xx | HN41: xx | HO41: xx | HP41: xx | HQ41: xx | HR41: xx | HS41: xx | HT41: xx | HU41: =IF($GS41=0,"xx",INDEX($CH$41:$DN$112,$GT41,HU$12)) -> xx | IH41: =IF($GS41=0,"xx",INDEX($E$41:$E$127,$GT41)) -> xx
A42: 2 | B42: Ital. rajgræs, dipl., udlæg | E42: =IF('Efterafgrøde beslutningsstøtte'!A$7<>"Pligtig mellemafgrøde",HYPERLINK("https://dyrk-plant.dlbr.dk/Web/(S(ikevr3oqnx5oe2t5cyfyknyq))/forms/Main.aspx?page=Vejledning&cropID=226","Efterafgrøder"),HYPERLINK("https://dyrk-plant.dlbr.dk/Web/(S(0x3ftyiaahcpttq0ljebuany))/forms/Main.aspx?page=Vejledning&cropID=238","Mellemafgrøder")) -> Efterafgrøder | F42: xx | G42: xx | H42: xx | I42: xx | J42: xx | K42: xx | L42: xx | M42: xx | N42: xx | O42: xx | P42: xx | Q42: xx | R42: xx | S42: xx | T42: xx | U42: xx | V42: xx | W42: xx | X42: xx | Y42: xx | Z42: xx | AA42: xx | AB42: xx | AL42: xx | AY42: xx | AZ42: xx | BA42: xx | BB42: xx | BC42: xx | BD42: xx | BE42: xx | BF42: xx | BG42: xx | BH42: xx | BI42: xx | BJ42: xx | BK42: xx | BL42: xx | BM42: xx | BN42: xx | BO42: xx | BP42: xx | BQ42: =Y42 -> xx | BR42: xx | BS42: xx | BT42: xx | CE42: =AL42 -> xx | CH42: =IF(AY42="xx","xx",ROUND(AY42,0)) -> xx | CI42: =IF(AZ42=0,"Nej",IF(AZ42=1,"Ja","xx")) -> xx | CJ42: =IF(BA42=0,"Nej",IF(BA42=1,"Ja","xx")) -> xx | CK42: =IF(BB42=0,"Nej",IF(BB42=1,"Ja","xx")) -> xx | CL42: =IF(BC42=0,"Nej",IF(BC42=1,"Ja","xx")) -> xx | CM42: =IF(BD42=0,"Nej",IF(BD42=1,"Ja","xx")) -> xx | CN42: =IF(BE42=0,"Nej",IF(BE42=1,"Ja","xx")) -> xx | CO42: =IF(BF42=0,"Nej",IF(BF42=1,"Ja","xx")) -> xx | CP42: =IF(BG42=0,"Nej",IF(BG42=1,"Brugbar",IF(BG42=2,"God",IF(BG42=3,"Meget god","xx")))) -> xx | CQ42: =IF(BH42=0,"Nej",IF(BH42=1,"Brugbar",IF(BH42=2,"God",IF(BH42=3,"Meget god","xx")))) -> xx | CR42: =IF(BI42=0,"Nej",IF(BI42=1,"Brugbar",IF(BI42=2,"God",IF(BI42=3,"Meget god","xx")))) -> xx | CS42: =IF(BJ42=0,"Nej",IF(BJ42=1,"Brugbar",IF(BJ42=2,"God",IF(BJ42=3,"Meget god","xx")))) -> xx | CT42: =IF(BK42=0,"Nej",IF(BK42=1,"Ja","xx")) -> xx | CU42: =IF(BL42=0,"Lille",IF(BL42=1,"Middel",IF(BL42=2,"Over middel",IF(BL42=3,"Stor","xx")))) -> xx | CV42: =IF(BM42=0,"Nej",IF(BM42=1,"Rimelig",IF(BM42=2,"God",IF(BM42=3,"Meget god","xx")))) -> xx | CW42: =IF(BN42=0,"Nej",IF(BN42=1,"Mod visse",IF(BN42=2,"Mod mange",IF(BN42=3,"Mod de fleste","xx")))) -> xx | CX42: =IF(BO42=0,"Nej",IF(BO42=1,"Få",IF(BO42=2,"Nogle",IF(BO42=3,"Mange","xx")))) -> xx | CY42: =IF(BP42=0,"Nej",IF(BP42=1,"Få",IF(BP42=2,"Nogle",IF(BP42=3,"Mange","xx")))) -> xx | CZ42: =IF(BQ42=0,"Udvintre",IF(BQ42=1,"Dårlig",IF(BQ42=2,"God",IF(BQ42=3,"Meget god","xx")))) -> xx | DA42: =IF(BR42=0,"Nej",IF(BR42=1,"Ja","xx")) -> xx | DC42: =BT42 -> xx | DN42: =CE42 -> xx | DR42: xx | DS42: xx | DT42: xx | DU42: xx | DV42: xx | DW42: xx | DX42: xx | DY42: xx | DZ42: xx | EA42: xx | EB42: xx | EC42: xx | ED42: xx | EE42: xx | EF42: xx | EG42: xx | EH42: xx | EI42: xx | EJ42: =IF(BQ42<>"xx",BQ42^2,"xx") -> xx | EK42: =IF(BR42<>"xx",BR42^2,"xx") -> xx | EL42: xx | FB42: xx | FC42: xx | FD42: xx | FE42: xx | FF42: xx | FG42: xx | FH42: xx | FI42: xx | FJ42: xx | FK42: xx | FL42: xx | FM42: xx | FN42: xx | FO42: xx | FP42: xx | FQ42: xx | FR42: xx | FS42: =IF(EI42="xx","xx",(BP42-BP$7)/EI$8) -> xx | FT42: =IF(EJ42="xx","xx",(BQ42-BR$7)/EK$8) -> xx | FU42: =IF(EK42="xx","xx",(BR42-BS$7)/EL$8) -> xx | FV42: xx | GI42: =SUMPRODUCT($FB$11:$FV$11,FB42:FV42) -> 0 | GJ42: =IF(FB42="xx","xx",GI42) -> xx | GK42: xx | GL42: =IF(OR(GJ42="xx",GK42="xx"),"xx",GK42+GJ42) -> xx | GM42: =IF(GL42="xx",99,RANK(GL42,$GL$41:$GL$112)) -> 99 | GS42: =COUNTIF($GM$41:$GM$112,GV42) -> 0 | GT42: =IF(GS42>0,MATCH(GV42,$GM$41:$GM$112,0),"xx") -> xx | GV42: 2 | GZ42: xx | HA42: =IF($GS42=0,"xx",INDEX($CH$41:$DN$112,$GT42,HA$12)) -> xx | HB42: xx | HC42: xx | HD42: xx | HE42: xx | HF42: xx | HG42: xx | HH42: xx | HI42: xx | HJ42: xx | HK42: xx | HL42: xx | HM42: xx | HN42: xx | HO42: xx | HP42: xx | HQ42: xx | HR42: xx | HS42: xx | HT42: xx | HU42: xx | IH42: xx
A43: 3 | B43: Westerwoldisk rajgræs | E43: =IF('Efterafgrøde beslutningsstøtte'!A$7<>"Pligtig mellemafgrøde",HYPERLINK("https://dyrk-plant.dlbr.dk/Web/(S(ikevr3oqnx5oe2t5cyfyknyq))/forms/Main.aspx?page=Vejledning&cropID=226","Efterafgrøder"),HYPERLINK("https://dyrk-plant.dlbr.dk/Web/(S(0x3ftyiaahcpttq0ljebuany))/forms/Main.aspx?page=Vejledning&cropID=238","Mellemafgrøder")) -> Efterafgrøder | F43: xx | G43: xx | H43: xx | I43: xx | J43: xx | K43: xx | L43: xx | M43: xx | N43: xx | O43: xx | P43: xx | Q43: xx | R43: xx | S43: xx | T43: xx | U43: xx | V43: xx | W43: xx | X43: xx | Y43: xx | Z43: xx | AA43: xx | AB43: xx | AL43: xx | AY43: xx | AZ43: xx | BA43: xx | BB43: xx | BC43: xx | BD43: xx | BE43: xx | BF43: xx | BG43: xx | BH43: xx | BI43: xx | BJ43: xx | BK43: xx | BL43: xx | BM43: xx | BN43: xx | BO43: xx | BP43: xx | BQ43: xx | BR43: xx | BS43: xx | BT43: xx | CE43: xx | CH43: xx | CI43: xx | CJ43: xx | CK43: xx | CL43: xx | CM43: xx | CN43: xx | CO43: xx | CP43: xx | CQ43: xx | CR43: xx | CS43: xx | CT43: xx | CU43: xx | CV43: xx | CW43: xx | CX43: xx | CY43: xx | CZ43: xx | DA43: xx | DC43: xx | DN43: xx | DR43: xx | DS43: xx | DT43: xx | DU43: xx | DV43: xx | DW43: xx | DX43: xx | DY43: xx | DZ43: xx | EA43: xx | EB43: xx | EC43: xx | ED43: xx | EE43: xx | EF43: xx | EG43: xx | EH43: xx | EI43: xx | EJ43: xx | EK43: xx | EL43: xx | FB43: xx | FC43: xx | FD43: xx | FE43: xx | FF43: xx | FG43: xx | FH43: xx | FI43: xx | FJ43: xx | FK43: xx | FL43: xx | FM43: xx | FN43: xx | FO43: xx | FP43: xx | FQ43: xx | FR43: xx | FS43: xx | FT43: xx | FU43: xx | FV43: xx | GI43: 0 | GJ43: xx | GK43: xx | GL43: xx | GM43: 99 | GS43: 0 | GT43: =IF(GS43>0,MATCH(GV43,$GM$41:$GM$112,0),"xx") -> xx | GV43: 3 | GZ43: xx | HA43: xx | HB43: xx | HC43: xx | HD43: xx | HE43: xx | HF43: xx | HG43: xx | HH43: xx | HI43: xx | HJ43: xx | HK43: xx | HL43: xx | HM43: xx | HN43: xx | HO43: xx | HP43: xx | HQ43: xx | HR43: xx | HS43: xx | HT43: xx | HU43: xx | IH43: xx
A44: 4 | B44: Strandsvingel, udlæg | E44: =IF('Efterafgrøde beslutningsstøtte'!A$7<>"Pligtig mellemafgrøde",HYPERLINK("https://dyrk-plant.dlbr.dk/Web/(S(ikevr3oqnx5oe2t5cyfyknyq))/forms/Main.aspx?page=Vejledning&cropID=226","Efterafgrøder"),HYPERLINK("https://dyrk-plant.dlbr.dk/Web/(S(0x3ftyiaahcpttq0ljebuany))/forms/Main.aspx?page=Vejledning&cropID=238","Mellemafgrøder")) -> Efterafgrøder | F44: xx | G44: xx | H44: xx | I44: xx | J44: xx | K44: xx | L44: xx | M44: xx | N44: xx | O44: xx | P44: xx | Q44: xx | R44: xx | S44: xx | T44: xx | U44: xx | V44: xx | W44: xx | X44: xx | Y44: xx | Z44: xx | AA44: xx | AB44: xx | AL44: xx | AY44: xx | AZ44: xx | BA44: xx | BB44: xx | BC44: xx | BD44: xx | BE44: xx | BF44: xx | BG44: xx | BH44: xx | BI44: xx | BJ44: xx | BK44: xx | BL44: xx | BM44: xx | BN44: xx | BO44: xx | BP44: xx | BQ44: xx | BR44: xx | BS44: xx | BT44: xx | CE44: xx | CH44: xx | CI44: xx | CJ44: xx | CK44: xx | CL44: xx | CM44: xx | CN44: xx | CO44: xx | CP44: xx | CQ44: xx | CR44: xx | CS44: xx | CT44: xx | CU44: xx | CV44: xx | CW44: xx | CX44: xx | CY44: xx | CZ44: xx | DA44: xx | DC44: xx | DN44: xx | DR44: xx | DS44: xx | DT44: xx | DU44: xx | DV44: xx | DW44: xx | DX44: xx | DY44: xx | DZ44: xx | EA44: xx | EB44: xx | EC44: xx | ED44: xx | EE44: xx | EF44: xx | EG44: xx | EH44: xx | EI44: xx | EJ44: xx | EK44: xx | EL44: xx | FB44: xx | FC44: xx | FD44: xx | FE44: xx | FF44: xx | FG44: xx | FH44: xx | FI44: xx | FJ44: xx | FK44: xx | FL44: xx | FM44: xx | FN44: xx | FO44: xx | FP44: xx | FQ44: xx | FR44: xx | FS44: xx | FT44: xx | FU44: xx | FV44: xx | GI44: 0 | GJ44: xx | GK44: xx | GL44: xx | GM44: 99 | GS44: =COUNTIF($GM$41:$GM$112,GV44) -> 0 | GT44: =IF(GS44>0,MATCH(GV44,$GM$41:$GM$112,0),"xx") -> xx | GV44: 4 | GZ44: xx | HA44: xx | HB44: xx | HC44: xx | HD44: xx | HE44: xx | HF44: xx | HG44: xx | HH44: xx | HI44: xx | HJ44: xx | HK44: xx | HL44: xx | HM44: xx | HN44: xx | HO44: xx | HP44: xx | HQ44: xx | HR44: xx | HS44: xx | HT44: xx | HU44: xx | IH44: xx
A45: 5 | B45: Rødsvingel, udlæg | E45: =IF('Efterafgrøde beslutningsstøtte'!A$7<>"Pligtig mellemafgrøde",HYPERLINK("https://dyrk-plant.dlbr.dk/Web/(S(ikevr3oqnx5oe2t5cyfyknyq))/forms/Main.aspx?page=Vejledning&cropID=226","Efterafgrøder"),HYPERLINK("https://dyrk-plant.dlbr.dk/Web/(S(0x3ftyiaahcpttq0ljebuany))/forms/Main.aspx?page=Vejledning&cropID=238","Mellemafgrøder")) -> Efterafgrøder | F45: xx | G45: xx | H45: xx | I45: xx | J45: xx | K45: xx | L45: xx | M45: xx | N45: xx | O45: xx | P45: xx | Q45: xx | R45: xx | S45: xx | T45: xx | U45: xx | V45: xx | W45: xx | X45: xx | Y45: xx | Z45: xx | AA45: xx | AB45: xx | AL45: xx | AY45: xx | AZ45: xx | BA45: xx | BB45: xx | BC45: xx | BD45: xx | BE45: xx | BF45: xx | BG45: xx | BH45: xx | BI45: xx | BJ45: xx | BK45: xx | BL45: xx | BM45: xx | BN45: xx | BO45: xx | BP45: xx | BQ45: xx | BR45: xx | BS45: xx | BT45: xx | CE45: xx | CH45: xx | CI45: xx | CJ45: xx | CK45: xx | CL45: xx | CM45: xx | CN45: xx | CO45: xx | CP45: xx | CQ45: xx | CR45: xx | CS45: xx | CT45: xx | CU45: xx | CV45: xx | CW45: xx | CX45: xx | CY45: xx | CZ45: xx | DA45: xx | DC45: xx | DN45: xx | DR45: xx | DS45: xx | DT45: xx | DU45: xx | DV45: xx | DW45: xx | DX45: xx | DY45: xx | DZ45: xx | EA45: xx | EB45: xx | EC45: xx | ED45: xx | EE45: xx | EF45: xx | EG45: xx | EH45: xx | EI45: xx | EJ45: xx | EK45: xx | EL45: xx | FB45: xx | FC45: xx | FD45: xx | FE45: xx | FF45: xx | FG45: xx | FH45: xx | FI45: xx | FJ45: xx | FK45: xx | FL45: xx | FM45: xx | FN45: xx | FO45: xx | FP45: xx | FQ45: xx | FR45: xx | FS45: xx | FT45: xx | FU45: xx | FV45: xx | GI45: 0 | GJ45: xx | GK45: xx | GL45: xx | GM45: 99 | GS45: 0 | GT45: xx | GV45: 5 | GZ45: xx | HA45: xx | HB45: xx | HC45: xx | HD45: xx | HE45: xx | HF45: xx | HG45: xx | HH45: xx | HI45: xx | HJ45: xx | HK45: xx | HL45: xx | HM45: xx | HN45: xx | HO45: xx | HP45: xx | HQ45: xx | HR45: xx | HS45: xx | HT45: xx | HU45: xx | IH45: xx
A46: 6 | B46: Engrapgræs, udlæg | E46: =IF('Efterafgrøde beslutningsstøtte'!A$7<>"Pligtig mellemafgrøde",HYPERLINK("https://dyrk-plant.dlbr.dk/Web/(S(ikevr3oqnx5oe2t5cyfyknyq))/forms/Main.aspx?page=Vejledning&cropID=226","Efterafgrøder"),HYPERLINK("https://dyrk-plant.dlbr.dk/Web/(S(0x3ftyiaahcpttq0ljebuany))/forms/Main.aspx?page=Vejledning&cropID=238","Mellemafgrøder")) -> Efterafgrøder | F46: xx | G46: xx | H46: xx | I46: xx | J46: xx | K46: xx | L46: xx | M46: xx | N46: xx | O46: xx | P46: xx | Q46: xx | R46: xx | S46: xx | T46: xx | U46: xx | V46: xx | W46: xx | X46: xx | Y46: xx | Z46: xx | AA46: xx | AB46: xx | AL46: xx | AY46: xx | AZ46: xx | BA46: xx | BB46: xx | BC46: xx | BD46: xx | BE46: xx | BF46: xx | BG46: xx | BH46: xx | BI46: xx | BJ46: xx | BK46: xx | BL46: xx | BM46: xx | BN46: xx | BO46: xx | BP46: xx | BQ46: xx | BR46: xx | BS46: xx | BT46: xx | CE46: xx | CH46: xx | CI46: xx | CJ46: xx | CK46: xx | CL46: xx | CM46: xx | CN46: xx | CO46: xx | CP46: xx | CQ46: xx | CR46: xx | CS46: xx | CT46: xx | CU46: xx | CV46: xx | CW46: xx | CX46: xx | CY46: xx | CZ46: xx | DA46: xx | DC46: xx | DN46: xx | DR46: xx | DS46: xx | DT46: xx | DU46: xx | DV46: xx | DW46: xx | DX46: xx | DY46: xx | DZ46: xx | EA46: xx | EB46: xx | EC46: xx | ED46: xx | EE46: xx | EF46: xx | EG46: xx | EH46: xx | EI46: xx | EJ46: xx | EK46: xx | EL46: xx | FB46: xx | FC46: xx | FD46: xx | FE46: xx | FF46: xx | FG46: xx | FH46: xx | FI46: xx | FJ46: xx | FK46: xx | FL46: xx | FM46: xx | FN46: xx | FO46: xx | FP46: xx | FQ46: xx | FR46: xx | FS46: xx | FT46: xx | FU46: xx | FV46: xx | GI46: 0 | GJ46: xx | GK46: xx | GL46: xx | GM46: 99 | GS46: 0 | GT46: xx | GV46: 6 | GZ46: xx | HA46: xx | HB46: xx | HC46: xx | HD46: xx | HE46: xx | HF46: xx | HG46: xx | HH46: xx | HI46: xx | HJ46: xx | HK46: xx | HL46: xx | HM46: xx | HN46: xx | HO46: xx | HP46: xx | HQ46: xx | HR46: xx | HS46: xx | HT46: xx | HU46: xx | IH46: xx
A47: 7 | B47: Hundegræs, udlæg | E47: =IF('Efterafgrøde beslutningsstøtte'!A$7<>"Pligtig mellemafgrøde",HYPERLINK("https://dyrk-plant.dlbr.dk/Web/(S(ikevr3oqnx5oe2t5cyfyknyq))/forms/Main.aspx?page=Vejledning&cropID=226","Efterafgrøder"),HYPERLINK("https://dyrk-plant.dlbr.dk/Web/(S(0x3ftyiaahcpttq0ljebuany))/forms/Main.aspx?page=Vejledning&cropID=238","Mellemafgrøder")) -> Efterafgrøder | F47: xx | G47: xx | H47: xx | I47: xx | J47: xx | K47: xx | L47: xx | M47: xx | N47: xx | O47: xx | P47: xx | Q47: xx | R47: xx | S47: xx | T47: xx | U47: xx | V47: xx | W47: xx | X47: xx | Y47: xx | Z47: xx | AA47: xx | AB47: xx | AL47: xx | AY47: xx | AZ47: xx | BA47: xx | BB47: xx | BC47: xx | BD47: xx | BE47: xx | BF47: xx | BG47: xx | BH47: xx | BI47: xx | BJ47: xx | BK47: xx | BL47: xx | BM47: xx | BN47: xx | BO47: xx | BP47: xx | BQ47: xx | BR47: xx | BS47: xx | BT47: xx | CE47: xx | CH47: xx | CI47: xx | CJ47: xx | CK47: xx | CL47: xx | CM47: xx | CN47: xx | CO47: xx | CP47: xx | CQ47: xx | CR47: xx | CS47: xx | CT47: xx | CU47: xx | CV47: xx | CW47: xx | CX47: xx | CY47: xx | CZ47: xx | DA47: xx | DC47: xx | DN47: xx | DR47: xx | DS47: xx | DT47: xx | DU47: xx | DV47: xx | DW47: xx | DX47: xx | DY47: xx | DZ47: xx | EA47: xx | EB47: xx | EC47: xx | ED47: xx | EE47: xx | EF47: xx | EG47: xx | EH47: xx | EI47: xx | EJ47: xx | EK47: xx | EL47: xx | FB47: xx | FC47: xx | FD47: xx | FE47: xx | FF47: xx | FG47: xx | FH47: xx | FI47: xx | FJ47: xx | FK47: xx | FL47: xx | FM47: xx | FN47: xx | FO47: xx | FP47: xx | FQ47: xx | FR47: xx | FS47: xx | FT47: xx | FU47: xx | FV47: xx | GI47: 0 | GJ47: xx | GK47: xx | GL47: xx | GM47: 99 | GS47: 0 | GT47: xx | GV47: 7 | GZ47: xx | HA47: xx | HB47: xx | HC47: xx | HD47: xx | HE47: xx | HF47: xx | HG47: xx | HH47: xx | HI47: xx | HJ47: xx | HK47: xx | HL47: xx | HM47: xx | HN47: xx | HO47: xx | HP47: xx | HQ47: xx | HR47: xx | HS47: xx | HT47: xx | HU47: xx | IH47: xx
A48: 8 | B48: Frøgræs, udtjent | E48: =IF('Efterafgrøde beslutningsstøtte'!A$7<>"Pligtig mellemafgrøde",HYPERLINK("https://dyrk-plant.dlbr.dk/Web/(S(ikevr3oqnx5oe2t5cyfyknyq))/forms/Main.aspx?page=Vejledning&cropID=226","Efterafgrøder"),HYPERLINK("https://dyrk-plant.dlbr.dk/Web/(S(0x3ftyiaahcpttq0ljebuany))/forms/Main.aspx?page=Vejledning&cropID=238","Mellemafgrøder")) -> Efterafgrøder | F48: xx | G48: xx | H48: xx | I48: xx | J48: xx | K48: xx | L48: xx | M48: xx | N48: xx | O48: xx | P48: xx | Q48: xx | R48: xx | S48: xx | T48: xx | U48: xx | V48: xx | W48: xx | X48: xx | Y48: xx | Z48: xx | AA48: xx | AB48: xx | AL48: xx | AY48: xx | AZ48: xx | BA48: xx | BB48: xx | BC48: xx | BD48: xx | BE48: xx | BF48: xx | BG48: xx | BH48: xx | BI48: xx | BJ48: xx | BK48: xx | BL48: xx | BM48: xx | BN48: xx | BO48: xx | BP48: xx | BQ48: xx | BR48: xx | BS48: xx | BT48: xx | CE48: xx | CH48: xx | CI48: xx | CJ48: xx | CK48: xx | CL48: xx | CM48: xx | CN48: xx | CO48: xx | CP48: xx | CQ48: xx | CR48: xx | CS48: xx | CT48: xx | CU48: xx | CV48: xx | CW48: xx | CX48: xx | CY48: xx | CZ48: xx | DA48: xx | DC48: xx | DN48: xx | DR48: xx | DS48: xx | DT48: xx | DU48: xx | DV48: xx | DW48: xx | DX48: xx | DY48: xx | DZ48: xx | EA48: xx | EB48: xx | EC48: xx | ED48: xx | EE48: xx | EF48: xx | EG48: xx | EH48: xx | EI48: xx | EJ48: xx | EK48: xx | EL48: xx | FB48: xx | FC48: xx | FD48: xx | FE48: xx | FF48: xx | FG48: xx | FH48: xx | FI48: xx | FJ48: xx | FK48: xx | FL48: xx | FM48: xx | FN48: xx | FO48: xx | FP48: xx | FQ48: xx | FR48: xx | FS48: xx | FT48: xx | FU48: xx | FV48: xx | GI48: 0 | GJ48: xx | GK48: xx | GL48: xx | GM48: 99 | GS48: 0 | GT48: xx | GV48: 8 | GZ48: xx | HA48: xx | HB48: xx | HC48: xx | HD48: xx | HE48: xx | HF48: xx | HG48: xx | HH48: xx | HI48: xx | HJ48: xx | HK48: xx | HL48: xx | HM48: xx | HN48: xx | HO48: xx | HP48: xx | HQ48: xx | HR48: xx | HS48: xx | HT48: xx | HU48: xx | IH48: xx
A49: 9 | B49: Gul sennep | E49: =IF('Efterafgrøde beslutningsstøtte'!A$7<>"Pligtig mellemafgrøde",HYPERLINK("https://dyrk-plant.dlbr.dk/Web/(S(ikevr3oqnx5oe2t5cyfyknyq))/forms/Main.aspx?page=Vejledning&cropID=226","Efterafgrøder"),HYPERLINK("https://dyrk-plant.dlbr.dk/Web/(S(0x3ftyiaahcpttq0ljebuany))/forms/Main.aspx?page=Vejledning&cropID=238","Mellemafgrøder")) -> Efterafgrøder | F49: xx | G49: xx | H49: xx | I49: xx | J49: xx | K49: xx | L49: xx | M49: xx | N49: xx | O49: xx | P49: xx | Q49: xx | R49: xx | S49: xx | T49: xx | U49: xx | V49: xx | W49: xx | X49: xx | Y49: xx | Z49: xx | AA49: xx | AB49: xx | AL49: xx | AY49: xx | AZ49: xx | BA49: xx | BB49: xx | BC49: xx | BD49: xx | BE49: xx | BF49: xx | BG49: xx | BH49: xx | BI49: xx | BJ49: xx | BK49: xx | BL49: xx | BM49: xx | BN49: xx | BO49: xx | BP49: xx | BQ49: xx | BR49: xx | BS49: xx | BT49: xx | CE49: xx | CH49: xx | CI49: xx | CJ49: xx | CK49: xx | CL49: xx | CM49: xx | CN49: xx | CO49: xx | CP49: xx | CQ49: xx | CR49: xx | CS49: xx | CT49: xx | CU49: xx | CV49: xx | CW49: xx | CX49: xx | CY49: xx | CZ49: xx | DA49: xx | DC49: xx | DN49: xx | DR49: xx | DS49: xx | DT49: xx | DU49: xx | DV49: xx | DW49: xx | DX49: xx | DY49: xx | DZ49: xx | EA49: xx | EB49: xx | EC49: xx | ED49: xx | EE49: xx | EF49: xx | EG49: xx | EH49: xx | EI49: xx | EJ49: xx | EK49: xx | EL49: xx | FB49: xx | FC49: xx | FD49: xx | FE49: xx | FF49: xx | FG49: xx | FH49: xx | FI49: xx | FJ49: xx | FK49: xx | FL49: xx | FM49: xx | FN49: xx | FO49: xx | FP49: xx | FQ49: xx | FR49: xx | FS49: xx | FT49: xx | FU49: xx | FV49: xx | GI49: 0 | GJ49: xx | GK49: xx | GL49: xx | GM49: 99 | GS49: 0 | GT49: xx | GV49: 9 | GZ49: xx | HA49: xx | HB49: xx | HC49: xx | HD49: xx | HE49: xx | HF49: xx | HG49: xx | HH49: xx | HI49: xx | HJ49: xx | HK49: xx | HL49: xx | HM49: xx | HN49: xx | HO49: xx | HP49: xx | HQ49: xx | HR49: xx | HS49: xx | HT49: xx | HU49: xx | IH49: xx
A50: 10 | B50: Olieræddike | E50: =IF('Efterafgrøde beslutningsstøtte'!A$7<>"Pligtig mellemafgrøde",HYPERLINK("https://dyrk-plant.dlbr.dk/Web/(S(ikevr3oqnx5oe2t5cyfyknyq))/forms/Main.aspx?page=Vejledning&cropID=226","Efterafgrøder"),HYPERLINK("https://dyrk-plant.dlbr.dk/Web/(S(0x3ftyiaahcpttq0ljebuany))/forms/Main.aspx?page=Vejledning&cropID=238","Mellemafgrøder")) -> Efterafgrøder | F50: xx | G50: xx | H50: xx | I50: xx | J50: xx | K50: xx | L50: xx | M50: xx | N50: xx | O50: xx | P50: xx | Q50: xx | R50: xx | S50: xx | T50: xx | U50: xx | V50: xx | W50: xx | X50: xx | Y50: xx | Z50: xx | AA50: xx | AB50: xx | AL50: xx | AY50: xx | AZ50: xx | BA50: xx | BB50: xx | BC50: xx | BD50: xx | BE50: xx | BF50: xx | BG50: xx | BH50: xx | BI50: xx | BJ50: xx | BK50: xx | BL50: xx | BM50: xx | BN50: xx | BO50: xx | BP50: xx | BQ50: xx | BR50: xx | BS50: xx | BT50: xx | CE50: xx | CH50: xx | CI50: xx | CJ50: xx | CK50: xx | CL50: xx | CM50: xx | CN50: xx | CO50: xx | CP50: xx | CQ50: xx | CR50: xx | CS50: xx | CT50: xx | CU50: xx | CV50: xx | CW50: xx | CX50: xx | CY50: xx | CZ50: xx | DA50: xx | DC50: xx | DN50: xx | DR50: xx | DS50: xx | DT50: xx | DU50: xx | DV50: xx | DW50: xx | DX50: xx | DY50: xx | DZ50: xx | EA50: xx | EB50: xx | EC50: xx | ED50: xx | EE50: xx | EF50: xx | EG50: xx | EH50: xx | EI50: xx | EJ50: xx | EK50: xx | EL50: xx | FB50: xx | FC50: xx | FD50: xx | FE50: xx | FF50: xx | FG50: xx | FH50: xx | FI50: xx | FJ50: xx | FK50: xx | FL50: xx | FM50: xx | FN50: xx | FO50: xx | FP50: xx | FQ50: xx | FR50: xx | FS50: xx | FT50: xx | FU50: xx | FV50: xx | GI50: 0 | GJ50: xx | GK50: xx | GL50: xx | GM50: 99 | GS50: 0 | GT50: xx | GV50: 10 | GZ50: xx | HA50: xx | HB50: xx | HC50: xx | HD50: xx | HE50: xx | HF50: xx | HG50: xx | HH50: xx | HI50: xx | HJ50: xx | HK50: xx | HL50: xx | HM50: xx | HN50: xx | HO50: xx | HP50: xx | HQ50: xx | HR50: xx | HS50: xx | HT50: xx | HU50: xx | IH50: xx
A51: 11 | B51: Vinterraps, hybrid | E51: =IF('Efterafgrøde beslutningsstøtte'!A$7<>"Pligtig mellemafgrøde",HYPERLINK("https://dyrk-plant.dlbr.dk/Web/(S(ikevr3oqnx5oe2t5cyfyknyq))/forms/Main.aspx?page=Vejledning&cropID=226","Efterafgrøder"),HYPERLINK("https://dyrk-plant.dlbr.dk/Web/(S(0x3ftyiaahcpttq0ljebuany))/forms/Main.aspx?page=Vejledning&cropID=238","Mellemafgrøder")) -> Efterafgrøder | F51: =VLOOKUP($A51,Karaktermatrice,F$38,FALSE) -> xx | G51: xx | H51: xx | I51: xx | J51: xx | K51: xx | L51: xx | M51: xx | N51: xx | O51: xx | P51: =VLOOKUP($A51,Karaktermatrice,P$38,FALSE) -> xx | Q51: xx | R51: xx | S51: xx | T51: xx | U51: xx | V51: xx | W51: xx | X51: xx | Y51: xx | Z51: xx | AA51: xx | AB51: xx | AL51: xx | AY51: xx | AZ51: xx | BA51: xx | BB51: xx | BC51: xx | BD51: xx | BE51: xx | BF51: xx | BG51: xx | BH51: xx | BI51: xx | BJ51: xx | BK51: xx | BL51: xx | BM51: xx | BN51: xx | BO51: xx | BP51: xx | BQ51: xx | BR51: xx | BS51: xx | BT51: xx | CE51: xx | CH51: xx | CI51: xx | CJ51: xx | CK51: xx | CL51: xx | CM51: xx | CN51: xx | CO51: xx | CP51: xx | CQ51: xx | CR51: xx | CS51: xx | CT51: xx | CU51: xx | CV51: xx | CW51: xx | CX51: xx | CY51: xx | CZ51: xx | DA51: xx | DC51: xx | DN51: xx | DR51: xx | DS51: xx | DT51: xx | DU51: xx | DV51: xx | DW51: xx | DX51: xx | DY51: xx | DZ51: xx | EA51: xx | EB51: xx | EC51: xx | ED51: xx | EE51: xx | EF51: xx | EG51: xx | EH51: xx | EI51: xx | EJ51: xx | EK51: xx | EL51: xx | FB51: xx | FC51: xx | FD51: xx | FE51: xx | FF51: xx | FG51: xx | FH51: xx | FI51: xx | FJ51: xx | FK51: xx | FL51: xx | FM51: xx | FN51: xx | FO51: xx | FP51: xx | FQ51: xx | FR51: xx | FS51: xx | FT51: xx | FU51: xx | FV51: xx | GI51: 0 | GJ51: xx | GK51: xx | GL51: xx | GM51: 99 | GS51: 0 | GT51: xx | GV51: 11 | GZ51: xx | HA51: xx | HB51: xx | HC51: xx | HD51: xx | HE51: xx | HF51: xx | HG51: xx | HH51: xx | HI51: xx | HJ51: xx | HK51: xx | HL51: xx | HM51: xx | HN51: xx | HO51: xx | HP51: xx | HQ51: xx | HR51: xx | HS51: xx | HT51: xx | HU51: xx | IH51: xx
A52: 12 | B52: Vinterraps , linie | E52: =IF('Efterafgrøde beslutningsstøtte'!A$7<>"Pligtig mellemafgrøde",HYPERLINK("https://dyrk-plant.dlbr.dk/Web/(S(ikevr3oqnx5oe2t5cyfyknyq))/forms/Main.aspx?page=Vejledning&cropID=226","Efterafgrøder"),HYPERLINK("https://dyrk-plant.dlbr.dk/Web/(S(0x3ftyiaahcpttq0ljebuany))/forms/Main.aspx?page=Vejledning&cropID=238","Mellemafgrøder")) -> Efterafgrøder | F52: xx | G52: xx | H52: xx | I52: xx | J52: xx | K52: xx | L52: xx | M52: xx | N52: xx | O52: xx | P52: xx | Q52: xx | R52: xx | S52: xx | T52: xx | U52: xx | V52: xx | W52: xx | X52: xx | Y52: xx | Z52: xx | AA52: xx | AB52: xx | AL52: xx | AY52: xx | AZ52: xx | BA52: xx | BB52: xx | BC52: xx | BD52: xx | BE52: xx | BF52: xx | BG52: xx | BH52: xx | BI52: xx | BJ52: xx | BK52: xx | BL52: xx | BM52: xx | BN52: xx | BO52: xx | BP52: xx | BQ52: xx | BR52: xx | BS52: xx | BT52: xx | CE52: xx | CH52: xx | CI52: xx | CJ52: xx | CK52: xx | CL52: xx | CM52: xx | CN52: xx | CO52: xx | CP52: xx | CQ52: xx | CR52: xx | CS52: xx | CT52: xx | CU52: xx | CV52: xx | CW52: xx | CX52: xx | CY52: xx | CZ52: xx | DA52: xx | DC52: xx | DN52: xx | DR52: xx | DS52: xx | DT52: xx | DU52: xx | DV52: xx | DW52: xx | DX52: xx | DY52: xx | DZ52: xx | EA52: xx | EB52: xx | EC52: xx | ED52: xx | EE52: xx | EF52: xx | EG52: xx | EH52: xx | EI52: xx | EJ52: xx | EK52: xx | EL52: xx | FB52: xx | FC52: xx | FD52: xx | FE52: xx | FF52: xx | FG52: xx | FH52: xx | FI52: xx | FJ52: xx | FK52: xx | FL52: xx | FM52: xx | FN52: xx | FO52: xx | FP52: xx | FQ52: xx | FR52: xx | FS52: xx | FT52: xx | FU52: xx | FV52: xx | GI52: 0 | GJ52: xx | GK52: xx | GL52: xx | GM52: 99 | GS52: 0 | GT52: xx | GV52: 12 | GZ52: xx | HA52: xx | HB52: xx | HC52: xx | HD52: xx | HE52: xx | HF52: xx | HG52: xx | HH52: xx | HI52: xx | HJ52: xx | HK52: xx | HL52: xx | HM52: xx | HN52: xx | HO52: xx | HP52: xx | HQ52: xx | HR52: xx | HS52: xx | HT52: xx | HU52: xx | IH52: xx
A53: 13 | B53: Foderradise (Strukturator) | E53: =IF('Efterafgrøde beslutningsstøtte'!A$7<>"Pligtig mellemafgrøde",HYPERLINK("https://dyrk-plant.dlbr.dk/Web/(S(ikevr3oqnx5oe2t5cyfyknyq))/forms/Main.aspx?page=Vejledning&cropID=226","Efterafgrøder"),HYPERLINK("https://dyrk-plant.dlbr.dk/Web/(S(0x3ftyiaahcpttq0ljebuany))/forms/Main.aspx?page=Vejledning&cropID=238","Mellemafgrøder")) -> Efterafgrøder | F53: xx | G53: xx | H53: xx | I53: xx | J53: xx | K53: xx | L53: xx | M53: xx | N53: xx | O53: xx | P53: xx | Q53: xx | R53: xx | S53: xx | T53: xx | U53: xx | V53: xx | W53: xx | X53: xx | Y53: xx | Z53: xx | AA53: xx | AB53: xx | AL53: xx | AY53: xx | AZ53: xx | BA53: xx | BB53: xx | BC53: =J53 -> xx | BD53: xx | BE53: xx | BF53: xx | BG53: xx | BH53: xx | BI53: xx | BJ53: xx | BK53: xx | BL53: xx | BM53: xx | BN53: xx | BO53: xx | BP53: xx | BQ53: xx | BR53: xx | BS53: xx | BT53: xx | CE53: xx | CH53: xx | CI53: xx | CJ53: xx | CK53: xx | CL53: xx | CM53: xx | CN53: xx | CO53: xx | CP53: xx | CQ53: xx | CR53: xx | CS53: xx | CT53: xx | CU53: xx | CV53: xx | CW53: xx | CX53: xx | CY53: xx | CZ53: xx | DA53: xx | DC53: xx | DN53: xx | DR53: xx | DS53: xx | DT53: xx | DU53: xx | DV53: xx | DW53: xx | DX53: xx | DY53: xx | DZ53: xx | EA53: xx | EB53: xx | EC53: xx | ED53: xx | EE53: xx | EF53: xx | EG53: xx | EH53: xx | EI53: xx | EJ53: xx | EK53: xx | EL53: xx | FB53: xx | FC53: xx | FD53: xx | FE53: xx | FF53: xx | FG53: xx | FH53: xx | FI53: xx | FJ53: xx | FK53: xx | FL53: xx | FM53: xx | FN53: xx | FO53: xx | FP53: xx | FQ53: xx | FR53: xx | FS53: xx | FT53: xx | FU53: xx | FV53: xx | GI53: 0 | GJ53: xx | GK53: xx | GL53: xx | GM53: 99 | GS53: 0 | GT53: xx | GV53: 13 | GZ53: xx | HA53: xx | HB53: xx | HC53: xx | HD53: xx | HE53: =IF($GS53=0,"xx",INDEX($CH$41:$DN$112,$GT53,HE$12)) -> xx | HF53: xx | HG53: xx | HH53: xx | HI53: xx | HJ53: xx | HK53: xx | HL53: xx | HM53: xx | HN53: xx | HO53: xx | HP53: xx | HQ53: xx | HR53: xx | HS53: xx | HT53: xx | HU53: =IF($GS53=0,"xx",INDEX($CH$41:$DN$112,$GT53,HU$12)) -> xx | IH53: xx
A54: 14 | B54: Havre, sået inden 1. august | E54: =IF('Efterafgrøde beslutningsstøtte'!A$7<>"Pligtig mellemafgrøde",HYPERLINK("https://dyrk-plant.dlbr.dk/Web/(S(ikevr3oqnx5oe2t5cyfyknyq))/forms/Main.aspx?page=Vejledning&cropID=226","Efterafgrøder"),HYPERLINK("https://dyrk-plant.dlbr.dk/Web/(S(0x3ftyiaahcpttq0ljebuany))/forms/Main.aspx?page=Vejledning&cropID=238","Mellemafgrøder")) -> Efterafgrøder | F54: xx | G54: xx | H54: xx | I54: xx | J54: xx | K54: xx | L54: xx | M54: xx | N54: xx | O54: xx | P54: xx | Q54: xx | R54: xx | S54: xx | T54: xx | U54: xx | V54: xx | W54: xx | X54: xx | Y54: xx | Z54: xx | AA54: xx | AB54: xx | AL54: xx | AY54: xx | AZ54: =G54 -> xx | BA54: xx | BB54: xx | BC54: xx | BD54: xx | BE54: xx | BF54: xx | BG54: xx | BH54: xx | BI54: xx | BJ54: xx | BK54: xx | BL54: xx | BM54: xx | BN54: xx | BO54: xx | BP54: xx | BQ54: xx | BR54: xx | BS54: xx | BT54: xx | CE54: xx | CH54: xx | CI54: xx | CJ54: xx | CK54: xx | CL54: xx | CM54: xx | CN54: xx | CO54: xx | CP54: xx | CQ54: xx | CR54: xx | CS54: xx | CT54: xx | CU54: xx | CV54: xx | CW54: xx | CX54: xx | CY54: xx | CZ54: xx | DA54: xx | DC54: xx | DN54: xx | DR54: xx | DS54: xx | DT54: xx | DU54: xx | DV54: xx | DW54: xx | DX54: xx | DY54: xx | DZ54: xx | EA54: xx | EB54: xx | EC54: xx | ED54: xx | EE54: xx | EF54: xx | EG54: xx | EH54: xx | EI54: xx | EJ54: xx | EK54: xx | EL54: xx | FB54: xx | FC54: xx | FD54: xx | FE54: xx | FF54: xx | FG54: xx | FH54: xx | FI54: xx | FJ54: xx | FK54: xx | FL54: xx | FM54: xx | FN54: xx | FO54: xx | FP54: xx | FQ54: xx | FR54: xx | FS54: xx | FT54: xx | FU54: xx | FV54: xx | GI54: 0 | GJ54: xx | GK54: xx | GL54: xx | GM54: 99 | GS54: 0 | GT54: xx | GV54: 14 | GZ54: xx | HA54: xx | HB54: xx | HC54: xx | HD54: xx | HE54: xx | HF54: xx | HG54: xx | HH54: xx | HI54: xx | HJ54: xx | HK54: xx | HL54: xx | HM54: xx | HN54: xx | HO54: xx | HP54: xx | HQ54: xx | HR54: xx | HS54: xx | HT54: xx | HU54: xx | IH54: xx
A55: 15 | B55: Havre, sået mellem 1. og 20. august | E55: =IF('Efterafgrøde beslutningsstøtte'!A$7<>"Pligtig mellemafgrøde",HYPERLINK("https://dyrk-plant.dlbr.dk/Web/(S(ikevr3oqnx5oe2t5cyfyknyq))/forms/Main.aspx?page=Vejledning&cropID=226","Efterafgrøder"),HYPERLINK("https://dyrk-plant.dlbr.dk/Web/(S(0x3ftyiaahcpttq0ljebuany))/forms/Main.aspx?page=Vejledning&cropID=238","Mellemafgrøder")) -> Efterafgrøder | F55: xx | G55: xx | H55: xx | I55: xx | J55: xx | K55: xx | L55: xx | M55: xx | N55: xx | O55: xx | P55: xx | Q55: xx | R55: xx | S55: xx | T55: xx | U55: xx | V55: xx | W55: xx | X55: xx | Y55: xx | Z55: xx | AA55: xx | AB55: xx | AL55: xx | AY55: xx | AZ55: xx | BA55: xx | BB55: xx | BC55: xx | BD55: xx | BE55: xx | BF55: xx | BG55: xx | BH55: xx | BI55: xx | BJ55: xx | BK55: xx | BL55: xx | BM55: xx | BN55: xx | BO55: xx | BP55: xx | BQ55: xx | BR55: xx | BS55: xx | BT55: xx | CE55: xx | CH55: xx | CI55: xx | CJ55: xx | CK55: xx | CL55: xx | CM55: xx | CN55: xx | CO55: xx | CP55: xx | CQ55: xx | CR55: xx | CS55: xx | CT55: xx | CU55: xx | CV55: xx | CW55: xx | CX55: xx | CY55: xx | CZ55: xx | DA55: xx | DC55: xx | DN55: xx | DR55: xx | DS55: xx | DT55: xx | DU55: xx | DV55: xx | DW55: xx | DX55: xx | DY55: xx | DZ55: xx | EA55: xx | EB55: xx | EC55: xx | ED55: xx | EE55: xx | EF55: xx | EG55: xx | EH55: xx | EI55: xx | EJ55: xx | EK55: xx | EL55: xx | FB55: xx | FC55: xx | FD55: xx | FE55: xx | FF55: xx | FG55: xx | FH55: xx | FI55: xx | FJ55: xx | FK55: xx | FL55: xx | FM55: xx | FN55: xx | FO55: xx | FP55: xx | FQ55: xx | FR55: xx | FS55: xx | FT55: xx | FU55: xx | FV55: xx | GI55: 0 | GJ55: xx | GK55: xx | GL55: =IF(OR(GJ55="xx",GK55="xx"),"xx",GK55+GJ55) -> xx | GM55: 99 | GS55: 0 | GT55: xx | GV55: 15 | GZ55: xx | HA55: xx | HB55: xx | HC55: xx | HD55: xx | HE55: xx | HF55: xx | HG55: xx | HH55: xx | HI55: xx | HJ55: xx | HK55: xx | HL55: xx | HM55: xx | HN55: xx | HO55: xx | HP55: xx | HQ55: xx | HR55: xx | HS55: xx | HT55: xx | HU55: xx | IH55: xx
A56: 16 | B56: Stauderug, sået inden 1. august | E56: =IF('Efterafgrøde beslutningsstøtte'!A$7<>"Pligtig mellemafgrøde",HYPERLINK("https://dyrk-plant.dlbr.dk/Web/(S(ikevr3oqnx5oe2t5cyfyknyq))/forms/Main.aspx?page=Vejledning&cropID=226","Efterafgrøder"),HYPERLINK("https://dyrk-plant.dlbr.dk/Web/(S(0x3ftyiaahcpttq0ljebuany))/forms/Main.aspx?page=Vejledning&cropID=238","Mellemafgrøder")) -> Efterafgrøder | F56: xx | G56: xx | H56: xx | I56: xx | J56: xx | K56: xx | L56: xx | M56: xx | N56: xx | O56: xx | P56: xx | Q56: xx | R56: xx | S56: xx | T56: xx | U56: xx | V56: xx | W56: xx | X56: xx | Y56: xx | Z56: xx | AA56: xx | AB56: xx | AL56: xx | AY56: xx | AZ56: xx | BA56: xx | BB56: xx | BC56: xx | BD56: xx | BE56: xx | BF56: xx | BG56: xx | BH56: xx | BI56: xx | BJ56: xx | BK56: xx | BL56: xx | BM56: xx | BN56: xx | BO56: xx | BP56: xx | BQ56: xx | BR56: xx | BS56: xx | BT56: xx | CE56: xx | CH56: xx | CI56: xx | CJ56: xx | CK56: xx | CL56: xx | CM56: xx | CN56: xx | CO56: xx | CP56: xx | CQ56: xx | CR56: xx | CS56: xx | CT56: xx | CU56: xx | CV56: xx | CW56: xx | CX56: xx | CY56: xx | CZ56: xx | DA56: xx | DC56: xx | DN56: xx | DR56: xx | DS56: xx | DT56: xx | DU56: xx | DV56: xx | DW56: xx | DX56: xx | DY56: xx | DZ56: xx | EA56: xx | EB56: xx | EC56: xx | ED56: xx | EE56: xx | EF56: xx | EG56: xx | EH56: xx | EI56: xx | EJ56: xx | EK56: xx | EL56: xx | FB56: xx | FC56: xx | FD56: xx | FE56: xx | FF56: xx | FG56: xx | FH56: xx | FI56: xx | FJ56: xx | FK56: xx | FL56: xx | FM56: xx | FN56: xx | FO56: xx | FP56: xx | FQ56: xx | FR56: xx | FS56: xx | FT56: xx | FU56: xx | FV56: xx | GI56: 0 | GJ56: xx | GK56: xx | GL56: xx | GM56: 99 | GS56: 0 | GT56: xx | GV56: 16 | GZ56: xx | HA56: xx | HB56: xx | HC56: xx | HD56: xx | HE56: xx | HF56: xx | HG56: xx | HH56: xx | HI56: xx | HJ56: xx | HK56: xx | HL56: xx | HM56: xx | HN56: xx | HO56: xx | HP56: xx | HQ56: xx | HR56: xx | HS56: xx | HT56: xx | HU56: xx | IH56: xx
A57: 17 | B57: Stauderug, sået mellem 1. og 20. august | E57: =IF('Efterafgrøde beslutningsstøtte'!A$7<>"Pligtig mellemafgrøde",HYPERLINK("https://dyrk-plant.dlbr.dk/Web/(S(ikevr3oqnx5oe2t5cyfyknyq))/forms/Main.aspx?page=Vejledning&cropID=226","Efterafgrøder"),HYPERLINK("https://dyrk-plant.dlbr.dk/Web/(S(0x3ftyiaahcpttq0ljebuany))/forms/Main.aspx?page=Vejledning&cropID=238","Mellemafgrøder")) -> Efterafgrøder | F57: xx | G57: xx | H57: xx | I57: xx | J57: xx | K57: xx | L57: xx | M57: xx | N57: xx | O57: xx | P57: xx | Q57: xx | R57: xx | S57: xx | T57: xx | U57: xx | V57: xx | W57: xx | X57: xx | Y57: xx | Z57: xx | AA57: xx | AB57: xx | AL57: xx | AY57: xx | AZ57: xx | BA57: xx | BB57: xx | BC57: xx | BD57: xx | BE57: xx | BF57: xx | BG57: xx | BH57: xx | BI57: xx | BJ57: xx | BK57: xx | BL57: xx | BM57: xx | BN57: xx | BO57: xx | BP57: xx | BQ57: xx | BR57: =Z57 -> xx | BS57: =AA57 -> xx | BT57: =AB57 -> xx | CE57: xx | CH57: xx | CI57: xx | CJ57: xx | CK57: xx | CL57: xx | CM57: xx | CN57: xx | CO57: xx | CP57: xx | CQ57: xx | CR57: xx | CS57: xx | CT57: xx | CU57: xx | CV57: xx | CW57: xx | CX57: xx | CY57: xx | CZ57: xx | DA57: xx | DC57: xx | DN57: xx | DR57: xx | DS57: xx | DT57: xx | DU57: xx | DV57: xx | DW57: xx | DX57: xx | DY57: xx | DZ57: xx | EA57: xx | EB57: xx | EC57: xx | ED57: xx | EE57: xx | EF57: xx | EG57: xx | EH57: xx | EI57: xx | EJ57: xx | EK57: xx | EL57: xx | FB57: xx | FC57: xx | FD57: xx | FE57: xx | FF57: xx | FG57: xx | FH57: xx | FI57: xx | FJ57: xx | FK57: xx | FL57: xx | FM57: xx | FN57: xx | FO57: xx | FP57: xx | FQ57: xx | FR57: xx | FS57: xx | FT57: xx | FU57: xx | FV57: xx | GI57: 0 | GJ57: xx | GK57: xx | GL57: xx | GM57: 99 | GS57: =COUNTIF($GM$41:$GM$112,GV57) -> 0 | GT57: xx | GV57: 17 | GZ57: xx | HA57: xx | HB57: xx | HC57: xx | HD57: xx | HE57: xx | HF57: xx | HG57: xx | HH57: xx | HI57: xx | HJ57: xx | HK57: xx | HL57: xx | HM57: xx | HN57: xx | HO57: xx | HP57: xx | HQ57: xx | HR57: xx | HS57: xx | HT57: xx | HU57: xx | IH57: xx
A58: 18 | B58: Vårbyg, sået inden 1. august | E58: =IF('Efterafgrøde beslutningsstøtte'!A$7<>"Pligtig mellemafgrøde",HYPERLINK("https://dyrk-plant.dlbr.dk/Web/(S(ikevr3oqnx5oe2t5cyfyknyq))/forms/Main.aspx?page=Vejledning&cropID=226","Efterafgrøder"),HYPERLINK("https://dyrk-plant.dlbr.dk/Web/(S(0x3ftyiaahcpttq0ljebuany))/forms/Main.aspx?page=Vejledning&cropID=238","Mellemafgrøder")) -> Efterafgrøder | F58: xx | G58: xx | H58: xx | I58: xx | J58: xx | K58: xx | L58: xx | M58: xx | N58: xx | O58: xx | P58: xx | Q58: xx | R58: xx | S58: xx | T58: xx | U58: xx | V58: xx | W58: xx | X58: xx | Y58: xx | Z58: xx | AA58: xx | AB58: xx | AL58: xx | AY58: xx | AZ58: xx | BA58: xx | BB58: xx | BC58: xx | BD58: xx | BE58: xx | BF58: xx | BG58: xx | BH58: xx | BI58: xx | BJ58: xx | BK58: xx | BL58: xx | BM58: xx | BN58: xx | BO58: xx | BP58: xx | BQ58: xx | BR58: xx | BS58: xx | BT58: xx | CE58: xx | CH58: xx | CI58: xx | CJ58: xx | CK58: xx | CL58: xx | CM58: xx | CN58: xx | CO58: xx | CP58: xx | CQ58: xx | CR58: xx | CS58: xx | CT58: xx | CU58: xx | CV58: xx | CW58: xx | CX58: xx | CY58: xx | CZ58: xx | DA58: xx | DC58: xx | DN58: xx | DR58: xx | DS58: xx | DT58: xx | DU58: xx | DV58: xx | DW58: xx | DX58: xx | DY58: xx | DZ58: xx | EA58: xx | EB58: xx | EC58: xx | ED58: xx | EE58: xx | EF58: xx | EG58: xx | EH58: xx | EI58: xx | EJ58: xx | EK58: xx | EL58: xx | FB58: xx | FC58: xx | FD58: xx | FE58: xx | FF58: xx | FG58: xx | FH58: xx | FI58: xx | FJ58: xx | FK58: xx | FL58: xx | FM58: xx | FN58: xx | FO58: xx | FP58: xx | FQ58: xx | FR58: xx | FS58: xx | FT58: xx | FU58: xx | FV58: xx | GI58: 0 | GJ58: xx | GK58: xx | GL58: xx | GM58: 99 | GS58: 0 | GT58: xx | GV58: 18 | GZ58: xx | HA58: xx | HB58: xx | HC58: xx | HD58: xx | HE58: xx | HF58: xx | HG58: xx | HH58: xx | HI58: xx | HJ58: xx | HK58: xx | HL58: xx | HM58: xx | HN58: xx | HO58: xx | HP58: xx | HQ58: xx | HR58: xx | HS58: xx | HT58: xx | HU58: xx | IH58: xx
A59: 19 | B59: Vårbyg, sået mellem 1. og 20. august | E59: =IF('Efterafgrøde beslutningsstøtte'!A$7<>"Pligtig mellemafgrøde",HYPERLINK("https://dyrk-plant.dlbr.dk/Web/(S(ikevr3oqnx5oe2t5cyfyknyq))/forms/Main.aspx?page=Vejledning&cropID=226","Efterafgrøder"),HYPERLINK("https://dyrk-plant.dlbr.dk/Web/(S(0x3ftyiaahcpttq0ljebuany))/forms/Main.aspx?page=Vejledning&cropID=238","Mellemafgrøder")) -> Efterafgrøder | F59: xx | G59: xx | H59: xx | I59: xx | J59: xx | K59: xx | L59: xx | M59: xx | N59: xx | O59: xx | P59: xx | Q59: xx | R59: xx | S59: xx | T59: xx | U59: xx | V59: xx | W59: xx | X59: xx | Y59: xx | Z59: xx | AA59: xx | AB59: xx | AL59: xx | AY59: xx | AZ59: xx | BA59: xx | BB59: xx | BC59: xx | BD59: xx | BE59: xx | BF59: xx | BG59: xx | BH59: xx | BI59: xx | BJ59: xx | BK59: xx | BL59: xx | BM59: xx | BN59: xx | BO59: xx | BP59: xx | BQ59: xx | BR59: xx | BS59: xx | BT59: xx | CE59: xx | CH59: xx | CI59: xx | CJ59: xx | CK59: xx | CL59: xx | CM59: xx | CN59: xx | CO59: xx | CP59: xx | CQ59: xx | CR59: xx | CS59: xx | CT59: xx | CU59: xx | CV59: xx | CW59: xx | CX59: xx | CY59: xx | CZ59: xx | DA59: xx | DC59: xx | DN59: xx | DR59: xx | DS59: xx | DT59: xx | DU59: xx | DV59: xx | DW59: xx | DX59: xx | DY59: xx | DZ59: xx | EA59: xx | EB59: xx | EC59: xx | ED59: xx | EE59: xx | EF59: xx | EG59: xx | EH59: xx | EI59: xx | EJ59: xx | EK59: xx | EL59: xx | FB59: xx | FC59: xx | FD59: xx | FE59: xx | FF59: xx | FG59: xx | FH59: xx | FI59: xx | FJ59: xx | FK59: xx | FL59: xx | FM59: xx | FN59: xx | FO59: xx | FP59: xx | FQ59: xx | FR59: xx | FS59: xx | FT59: xx | FU59: xx | FV59: xx | GI59: 0 | GJ59: xx | GK59: xx | GL59: xx | GM59: 99 | GS59: 0 | GT59: xx | GV59: 19 | GZ59: xx | HA59: xx | HB59: xx | HC59: xx | HD59: xx | HE59: xx | HF59: xx | HG59: xx | HH59: xx | HI59: xx | HJ59: xx | HK59: xx | HL59: xx | HM59: xx | HN59: xx | HO59: xx | HP59: xx | HQ59: xx | HR59: xx | HS59: xx | HT59: xx | HU59: xx | IH59: xx
A60: 20 | B60: Vinterrug (population), sået inden 1. august | E60: =IF('Efterafgrøde beslutningsstøtte'!A$7<>"Pligtig mellemafgrøde",HYPERLINK("https://dyrk-plant.dlbr.dk/Web/(S(ikevr3oqnx5oe2t5cyfyknyq))/forms/Main.aspx?page=Vejledning&cropID=226","Efterafgrøder"),HYPERLINK("https://dyrk-plant.dlbr.dk/Web/(S(0x3ftyiaahcpttq0ljebuany))/forms/Main.aspx?page=Vejledning&cropID=238","Mellemafgrøder")) -> Efterafgrøder | F60: xx | G60: xx | H60: xx | I60: xx | J60: xx | K60: xx | L60: xx | M60: xx | N60: xx | O60: xx | P60: xx | Q60: xx | R60: xx | S60: xx | T60: xx | U60: xx | V60: xx | W60: xx | X60: xx | Y60: xx | Z60: xx | AA60: xx | AB60: xx | AL60: xx | AY60: xx | AZ60: xx | BA60: xx | BB60: xx | BC60: xx | BD60: xx | BE60: xx | BF60: xx | BG60: xx | BH60: xx | BI60: xx | BJ60: xx | BK60: xx | BL60: xx | BM60: xx | BN60: xx | BO60: xx | BP60: xx | BQ60: xx | BR60: xx | BS60: xx | BT60: xx | CE60: xx | CH60: xx | CI60: xx | CJ60: xx | CK60: xx | CL60: xx | CM60: xx | CN60: xx | CO60: xx | CP60: xx | CQ60: xx | CR60: xx | CS60: xx | CT60: xx | CU60: xx | CV60: xx | CW60: xx | CX60: xx | CY60: xx | CZ60: xx | DA60: xx | DC60: xx | DN60: xx | DR60: xx | DS60: xx | DT60: xx | DU60: xx | DV60: xx | DW60: xx | DX60: xx | DY60: xx | DZ60: xx | EA60: xx | EB60: xx | EC60: xx | ED60: xx | EE60: xx | EF60: xx | EG60: xx | EH60: xx | EI60: xx | EJ60: xx | EK60: xx | EL60: xx | FB60: xx | FC60: xx | FD60: xx | FE60: xx | FF60: xx | FG60: xx | FH60: xx | FI60: xx | FJ60: xx | FK60: xx | FL60: xx | FM60: xx | FN60: xx | FO60: xx | FP60: xx | FQ60: xx | FR60: xx | FS60: xx | FT60: xx | FU60: xx | FV60: xx | GI60: 0 | GJ60: xx | GK60: xx | GL60: xx | GM60: 99 | GS60: 0 | GT60: =IF(GS60>0,MATCH(GV60,$GM$41:$GM$112,0),"xx") -> xx | GV60: 20 | GZ60: xx | HA60: xx | HB60: xx | HC60: xx | HD60: xx | HE60: xx | HF60: xx | HG60: xx | HH60: xx | HI60: xx | HJ60: xx | HK60: xx | HL60: xx | HM60: xx | HN60: xx | HO60: xx | HP60: xx | HQ60: xx | HR60: xx | HS60: xx | HT60: xx | HU60: xx | IH60: xx
A61: 21 | B61: Vinterrug (population), sået inden 20. august | E61: =IF('Efterafgrøde beslutningsstøtte'!A$7<>"Pligtig mellemafgrøde",HYPERLINK("https://dyrk-plant.dlbr.dk/Web/(S(ikevr3oqnx5oe2t5cyfyknyq))/forms/Main.aspx?page=Vejledning&cropID=226","Efterafgrøder"),HYPERLINK("https://dyrk-plant.dlbr.dk/Web/(S(0x3ftyiaahcpttq0ljebuany))/forms/Main.aspx?page=Vejledning&cropID=238","Mellemafgrøder")) -> Efterafgrøder | F61: =VLOOKUP($A61,Karaktermatrice,F$38,FALSE) -> xx | G61: xx | H61: xx | I61: xx | J61: xx | K61: xx | L61: xx | M61: xx | N61: xx | O61: xx | P61: =VLOOKUP($A61,Karaktermatrice,P$38,FALSE) -> xx | Q61: xx | R61: xx | S61: xx | T61: xx | U61: xx | V61: xx | W61: xx | X61: xx | Y61: xx | Z61: xx | AA61: xx | AB61: xx | AL61: xx | AY61: xx | AZ61: xx | BA61: xx | BB61: xx | BC61: xx | BD61: xx | BE61: xx | BF61: xx | BG61: xx | BH61: xx | BI61: xx | BJ61: xx | BK61: xx | BL61: xx | BM61: xx | BN61: xx | BO61: xx | BP61: xx | BQ61: xx | BR61: xx | BS61: xx | BT61: xx | CE61: xx | CH61: xx | CI61: xx | CJ61: xx | CK61: xx | CL61: xx | CM61: xx | CN61: xx | CO61: xx | CP61: xx | CQ61: xx | CR61: xx | CS61: xx | CT61: xx | CU61: xx | CV61: xx | CW61: xx | CX61: xx | CY61: xx | CZ61: xx | DA61: xx | DC61: xx | DN61: xx | DR61: xx | DS61: xx | DT61: xx | DU61: xx | DV61: xx | DW61: xx | DX61: xx | DY61: xx | DZ61: xx | EA61: xx | EB61: xx | EC61: xx | ED61: xx | EE61: xx | EF61: xx | EG61: xx | EH61: xx | EI61: xx | EJ61: xx | EK61: xx | EL61: xx | FB61: xx | FC61: xx | FD61: xx | FE61: xx | FF61: xx | FG61: xx | FH61: xx | FI61: xx | FJ61: xx | FK61: xx | FL61: xx | FM61: xx | FN61: xx | FO61: xx | FP61: xx | FQ61: xx | FR61: xx | FS61: xx | FT61: xx | FU61: xx | FV61: xx | GI61: 0 | GJ61: xx | GK61: xx | GL61: xx | GM61: 99 | GS61: 0 | GT61: xx | GV61: 21 | GZ61: xx | HA61: xx | HB61: xx | HC61: xx | HD61: xx | HE61: xx | HF61: xx | HG61: xx | HH61: xx | HI61: xx | HJ61: xx | HK61: xx | HL61: xx | HM61: xx | HN61: xx | HO61: xx | HP61: xx | HQ61: xx | HR61: xx | HS61: xx | HT61: xx | HU61: xx | IH61: xx
A62: 22 | B62: Vinterrug (hybrid og syntetisk), sået inden 1. august | E62: =IF('Efterafgrøde beslutningsstøtte'!A$7<>"Pligtig mellemafgrøde",HYPERLINK("https://dyrk-plant.dlbr.dk/Web/(S(ikevr3oqnx5oe2t5cyfyknyq))/forms/Main.aspx?page=Vejledning&cropID=226","Efterafgrøder"),HYPERLINK("https://dyrk-plant.dlbr.dk/Web/(S(0x3ftyiaahcpttq0ljebuany))/forms/Main.aspx?page=Vejledning&cropID=238","Mellemafgrøder")) -> Efterafgrøder | F62: xx | G62: xx | H62: xx | I62: xx | J62: xx | K62: xx | L62: xx | M62: xx | N62: xx | O62: xx | P62: xx | Q62: xx | R62: xx | S62: xx | T62: xx | U62: xx | V62: xx | W62: xx | X62: xx | Y62: xx | Z62: xx | AA62: xx | AB62: xx | AL62: xx | AY62: xx | AZ62: xx | BA62: xx | BB62: xx | BC62: xx | BD62: xx | BE62: xx | BF62: xx | BG62: xx | BH62: xx | BI62: xx | BJ62: xx | BK62: xx | BL62: xx | BM62: xx | BN62: xx | BO62: xx | BP62: xx | BQ62: xx | BR62: xx | BS62: xx | BT62: xx | CE62: xx | CH62: xx | CI62: xx | CJ62: xx | CK62: xx | CL62: xx | CM62: xx | CN62: xx | CO62: xx | CP62: xx | CQ62: xx | CR62: xx | CS62: xx | CT62: xx | CU62: xx | CV62: xx | CW62: xx | CX62: xx | CY62: xx | CZ62: xx | DA62: xx | DC62: xx | DN62: xx | DR62: xx | DS62: xx | DT62: xx | DU62: xx | DV62: xx | DW62: xx | DX62: xx | DY62: xx | DZ62: xx | EA62: xx | EB62: xx | EC62: xx | ED62: xx | EE62: xx | EF62: xx | EG62: xx | EH62: xx | EI62: xx | EJ62: xx | EK62: xx | EL62: xx | FB62: xx | FC62: xx | FD62: xx | FE62: xx | FF62: xx | FG62: xx | FH62: xx | FI62: xx | FJ62: xx | FK62: xx | FL62: xx | FM62: xx | FN62: xx | FO62: xx | FP62: xx | FQ62: xx | FR62: xx | FS62: xx | FT62: xx | FU62: xx | FV62: xx | GI62: 0 | GJ62: xx | GK62: xx | GL62: xx | GM62: 99 | GS62: 0 | GT62: xx | GV62: 22 | GZ62: xx | HA62: xx | HB62: xx | HC62: xx | HD62: xx | HE62: xx | HF62: xx | HG62: xx | HH62: xx | HI62: xx | HJ62: xx | HK62: xx | HL62: xx | HM62: xx | HN62: xx | HO62: xx | HP62: xx | HQ62: xx | HR62: xx | HS62: xx | HT62: xx | HU62: xx | IH62: xx
A63: 23 | B63: Vinterrug (hybrid og syntetisk), sået inden 20. august | E63: =IF('Efterafgrøde beslutningsstøtte'!A$7<>"Pligtig mellemafgrøde",HYPERLINK("https://dyrk-plant.dlbr.dk/Web/(S(ikevr3oqnx5oe2t5cyfyknyq))/forms/Main.aspx?page=Vejledning&cropID=226","Efterafgrøder"),HYPERLINK("https://dyrk-plant.dlbr.dk/Web/(S(0x3ftyiaahcpttq0ljebuany))/forms/Main.aspx?page=Vejledning&cropID=238","Mellemafgrøder")) -> Efterafgrøder | F63: xx | G63: xx | H63: xx | I63: xx | J63: xx | K63: xx | L63: xx | M63: xx | N63: xx | O63: xx | P63: xx | Q63: xx | R63: xx | S63: xx | T63: xx | U63: xx | V63: xx | W63: xx | X63: xx | Y63: xx | Z63: xx | AA63: xx | AB63: xx | AL63: xx | AY63: xx | AZ63: xx | BA63: xx | BB63: xx | BC63: xx | BD63: xx | BE63: xx | BF63: xx | BG63: xx | BH63: xx | BI63: xx | BJ63: xx | BK63: xx | BL63: xx | BM63: xx | BN63: xx | BO63: xx | BP63: xx | BQ63: xx | BR63: xx | BS63: xx | BT63: xx | CE63: xx | CH63: xx | CI63: xx | CJ63: xx | CK63: xx | CL63: xx | CM63: xx | CN63: xx | CO63: xx | CP63: xx | CQ63: xx | CR63: xx | CS63: xx | CT63: xx | CU63: xx | CV63: xx | CW63: xx | CX63: xx | CY63: xx | CZ63: xx | DA63: xx | DC63: xx | DN63: xx | DR63: xx | DS63: xx | DT63: xx | DU63: xx | DV63: xx | DW63: xx | DX63: xx | DY63: xx | DZ63: xx | EA63: xx | EB63: xx | EC63: xx | ED63: xx | EE63: xx | EF63: xx | EG63: xx | EH63: xx | EI63: xx | EJ63: xx | EK63: xx | EL63: xx | FB63: xx | FC63: xx | FD63: xx | FE63: xx | FF63: xx | FG63: xx | FH63: xx | FI63: xx | FJ63: xx | FK63: xx | FL63: xx | FM63: xx | FN63: xx | FO63: xx | FP63: xx | FQ63: xx | FR63: xx | FS63: xx | FT63: xx | FU63: xx | FV63: xx | GI63: 0 | GJ63: xx | GK63: xx | GL63: xx | GM63: 99 | GS63: 0 | GT63: xx | GV63: 23 | GZ63: xx | HA63: xx | HB63: xx | HC63: xx | HD63: xx | HE63: xx | HF63: xx | HG63: xx | HH63: xx | HI63: xx | HJ63: xx | HK63: xx | HL63: xx | HM63: xx | HN63: xx | HO63: xx | HP63: xx | HQ63: xx | HR63: xx | HS63: xx | HT63: xx | HU63: xx | IH63: xx
A64: 24 | B64: Cikorie | E64: =IF('Efterafgrøde beslutningsstøtte'!A$7<>"Pligtig mellemafgrøde",HYPERLINK("https://dyrk-plant.dlbr.dk/Web/(S(ikevr3oqnx5oe2t5cyfyknyq))/forms/Main.aspx?page=Vejledning&cropID=226","Efterafgrøder"),HYPERLINK("https://dyrk-plant.dlbr.dk/Web/(S(0x3ftyiaahcpttq0ljebuany))/forms/Main.aspx?page=Vejledning&cropID=238","Mellemafgrøder")) -> Efterafgrøder | F64: xx | G64: xx | H64: xx | I64: xx | J64: xx | K64: xx | L64: xx | M64: xx | N64: xx | O64: xx | P64: xx | Q64: xx | R64: xx | S64: xx | T64: xx | U64: xx | V64: xx | W64: xx | X64: xx | Y64: xx | Z64: xx | AA64: xx | AB64: xx | AL64: xx | AY64: xx | AZ64: xx | BA64: xx | BB64: xx | BC64: xx | BD64: xx | BE64: xx | BF64: xx | BG64: xx | BH64: xx | BI64: xx | BJ64: xx | BK64: xx | BL64: xx | BM64: xx | BN64: xx | BO64: xx | BP64: xx | BQ64: xx | BR64: xx | BS64: xx | BT64: xx | CE64: xx | CH64: xx | CI64: xx | CJ64: xx | CK64: xx | CL64: xx | CM64: xx | CN64: xx | CO64: xx | CP64: xx | CQ64: xx | CR64: xx | CS64: xx | CT64: xx | CU64: xx | CV64: xx | CW64: xx | CX64: xx | CY64: xx | CZ64: xx | DA64: xx | DC64: xx | DN64: xx | DR64: xx | DS64: xx | DT64: xx | DU64: xx | DV64: xx | DW64: xx | DX64: xx | DY64: xx | DZ64: xx | EA64: xx | EB64: xx | EC64: xx | ED64: xx | EE64: xx | EF64: xx | EG64: xx | EH64: xx | EI64: xx | EJ64: xx | EK64: xx | EL64: xx | FB64: xx | FC64: xx | FD64: xx | FE64: xx | FF64: xx | FG64: xx | FH64: xx | FI64: xx | FJ64: xx | FK64: xx | FL64: xx | FM64: xx | FN64: xx | FO64: xx | FP64: xx | FQ64: xx | FR64: xx | FS64: xx | FT64: xx | FU64: xx | FV64: xx | GI64: 0 | GJ64: xx | GK64: xx | GL64: xx | GM64: 99 | GS64: 0 | GT64: xx | GV64: 24 | GZ64: xx | HA64: xx | HB64: xx | HC64: xx | HD64: xx | HE64: xx | HF64: xx | HG64: xx | HH64: xx | HI64: xx | HJ64: xx | HK64: xx | HL64: xx | HM64: xx | HN64: xx | HO64: xx | HP64: xx | HQ64: xx | HR64: xx | HS64: xx | HT64: xx | HU64: xx | IH64: xx
A65: 25 | B65: Honningurt | E65: =IF('Efterafgrøde beslutningsstøtte'!A$7<>"Pligtig mellemafgrøde",HYPERLINK("https://dyrk-plant.dlbr.dk/Web/(S(ikevr3oqnx5oe2t5cyfyknyq))/forms/Main.aspx?page=Vejledning&cropID=226","Efterafgrøder"),HYPERLINK("https://dyrk-plant.dlbr.dk/Web/(S(0x3ftyiaahcpttq0ljebuany))/forms/Main.aspx?page=Vejledning&cropID=238","Mellemafgrøder")) -> Efterafgrøder | F65: xx | G65: xx | H65: xx | I65: xx | J65: xx | K65: xx | L65: xx | M65: xx | N65: xx | O65: xx | P65: xx | Q65: xx | R65: xx | S65: xx | T65: xx | U65: xx | V65: xx | W65: xx | X65: xx | Y65: xx | Z65: xx | AA65: xx | AB65: xx | AL65: xx | AY65: xx | AZ65: xx | BA65: xx | BB65: xx | BC65: xx | BD65: xx | BE65: xx | BF65: xx | BG65: xx | BH65: xx | BI65: xx | BJ65: xx | BK65: xx | BL65: xx | BM65: xx | BN65: xx | BO65: xx | BP65: xx | BQ65: xx | BR65: xx | BS65: xx | BT65: xx | CE65: xx | CH65: xx | CI65: xx | CJ65: xx | CK65: xx | CL65: xx | CM65: xx | CN65: xx | CO65: xx | CP65: xx | CQ65: xx | CR65: xx | CS65: xx | CT65: xx | CU65: xx | CV65: xx | CW65: xx | CX65: xx | CY65: xx | CZ65: xx | DA65: xx | DC65: xx | DN65: xx | DR65: xx | DS65: xx | DT65: xx | DU65: xx | DV65: xx | DW65: xx | DX65: xx | DY65: xx | DZ65: xx | EA65: xx | EB65: xx | EC65: xx | ED65: xx | EE65: xx | EF65: xx | EG65: xx | EH65: xx | EI65: xx | EJ65: xx | EK65: xx | EL65: xx | FB65: xx | FC65: xx | FD65: xx | FE65: xx | FF65: xx | FG65: xx | FH65: xx | FI65: xx | FJ65: xx | FK65: xx | FL65: xx | FM65: xx | FN65: xx | FO65: xx | FP65: xx | FQ65: xx | FR65: xx | FS65: xx | FT65: xx | FU65: xx | FV65: xx | GI65: 0 | GJ65: xx | GK65: xx | GL65: xx | GM65: 99 | GS65: 0 | GT65: xx | GV65: 25 | GZ65: xx | HA65: xx | HB65: xx | HC65: xx | HD65: xx | HE65: xx | HF65: xx | HG65: xx | HH65: xx | HI65: xx | HJ65: xx | HK65: xx | HL65: xx | HM65: xx | HN65: xx | HO65: xx | HP65: xx | HQ65: xx | HR65: xx | HS65: xx | HT65: xx | HU65: xx | IH65: xx
A66: 26 | B66: Fodervikke | E66: =IF('Efterafgrøde beslutningsstøtte'!A$7<>"Pligtig mellemafgrøde",HYPERLINK("https://dyrk-plant.dlbr.dk/Web/(S(ikevr3oqnx5oe2t5cyfyknyq))/forms/Main.aspx?page=Vejledning&cropID=226","Efterafgrøder"),HYPERLINK("https://dyrk-plant.dlbr.dk/Web/(S(0x3ftyiaahcpttq0ljebuany))/forms/Main.aspx?page=Vejledning&cropID=238","Mellemafgrøder")) -> Efterafgrøder | F66: xx | G66: xx | H66: xx | I66: xx | J66: xx | K66: xx | L66: xx | M66: xx | N66: xx | O66: xx | P66: xx | Q66: xx | R66: xx | S66: xx | T66: xx | U66: xx | V66: xx | W66: xx | X66: xx | Y66: xx | Z66: xx | AA66: xx | AB66: xx | AL66: xx | AY66: xx | AZ66: xx | BA66: xx | BB66: xx | BC66: xx | BD66: xx | BE66: xx | BF66: xx | BG66: xx | BH66: xx | BI66: xx | BJ66: xx | BK66: xx | BL66: xx | BM66: xx | BN66: xx | BO66: xx | BP66: xx | BQ66: xx | BR66: xx | BS66: xx | BT66: xx | CE66: xx | CH66: xx | CI66: xx | CJ66: xx | CK66: xx | CL66: xx | CM66: xx | CN66: xx | CO66: xx | CP66: xx | CQ66: xx | CR66: xx | CS66: xx | CT66: xx | CU66: xx | CV66: xx | CW66: xx | CX66: xx | CY66: xx | CZ66: xx | DA66: xx | DC66: xx | DN66: xx | DR66: xx | DS66: xx | DT66: xx | DU66: xx | DV66: xx | DW66: xx | DX66: xx | DY66: xx | DZ66: xx | EA66: xx | EB66: xx | EC66: xx | ED66: xx | EE66: xx | EF66: xx | EG66: xx | EH66: xx | EI66: xx | EJ66: xx | EK66: xx | EL66: xx | FB66: xx | FC66: xx | FD66: xx | FE66: xx | FF66: xx | FG66: xx | FH66: xx | FI66: xx | FJ66: xx | FK66: xx | FL66: xx | FM66: xx | FN66: xx | FO66: xx | FP66: xx | FQ66: xx | FR66: xx | FS66: xx | FT66: xx | FU66: xx | FV66: xx | GI66: 0 | GJ66: xx | GK66: xx | GL66: xx | GM66: 99 | GS66: 0 | GT66: xx | GV66: 26 | GZ66: xx | HA66: xx | HB66: xx | HC66: xx | HD66: xx | HE66: xx | HF66: xx | HG66: xx | HH66: xx | HI66: xx | HJ66: xx | HK66: xx | HL66: xx | HM66: xx | HN66: xx | HO66: xx | HP66: xx | HQ66: xx | HR66: xx | HS66: xx | HT66: xx | HU66: xx | IH66: xx
A67: 27 | B67: Vintervikke | E67: =IF('Efterafgrøde beslutningsstøtte'!A$7<>"Pligtig mellemafgrøde",HYPERLINK("https://dyrk-plant.dlbr.dk/Web/(S(ikevr3oqnx5oe2t5cyfyknyq))/forms/Main.aspx?page=Vejledning&cropID=226","Efterafgrøder"),HYPERLINK("https://dyrk-plant.dlbr.dk/Web/(S(0x3ftyiaahcpttq0ljebuany))/forms/Main.aspx?page=Vejledning&cropID=238","Mellemafgrøder")) -> Efterafgrøder | F67: xx | G67: xx | H67: xx | I67: xx | J67: xx | K67: xx | L67: xx | M67: xx | N67: xx | O67: xx | P67: xx | Q67: xx | R67: xx | S67: xx | T67: xx | U67: xx | V67: xx | W67: xx | X67: xx | Y67: xx | Z67: xx | AA67: xx | AB67: xx | AL67: xx | AY67: xx | AZ67: xx | BA67: xx | BB67: xx | BC67: xx | BD67: xx | BE67: xx | BF67: =M67 -> xx | BG67: xx | BH67: xx | BI67: xx | BJ67: xx | BK67: xx | BL67: xx | BM67: xx | BN67: xx | BO67: xx | BP67: xx | BQ67: xx | BR67: xx | BS67: xx | BT67: xx | CE67: xx | CH67: xx | CI67: xx | CJ67: xx | CK67: xx | CL67: xx | CM67: xx | CN67: xx | CO67: xx | CP67: xx | CQ67: xx | CR67: xx | CS67: xx | CT67: xx | CU67: xx | CV67: xx | CW67: xx | CX67: xx | CY67: xx | CZ67: xx | DA67: xx | DC67: xx | DN67: xx | DR67: xx | DS67: xx | DT67: xx | DU67: xx | DV67: xx | DW67: xx | DX67: xx | DY67: xx | DZ67: xx | EA67: xx | EB67: xx | EC67: xx | ED67: xx | EE67: xx | EF67: xx | EG67: xx | EH67: xx | EI67: xx | EJ67: xx | EK67: xx | EL67: xx | FB67: xx | FC67: xx | FD67: xx | FE67: xx | FF67: xx | FG67: xx | FH67: xx | FI67: xx | FJ67: xx | FK67: xx | FL67: xx | FM67: xx | FN67: xx | FO67: xx | FP67: xx | FQ67: xx | FR67: xx | FS67: xx | FT67: xx | FU67: xx | FV67: xx | GI67: 0 | GJ67: xx | GK67: xx | GL67: xx | GM67: 99 | GS67: 0 | GT67: xx | GV67: 27 | GZ67: xx | HA67: xx | HB67: xx | HC67: xx | HD67: xx | HE67: xx | HF67: xx | HG67: xx | HH67: xx | HI67: xx | HJ67: xx | HK67: xx | HL67: xx | HM67: xx | HN67: xx | HO67: xx | HP67: xx | HQ67: xx | HR67: xx | HS67: xx | HT67: xx | HU67: xx | IH67: xx
A68: 28 | B68: Alexandrinekløver | E68: =IF('Efterafgrøde beslutningsstøtte'!A$7<>"Pligtig mellemafgrøde",HYPERLINK("https://dyrk-plant.dlbr.dk/Web/(S(ikevr3oqnx5oe2t5cyfyknyq))/forms/Main.aspx?page=Vejledning&cropID=226","Efterafgrøder"),HYPERLINK("https://dyrk-plant.dlbr.dk/Web/(S(0x3ftyiaahcpttq0ljebuany))/forms/Main.aspx?page=Vejledning&cropID=238","Mellemafgrøder")) -> Efterafgrøder | F68: xx | G68: xx | H68: xx | I68: xx | J68: xx | K68: xx | L68: xx | M68: xx | N68: xx | O68: xx | P68: xx | Q68: xx | R68: xx | S68: xx | T68: xx | U68: xx | V68: xx | W68: xx | X68: xx | Y68: xx | Z68: xx | AA68: xx | AB68: xx | AL68: xx | AY68: xx | AZ68: xx | BA68: xx | BB68: xx | BC68: =J68 -> xx | BD68: xx | BE68: xx | BF68: xx | BG68: xx | BH68: xx | BI68: xx | BJ68: xx | BK68: xx | BL68: xx | BM68: xx | BN68: xx | BO68: xx | BP68: xx | BQ68: xx | BR68: xx | BS68: xx | BT68: xx | CE68: xx | CH68: xx | CI68: xx | CJ68: xx | CK68: xx | CL68: xx | CM68: xx | CN68: xx | CO68: xx | CP68: xx | CQ68: xx | CR68: xx | CS68: xx | CT68: xx | CU68: xx | CV68: xx | CW68: xx | CX68: xx | CY68: xx | CZ68: xx | DA68: xx | DC68: xx | DN68: xx | DR68: xx | DS68: xx | DT68: xx | DU68: xx | DV68: xx | DW68: xx | DX68: xx | DY68: xx | DZ68: xx | EA68: xx | EB68: xx | EC68: xx | ED68: xx | EE68: xx | EF68: xx | EG68: xx | EH68: xx | EI68: xx | EJ68: xx | EK68: xx | EL68: xx | FB68: xx | FC68: xx | FD68: xx | FE68: xx | FF68: xx | FG68: xx | FH68: xx | FI68: xx | FJ68: xx | FK68: xx | FL68: xx | FM68: xx | FN68: xx | FO68: xx | FP68: xx | FQ68: xx | FR68: xx | FS68: xx | FT68: xx | FU68: xx | FV68: xx | GI68: 0 | GJ68: xx | GK68: xx | GL68: xx | GM68: 99 | GS68: 0 | GT68: xx | GV68: 28 | GZ68: xx | HA68: xx | HB68: xx | HC68: xx | HD68: xx | HE68: xx | HF68: xx | HG68: xx | HH68: xx | HI68: xx | HJ68: xx | HK68: xx | HL68: xx | HM68: xx | HN68: xx | HO68: xx | HP68: xx | HQ68: xx | HR68: xx | HS68: xx | HT68: xx | HU68: xx | IH68: xx
A69: 29 | B69: Hvidkløver | E69: =IF('Efterafgrøde beslutningsstøtte'!A$7<>"Pligtig mellemafgrøde",HYPERLINK("https://dyrk-plant.dlbr.dk/Web/(S(ikevr3oqnx5oe2t5cyfyknyq))/forms/Main.aspx?page=Vejledning&cropID=226","Efterafgrøder"),HYPERLINK("https://dyrk-plant.dlbr.dk/Web/(S(0x3ftyiaahcpttq0ljebuany))/forms/Main.aspx?page=Vejledning&cropID=238","Mellemafgrøder")) -> Efterafgrøder | F69: xx | G69: xx | H69: xx | I69: xx | J69: xx | K69: xx | L69: xx | M69: xx | N69: xx | O69: xx | P69: xx | Q69: xx | R69: xx | S69: xx | T69: xx | U69: xx | V69: xx | W69: xx | X69: xx | Y69: xx | Z69: xx | AA69: xx | AB69: xx | AL69: xx | AY69: xx | AZ69: xx | BA69: xx | BB69: xx | BC69: xx | BD69: xx | BE69: xx | BF69: xx | BG69: xx | BH69: xx | BI69: xx | BJ69: xx | BK69: xx | BL69: xx | BM69: xx | BN69: xx | BO69: xx | BP69: xx | BQ69: xx | BR69: xx | BS69: xx | BT69: xx | CE69: xx | CH69: xx | CI69: xx | CJ69: xx | CK69: xx | CL69: xx | CM69: xx | CN69: xx | CO69: xx | CP69: xx | CQ69: xx | CR69: xx | CS69: xx | CT69: xx | CU69: xx | CV69: xx | CW69: xx | CX69: xx | CY69: xx | CZ69: xx | DA69: xx | DC69: xx | DN69: xx | DR69: xx | DS69: xx | DT69: xx | DU69: xx | DV69: xx | DW69: xx | DX69: xx | DY69: xx | DZ69: xx | EA69: xx | EB69: xx | EC69: xx | ED69: xx | EE69: xx | EF69: xx | EG69: xx | EH69: xx | EI69: xx | EJ69: xx | EK69: xx | EL69: xx | FB69: xx | FC69: xx | FD69: xx | FE69: xx | FF69: xx | FG69: xx | FH69: xx | FI69: xx | FJ69: xx | FK69: xx | FL69: xx | FM69: xx | FN69: xx | FO69: xx | FP69: xx | FQ69: xx | FR69: xx | FS69: xx | FT69: xx | FU69: xx | FV69: xx | GI69: 0 | GJ69: xx | GK69: xx | GL69: xx | GM69: 99 | GS69: 0 | GT69: xx | GV69: 29 | GZ69: xx | HA69: xx | HB69: xx | HC69: xx | HD69: =IF($GS69=0,"xx",INDEX($CH$41:$DN$112,$GT69,HD$12)) -> xx | HE69: xx | HF69: xx | HG69: xx | HH69: xx | HI69: xx | HJ69: xx | HK69: xx | HL69: xx | HM69: xx | HN69: xx | HO69: xx | HP69: xx | HQ69: xx | HR69: xx | HS69: xx | HT69: xx | HU69: xx | IH69: xx
A70: 30 | B70: Blanding af olieræddike og fodervikke | E70: =IF('Efterafgrøde beslutningsstøtte'!A$7<>"Pligtig mellemafgrøde",HYPERLINK("https://dyrk-plant.dlbr.dk/Web/(S(ikevr3oqnx5oe2t5cyfyknyq))/forms/Main.aspx?page=Vejledning&cropID=226","Efterafgrøder"),HYPERLINK("https://dyrk-plant.dlbr.dk/Web/(S(0x3ftyiaahcpttq0ljebuany))/forms/Main.aspx?page=Vejledning&cropID=238","Mellemafgrøder")) -> Efterafgrøder | F70: xx | G70: xx | H70: xx | I70: xx | J70: xx | K70: xx | L70: xx | M70: xx | N70: xx | O70: xx | P70: xx | Q70: xx | R70: xx | S70: xx | T70: xx | U70: xx | V70: xx | W70: xx | X70: xx | Y70: xx | Z70: xx | AA70: xx | AB70: xx | AL70: xx | AY70: =F70 -> xx | AZ70: =G70 -> xx | BA70: =H70 -> xx | BB70: =I70 -> xx | BC70: xx | BD70: xx | BE70: xx | BF70: xx | BG70: xx | BH70: xx | BI70: xx | BJ70: xx | BK70: xx | BL70: xx | BM70: xx | BN70: xx | BO70: xx | BP70: xx | BQ70: xx | BR70: xx | BS70: xx | BT70: xx | CE70: xx | CH70: xx | CI70: xx | CJ70: xx | CK70: xx | CL70: xx | CM70: xx | CN70: xx | CO70: xx | CP70: xx | CQ70: xx | CR70: xx | CS70: xx | CT70: xx | CU70: xx | CV70: xx | CW70: xx | CX70: xx | CY70: xx | CZ70: xx | DA70: xx | DC70: xx | DN70: xx | DR70: xx | DS70: xx | DT70: xx | DU70: xx | DV70: xx | DW70: xx | DX70: xx | DY70: xx | DZ70: xx | EA70: xx | EB70: xx | EC70: xx | ED70: xx | EE70: xx | EF70: xx | EG70: xx | EH70: xx | EI70: xx | EJ70: xx | EK70: xx | EL70: xx | FB70: xx | FC70: xx | FD70: xx | FE70: xx | FF70: xx | FG70: xx | FH70: xx | FI70: xx | FJ70: xx | FK70: xx | FL70: xx | FM70: xx | FN70: xx | FO70: xx | FP70: xx | FQ70: xx | FR70: xx | FS70: xx | FT70: xx | FU70: xx | FV70: xx | GI70: 0 | GJ70: =IF(FB70="xx","xx",GI70) -> xx | GK70: xx | GL70: xx | GM70: 99 | GS70: =COUNTIF($GM$41:$GM$112,GV70) -> 0 | GT70: =IF(GS70>0,MATCH(GV70,$GM$41:$GM$112,0),"xx") -> xx | GV70: 30
A71: 31 | B71: Hvidkløver/alm. rajgræs | E71: =IF('Efterafgrøde beslutningsstøtte'!A$7<>"Pligtig mellemafgrøde",HYPERLINK("https://dyrk-plant.dlbr.dk/Web/(S(ikevr3oqnx5oe2t5cyfyknyq))/forms/Main.aspx?page=Vejledning&cropID=226","Efterafgrøder"),HYPERLINK("https://dyrk-plant.dlbr.dk/Web/(S(0x3ftyiaahcpttq0ljebuany))/forms/Main.aspx?page=Vejledning&cropID=238","Mellemafgrøder")) -> Efterafgrøder | F71: xx | G71: xx | H71: xx | I71: xx | J71: xx | K71: xx | L71: xx | M71: xx | N71: xx | O71: xx | P71: xx | Q71: xx | R71: xx | S71: xx | T71: xx | U71: xx | V71: xx | W71: xx | X71: xx | Y71: xx | Z71: xx | AA71: xx | AB71: xx | AL71: xx | AY71: xx | AZ71: xx | BA71: xx | BB71: xx | BC71: xx | BD71: xx | BE71: xx | BF71: xx | BG71: xx | BH71: xx | BI71: xx | BJ71: xx | BK71: xx | BL71: xx | BM71: xx | BN71: xx | BO71: xx | BP71: xx | BQ71: xx | BR71: xx | BS71: xx | BT71: xx | CE71: xx | CH71: xx | CI71: xx | CJ71: xx | CK71: xx | CL71: xx | CM71: xx | CN71: xx | CO71: xx | CP71: xx | CQ71: xx | CR71: xx | CS71: xx | CT71: xx | CU71: xx | CV71: xx | CW71: xx | CX71: xx | CY71: xx | CZ71: xx | DA71: xx | DC71: xx | DN71: xx | DR71: xx | DS71: xx | DT71: xx | DU71: xx | DV71: xx | DW71: xx | DX71: xx | DY71: xx | DZ71: xx | EA71: xx | EB71: xx | EC71: xx | ED71: xx | EE71: xx | EF71: xx | EG71: xx | EH71: xx | EI71: xx | EJ71: xx | EK71: xx | EL71: xx | FB71: xx | FC71: xx | FD71: xx | FE71: xx | FF71: xx | FG71: xx | FH71: xx | FI71: xx | FJ71: xx | FK71: xx | FL71: xx | FM71: xx | FN71: xx | FO71: xx | FP71: xx | FQ71: xx | FR71: xx | FS71: xx | FT71: xx | FU71: xx | FV71: xx | GI71: 0 | GJ71: =IF(FB71="xx","xx",GI71) -> xx | GK71: xx | GL71: xx | GM71: 99 | GS71: =COUNTIF($GM$41:$GM$112,GV71) -> 0 | GT71: =IF(GS71>0,MATCH(GV71,$GM$41:$GM$112,0),"xx") -> xx | GV71: 31
A72: 32 | B72: Rødkløver/strandsvingel | E72: =IF('Efterafgrøde beslutningsstøtte'!A$7<>"Pligtig mellemafgrøde",HYPERLINK("https://dyrk-plant.dlbr.dk/Web/(S(ikevr3oqnx5oe2t5cyfyknyq))/forms/Main.aspx?page=Vejledning&cropID=226","Efterafgrøder"),HYPERLINK("https://dyrk-plant.dlbr.dk/Web/(S(0x3ftyiaahcpttq0ljebuany))/forms/Main.aspx?page=Vejledning&cropID=238","Mellemafgrøder")) -> Efterafgrøder | F72: xx | G72: xx | H72: xx | I72: xx | J72: xx | K72: xx | L72: xx | M72: xx | N72: xx | O72: xx | P72: xx | Q72: xx | R72: xx | S72: xx | T72: xx | U72: xx | V72: xx | W72: xx | X72: xx | Y72: xx | Z72: xx | AA72: xx | AB72: xx | AL72: xx | AY72: xx | AZ72: xx | BA72: xx | BB72: xx | BC72: xx | BD72: xx | BE72: xx | BF72: xx | BG72: xx | BH72: xx | BI72: xx | BJ72: xx | BK72: xx | BL72: xx | BM72: xx | BN72: xx | BO72: xx | BP72: xx | BQ72: xx | BR72: xx | BS72: xx | BT72: xx | CE72: xx | CH72: xx | CI72: xx | CJ72: xx | CK72: xx | CL72: xx | CM72: xx | CN72: xx | CO72: xx | CP72: xx | CQ72: xx | CR72: xx | CS72: xx | CT72: xx | CU72: xx | CV72: xx | CW72: xx | CX72: xx | CY72: xx | CZ72: xx | DA72: xx | DC72: xx | DN72: xx | DR72: xx | DS72: xx | DT72: xx | DU72: xx | DV72: xx | DW72: xx | DX72: xx | DY72: xx | DZ72: xx | EA72: xx | EB72: xx | EC72: xx | ED72: xx | EE72: xx | EF72: xx | EG72: xx | EH72: xx | EI72: xx | EJ72: xx | EK72: xx | EL72: xx | FB72: xx | FC72: xx | FD72: xx | FE72: xx | FF72: xx | FG72: xx | FH72: xx | FI72: xx | FJ72: xx | FK72: xx | FL72: xx | FM72: xx | FN72: xx | FO72: xx | FP72: xx | FQ72: xx | FR72: xx | FS72: xx | FT72: xx | FU72: xx | FV72: xx | GI72: 0 | GJ72: xx | GK72: xx | GL72: xx | GM72: 99 | GS72: 0 | GT72: xx | GV72: 32
A73: 33 | B73: Vintervikke/vinterrug | E73: =IF('Efterafgrøde beslutningsstøtte'!A$7<>"Pligtig mellemafgrøde",HYPERLINK("https://dyrk-plant.dlbr.dk/Web/(S(ikevr3oqnx5oe2t5cyfyknyq))/forms/Main.aspx?page=Vejledning&cropID=226","Efterafgrøder"),HYPERLINK("https://dyrk-plant.dlbr.dk/Web/(S(0x3ftyiaahcpttq0ljebuany))/forms/Main.aspx?page=Vejledning&cropID=238","Mellemafgrøder")) -> Efterafgrøder | F73: xx | G73: xx | H73: xx | I73: xx | J73: xx | K73: xx | L73: xx | M73: xx | N73: xx | O73: xx | P73: xx | Q73: xx | R73: xx | S73: xx | T73: xx | U73: xx | V73: xx | W73: xx | X73: xx | Y73: xx | Z73: xx | AA73: xx | AB73: xx | AL73: xx | AY73: xx | AZ73: xx | BA73: xx | BB73: xx | BC73: xx | BD73: xx | BE73: xx | BF73: xx | BG73: xx | BH73: xx | BI73: xx | BJ73: xx | BK73: xx | BL73: xx | BM73: xx | BN73: xx | BO73: xx | BP73: xx | BQ73: xx | BR73: xx | BS73: xx | BT73: xx | CE73: xx | CH73: xx | CI73: xx | CJ73: xx | CK73: xx | CL73: xx | CM73: xx | CN73: xx | CO73: xx | CP73: xx | CQ73: xx | CR73: xx | CS73: xx | CT73: xx | CU73: xx | CV73: xx | CW73: xx | CX73: xx | CY73: xx | CZ73: xx | DA73: xx | DC73: xx | DN73: xx | DR73: xx | DS73: xx | DT73: xx | DU73: xx | DV73: xx | DW73: xx | DX73: xx | DY73: xx | DZ73: xx | EA73: xx | EB73: xx | EC73: xx | ED73: xx | EE73: xx | EF73: xx | EG73: xx | EH73: xx | EI73: xx | EJ73: xx | EK73: xx | EL73: xx | FB73: xx | FC73: xx | FD73: xx | FE73: xx | FF73: xx | FG73: xx | FH73: xx | FI73: xx | FJ73: xx | FK73: xx | FL73: xx | FM73: xx | FN73: xx | FO73: xx | FP73: xx | FQ73: xx | FR73: xx | FS73: xx | FT73: xx | FU73: xx | FV73: xx | GI73: 0 | GJ73: xx | GK73: xx | GL73: xx | GM73: 99 | GS73: 0 | GT73: xx | GV73: 33
A74: 34 | B74: Kløvergræs | E74: =IF('Efterafgrøde beslutningsstøtte'!A$7<>"Pligtig mellemafgrøde",HYPERLINK("https://dyrk-plant.dlbr.dk/Web/(S(ikevr3oqnx5oe2t5cyfyknyq))/forms/Main.aspx?page=Vejledning&cropID=226","Efterafgrøder"),HYPERLINK("https://dyrk-plant.dlbr.dk/Web/(S(0x3ftyiaahcpttq0ljebuany))/forms/Main.aspx?page=Vejledning&cropID=238","Mellemafgrøder")) -> Efterafgrøder | F74: xx | G74: xx | H74: xx | I74: xx | J74: xx | K74: xx | L74: xx | M74: xx | N74: xx | O74: xx | P74: xx | Q74: xx | R74: xx | S74: xx | T74: xx | U74: xx | V74: xx | W74: xx | X74: xx | Y74: xx | Z74: xx | AA74: xx | AB74: xx | AL74: xx | AY74: xx | AZ74: xx | BA74: xx | BB74: xx | BC74: xx | BD74: xx | BE74: xx | BF74: xx | BG74: xx | BH74: xx | BI74: xx | BJ74: xx | BK74: xx | BL74: xx | BM74: xx | BN74: xx | BO74: xx | BP74: xx | BQ74: xx | BR74: xx | BS74: xx | BT74: xx | CE74: xx | CH74: xx | CI74: xx | CJ74: xx | CK74: xx | CL74: xx | CM74: xx | CN74: xx | CO74: xx | CP74: xx | CQ74: xx | CR74: xx | CS74: xx | CT74: xx | CU74: xx | CV74: xx | CW74: xx | CX74: xx | CY74: xx | CZ74: xx | DA74: xx | DC74: =BT74 -> xx | DN74: xx | DR74: xx | DS74: xx | DT74: xx | DU74: xx | DV74: xx | DW74: xx | DX74: xx | DY74: xx | DZ74: xx | EA74: xx | EB74: xx | EC74: xx | ED74: xx | EE74: xx | EF74: xx | EG74: xx | EH74: xx | EI74: xx | EJ74: xx | EK74: xx | EL74: xx | FB74: xx | FC74: xx | FD74: xx | FE74: xx | FF74: xx | FG74: xx | FH74: xx | FI74: xx | FJ74: xx | FK74: xx | FL74: xx | FM74: xx | FN74: xx | FO74: xx | FP74: xx | FQ74: xx | FR74: xx | FS74: xx | FT74: xx | FU74: xx | FV74: xx | GI74: 0 | GJ74: xx | GK74: xx | GL74: xx | GM74: 99 | GS74: 0 | GT74: xx | GV74: 34
GY79: Frontend output
GZ80: =GZ40 -> Efterafgrøde | HA80: Pris | HB80: Nettoomkostninger | HC80: Er afgrøden robust mod ukrudtsmidler? | HD80: Der findes sorter, der ikke opformerer kålbrok | HE80: Der findes sorter, der er sanerende for roecystenematoder | HF80: Vinterfast | HG80: Egen udsæd kan anvendes | HH80: Hurtig og dyb rodvækst på lerjord | HI80: Kvælstoffikserende | HJ80: Stor kvælstof-eftervirkning | HK80: Pligtig efterafgrøde | HL80: Pligtig mellemafgrøde | HM80: MFO-efterafgrøde i blanding2) | HN80: MFO-udlæg | HO80: Miljø-efterafgrøder | HP80: Frivillig efterafgrøde | HQ80: Grønne marker (2,3 DE-brug) | HR80: Egnet til udlæg efterår i vinterkorn | HS80: Egnet til udlæg forår | HT80: Egnet til udsåning 2-3 uger før høst | HU80: Egnet til udsåning efter tidlig høst (10. august) | IH80: =IF(IH40="xx","",IH40) -> Vejledning
GZ81: =IF(GZ41="xx","",GZ41) ->  | HA81: =IF(HA41="xx","",HA41) ->  | IH81: =IF(IH41="xx","",IH41) -> 
GZ82: =IF(GZ42="xx","",GZ42) ->  | IH82: =IF(IH42="xx","",IH42) -> 
GZ83: =IF(GZ43="xx","",GZ43) -> 
GZ84: =IF(GZ44="xx","",GZ44) -> 
GZ85: =IF(GZ45="xx","",GZ45) -> 
GZ86: =IF(GZ46="xx","",GZ46) -> 
GZ87: =IF(GZ47="xx","",GZ47) -> 
GZ88: =IF(GZ48="xx","",GZ48) -> 
GZ89: =IF(GZ49="xx","",GZ49) -> 
GZ90: =IF(GZ50="xx","",GZ50) -> 
GZ91: =IF(GZ51="xx","",GZ51) ->  | HL91: =IF(HL51="xx","",HL51) -> 
GZ92: =IF(GZ52="xx","",GZ52) -> 
GZ93: =IF(GZ53="xx","",GZ53) -> 
GZ94: =IF(GZ54="xx","",GZ54) -> 
GZ95: =IF(GZ55="xx","",GZ55) -> 
GZ96: =IF(GZ56="xx","",GZ56) -> 
GZ97: =IF(GZ57="xx","",GZ57) -> 
GZ98: =IF(GZ58="xx","",GZ58) -> 
GZ99: =IF(GZ59="xx","",GZ59) -> 
GZ100: =IF(GZ60="xx","",GZ60) -> 
GZ101: =IF(GZ61="xx","",GZ61) -> 
GZ102: =IF(GZ62="xx","",GZ62) -> 
GZ103: =IF(GZ63="xx","",GZ63) -> 
GZ104: =IF(GZ64="xx","",GZ64) -> 
GZ105: =IF(GZ65="xx","",GZ65) -> 
GZ106: =IF(GZ66="xx","",GZ66) -> 
GZ107: =IF(GZ67="xx","",GZ67) -> 
GZ108: =IF(GZ68="xx","",GZ68) -> 
GZ109: =IF(GZ69="xx","",GZ69) -> 
GZ121: =IF(GZ81="xx","",GZ81) -> 
GZ122: =IF(GZ82="xx","",GZ82) -> 
GZ123: =IF(GZ83="xx","",GZ83) -> 
GZ124: =IF(GZ84="xx","",GZ84) -> 
GZ125: =IF(GZ85="xx","",GZ85) -> 
GZ126: =IF(GZ86="xx","",GZ86) -> 
GZ127: =IF(GZ87="xx","",GZ87) -> 
GZ128: =IF(GZ88="xx","",GZ88) -> 

Sheet Karaktermatrice (hidden)
G1: 1 | H1: 2 | I1: 3 | J1: 4 | K1: 5 | L1: 6 | M1: 7 | N1: 8 | O1: 9 | P1: 10 | Q1: 11 | R1: 12 | S1: 13 | T1: 14 | U1: 15 | V1: 16 | W1: 17 | X1: 18 | Y1: 19 | Z1: 20 | AA1: 21 | AB1: 22 | AC1: 23 | AD1: 24 | AE1: 25
A2: Basis valg | F2: Efterafgrøde | G2: Index | H2: Efterafgrøde - karakter | I2: Mellemafgrøde - karakter | J2: MFO i blanding - karakter | K2: MFO udlæg - karakter | L2: Egnet til udlæg efterår i vinterkorn | M2: Egnet til udlæg forår | N2: Egnet til udsåning 2-3 uger før høst | O2: Egnet til udsåning efter tidlig høst (10. august) | P2: Efterafgrøde | Q2: Mellemafgrøde | R2: MFO i blanding | S2: MFO i udlæg | T2: MFO total | U2: Opformere ikke kålbrok | V2: Egen udsæd lovlig? | W2: Default | X2: Sys | Y2: Plads | Z2: Ok ifht. Kålbrok (Hvis det er valgt at der ikke må opformeres kålbrok vises kun afgrøde hvor der findes ok sorter) | AA2: Ok ifht egen udsæd(hvis det er valg at det skal kunne anvendes?) | AB2: Kan etableres på valgt tidspunkt | AC2: Er godkendt afgrøde | AD2: Med? | AE2: Index | AF2: Efterafgrøde
A3: Lovkrav | B3: Valg i frontend | C3: Konsekvens | F3: Alm. rajgræs, dipl., udlæg | G3: 1 | H3: =Grundkarakterer!H8 -> 1 | I3: =Grundkarakterer!I8 -> 0 | J3: =Grundkarakterer!J8 -> 0 | K3: =Grundkarakterer!K8 -> 1 | L3: =Grundkarakterer!O8 -> 0 | M3: =Grundkarakterer!P8 -> 3 | N3: =Grundkarakterer!Q8 -> 1 | O3: =Grundkarakterer!Q8 -> 1 | P3: =IF(OR($C$4=1,$C$5=1),Grundkarakterer!H8,0) -> 0 | Q3: =IF(C$7=1,Grundkarakterer!I8,0) -> 0 | R3: =IF(OR(C$5=1,C$6=1),Grundkarakterer!J8,0) -> 0 | S3: =IF(OR(C$5=1,C$6=1),Grundkarakterer!K8,0) -> 0 | T3: =SUM(R3:S3) -> 0 | U3: =Grundkarakterer!W8 -> 3 | V3: =Grundkarakterer!AA8 -> 0 | W3: 34 | X3: =W3/($G$36+1)+P3+Q3+T3 -> 0.9714285714 | Y3: =_xlfn.RANK.EQ(X3,X$3:X$36,0) -> 1 | Z3: =IF(AND(U3=0,C$26=1),"Nej","Ja") -> Ja | AA3: =IF(AND(V3=0,C$27=1),"Nej","Ja") -> Ja | AB3: =IF(C$21=1,IF(L3>0,"Ja","Nej"),IF(C$22=1,IF(M3>0,"Ja","Nej"),IF(C$23=1,IF(N3>0,"Ja","Nej"),IF(C$24=1,IF(O3>0,"Ja","Nej"))))) -> FALSE | AC3: =IF( $C$9=0,"Ja",IF(X3>=$C$9,"Ja","Nej")) -> Nej | AD3: =IF(AND(AB3="Ja",AC3="Ja",Z3="Ja",AA3="Ja"),"Ja","Nej") -> Nej | AE3: =(IF(MATCH(G3,$Y$3:$Y$36,0)="xx","xx",MATCH(G3,$Y$3:$Y$36,0))) -> 1 | AF3: =INDEX(Grundkarakterer!$B$8:$B$41,AE3) -> Alm. rajgræs, dipl., udlæg
A4: Pligtig efterafgrøde | B4: =IF('Efterafgrøde beslutningsstøtte'!A$7="Vælg funktion","xx",IF('Efterafgrøde beslutningsstøtte'!A$7=Karaktermatrice!A4,1,0)) -> xx | C4: =IF(B4="xx","xx",B4) -> xx | F4: Ital. rajgræs, dipl., udlæg | G4: 2 | H4: =Grundkarakterer!H9 -> 1 | I4: =Grundkarakterer!I9 -> 0 | J4: =Grundkarakterer!J9 -> 0 | K4: =Grundkarakterer!K9 -> 1 | L4: =Grundkarakterer!O9 -> 0 | M4: =Grundkarakterer!P9 -> 0 | N4: =Grundkarakterer!Q9 -> 1 | O4: =Grundkarakterer!Q9 -> 1 | P4: =IF(OR($C$4=1,$C$5=1),Grundkarakterer!H9,0) -> 0 | Q4: =IF(C$7=1,Grundkarakterer!I9,0) -> 0 | R4: =IF(OR(C$5=1,C$6=1),Grundkarakterer!J9,0) -> 0 | S4: =IF(OR(C$5=1,C$6=1),Grundkarakterer!K9,0) -> 0 | T4: =SUM(R4:S4) -> 0 | U4: =Grundkarakterer!W9 -> 3 | V4: =Grundkarakterer!AA9 -> 0 | W4: 33 | X4: 0.9428571429 | Y4: 2 | Z4: Ja | AA4: =IF(AND(V4=0,C$27=1),"Nej","Ja") -> Ja | AB4: FALSE | AC4: Nej | AD4: Nej | AE4: 2 | AF4: =INDEX(Grundkarakterer!$B$8:$B$41,AE4) -> Ital. rajgræs, dipl., udlæg
A5: Pligtig efterafgrøde og MFO afgrøde | B5: =IF('Efterafgrøde beslutningsstøtte'!A$7="Vælg funktion","xx",IF('Efterafgrøde beslutningsstøtte'!A$7=Karaktermatrice!A5,1,0)) -> xx | C5: =IF(B5="xx","xx",B5) -> xx | F5: Westerwoldisk rajgræs | G5: 3 | H5: =Grundkarakterer!H10 -> 1 | I5: =Grundkarakterer!I10 -> 0 | J5: =Grundkarakterer!J10 -> 0 | K5: =Grundkarakterer!K10 -> 1 | L5: =Grundkarakterer!O10 -> 0 | M5: =Grundkarakterer!P10 -> 0 | N5: =Grundkarakterer!Q10 -> 0 | O5: =Grundkarakterer!Q10 -> 0 | P5: =IF(OR($C$4=1,$C$5=1),Grundkarakterer!H10,0) -> 0 | Q5: =IF(C$7=1,Grundkarakterer!I10,0) -> 0 | R5: =IF(OR(C$5=1,C$6=1),Grundkarakterer!J10,0) -> 0 | S5: =IF(OR(C$5=1,C$6=1),Grundkarakterer!K10,0) -> 0 | T5: 0 | U5: =Grundkarakterer!W10 -> 3 | V5: =Grundkarakterer!AA10 -> 0 | W5: 32 | X5: 0.9142857143 | Y5: 3 | Z5: Ja | AA5: Ja | AB5: FALSE | AC5: Nej | AD5: Nej | AE5: 3 | AF5: =INDEX(Grundkarakterer!$B$8:$B$41,AE5) -> Westerwoldisk rajgræs
A6: Kun MFO afgrøde | B6: =IF('Efterafgrøde beslutningsstøtte'!A$7="Vælg funktion","xx",IF('Efterafgrøde beslutningsstøtte'!A$7=Karaktermatrice!A6,1,0)) -> xx | C6: =IF(B6="xx","xx",B6) -> xx | F6: Strandsvingel, udlæg | G6: 4 | H6: =Grundkarakterer!H11 -> 1 | I6: =Grundkarakterer!I11 -> 0 | J6: =Grundkarakterer!J11 -> 0 | K6: =Grundkarakterer!K11 -> 1 | L6: =Grundkarakterer!O11 -> 1 | M6: =Grundkarakterer!P11 -> 3 | N6: =Grundkarakterer!Q11 -> 0 | O6: =Grundkarakterer!Q11 -> 0 | P6: =IF(OR($C$4=1,$C$5=1),Grundkarakterer!H11,0) -> 0 | Q6: =IF(C$7=1,Grundkarakterer!I11,0) -> 0 | R6: =IF(OR(C$5=1,C$6=1),Grundkarakterer!J11,0) -> 0 | S6: =IF(OR(C$5=1,C$6=1),Grundkarakterer!K11,0) -> 0 | T6: 0 | U6: =Grundkarakterer!W11 -> 3 | V6: =Grundkarakterer!AA11 -> 0 | W6: 31 | X6: 0.8857142857 | Y6: 4 | Z6: Ja | AA6: Ja | AB6: FALSE | AC6: Nej | AD6: Nej | AE6: 4 | AF6: =INDEX(Grundkarakterer!$B$8:$B$41,AE6) -> Strandsvingel, udlæg
A7: Pligtig mellemafgrøde | B7: =IF('Efterafgrøde beslutningsstøtte'!A$7="Vælg funktion","xx",IF('Efterafgrøde beslutningsstøtte'!A$7=Karaktermatrice!A7,1,0)) -> xx | C7: =IF(B7="xx","xx",B7) -> xx | F7: Rødsvingel, udlæg | G7: 5 | H7: =Grundkarakterer!H12 -> 1 | I7: =Grundkarakterer!I12 -> 0 | J7: =Grundkarakterer!J12 -> 0 | K7: =Grundkarakterer!K12 -> 1 | L7: =Grundkarakterer!O12 -> 1 | M7: =Grundkarakterer!P12 -> 3 | N7: =Grundkarakterer!Q12 -> 0 | O7: =Grundkarakterer!Q12 -> 0 | P7: =IF(OR($C$4=1,$C$5=1),Grundkarakterer!H12,0) -> 0 | Q7: =IF(C$7=1,Grundkarakterer!I12,0) -> 0 | R7: =IF(OR(C$5=1,C$6=1),Grundkarakterer!J12,0) -> 0 | S7: =IF(OR(C$5=1,C$6=1),Grundkarakterer!K12,0) -> 0 | T7: 0 | U7: =Grundkarakterer!W12 -> 3 | V7: =Grundkarakterer!AA12 -> 0 | W7: 30 | X7: 0.8571428571 | Y7: 5 | Z7: Ja | AA7: Ja | AB7: FALSE | AC7: Nej | AD7: Nej | AE7: 5 | AF7: =INDEX(Grundkarakterer!$B$8:$B$41,AE7) -> Rødsvingel, udlæg
A8: Frivillig efterafgrøde | B8: =IF('Efterafgrøde beslutningsstøtte'!A$7="Vælg funktion","xx",IF('Efterafgrøde beslutningsstøtte'!A$7=Karaktermatrice!A8,1,0)) -> xx | C8: =IF(B8="xx","xx",IF(B8=1,0,0)) -> xx | F8: Engrapgræs, udlæg | G8: 6 | H8: =Grundkarakterer!H13 -> 1 | I8: =Grundkarakterer!I13 -> 0 | J8: =Grundkarakterer!J13 -> 0 | K8: =Grundkarakterer!K13 -> 1 | L8: =Grundkarakterer!O13 -> 0 | M8: =Grundkarakterer!P13 -> 2 | N8: =Grundkarakterer!Q13 -> 0 | O8: =Grundkarakterer!Q13 -> 0 | P8: =IF(OR($C$4=1,$C$5=1),Grundkarakterer!H13,0) -> 0 | Q8: =IF(C$7=1,Grundkarakterer!I13,0) -> 0 | R8: =IF(OR(C$5=1,C$6=1),Grundkarakterer!J13,0) -> 0 | S8: =IF(OR(C$5=1,C$6=1),Grundkarakterer!K13,0) -> 0 | T8: 0 | U8: =Grundkarakterer!W13 -> 3 | V8: =Grundkarakterer!AA13 -> 0 | W8: 29 | X8: 0.8285714286 | Y8: 6 | Z8: Ja | AA8: Ja | AB8: FALSE | AC8: Nej | AD8: Nej | AE8: 6 | AF8: =INDEX(Grundkarakterer!$B$8:$B$41,AE8) -> Engrapgræs, udlæg
A9: SUM | C9: =IF(AND(C4="xx",C5="xx",C6="xx",C7="xx",C8="xx"),"xx",IF(C5=1,SUM(C4:C8)+1,SUM(C4:C8))) -> xx | F9: Hundegræs, udlæg | G9: 7 | H9: =Grundkarakterer!H14 -> 1 | I9: =Grundkarakterer!I14 -> 0 | J9: =Grundkarakterer!J14 -> 0 | K9: =Grundkarakterer!K14 -> 1 | L9: =Grundkarakterer!O14 -> 0 | M9: =Grundkarakterer!P14 -> 3 | N9: =Grundkarakterer!Q14 -> 1 | O9: =Grundkarakterer!Q14 -> 1 | P9: =IF(OR($C$4=1,$C$5=1),Grundkarakterer!H14,0) -> 0 | Q9: =IF(C$7=1,Grundkarakterer!I14,0) -> 0 | R9: =IF(OR(C$5=1,C$6=1),Grundkarakterer!J14,0) -> 0 | S9: =IF(OR(C$5=1,C$6=1),Grundkarakterer!K14,0) -> 0 | T9: 0 | U9: =Grundkarakterer!W14 -> 3 | V9: =Grundkarakterer!AA14 -> 0 | W9: 28 | X9: 0.8 | Y9: 7 | Z9: Ja | AA9: Ja | AB9: FALSE | AC9: Nej | AD9: =IF(AND(AB9="Ja",AC9="Ja",Z9="Ja",AA9="Ja"),"Ja","Nej") -> Nej | AE9: 7 | AF9: =INDEX(Grundkarakterer!$B$8:$B$41,AE9) -> Hundegræs, udlæg
F10: Frøgræs, udtjent | G10: 8 | H10: =Grundkarakterer!H15 -> 1 | I10: =Grundkarakterer!I15 -> 1 | J10: =Grundkarakterer!J15 -> 0 | K10: =Grundkarakterer!K15 -> 0 | L10: =Grundkarakterer!O15 -> 0 | M10: =Grundkarakterer!P15 -> 0 | N10: =Grundkarakterer!Q15 -> 0 | O10: =Grundkarakterer!Q15 -> 0 | P10: =IF(OR($C$4=1,$C$5=1),Grundkarakterer!H15,0) -> 0 | Q10: =IF(C$7=1,Grundkarakterer!I15,0) -> 0 | R10: =IF(OR(C$5=1,C$6=1),Grundkarakterer!J15,0) -> 0 | S10: =IF(OR(C$5=1,C$6=1),Grundkarakterer!K15,0) -> 0 | T10: 0 | U10: =Grundkarakterer!W15 -> 3 | V10: =Grundkarakterer!AA15 -> 0 | W10: 27 | X10: 0.7714285714 | Y10: 8 | Z10: Ja | AA10: Ja | AB10: FALSE | AC10: Nej | AD10: Nej | AE10: 8 | AF10: =INDEX(Grundkarakterer!$B$8:$B$41,AE10) -> Frøgræs, udtjent
F11: Gul sennep | G11: 9 | H11: =Grundkarakterer!H16 -> 1 | I11: =Grundkarakterer!I16 -> 1 | J11: =Grundkarakterer!J16 -> 1 | K11: =Grundkarakterer!K16 -> 0 | L11: =Grundkarakterer!O16 -> 0 | M11: =Grundkarakterer!P16 -> 0 | N11: =Grundkarakterer!Q16 -> 3 | O11: =Grundkarakterer!Q16 -> 3 | P11: =IF(OR($C$4=1,$C$5=1),Grundkarakterer!H16,0) -> 0 | Q11: =IF(C$7=1,Grundkarakterer!I16,0) -> 0 | R11: =IF(OR(C$5=1,C$6=1),Grundkarakterer!J16,0) -> 0 | S11: =IF(OR(C$5=1,C$6=1),Grundkarakterer!K16,0) -> 0 | T11: 0 | U11: =Grundkarakterer!W16 -> 0 | V11: =Grundkarakterer!AA16 -> 0 | W11: 26 | X11: 0.7428571429 | Y11: 9 | Z11: Ja | AA11: Ja | AB11: FALSE | AC11: Nej | AD11: Nej | AE11: 9 | AF11: =INDEX(Grundkarakterer!$B$8:$B$41,AE11) -> Gul sennep
A12: Etablering | F12: Olieræddike | G12: 10 | H12: =Grundkarakterer!H17 -> 1 | I12: =Grundkarakterer!I17 -> 1 | J12: =Grundkarakterer!J17 -> 1 | K12: =Grundkarakterer!K17 -> 0 | L12: =Grundkarakterer!O17 -> 0 | M12: =Grundkarakterer!P17 -> 0 | N12: =Grundkarakterer!Q17 -> 3 | O12: =Grundkarakterer!Q17 -> 3 | P12: =IF(OR($C$4=1,$C$5=1),Grundkarakterer!H17,0) -> 0 | Q12: =IF(C$7=1,Grundkarakterer!I17,0) -> 0 | R12: =IF(OR(C$5=1,C$6=1),Grundkarakterer!J17,0) -> 0 | S12: =IF(OR(C$5=1,C$6=1),Grundkarakterer!K17,0) -> 0 | T12: 0 | U12: =Grundkarakterer!W17 -> 2 | V12: =Grundkarakterer!AA17 -> 0 | W12: 25 | X12: 0.7142857143 | Y12: 10 | Z12: Ja | AA12: Ja | AB12: FALSE | AC12: Nej | AD12: Nej | AE12: 10 | AF12: =INDEX(Grundkarakterer!$B$8:$B$41,AE12) -> Olieræddike
B13: Valg i frontend | C13: Konsekvens | F13: Vinterraps, hybrid | G13: 11 | H13: =Grundkarakterer!H18 -> 1 | I13: =Grundkarakterer!I18 -> 0 | J13: =Grundkarakterer!J18 -> 1 | K13: =Grundkarakterer!K18 -> 0 | L13: =Grundkarakterer!O18 -> 0 | M13: =Grundkarakterer!P18 -> 0 | N13: =Grundkarakterer!Q18 -> 2 | O13: =Grundkarakterer!Q18 -> 2 | P13: =IF(OR($C$4=1,$C$5=1),Grundkarakterer!H18,0) -> 0 | Q13: =IF(C$7=1,Grundkarakterer!I18,0) -> 0 | R13: =IF(OR(C$5=1,C$6=1),Grundkarakterer!J18,0) -> 0 | S13: =IF(OR(C$5=1,C$6=1),Grundkarakterer!K18,0) -> 0 | T13: 0 | U13: =Grundkarakterer!W18 -> 0 | V13: =Grundkarakterer!AA18 -> 0 | W13: 24 | X13: 0.6857142857 | Y13: 11 | Z13: Ja | AA13: Ja | AB13: FALSE | AC13: Nej | AD13: Nej | AE13: 11 | AF13: =INDEX(Grundkarakterer!$B$8:$B$41,AE13) -> Vinterraps, hybrid
A14: Afgrøde type | B14: ='Efterafgrøde beslutningsstøtte'!A10 -> Vælg afgrøde | C14: =IF(B14="Vårsæd",1,IF(B14="Vintersæd",0,"xx")) -> xx | D14: Vårsæd =1 | F14: Vinterraps , linie | G14: 12 | H14: =Grundkarakterer!H19 -> 1 | I14: =Grundkarakterer!I19 -> 0 | J14: =Grundkarakterer!J19 -> 1 | K14: =Grundkarakterer!K19 -> 0 | L14: =Grundkarakterer!O19 -> 0 | M14: =Grundkarakterer!P19 -> 0 | N14: =Grundkarakterer!Q19 -> 2 | O14: =Grundkarakterer!Q19 -> 2 | P14: =IF(OR($C$4=1,$C$5=1),Grundkarakterer!H19,0) -> 0 | Q14: =IF(C$7=1,Grundkarakterer!I19,0) -> 0 | R14: =IF(OR(C$5=1,C$6=1),Grundkarakterer!J19,0) -> 0 | S14: =IF(OR(C$5=1,C$6=1),Grundkarakterer!K19,0) -> 0 | T14: 0 | U14: =Grundkarakterer!W19 -> 0 | V14: =Grundkarakterer!AA19 -> 1 | W14: 23 | X14: 0.6571428571 | Y14: 12 | Z14: Ja | AA14: Ja | AB14: FALSE | AC14: Nej | AD14: Nej | AE14: 12 | AF14: =INDEX(Grundkarakterer!$B$8:$B$41,AE14) -> Vinterraps , linie
F15: Foderradise (Strukturator) | G15: 13 | H15: =Grundkarakterer!H20 -> 1 | I15: =Grundkarakterer!I20 -> 0 | J15: =Grundkarakterer!J20 -> 1 | K15: =Grundkarakterer!K20 -> 0 | L15: =Grundkarakterer!O20 -> 0 | M15: =Grundkarakterer!P20 -> 0 | N15: =Grundkarakterer!Q20 -> 3 | O15: =Grundkarakterer!Q20 -> 3 | P15: =IF(OR($C$4=1,$C$5=1),Grundkarakterer!H20,0) -> 0 | Q15: =IF(C$7=1,Grundkarakterer!I20,0) -> 0 | R15: =IF(OR(C$5=1,C$6=1),Grundkarakterer!J20,0) -> 0 | S15: =IF(OR(C$5=1,C$6=1),Grundkarakterer!K20,0) -> 0 | T15: 0 | U15: =Grundkarakterer!W20 -> 2 | V15: =Grundkarakterer!AA20 -> 0 | W15: 22 | X15: 0.6285714286 | Y15: 13 | Z15: Ja | AA15: Ja | AB15: FALSE | AC15: Nej | AD15: Nej | AE15: 13 | AF15: =INDEX(Grundkarakterer!$B$8:$B$41,AE15) -> Foderradise (Strukturator)
A16: Etableringstidspunkt | F16: Havre, sået inden 1. august | G16: 14 | H16: =Grundkarakterer!H21 -> 1 | I16: =Grundkarakterer!I21 -> 0 | J16: =Grundkarakterer!J21 -> 1 | K16: =Grundkarakterer!K21 -> 0 | L16: =Grundkarakterer!O21 -> 0 | M16: =Grundkarakterer!P21 -> 0 | N16: =Grundkarakterer!Q21 -> 1 | O16: =Grundkarakterer!Q21 -> 1 | P16: =IF(OR($C$4=1,$C$5=1),Grundkarakterer!H21,0) -> 0 | Q16: =IF(C$7=1,Grundkarakterer!I21,0) -> 0 | R16: =IF(OR(C$5=1,C$6=1),Grundkarakterer!J21,0) -> 0 | S16: =IF(OR(C$5=1,C$6=1),Grundkarakterer!K21,0) -> 0 | T16: 0 | U16: =Grundkarakterer!W21 -> 3 | V16: =Grundkarakterer!AA21 -> 1 | W16: 21 | X16: 0.6 | Y16: 14 | Z16: Ja | AA16: Ja | AB16: FALSE | AC16: Nej | AD16: Nej | AE16: 14 | AF16: =INDEX(Grundkarakterer!$B$8:$B$41,AE16) -> Havre, sået inden 1. august
A17: Ved såning af primærafgrøde | B17: =IF('Efterafgrøde beslutningsstøtte'!A$13=Karaktermatrice!A17,1,0) -> 0 | C17: =B17 -> 0 | F17: Havre, sået mellem 1. og 20. august | G17: 15 | H17: =Grundkarakterer!H22 -> 0 | I17: =Grundkarakterer!I22 -> 0 | J17: =Grundkarakterer!J22 -> 0 | K17: =Grundkarakterer!K22 -> 0 | L17: =Grundkarakterer!O22 -> 0 | M17: =Grundkarakterer!P22 -> 0 | N17: =Grundkarakterer!Q22 -> 0 | O17: =Grundkarakterer!Q22 -> 0 | P17: =IF(OR($C$4=1,$C$5=1),Grundkarakterer!H22,0) -> 0 | Q17: =IF(C$7=1,Grundkarakterer!I22,0) -> 0 | R17: =IF(OR(C$5=1,C$6=1),Grundkarakterer!J22,0) -> 0 | S17: =IF(OR(C$5=1,C$6=1),Grundkarakterer!K22,0) -> 0 | T17: 0 | U17: =Grundkarakterer!W22 -> 3 | V17: =Grundkarakterer!AA22 -> 1 | W17: 20 | X17: 0.5714285714 | Y17: 15 | Z17: Ja | AA17: Ja | AB17: FALSE | AC17: Nej | AD17: Nej | AE17: 15 | AF17: =INDEX(Grundkarakterer!$B$8:$B$41,AE17) -> Havre, sået mellem 1. og 20. august
A18: 2-3 uger før høst af primærafgrøde | B18: =IF('Efterafgrøde beslutningsstøtte'!A$13=Karaktermatrice!A18,1,0) -> 0 | C18: =B18 -> 0 | F18: Stauderug, sået inden 1. august | G18: 16 | H18: =Grundkarakterer!H23 -> 1 | I18: =Grundkarakterer!I23 -> 0 | J18: =Grundkarakterer!J23 -> 1 | K18: =Grundkarakterer!K23 -> 0 | L18: =Grundkarakterer!O23 -> 0 | M18: =Grundkarakterer!P23 -> 0 | N18: =Grundkarakterer!Q23 -> 1 | O18: =Grundkarakterer!Q23 -> 1 | P18: =IF(OR($C$4=1,$C$5=1),Grundkarakterer!H23,0) -> 0 | Q18: =IF(C$7=1,Grundkarakterer!I23,0) -> 0 | R18: =IF(OR(C$5=1,C$6=1),Grundkarakterer!J23,0) -> 0 | S18: =IF(OR(C$5=1,C$6=1),Grundkarakterer!K23,0) -> 0 | T18: 0 | U18: =Grundkarakterer!W23 -> 3 | V18: =Grundkarakterer!AA23 -> 0 | W18: 19 | X18: 0.5428571429 | Y18: 16 | Z18: Ja | AA18: Ja | AB18: FALSE | AC18: Nej | AD18: Nej | AE18: 16 | AF18: =INDEX(Grundkarakterer!$B$8:$B$41,AE18) -> Stauderug, sået inden 1. august
A19: Efter høst af primærafgrøde | B19: =IF('Efterafgrøde beslutningsstøtte'!A$13=Karaktermatrice!A19,1,0) -> 0 | C19: =B19 -> 0 | F19: Stauderug, sået mellem 1. og 20. august | G19: 17 | H19: =Grundkarakterer!H24 -> 1 | I19: =Grundkarakterer!I24 -> 0 | J19: =Grundkarakterer!J24 -> 1 | K19: =Grundkarakterer!K24 -> 0 | L19: =Grundkarakterer!O24 -> 0 | M19: =Grundkarakterer!P24 -> 0 | N19: =Grundkarakterer!Q24 -> 0 | O19: =Grundkarakterer!Q24 -> 0 | P19: =IF(OR($C$4=1,$C$5=1),Grundkarakterer!H24,0) -> 0 | Q19: =IF(C$7=1,Grundkarakterer!I24,0) -> 0 | R19: =IF(OR(C$5=1,C$6=1),Grundkarakterer!J24,0) -> 0 | S19: =IF(OR(C$5=1,C$6=1),Grundkarakterer!K24,0) -> 0 | T19: 0 | U19: =Grundkarakterer!W24 -> 3 | V19: =Grundkarakterer!AA24 -> 0 | W19: 18 | X19: 0.5142857143 | Y19: 17 | Z19: Ja | AA19: Ja | AB19: FALSE | AC19: Nej | AD19: Nej | AE19: 17 | AF19: =INDEX(Grundkarakterer!$B$8:$B$41,AE19) -> Stauderug, sået mellem 1. og 20. august
F20: Vårbyg, sået inden 1. august | G20: 18 | H20: =Grundkarakterer!H25 -> 1 | I20: =Grundkarakterer!I25 -> 0 | J20: =Grundkarakterer!J25 -> 1 | K20: =Grundkarakterer!K25 -> 0 | L20: =Grundkarakterer!O25 -> 0 | M20: =Grundkarakterer!P25 -> 0 | N20: =Grundkarakterer!Q25 -> 1 | O20: =Grundkarakterer!Q25 -> 1 | P20: =IF(OR($C$4=1,$C$5=1),Grundkarakterer!H25,0) -> 0 | Q20: =IF(C$7=1,Grundkarakterer!I25,0) -> 0 | R20: =IF(OR(C$5=1,C$6=1),Grundkarakterer!J25,0) -> 0 | S20: =IF(OR(C$5=1,C$6=1),Grundkarakterer!K25,0) -> 0 | T20: 0 | U20: =Grundkarakterer!W25 -> 3 | V20: =Grundkarakterer!AA25 -> 1 | W20: 17 | X20: 0.4857142857 | Y20: 18 | Z20: Ja | AA20: Ja | AB20: FALSE | AC20: Nej | AD20: Nej | AE20: 18 | AF20: =INDEX(Grundkarakterer!$B$8:$B$41,AE20) -> Vårbyg, sået inden 1. august
A21: Egnet til udlæg efterår i vinterkorn | C21: =IF(C14="xx","xx",IF(AND(C14=0,C17=1),1,0)) -> xx | F21: Vårbyg, sået mellem 1. og 20. august | G21: 19 | H21: =Grundkarakterer!H26 -> 1 | I21: =Grundkarakterer!I26 -> 0 | J21: =Grundkarakterer!J26 -> 1 | K21: =Grundkarakterer!K26 -> 0 | L21: =Grundkarakterer!O26 -> 0 | M21: =Grundkarakterer!P26 -> 0 | N21: =Grundkarakterer!Q26 -> 0 | O21: =Grundkarakterer!Q26 -> 0 | P21: =IF(OR($C$4=1,$C$5=1),Grundkarakterer!H26,0) -> 0 | Q21: =IF(C$7=1,Grundkarakterer!I26,0) -> 0 | R21: =IF(OR(C$5=1,C$6=1),Grundkarakterer!J26,0) -> 0 | S21: =IF(OR(C$5=1,C$6=1),Grundkarakterer!K26,0) -> 0 | T21: 0 | U21: =Grundkarakterer!W26 -> 3 | V21: =Grundkarakterer!AA26 -> 1 | W21: 16 | X21: 0.4571428571 | Y21: 19 | Z21: Ja | AA21: Ja | AB21: FALSE | AC21: Nej | AD21: Nej | AE21: 19 | AF21: =INDEX(Grundkarakterer!$B$8:$B$41,AE21) -> Vårbyg, sået mellem 1. og 20. august
A22: Egnet til udlæg forår | C22: =IF(C14="xx","xx",IF(AND(C14=1,C17=1),1,IF(OR(C18=1,C19=1),0,0))) -> xx | F22: Vinterrug (population), sået inden 1. august | G22: 20 | H22: =Grundkarakterer!H27 -> 1 | I22: =Grundkarakterer!I27 -> 0 | J22: =Grundkarakterer!J27 -> 1 | K22: =Grundkarakterer!K27 -> 0 | L22: =Grundkarakterer!O27 -> 0 | M22: =Grundkarakterer!P27 -> 0 | N22: =Grundkarakterer!Q27 -> 1 | O22: =Grundkarakterer!Q27 -> 1 | P22: =IF(OR($C$4=1,$C$5=1),Grundkarakterer!H27,0) -> 0 | Q22: =IF(C$7=1,Grundkarakterer!I27,0) -> 0 | R22: =IF(OR(C$5=1,C$6=1),Grundkarakterer!J27,0) -> 0 | S22: =IF(OR(C$5=1,C$6=1),Grundkarakterer!K27,0) -> 0 | T22: 0 | U22: =Grundkarakterer!W27 -> 3 | V22: =Grundkarakterer!AA27 -> 1 | W22: 15 | X22: 0.4285714286 | Y22: 20 | Z22: Ja | AA22: Ja | AB22: FALSE | AC22: Nej | AD22: Nej | AE22: 20 | AF22: =INDEX(Grundkarakterer!$B$8:$B$41,AE22) -> Vinterrug (population), sået inden 1. august
A23: Egnet til udsåning 2-3 uger før høst | C23: =IF(C14="xx","xx",IF(C18=1,1,0)) -> xx | F23: Vinterrug (population), sået inden 20. august | G23: 21 | H23: =Grundkarakterer!H28 -> 1 | I23: =Grundkarakterer!I28 -> 0 | J23: =Grundkarakterer!J28 -> 1 | K23: =Grundkarakterer!K28 -> 0 | L23: =Grundkarakterer!O28 -> 0 | M23: =Grundkarakterer!P28 -> 0 | N23: =Grundkarakterer!Q28 -> 0 | O23: =Grundkarakterer!Q28 -> 0 | P23: =IF(OR($C$4=1,$C$5=1),Grundkarakterer!H28,0) -> 0 | Q23: =IF(C$7=1,Grundkarakterer!I28,0) -> 0 | R23: =IF(OR(C$5=1,C$6=1),Grundkarakterer!J28,0) -> 0 | S23: =IF(OR(C$5=1,C$6=1),Grundkarakterer!K28,0) -> 0 | T23: 0 | U23: =Grundkarakterer!W28 -> 3 | V23: =Grundkarakterer!AA28 -> 1 | W23: 14 | X23: 0.4 | Y23: 21 | Z23: Ja | AA23: Ja | AB23: FALSE | AC23: Nej | AD23: Nej | AE23: 21 | AF23: =INDEX(Grundkarakterer!$B$8:$B$41,AE23) -> Vinterrug (population), sået inden 20. august
A24: Egnet til udsåning efter tidlig høst (10. august) | C24: =IF(C14="xx","xx",IF(C19=1,1,0)) -> xx | F24: Vinterrug (hybrid og syntetisk), sået inden 1. august | G24: 22 | H24: =Grundkarakterer!H29 -> 1 | I24: =Grundkarakterer!I29 -> 0 | J24: =Grundkarakterer!J29 -> 1 | K24: =Grundkarakterer!K29 -> 0 | L24: =Grundkarakterer!O29 -> 0 | M24: =Grundkarakterer!P29 -> 0 | N24: =Grundkarakterer!Q29 -> 1 | O24: =Grundkarakterer!Q29 -> 1 | P24: =IF(OR($C$4=1,$C$5=1),Grundkarakterer!H29,0) -> 0 | Q24: =IF(C$7=1,Grundkarakterer!I29,0) -> 0 | R24: =IF(OR(C$5=1,C$6=1),Grundkarakterer!J29,0) -> 0 | S24: =IF(OR(C$5=1,C$6=1),Grundkarakterer!K29,0) -> 0 | T24: 0 | U24: =Grundkarakterer!W29 -> 3 | V24: =Grundkarakterer!AA29 -> 0 | W24: 13 | X24: 0.3714285714 | Y24: 22 | Z24: Ja | AA24: Ja | AB24: FALSE | AC24: Nej | AD24: Nej | AE24: 22 | AF24: =INDEX(Grundkarakterer!$B$8:$B$41,AE24) -> Vinterrug (hybrid og syntetisk), sået inden 1. august
F25: Vinterrug (hybrid og syntetisk), sået inden 20. august | G25: 23 | H25: =Grundkarakterer!H30 -> 1 | I25: =Grundkarakterer!I30 -> 0 | J25: =Grundkarakterer!J30 -> 1 | K25: =Grundkarakterer!K30 -> 0 | L25: =Grundkarakterer!O30 -> 0 | M25: =Grundkarakterer!P30 -> 0 | N25: =Grundkarakterer!Q30 -> 0 | O25: =Grundkarakterer!Q30 -> 0 | P25: =IF(OR($C$4=1,$C$5=1),Grundkarakterer!H30,0) -> 0 | Q25: =IF(C$7=1,Grundkarakterer!I30,0) -> 0 | R25: =IF(OR(C$5=1,C$6=1),Grundkarakterer!J30,0) -> 0 | S25: =IF(OR(C$5=1,C$6=1),Grundkarakterer!K30,0) -> 0 | T25: 0 | U25: =Grundkarakterer!W30 -> 3 | V25: =Grundkarakterer!AA30 -> 0 | W25: 12 | X25: 0.3428571429 | Y25: 23 | Z25: Ja | AA25: Ja | AB25: FALSE | AC25: Nej | AD25: Nej | AE25: 23 | AF25: =INDEX(Grundkarakterer!$B$8:$B$41,AE25) -> Vinterrug (hybrid og syntetisk), sået inden 20. august
A26: Kålbrok | B26: ='Efterafgrøde beslutningsstøtte'!B28 -> Ikke vigtigt | C26: =IF(OR(B26="Ikke vigtigt",B26="Foretrækkes"),0,IF(B26="Der må ikke opformeres kålbrok",1,"Fejl")) -> 0 | D26: 1= må ikke forekomme | F26: Cikorie | G26: 24 | H26: =Grundkarakterer!H31 -> 1 | I26: =Grundkarakterer!I31 -> 0 | J26: =Grundkarakterer!J31 -> 1 | K26: =Grundkarakterer!K31 -> 0 | L26: =Grundkarakterer!O31 -> 0 | M26: =Grundkarakterer!P31 -> 3 | N26: =Grundkarakterer!Q31 -> 0 | O26: =Grundkarakterer!Q31 -> 0 | P26: =IF(OR($C$4=1,$C$5=1),Grundkarakterer!H31,0) -> 0 | Q26: =IF(C$7=1,Grundkarakterer!I31,0) -> 0 | R26: =IF(OR(C$5=1,C$6=1),Grundkarakterer!J31,0) -> 0 | S26: =IF(OR(C$5=1,C$6=1),Grundkarakterer!K31,0) -> 0 | T26: 0 | U26: =Grundkarakterer!W31 -> 3 | V26: =Grundkarakterer!AA31 -> 0 | W26: 11 | X26: 0.3142857143 | Y26: 24 | Z26: Ja | AA26: Ja | AB26: FALSE | AC26: Nej | AD26: Nej | AE26: 24 | AF26: =INDEX(Grundkarakterer!$B$8:$B$41,AE26) -> Cikorie
A27: Egen udsæd | B27: ='Efterafgrøde beslutningsstøtte'!B33 -> Ikke vigtigt | C27: =IF(B27="Egen udsæd skal anvendes ",1,0) -> 0 | D27: 1 = Egen udsæd skal kunne anvendes | F27: Honningurt | G27: 25 | H27: =Grundkarakterer!H32 -> 1 | I27: =Grundkarakterer!I32 -> 0 | J27: =Grundkarakterer!J32 -> 1 | K27: =Grundkarakterer!K32 -> 0 | L27: =Grundkarakterer!O32 -> 0 | M27: =Grundkarakterer!P32 -> 0 | N27: =Grundkarakterer!Q32 -> 2 | O27: =Grundkarakterer!Q32 -> 2 | P27: =IF(OR($C$4=1,$C$5=1),Grundkarakterer!H32,0) -> 0 | Q27: =IF(C$7=1,Grundkarakterer!I32,0) -> 0 | R27: =IF(OR(C$5=1,C$6=1),Grundkarakterer!J32,0) -> 0 | S27: =IF(OR(C$5=1,C$6=1),Grundkarakterer!K32,0) -> 0 | T27: 0 | U27: =Grundkarakterer!W32 -> 3 | V27: =Grundkarakterer!AA32 -> 1 | W27: 10 | X27: 0.2857142857 | Y27: 25 | Z27: Ja | AA27: Ja | AB27: FALSE | AC27: Nej | AD27: Nej | AE27: 25 | AF27: =INDEX(Grundkarakterer!$B$8:$B$41,AE27) -> Honningurt
F28: Fodervikke | G28: 26 | H28: =Grundkarakterer!H33 -> 0 | I28: =Grundkarakterer!I33 -> 0 | J28: =Grundkarakterer!J33 -> 0 | K28: =Grundkarakterer!K33 -> 0 | L28: =Grundkarakterer!O33 -> 0 | M28: =Grundkarakterer!P33 -> 0 | N28: =Grundkarakterer!Q33 -> 3 | O28: =Grundkarakterer!Q33 -> 3 | P28: =IF(OR($C$4=1,$C$5=1),Grundkarakterer!H33,0) -> 0 | Q28: =IF(C$7=1,Grundkarakterer!I33,0) -> 0 | R28: =IF(OR(C$5=1,C$6=1),Grundkarakterer!J33,0) -> 0 | S28: =IF(OR(C$5=1,C$6=1),Grundkarakterer!K33,0) -> 0 | T28: 0 | U28: =Grundkarakterer!W33 -> 3 | V28: =Grundkarakterer!AA33 -> 1 | W28: 9 | X28: 0.2571428571 | Y28: 26 | Z28: Ja | AA28: Ja | AB28: FALSE | AC28: Nej | AD28: Nej | AE28: 26 | AF28: =INDEX(Grundkarakterer!$B$8:$B$41,AE28) -> Fodervikke
A29: Obligatoriske valg foretaget? | F29: Vintervikke | G29: 27 | H29: =Grundkarakterer!H34 -> 0 | I29: =Grundkarakterer!I34 -> 0 | J29: =Grundkarakterer!J34 -> 0 | K29: =Grundkarakterer!K34 -> 1 | L29: =Grundkarakterer!O34 -> 0 | M29: =Grundkarakterer!P34 -> 0 | N29: =Grundkarakterer!Q34 -> 0 | O29: =Grundkarakterer!Q34 -> 0 | P29: =IF(OR($C$4=1,$C$5=1),Grundkarakterer!H34,0) -> 0 | Q29: =IF(C$7=1,Grundkarakterer!I34,0) -> 0 | R29: =IF(OR(C$5=1,C$6=1),Grundkarakterer!J34,0) -> 0 | S29: =IF(OR(C$5=1,C$6=1),Grundkarakterer!K34,0) -> 0 | T29: 0 | U29: =Grundkarakterer!W34 -> 3 | V29: =Grundkarakterer!AA34 -> 0 | W29: 8 | X29: 0.2285714286 | Y29: 27 | Z29: Ja | AA29: Ja | AB29: FALSE | AC29: Nej | AD29: Nej | AE29: 27 | AF29: =INDEX(Grundkarakterer!$B$8:$B$41,AE29) -> Vintervikke
A30: =IF(AND('Efterafgrøde beslutningsstøtte'!A7<>"Vælg funktion",'Efterafgrøde beslutningsstøtte'!A10<>"Vælg afgrøde",'Efterafgrøde beslutningsstøtte'!A13<>"Vælg etableringstidspunkt",'Efterafgrøde beslutningsstøtte'!A16<>"Vælg jordtype",'Efterafgrøde beslutningsstøtte'!A19<>"Vælg afgrøde"),"Ja","Nej") -> Nej | F30: Alexandrinekløver | G30: 28 | H30: =Grundkarakterer!H35 -> 0 | I30: =Grundkarakterer!I35 -> 0 | J30: =Grundkarakterer!J35 -> 0 | K30: =Grundkarakterer!K35 -> 0 | L30: =Grundkarakterer!O35 -> 0 | M30: =Grundkarakterer!P35 -> 2 | N30: =Grundkarakterer!Q35 -> 3 | O30: =Grundkarakterer!Q35 -> 3 | P30: =IF(OR($C$4=1,$C$5=1),Grundkarakterer!H35,0) -> 0 | Q30: =IF(C$7=1,Grundkarakterer!I35,0) -> 0 | R30: =IF(OR(C$5=1,C$6=1),Grundkarakterer!J35,0) -> 0 | S30: =IF(OR(C$5=1,C$6=1),Grundkarakterer!K35,0) -> 0 | T30: 0 | U30: =Grundkarakterer!W35 -> 3 | V30: =Grundkarakterer!AA35 -> 1 | W30: 7 | X30: 0.2 | Y30: 28 | Z30: Ja | AA30: Ja | AB30: FALSE | AC30: Nej | AD30: Nej | AE30: 28 | AF30: =INDEX(Grundkarakterer!$B$8:$B$41,AE30) -> Alexandrinekløver
F31: Hvidkløver | G31: 29 | H31: =Grundkarakterer!H36 -> 0 | I31: =Grundkarakterer!I36 -> 0 | J31: =Grundkarakterer!J36 -> 0 | K31: =Grundkarakterer!K36 -> 0 | L31: =Grundkarakterer!O36 -> 0 | M31: =Grundkarakterer!P36 -> 3 | N31: =Grundkarakterer!Q36 -> 1 | O31: =Grundkarakterer!Q36 -> 1 | P31: =IF(OR($C$4=1,$C$5=1),Grundkarakterer!H36,0) -> 0 | Q31: =IF(C$7=1,Grundkarakterer!I36,0) -> 0 | R31: =IF(OR(C$5=1,C$6=1),Grundkarakterer!J36,0) -> 0 | S31: =IF(OR(C$5=1,C$6=1),Grundkarakterer!K36,0) -> 0 | T31: 0 | U31: =Grundkarakterer!W36 -> 3 | V31: =Grundkarakterer!AA36 -> 0 | W31: 6 | X31: 0.1714285714 | Y31: 29 | Z31: Ja | AA31: Ja | AB31: FALSE | AC31: Nej | AD31: Nej | AE31: 29 | AF31: =INDEX(Grundkarakterer!$B$8:$B$41,AE31) -> Hvidkløver
F32: Blanding af olieræddike og fodervikke | G32: 30 | H32: =Grundkarakterer!H37 -> 0 | I32: =Grundkarakterer!I37 -> 0 | J32: =Grundkarakterer!J37 -> 0 | K32: =Grundkarakterer!K37 -> 0 | L32: =Grundkarakterer!O37 -> 0 | M32: =Grundkarakterer!P37 -> 0 | N32: =Grundkarakterer!Q37 -> 3 | O32: =Grundkarakterer!Q37 -> 3 | P32: =IF(OR($C$4=1,$C$5=1),Grundkarakterer!H37,0) -> 0 | Q32: =IF(C$7=1,Grundkarakterer!I37,0) -> 0 | R32: =IF(OR(C$5=1,C$6=1),Grundkarakterer!J37,0) -> 0 | S32: =IF(OR(C$5=1,C$6=1),Grundkarakterer!K37,0) -> 0 | T32: 0 | U32: =Grundkarakterer!W37 -> 2 | V32: =Grundkarakterer!AA37 -> 0 | W32: 5 | X32: 0.1428571429 | Y32: 30 | Z32: Ja | AA32: Ja | AB32: FALSE | AC32: Nej | AD32: Nej | AE32: 30 | AF32: =INDEX(Grundkarakterer!$B$8:$B$41,AE32) -> Blanding af olieræddike og fodervikke
F33: Hvidkløver/alm. rajgræs | G33: 31 | H33: =Grundkarakterer!H38 -> 0 | I33: =Grundkarakterer!I38 -> 0 | J33: =Grundkarakterer!J38 -> 0 | K33: =Grundkarakterer!K38 -> 1 | L33: =Grundkarakterer!O38 -> 0 | M33: =Grundkarakterer!P38 -> 3 | N33: =Grundkarakterer!Q38 -> 1 | O33: =Grundkarakterer!Q38 -> 1 | P33: =IF(OR($C$4=1,$C$5=1),Grundkarakterer!H38,0) -> 0 | Q33: =IF(C$7=1,Grundkarakterer!I38,0) -> 0 | R33: =IF(OR(C$5=1,C$6=1),Grundkarakterer!J38,0) -> 0 | S33: =IF(OR(C$5=1,C$6=1),Grundkarakterer!K38,0) -> 0 | T33: 0 | U33: =Grundkarakterer!W38 -> 3 | V33: =Grundkarakterer!AA38 -> 0 | W33: 4 | X33: 0.1142857143 | Y33: 31 | Z33: Ja | AA33: Ja | AB33: FALSE | AC33: Nej | AD33: Nej | AE33: 31 | AF33: =INDEX(Grundkarakterer!$B$8:$B$41,AE33) -> Hvidkløver/alm. rajgræs
F34: Rødkløver/strandsvingel | G34: 32 | H34: =Grundkarakterer!H39 -> 0 | I34: =Grundkarakterer!I39 -> 0 | J34: =Grundkarakterer!J39 -> 0 | K34: =Grundkarakterer!K39 -> 1 | L34: =Grundkarakterer!O39 -> 0 | M34: =Grundkarakterer!P39 -> 1 | N34: =Grundkarakterer!Q39 -> 0 | O34: =Grundkarakterer!Q39 -> 0 | P34: =IF(OR($C$4=1,$C$5=1),Grundkarakterer!H39,0) -> 0 | Q34: =IF(C$7=1,Grundkarakterer!I39,0) -> 0 | R34: =IF(OR(C$5=1,C$6=1),Grundkarakterer!J39,0) -> 0 | S34: =IF(OR(C$5=1,C$6=1),Grundkarakterer!K39,0) -> 0 | T34: 0 | U34: =Grundkarakterer!W39 -> 3 | V34: =Grundkarakterer!AA39 -> 0 | W34: 3 | X34: 0.08571428571 | Y34: 32 | Z34: Ja | AA34: Ja | AB34: FALSE | AC34: Nej | AD34: Nej | AE34: 32 | AF34: =INDEX(Grundkarakterer!$B$8:$B$41,AE34) -> Rødkløver/strandsvingel
F35: Vintervikke/vinterrug | G35: 33 | H35: =Grundkarakterer!H40 -> 0 | I35: =Grundkarakterer!I40 -> 0 | J35: =Grundkarakterer!J40 -> 0 | K35: =Grundkarakterer!K40 -> 0 | L35: =Grundkarakterer!O40 -> 0 | M35: =Grundkarakterer!P40 -> 0 | N35: =Grundkarakterer!Q40 -> 0 | O35: =Grundkarakterer!Q40 -> 0 | P35: =IF(OR($C$4=1,$C$5=1),Grundkarakterer!H40,0) -> 0 | Q35: =IF(C$7=1,Grundkarakterer!I40,0) -> 0 | R35: =IF(OR(C$5=1,C$6=1),Grundkarakterer!J40,0) -> 0 | S35: =IF(OR(C$5=1,C$6=1),Grundkarakterer!K40,0) -> 0 | T35: 0 | U35: =Grundkarakterer!W40 -> 3 | V35: =Grundkarakterer!AA40 -> 0 | W35: 2 | X35: 0.05714285714 | Y35: 33 | Z35: Ja | AA35: Ja | AB35: FALSE | AC35: Nej | AD35: Nej | AE35: 33 | AF35: =INDEX(Grundkarakterer!$B$8:$B$41,AE35) -> Vintervikke/vinterrug
F36: Kløvergræs | G36: 34 | H36: =Grundkarakterer!H41 -> 0 | I36: =Grundkarakterer!I41 -> 0 | J36: =Grundkarakterer!J41 -> 0 | K36: =Grundkarakterer!K41 -> 1 | L36: =Grundkarakterer!O41 -> 0 | M36: =Grundkarakterer!P41 -> 3 | N36: =Grundkarakterer!Q41 -> 1 | O36: =Grundkarakterer!Q41 -> 1 | P36: =IF(OR($C$4=1,$C$5=1),Grundkarakterer!H41,0) -> 0 | Q36: =IF(C$7=1,Grundkarakterer!I41,0) -> 0 | R36: =IF(OR(C$5=1,C$6=1),Grundkarakterer!J41,0) -> 0 | S36: =IF(OR(C$5=1,C$6=1),Grundkarakterer!K41,0) -> 0 | T36: 0 | U36: =Grundkarakterer!W41 -> 3 | V36: =Grundkarakterer!AA41 -> 0 | W36: 1 | X36: 0.02857142857 | Y36: 34 | Z36: Ja | AA36: Ja | AB36: FALSE | AC36: Nej | AD36: Nej | AE36: 34 | AF36: =INDEX(Grundkarakterer!$B$8:$B$41,AE36) -> Kløvergræs
AD37: =COUNTIF(AD3:AD36,"Ja") -> 0
H38: 1 | I38: 2 | K38: 3 | L38: 4 | M38: 5 | N38: 6 | O38: 7 | P38: 8 | Q38: 9 | R38: 10 | S38: 11 | T38: 12 | U38: 13 | V38: 14 | W38: 15 | X38: 16 | Y38: 17 | Z38: 18 | AA38: 19 | AB38: 20 | AC38: 21 | AD38: 22 | AE38: 33
B39: Index | C39: Med | D39: Efterafgrøde | E39: Afgrøde | F39: Tidspunkt | G39: Link | H39: Pris | I39: Pligtig efterafgrøde | J39: Pligtig mellemafgrøde | K39: MFO-efterafgrøde i blanding2) | L39: MFO-udlæg3) | M39: Miljø-efterafgrøder | N39: Frivillig efterafgrøde | O39: Grønne marker (2,3 DE-brug) | P39: Egnet til udlæg efterår i vinterkorn | Q39: Egnet til udlæg forår | R39: Egnet til udsåning 2-3 uger før høst | S39: Egnet til udsåning efter tidlig høst (10. august) | T39: Kvælstoffikserende | U39: Stor kvælstof-eftervirkning | V39: Hurtig og dyb rodvækst på lerjord | W39: Er afgrøden robust mod ukrudtsmidler? | X39: Der findes sorter, der ikke opformerer kålbrok | Y39: Der findes sorter, der er sanerende for roecystenematoder | Z39: Kan anvendes i sædskifter med kartofler (opformerer ikke fritlevende nematoder og rodfiltsvamp | AA39: Vinterfast | AB39: Egen udsæd kan anvendes4) | AC39: Tiebreak | AD39: Kommentare ang. ukrudt | AE39: Nettoomkostninger
A40: 1 | B40: =INDEX(Grundkarakterer!A$8:A$41,AE3) -> 1 | C40: =IF(AND(VLOOKUP(B40,$G$3:$AE$36,24,FALSE)="Ja",A$30="Ja"),"Ja","Nej") -> Nej | D40: =IF(C40="Ja",INDEX(Grundkarakterer!B$8:B$41,AE3),"xx") -> xx | E40: =IF(C40="Ja",INDEX(Grundkarakterer!C$8:C$41,$AE3),"xx") -> xx | F40: =IF(C40="Ja",INDEX(Grundkarakterer!D$8:D$41,$AE3),"xx") -> xx | G40: =IF(C40="Ja",INDEX(Grundkarakterer!E$8:E$41,$AE3),"xx") -> xx | H40: =IF($C40="Ja",INDEX(Grundkarakterer!F$8:F$41,$AE3),"xx") -> xx | I40: =IF($C40="Ja",INDEX(Grundkarakterer!H$8:H$41,$AE3),"xx") -> xx | J40: =IF($C40="Ja",INDEX(Grundkarakterer!I$8:I$41,$AE3),"xx") -> xx | K40: =IF($C40="Ja",INDEX(Grundkarakterer!J$8:J$41,$AE3),"xx") -> xx | L40: =IF($C40="Ja",INDEX(Grundkarakterer!K$8:K$41,$AE3),"xx") -> xx | M40: =IF($C40="Ja",INDEX(Grundkarakterer!L$8:L$41,$AE3),"xx") -> xx | N40: =IF($C40="Ja",INDEX(Grundkarakterer!M$8:M$41,$AE3),"xx") -> xx | O40: =IF($C40="Ja",INDEX(Grundkarakterer!N$8:N$41,$AE3),"xx") -> xx | P40: =IF($C40="Ja",INDEX(Grundkarakterer!O$8:O$41,$AE3),"xx") -> xx | Q40: =IF($C40="Ja",INDEX(Grundkarakterer!P$8:P$41,$AE3),"xx") -> xx | R40: =IF($C40="Ja",INDEX(Grundkarakterer!Q$8:Q$41,$AE3),"xx") -> xx | S40: =IF($C40="Ja",INDEX(Grundkarakterer!R$8:R$41,$AE3),"xx") -> xx | T40: =IF($C40="Ja",INDEX(Grundkarakterer!S$8:S$41,$AE3),"xx") -> xx | U40: =IF($C40="Ja",INDEX(Grundkarakterer!T$8:T$41,$AE3),"xx") -> xx | V40: =IF($C40="Ja",INDEX(Grundkarakterer!U$8:U$41,$AE3),"xx") -> xx | W40: =IF($C40="Ja",INDEX(Grundkarakterer!V$8:V$41,$AE3),"xx") -> xx | X40: =IF($C40="Ja",INDEX(Grundkarakterer!W$8:W$41,$AE3),"xx") -> xx | Y40: =IF($C40="Ja",INDEX(Grundkarakterer!X$8:X$41,$AE3),"xx") -> xx | Z40: =IF($C40="Ja",INDEX(Grundkarakterer!Y$8:Y$41,$AE3),"xx") -> xx | AA40: =IF($C40="Ja",INDEX(Grundkarakterer!Z$8:Z$41,$AE3),"xx") -> xx | AB40: =IF($C40="Ja",INDEX(Grundkarakterer!AA$8:AA$41,$AE3),"xx") -> xx | AC40: =IF($C40="Ja",INDEX(Grundkarakterer!AB$8:AB$41,$AE3),"xx") -> xx | AD40: =IF($C40="Ja",INDEX(Grundkarakterer!AC$8:AC$41,$AE3),"xx") -> xx | AE40: =IF($C40="Ja",INDEX(Grundkarakterer!G$8:G$41,$AE3),"xx") -> xx
A41: 2 | B41: =INDEX(Grundkarakterer!A$8:A$41,AE4) -> 2 | C41: =IF(AND(VLOOKUP(B41,$G$3:$AE$36,24,FALSE)="Ja",A$30="Ja"),"Ja","Nej") -> Nej | D41: =IF(C41="Ja",INDEX(Grundkarakterer!B$8:B$41,AE4),"xx") -> xx | E41: =IF(C41="Ja",INDEX(Grundkarakterer!C$8:C$41,$AE4),"xx") -> xx | F41: =IF(C41="Ja",INDEX(Grundkarakterer!D$8:D$41,$AE4),"xx") -> xx | G41: =IF(C41="Ja",INDEX(Grundkarakterer!E$8:E$41,$AE4),"xx") -> xx | H41: =IF($C41="Ja",INDEX(Grundkarakterer!F$8:F$41,$AE4),"xx") -> xx | I41: =IF($C41="Ja",INDEX(Grundkarakterer!H$8:H$41,$AE4),"xx") -> xx | J41: =IF($C41="Ja",INDEX(Grundkarakterer!I$8:I$41,$AE4),"xx") -> xx | K41: =IF($C41="Ja",INDEX(Grundkarakterer!J$8:J$41,$AE4),"xx") -> xx | L41: =IF($C41="Ja",INDEX(Grundkarakterer!K$8:K$41,$AE4),"xx") -> xx | M41: =IF($C41="Ja",INDEX(Grundkarakterer!L$8:L$41,$AE4),"xx") -> xx | N41: =IF($C41="Ja",INDEX(Grundkarakterer!M$8:M$41,$AE4),"xx") -> xx | O41: =IF($C41="Ja",INDEX(Grundkarakterer!N$8:N$41,$AE4),"xx") -> xx | P41: =IF($C41="Ja",INDEX(Grundkarakterer!O$8:O$41,$AE4),"xx") -> xx | Q41: =IF($C41="Ja",INDEX(Grundkarakterer!P$8:P$41,$AE4),"xx") -> xx | R41: =IF($C41="Ja",INDEX(Grundkarakterer!Q$8:Q$41,$AE4),"xx") -> xx | S41: =IF($C41="Ja",INDEX(Grundkarakterer!R$8:R$41,$AE4),"xx") -> xx | T41: =IF($C41="Ja",INDEX(Grundkarakterer!S$8:S$41,$AE4),"xx") -> xx | U41: =IF($C41="Ja",INDEX(Grundkarakterer!T$8:T$41,$AE4),"xx") -> xx | V41: =IF($C41="Ja",INDEX(Grundkarakterer!U$8:U$41,$AE4),"xx") -> xx | W41: =IF($C41="Ja",INDEX(Grundkarakterer!V$8:V$41,$AE4),"xx") -> xx | X41: =IF($C41="Ja",INDEX(Grundkarakterer!W$8:W$41,$AE4),"xx") -> xx | Y41: =IF($C41="Ja",INDEX(Grundkarakterer!X$8:X$41,$AE4),"xx") -> xx | Z41: =IF($C41="Ja",INDEX(Grundkarakterer!Y$8:Y$41,$AE4),"xx") -> xx | AA41: =IF($C41="Ja",INDEX(Grundkarakterer!Z$8:Z$41,$AE4),"xx") -> xx | AB41: =IF($C41="Ja",INDEX(Grundkarakterer!AA$8:AA$41,$AE4),"xx") -> xx | AC41: =IF($C41="Ja",INDEX(Grundkarakterer!AB$8:AB$41,$AE4),"xx") -> xx | AD41: =IF($C41="Ja",INDEX(Grundkarakterer!AC$8:AC$41,$AE4),"xx") -> xx | AE41: =IF($C41="Ja",INDEX(Grundkarakterer!G$8:G$41,$AE4),"xx") -> xx
A42: 3 | B42: =INDEX(Grundkarakterer!A$8:A$41,AE5) -> 3 | C42: Nej | D42: =IF(C42="Ja",INDEX(Grundkarakterer!B$8:B$41,AE5),"xx") -> xx | E42: =IF(C42="Ja",INDEX(Grundkarakterer!C$8:C$41,$AE5),"xx") -> xx | F42: =IF(C42="Ja",INDEX(Grundkarakterer!D$8:D$41,$AE5),"xx") -> xx | G42: =IF(C42="Ja",INDEX(Grundkarakterer!E$8:E$41,$AE5),"xx") -> xx | H42: =IF($C42="Ja",INDEX(Grundkarakterer!F$8:F$41,$AE5),"xx") -> xx | I42: =IF($C42="Ja",INDEX(Grundkarakterer!H$8:H$41,$AE5),"xx") -> xx | J42: =IF($C42="Ja",INDEX(Grundkarakterer!I$8:I$41,$AE5),"xx") -> xx | K42: =IF($C42="Ja",INDEX(Grundkarakterer!J$8:J$41,$AE5),"xx") -> xx | L42: =IF($C42="Ja",INDEX(Grundkarakterer!K$8:K$41,$AE5),"xx") -> xx | M42: =IF($C42="Ja",INDEX(Grundkarakterer!L$8:L$41,$AE5),"xx") -> xx | N42: =IF($C42="Ja",INDEX(Grundkarakterer!M$8:M$41,$AE5),"xx") -> xx | O42: =IF($C42="Ja",INDEX(Grundkarakterer!N$8:N$41,$AE5),"xx") -> xx | P42: =IF($C42="Ja",INDEX(Grundkarakterer!O$8:O$41,$AE5),"xx") -> xx | Q42: =IF($C42="Ja",INDEX(Grundkarakterer!P$8:P$41,$AE5),"xx") -> xx | R42: =IF($C42="Ja",INDEX(Grundkarakterer!Q$8:Q$41,$AE5),"xx") -> xx | S42: =IF($C42="Ja",INDEX(Grundkarakterer!R$8:R$41,$AE5),"xx") -> xx | T42: =IF($C42="Ja",INDEX(Grundkarakterer!S$8:S$41,$AE5),"xx") -> xx | U42: =IF($C42="Ja",INDEX(Grundkarakterer!T$8:T$41,$AE5),"xx") -> xx | V42: =IF($C42="Ja",INDEX(Grundkarakterer!U$8:U$41,$AE5),"xx") -> xx | W42: =IF($C42="Ja",INDEX(Grundkarakterer!V$8:V$41,$AE5),"xx") -> xx | X42: =IF($C42="Ja",INDEX(Grundkarakterer!W$8:W$41,$AE5),"xx") -> xx | Y42: =IF($C42="Ja",INDEX(Grundkarakterer!X$8:X$41,$AE5),"xx") -> xx | Z42: =IF($C42="Ja",INDEX(Grundkarakterer!Y$8:Y$41,$AE5),"xx") -> xx | AA42: =IF($C42="Ja",INDEX(Grundkarakterer!Z$8:Z$41,$AE5),"xx") -> xx | AB42: =IF($C42="Ja",INDEX(Grundkarakterer!AA$8:AA$41,$AE5),"xx") -> xx | AC42: =IF($C42="Ja",INDEX(Grundkarakterer!AB$8:AB$41,$AE5),"xx") -> xx | AD42: =IF($C42="Ja",INDEX(Grundkarakterer!AC$8:AC$41,$AE5),"xx") -> xx | AE42: =IF($C42="Ja",INDEX(Grundkarakterer!G$8:G$41,$AE5),"xx") -> xx
A43: 4 | B43: =INDEX(Grundkarakterer!A$8:A$41,AE6) -> 4 | C43: Nej | D43: =IF(C43="Ja",INDEX(Grundkarakterer!B$8:B$41,AE6),"xx") -> xx | E43: =IF(C43="Ja",INDEX(Grundkarakterer!C$8:C$41,$AE6),"xx") -> xx | F43: =IF(C43="Ja",INDEX(Grundkarakterer!D$8:D$41,$AE6),"xx") -> xx | G43: =IF(C43="Ja",INDEX(Grundkarakterer!E$8:E$41,$AE6),"xx") -> xx | H43: =IF($C43="Ja",INDEX(Grundkarakterer!F$8:F$41,$AE6),"xx") -> xx | I43: =IF($C43="Ja",INDEX(Grundkarakterer!H$8:H$41,$AE6),"xx") -> xx | J43: =IF($C43="Ja",INDEX(Grundkarakterer!I$8:I$41,$AE6),"xx") -> xx | K43: =IF($C43="Ja",INDEX(Grundkarakterer!J$8:J$41,$AE6),"xx") -> xx | L43: =IF($C43="Ja",INDEX(Grundkarakterer!K$8:K$41,$AE6),"xx") -> xx | M43: =IF($C43="Ja",INDEX(Grundkarakterer!L$8:L$41,$AE6),"xx") -> xx | N43: =IF($C43="Ja",INDEX(Grundkarakterer!M$8:M$41,$AE6),"xx") -> xx | O43: =IF($C43="Ja",INDEX(Grundkarakterer!N$8:N$41,$AE6),"xx") -> xx | P43: =IF($C43="Ja",INDEX(Grundkarakterer!O$8:O$41,$AE6),"xx") -> xx | Q43: =IF($C43="Ja",INDEX(Grundkarakterer!P$8:P$41,$AE6),"xx") -> xx | R43: =IF($C43="Ja",INDEX(Grundkarakterer!Q$8:Q$41,$AE6),"xx") -> xx | S43: =IF($C43="Ja",INDEX(Grundkarakterer!R$8:R$41,$AE6),"xx") -> xx | T43: =IF($C43="Ja",INDEX(Grundkarakterer!S$8:S$41,$AE6),"xx") -> xx | U43: =IF($C43="Ja",INDEX(Grundkarakterer!T$8:T$41,$AE6),"xx") -> xx | V43: =IF($C43="Ja",INDEX(Grundkarakterer!U$8:U$41,$AE6),"xx") -> xx | W43: =IF($C43="Ja",INDEX(Grundkarakterer!V$8:V$41,$AE6),"xx") -> xx | X43: =IF($C43="Ja",INDEX(Grundkarakterer!W$8:W$41,$AE6),"xx") -> xx | Y43: =IF($C43="Ja",INDEX(Grundkarakterer!X$8:X$41,$AE6),"xx") -> xx | Z43: =IF($C43="Ja",INDEX(Grundkarakterer!Y$8:Y$41,$AE6),"xx") -> xx | AA43: =IF($C43="Ja",INDEX(Grundkarakterer!Z$8:Z$41,$AE6),"xx") -> xx | AB43: =IF($C43="Ja",INDEX(Grundkarakterer!AA$8:AA$41,$AE6),"xx") -> xx | AC43: =IF($C43="Ja",INDEX(Grundkarakterer!AB$8:AB$41,$AE6),"xx") -> xx | AD43: =IF($C43="Ja",INDEX(Grundkarakterer!AC$8:AC$41,$AE6),"xx") -> xx | AE43: =IF($C43="Ja",INDEX(Grundkarakterer!G$8:G$41,$AE6),"xx") -> xx
A44: 5 | B44: =INDEX(Grundkarakterer!A$8:A$41,AE7) -> 5 | C44: Nej | D44: =IF(C44="Ja",INDEX(Grundkarakterer!B$8:B$41,AE7),"xx") -> xx | E44: =IF(C44="Ja",INDEX(Grundkarakterer!C$8:C$41,$AE7),"xx") -> xx | F44: =IF(C44="Ja",INDEX(Grundkarakterer!D$8:D$41,$AE7),"xx") -> xx | G44: =IF(C44="Ja",INDEX(Grundkarakterer!E$8:E$41,$AE7),"xx") -> xx | H44: =IF($C44="Ja",INDEX(Grundkarakterer!F$8:F$41,$AE7),"xx") -> xx | I44: =IF($C44="Ja",INDEX(Grundkarakterer!H$8:H$41,$AE7),"xx") -> xx | J44: =IF($C44="Ja",INDEX(Grundkarakterer!I$8:I$41,$AE7),"xx") -> xx | K44: =IF($C44="Ja",INDEX(Grundkarakterer!J$8:J$41,$AE7),"xx") -> xx | L44: =IF($C44="Ja",INDEX(Grundkarakterer!K$8:K$41,$AE7),"xx") -> xx | M44: =IF($C44="Ja",INDEX(Grundkarakterer!L$8:L$41,$AE7),"xx") -> xx | N44: =IF($C44="Ja",INDEX(Grundkarakterer!M$8:M$41,$AE7),"xx") -> xx | O44: =IF($C44="Ja",INDEX(Grundkarakterer!N$8:N$41,$AE7),"xx") -> xx | P44: =IF($C44="Ja",INDEX(Grundkarakterer!O$8:O$41,$AE7),"xx") -> xx | Q44: =IF($C44="Ja",INDEX(Grundkarakterer!P$8:P$41,$AE7),"xx") -> xx | R44: =IF($C44="Ja",INDEX(Grundkarakterer!Q$8:Q$41,$AE7),"xx") -> xx | S44: =IF($C44="Ja",INDEX(Grundkarakterer!R$8:R$41,$AE7),"xx") -> xx | T44: =IF($C44="Ja",INDEX(Grundkarakterer!S$8:S$41,$AE7),"xx") -> xx | U44: =IF($C44="Ja",INDEX(Grundkarakterer!T$8:T$41,$AE7),"xx") -> xx | V44: =IF($C44="Ja",INDEX(Grundkarakterer!U$8:U$41,$AE7),"xx") -> xx | W44: =IF($C44="Ja",INDEX(Grundkarakterer!V$8:V$41,$AE7),"xx") -> xx | X44: =IF($C44="Ja",INDEX(Grundkarakterer!W$8:W$41,$AE7),"xx") -> xx | Y44: =IF($C44="Ja",INDEX(Grundkarakterer!X$8:X$41,$AE7),"xx") -> xx | Z44: =IF($C44="Ja",INDEX(Grundkarakterer!Y$8:Y$41,$AE7),"xx") -> xx | AA44: =IF($C44="Ja",INDEX(Grundkarakterer!Z$8:Z$41,$AE7),"xx") -> xx | AB44: =IF($C44="Ja",INDEX(Grundkarakterer!AA$8:AA$41,$AE7),"xx") -> xx | AC44: =IF($C44="Ja",INDEX(Grundkarakterer!AB$8:AB$41,$AE7),"xx") -> xx | AD44: =IF($C44="Ja",INDEX(Grundkarakterer!AC$8:AC$41,$AE7),"xx") -> xx | AE44: =IF($C44="Ja",INDEX(Grundkarakterer!G$8:G$41,$AE7),"xx") -> xx
A45: 6 | B45: =INDEX(Grundkarakterer!A$8:A$41,AE8) -> 6 | C45: Nej | D45: =IF(C45="Ja",INDEX(Grundkarakterer!B$8:B$41,AE8),"xx") -> xx | E45: =IF(C45="Ja",INDEX(Grundkarakterer!C$8:C$41,$AE8),"xx") -> xx | F45: =IF(C45="Ja",INDEX(Grundkarakterer!D$8:D$41,$AE8),"xx") -> xx | G45: =IF(C45="Ja",INDEX(Grundkarakterer!E$8:E$41,$AE8),"xx") -> xx | H45: =IF($C45="Ja",INDEX(Grundkarakterer!F$8:F$41,$AE8),"xx") -> xx | I45: =IF($C45="Ja",INDEX(Grundkarakterer!H$8:H$41,$AE8),"xx") -> xx | J45: =IF($C45="Ja",INDEX(Grundkarakterer!I$8:I$41,$AE8),"xx") -> xx | K45: =IF($C45="Ja",INDEX(Grundkarakterer!J$8:J$41,$AE8),"xx") -> xx | L45: =IF($C45="Ja",INDEX(Grundkarakterer!K$8:K$41,$AE8),"xx") -> xx | M45: =IF($C45="Ja",INDEX(Grundkarakterer!L$8:L$41,$AE8),"xx") -> xx | N45: =IF($C45="Ja",INDEX(Grundkarakterer!M$8:M$41,$AE8),"xx") -> xx | O45: =IF($C45="Ja",INDEX(Grundkarakterer!N$8:N$41,$AE8),"xx") -> xx | P45: =IF($C45="Ja",INDEX(Grundkarakterer!O$8:O$41,$AE8),"xx") -> xx | Q45: =IF($C45="Ja",INDEX(Grundkarakterer!P$8:P$41,$AE8),"xx") -> xx | R45: =IF($C45="Ja",INDEX(Grundkarakterer!Q$8:Q$41,$AE8),"xx") -> xx | S45: =IF($C45="Ja",INDEX(Grundkarakterer!R$8:R$41,$AE8),"xx") -> xx | T45: =IF($C45="Ja",INDEX(Grundkarakterer!S$8:S$41,$AE8),"xx") -> xx | U45: =IF($C45="Ja",INDEX(Grundkarakterer!T$8:T$41,$AE8),"xx") -> xx | V45: =IF($C45="Ja",INDEX(Grundkarakterer!U$8:U$41,$AE8),"xx") -> xx | W45: =IF($C45="Ja",INDEX(Grundkarakterer!V$8:V$41,$AE8),"xx") -> xx | X45: =IF($C45="Ja",INDEX(Grundkarakterer!W$8:W$41,$AE8),"xx") -> xx | Y45: =IF($C45="Ja",INDEX(Grundkarakterer!X$8:X$41,$AE8),"xx") -> xx | Z45: =IF($C45="Ja",INDEX(Grundkarakterer!Y$8:Y$41,$AE8),"xx") -> xx | AA45: =IF($C45="Ja",INDEX(Grundkarakterer!Z$8:Z$41,$AE8),"xx") -> xx | AB45: =IF($C45="Ja",INDEX(Grundkarakterer!AA$8:AA$41,$AE8),"xx") -> xx | AC45: =IF($C45="Ja",INDEX(Grundkarakterer!AB$8:AB$41,$AE8),"xx") -> xx | AD45: =IF($C45="Ja",INDEX(Grundkarakterer!AC$8:AC$41,$AE8),"xx") -> xx | AE45: =IF($C45="Ja",INDEX(Grundkarakterer!G$8:G$41,$AE8),"xx") -> xx
A46: 7 | B46: =INDEX(Grundkarakterer!A$8:A$41,AE9) -> 7 | C46: Nej | D46: =IF(C46="Ja",INDEX(Grundkarakterer!B$8:B$41,AE9),"xx") -> xx | E46: =IF(C46="Ja",INDEX(Grundkarakterer!C$8:C$41,$AE9),"xx") -> xx | F46: =IF(C46="Ja",INDEX(Grundkarakterer!D$8:D$41,$AE9),"xx") -> xx | G46: =IF(C46="Ja",INDEX(Grundkarakterer!E$8:E$41,$AE9),"xx") -> xx | H46: =IF($C46="Ja",INDEX(Grundkarakterer!F$8:F$41,$AE9),"xx") -> xx | I46: =IF($C46="Ja",INDEX(Grundkarakterer!H$8:H$41,$AE9),"xx") -> xx | J46: =IF($C46="Ja",INDEX(Grundkarakterer!I$8:I$41,$AE9),"xx") -> xx | K46: =IF($C46="Ja",INDEX(Grundkarakterer!J$8:J$41,$AE9),"xx") -> xx | L46: =IF($C46="Ja",INDEX(Grundkarakterer!K$8:K$41,$AE9),"xx") -> xx | M46: =IF($C46="Ja",INDEX(Grundkarakterer!L$8:L$41,$AE9),"xx") -> xx | N46: =IF($C46="Ja",INDEX(Grundkarakterer!M$8:M$41,$AE9),"xx") -> xx | O46: =IF($C46="Ja",INDEX(Grundkarakterer!N$8:N$41,$AE9),"xx") -> xx | P46: =IF($C46="Ja",INDEX(Grundkarakterer!O$8:O$41,$AE9),"xx") -> xx | Q46: =IF($C46="Ja",INDEX(Grundkarakterer!P$8:P$41,$AE9),"xx") -> xx | R46: =IF($C46="Ja",INDEX(Grundkarakterer!Q$8:Q$41,$AE9),"xx") -> xx | S46: =IF($C46="Ja",INDEX(Grundkarakterer!R$8:R$41,$AE9),"xx") -> xx | T46: =IF($C46="Ja",INDEX(Grundkarakterer!S$8:S$41,$AE9),"xx") -> xx | U46: =IF($C46="Ja",INDEX(Grundkarakterer!T$8:T$41,$AE9),"xx") -> xx | V46: =IF($C46="Ja",INDEX(Grundkarakterer!U$8:U$41,$AE9),"xx") -> xx | W46: =IF($C46="Ja",INDEX(Grundkarakterer!V$8:V$41,$AE9),"xx") -> xx | X46: =IF($C46="Ja",INDEX(Grundkarakterer!W$8:W$41,$AE9),"xx") -> xx | Y46: =IF($C46="Ja",INDEX(Grundkarakterer!X$8:X$41,$AE9),"xx") -> xx | Z46: =IF($C46="Ja",INDEX(Grundkarakterer!Y$8:Y$41,$AE9),"xx") -> xx | AA46: =IF($C46="Ja",INDEX(Grundkarakterer!Z$8:Z$41,$AE9),"xx") -> xx | AB46: =IF($C46="Ja",INDEX(Grundkarakterer!AA$8:AA$41,$AE9),"xx") -> xx | AC46: =IF($C46="Ja",INDEX(Grundkarakterer!AB$8:AB$41,$AE9),"xx") -> xx | AD46: =IF($C46="Ja",INDEX(Grundkarakterer!AC$8:AC$41,$AE9),"xx") -> xx | AE46: =IF($C46="Ja",INDEX(Grundkarakterer!G$8:G$41,$AE9),"xx") -> xx
A47: 8 | B47: =INDEX(Grundkarakterer!A$8:A$41,AE10) -> 8 | C47: Nej | D47: =IF(C47="Ja",INDEX(Grundkarakterer!B$8:B$41,AE10),"xx") -> xx | E47: =IF(C47="Ja",INDEX(Grundkarakterer!C$8:C$41,$AE10),"xx") -> xx | F47: =IF(C47="Ja",INDEX(Grundkarakterer!D$8:D$41,$AE10),"xx") -> xx | G47: =IF(C47="Ja",INDEX(Grundkarakterer!E$8:E$41,$AE10),"xx") -> xx | H47: =IF($C47="Ja",INDEX(Grundkarakterer!F$8:F$41,$AE10),"xx") -> xx | I47: =IF($C47="Ja",INDEX(Grundkarakterer!H$8:H$41,$AE10),"xx") -> xx | J47: =IF($C47="Ja",INDEX(Grundkarakterer!I$8:I$41,$AE10),"xx") -> xx | K47: =IF($C47="Ja",INDEX(Grundkarakterer!J$8:J$41,$AE10),"xx") -> xx | L47: =IF($C47="Ja",INDEX(Grundkarakterer!K$8:K$41,$AE10),"xx") -> xx | M47: =IF($C47="Ja",INDEX(Grundkarakterer!L$8:L$41,$AE10),"xx") -> xx | N47: =IF($C47="Ja",INDEX(Grundkarakterer!M$8:M$41,$AE10),"xx") -> xx | O47: =IF($C47="Ja",INDEX(Grundkarakterer!N$8:N$41,$AE10),"xx") -> xx | P47: =IF($C47="Ja",INDEX(Grundkarakterer!O$8:O$41,$AE10),"xx") -> xx | Q47: =IF($C47="Ja",INDEX(Grundkarakterer!P$8:P$41,$AE10),"xx") -> xx | R47: =IF($C47="Ja",INDEX(Grundkarakterer!Q$8:Q$41,$AE10),"xx") -> xx | S47: =IF($C47="Ja",INDEX(Grundkarakterer!R$8:R$41,$AE10),"xx") -> xx | T47: =IF($C47="Ja",INDEX(Grundkarakterer!S$8:S$41,$AE10),"xx") -> xx | U47: =IF($C47="Ja",INDEX(Grundkarakterer!T$8:T$41,$AE10),"xx") -> xx | V47: =IF($C47="Ja",INDEX(Grundkarakterer!U$8:U$41,$AE10),"xx") -> xx | W47: =IF($C47="Ja",INDEX(Grundkarakterer!V$8:V$41,$AE10),"xx") -> xx | X47: =IF($C47="Ja",INDEX(Grundkarakterer!W$8:W$41,$AE10),"xx") -> xx | Y47: =IF($C47="Ja",INDEX(Grundkarakterer!X$8:X$41,$AE10),"xx") -> xx | Z47: =IF($C47="Ja",INDEX(Grundkarakterer!Y$8:Y$41,$AE10),"xx") -> xx | AA47: =IF($C47="Ja",INDEX(Grundkarakterer!Z$8:Z$41,$AE10),"xx") -> xx | AB47: =IF($C47="Ja",INDEX(Grundkarakterer!AA$8:AA$41,$AE10),"xx") -> xx | AC47: =IF($C47="Ja",INDEX(Grundkarakterer!AB$8:AB$41,$AE10),"xx") -> xx | AD47: =IF($C47="Ja",INDEX(Grundkarakterer!AC$8:AC$41,$AE10),"xx") -> xx | AE47: =IF($C47="Ja",INDEX(Grundkarakterer!G$8:G$41,$AE10),"xx") -> xx
A48: 9 | B48: =INDEX(Grundkarakterer!A$8:A$41,AE11) -> 9 | C48: Nej | D48: =IF(C48="Ja",INDEX(Grundkarakterer!B$8:B$41,AE11),"xx") -> xx | E48: =IF(C48="Ja",INDEX(Grundkarakterer!C$8:C$41,$AE11),"xx") -> xx | F48: =IF(C48="Ja",INDEX(Grundkarakterer!D$8:D$41,$AE11),"xx") -> xx | G48: =IF(C48="Ja",INDEX(Grundkarakterer!E$8:E$41,$AE11),"xx") -> xx | H48: =IF($C48="Ja",INDEX(Grundkarakterer!F$8:F$41,$AE11),"xx") -> xx | I48: =IF($C48="Ja",INDEX(Grundkarakterer!H$8:H$41,$AE11),"xx") -> xx | J48: =IF($C48="Ja",INDEX(Grundkarakterer!I$8:I$41,$AE11),"xx") -> xx | K48: =IF($C48="Ja",INDEX(Grundkarakterer!J$8:J$41,$AE11),"xx") -> xx | L48: =IF($C48="Ja",INDEX(Grundkarakterer!K$8:K$41,$AE11),"xx") -> xx | M48: =IF($C48="Ja",INDEX(Grundkarakterer!L$8:L$41,$AE11),"xx") -> xx | N48: =IF($C48="Ja",INDEX(Grundkarakterer!M$8:M$41,$AE11),"xx") -> xx | O48: =IF($C48="Ja",INDEX(Grundkarakterer!N$8:N$41,$AE11),"xx") -> xx | P48: =IF($C48="Ja",INDEX(Grundkarakterer!O$8:O$41,$AE11),"xx") -> xx | Q48: =IF($C48="Ja",INDEX(Grundkarakterer!P$8:P$41,$AE11),"xx") -> xx | R48: =IF($C48="Ja",INDEX(Grundkarakterer!Q$8:Q$41,$AE11),"xx") -> xx | S48: =IF($C48="Ja",INDEX(Grundkarakterer!R$8:R$41,$AE11),"xx") -> xx | T48: =IF($C48="Ja",INDEX(Grundkarakterer!S$8:S$41,$AE11),"xx") -> xx | U48: =IF($C48="Ja",INDEX(Grundkarakterer!T$8:T$41,$AE11),"xx") -> xx | V48: =IF($C48="Ja",INDEX(Grundkarakterer!U$8:U$41,$AE11),"xx") -> xx | W48: =IF($C48="Ja",INDEX(Grundkarakterer!V$8:V$41,$AE11),"xx") -> xx | X48: =IF($C48="Ja",INDEX(Grundkarakterer!W$8:W$41,$AE11),"xx") -> xx | Y48: =IF($C48="Ja",INDEX(Grundkarakterer!X$8:X$41,$AE11),"xx") -> xx | Z48: =IF($C48="Ja",INDEX(Grundkarakterer!Y$8:Y$41,$AE11),"xx") -> xx | AA48: =IF($C48="Ja",INDEX(Grundkarakterer!Z$8:Z$41,$AE11),"xx") -> xx | AB48: =IF($C48="Ja",INDEX(Grundkarakterer!AA$8:AA$41,$AE11),"xx") -> xx | AC48: =IF($C48="Ja",INDEX(Grundkarakterer!AB$8:AB$41,$AE11),"xx") -> xx | AD48: =IF($C48="Ja",INDEX(Grundkarakterer!AC$8:AC$41,$AE11),"xx") -> xx | AE48: =IF($C48="Ja",INDEX(Grundkarakterer!G$8:G$41,$AE11),"xx") -> xx
A49: 10 | B49: =INDEX(Grundkarakterer!A$8:A$41,AE12) -> 10 | C49: Nej | D49: =IF(C49="Ja",INDEX(Grundkarakterer!B$8:B$41,AE12),"xx") -> xx | E49: =IF(C49="Ja",INDEX(Grundkarakterer!C$8:C$41,$AE12),"xx") -> xx | F49: =IF(C49="Ja",INDEX(Grundkarakterer!D$8:D$41,$AE12),"xx") -> xx | G49: =IF(C49="Ja",INDEX(Grundkarakterer!E$8:E$41,$AE12),"xx") -> xx | H49: =IF($C49="Ja",INDEX(Grundkarakterer!F$8:F$41,$AE12),"xx") -> xx | I49: =IF($C49="Ja",INDEX(Grundkarakterer!H$8:H$41,$AE12),"xx") -> xx | J49: =IF($C49="Ja",INDEX(Grundkarakterer!I$8:I$41,$AE12),"xx") -> xx | K49: =IF($C49="Ja",INDEX(Grundkarakterer!J$8:J$41,$AE12),"xx") -> xx | L49: =IF($C49="Ja",INDEX(Grundkarakterer!K$8:K$41,$AE12),"xx") -> xx | M49: =IF($C49="Ja",INDEX(Grundkarakterer!L$8:L$41,$AE12),"xx") -> xx | N49: =IF($C49="Ja",INDEX(Grundkarakterer!M$8:M$41,$AE12),"xx") -> xx | O49: =IF($C49="Ja",INDEX(Grundkarakterer!N$8:N$41,$AE12),"xx") -> xx | P49: =IF($C49="Ja",INDEX(Grundkarakterer!O$8:O$41,$AE12),"xx") -> xx | Q49: =IF($C49="Ja",INDEX(Grundkarakterer!P$8:P$41,$AE12),"xx") -> xx | R49: =IF($C49="Ja",INDEX(Grundkarakterer!Q$8:Q$41,$AE12),"xx") -> xx | S49: =IF($C49="Ja",INDEX(Grundkarakterer!R$8:R$41,$AE12),"xx") -> xx | T49: =IF($C49="Ja",INDEX(Grundkarakterer!S$8:S$41,$AE12),"xx") -> xx | U49: =IF($C49="Ja",INDEX(Grundkarakterer!T$8:T$41,$AE12),"xx") -> xx | V49: =IF($C49="Ja",INDEX(Grundkarakterer!U$8:U$41,$AE12),"xx") -> xx | W49: =IF($C49="Ja",INDEX(Grundkarakterer!V$8:V$41,$AE12),"xx") -> xx | X49: =IF($C49="Ja",INDEX(Grundkarakterer!W$8:W$41,$AE12),"xx") -> xx | Y49: =IF($C49="Ja",INDEX(Grundkarakterer!X$8:X$41,$AE12),"xx") -> xx | Z49: =IF($C49="Ja",INDEX(Grundkarakterer!Y$8:Y$41,$AE12),"xx") -> xx | AA49: =IF($C49="Ja",INDEX(Grundkarakterer!Z$8:Z$41,$AE12),"xx") -> xx | AB49: =IF($C49="Ja",INDEX(Grundkarakterer!AA$8:AA$41,$AE12),"xx") -> xx | AC49: =IF($C49="Ja",INDEX(Grundkarakterer!AB$8:AB$41,$AE12),"xx") -> xx | AD49: =IF($C49="Ja",INDEX(Grundkarakterer!AC$8:AC$41,$AE12),"xx") -> xx | AE49: =IF($C49="Ja",INDEX(Grundkarakterer!G$8:G$41,$AE12),"xx") -> xx
A50: 11 | B50: =INDEX(Grundkarakterer!A$8:A$41,AE13) -> 11 | C50: Nej | D50: =IF(C50="Ja",INDEX(Grundkarakterer!B$8:B$41,AE13),"xx") -> xx | E50: =IF(C50="Ja",INDEX(Grundkarakterer!C$8:C$41,$AE13),"xx") -> xx | F50: =IF(C50="Ja",INDEX(Grundkarakterer!D$8:D$41,$AE13),"xx") -> xx | G50: =IF(C50="Ja",INDEX(Grundkarakterer!E$8:E$41,$AE13),"xx") -> xx | H50: =IF($C50="Ja",INDEX(Grundkarakterer!F$8:F$41,$AE13),"xx") -> xx | I50: =IF($C50="Ja",INDEX(Grundkarakterer!H$8:H$41,$AE13),"xx") -> xx | J50: =IF($C50="Ja",INDEX(Grundkarakterer!I$8:I$41,$AE13),"xx") -> xx | K50: =IF($C50="Ja",INDEX(Grundkarakterer!J$8:J$41,$AE13),"xx") -> xx | L50: =IF($C50="Ja",INDEX(Grundkarakterer!K$8:K$41,$AE13),"xx") -> xx | M50: =IF($C50="Ja",INDEX(Grundkarakterer!L$8:L$41,$AE13),"xx") -> xx | N50: =IF($C50="Ja",INDEX(Grundkarakterer!M$8:M$41,$AE13),"xx") -> xx | O50: =IF($C50="Ja",INDEX(Grundkarakterer!N$8:N$41,$AE13),"xx") -> xx | P50: =IF($C50="Ja",INDEX(Grundkarakterer!O$8:O$41,$AE13),"xx") -> xx | Q50: =IF($C50="Ja",INDEX(Grundkarakterer!P$8:P$41,$AE13),"xx") -> xx | R50: =IF($C50="Ja",INDEX(Grundkarakterer!Q$8:Q$41,$AE13),"xx") -> xx | S50: =IF($C50="Ja",INDEX(Grundkarakterer!R$8:R$41,$AE13),"xx") -> xx | T50: =IF($C50="Ja",INDEX(Grundkarakterer!S$8:S$41,$AE13),"xx") -> xx | U50: =IF($C50="Ja",INDEX(Grundkarakterer!T$8:T$41,$AE13),"xx") -> xx | V50: =IF($C50="Ja",INDEX(Grundkarakterer!U$8:U$41,$AE13),"xx") -> xx | W50: =IF($C50="Ja",INDEX(Grundkarakterer!V$8:V$41,$AE13),"xx") -> xx | X50: =IF($C50="Ja",INDEX(Grundkarakterer!W$8:W$41,$AE13),"xx") -> xx | Y50: =IF($C50="Ja",INDEX(Grundkarakterer!X$8:X$41,$AE13),"xx") -> xx | Z50: =IF($C50="Ja",INDEX(Grundkarakterer!Y$8:Y$41,$AE13),"xx") -> xx | AA50: =IF($C50="Ja",INDEX(Grundkarakterer!Z$8:Z$41,$AE13),"xx") -> xx | AB50: =IF($C50="Ja",INDEX(Grundkarakterer!AA$8:AA$41,$AE13),"xx") -> xx | AC50: =IF($C50="Ja",INDEX(Grundkarakterer!AB$8:AB$41,$AE13),"xx") -> xx | AD50: =IF($C50="Ja",INDEX(Grundkarakterer!AC$8:AC$41,$AE13),"xx") -> xx | AE50: =IF($C50="Ja",INDEX(Grundkarakterer!G$8:G$41,$AE13),"xx") -> xx
A51: 12 | B51: =INDEX(Grundkarakterer!A$8:A$41,AE14) -> 12 | C51: Nej | D51: =IF(C51="Ja",INDEX(Grundkarakterer!B$8:B$41,AE14),"xx") -> xx | E51: =IF(C51="Ja",INDEX(Grundkarakterer!C$8:C$41,$AE14),"xx") -> xx | F51: =IF(C51="Ja",INDEX(Grundkarakterer!D$8:D$41,$AE14),"xx") -> xx | G51: =IF(C51="Ja",INDEX(Grundkarakterer!E$8:E$41,$AE14),"xx") -> xx | H51: =IF($C51="Ja",INDEX(Grundkarakterer!F$8:F$41,$AE14),"xx") -> xx | I51: =IF($C51="Ja",INDEX(Grundkarakterer!H$8:H$41,$AE14),"xx") -> xx | J51: =IF($C51="Ja",INDEX(Grundkarakterer!I$8:I$41,$AE14),"xx") -> xx | K51: =IF($C51="Ja",INDEX(Grundkarakterer!J$8:J$41,$AE14),"xx") -> xx | L51: =IF($C51="Ja",INDEX(Grundkarakterer!K$8:K$41,$AE14),"xx") -> xx | M51: =IF($C51="Ja",INDEX(Grundkarakterer!L$8:L$41,$AE14),"xx") -> xx | N51: =IF($C51="Ja",INDEX(Grundkarakterer!M$8:M$41,$AE14),"xx") -> xx | O51: =IF($C51="Ja",INDEX(Grundkarakterer!N$8:N$41,$AE14),"xx") -> xx | P51: =IF($C51="Ja",INDEX(Grundkarakterer!O$8:O$41,$AE14),"xx") -> xx | Q51: =IF($C51="Ja",INDEX(Grundkarakterer!P$8:P$41,$AE14),"xx") -> xx | R51: =IF($C51="Ja",INDEX(Grundkarakterer!Q$8:Q$41,$AE14),"xx") -> xx | S51: =IF($C51="Ja",INDEX(Grundkarakterer!R$8:R$41,$AE14),"xx") -> xx | T51: =IF($C51="Ja",INDEX(Grundkarakterer!S$8:S$41,$AE14),"xx") -> xx | U51: =IF($C51="Ja",INDEX(Grundkarakterer!T$8:T$41,$AE14),"xx") -> xx | V51: =IF($C51="Ja",INDEX(Grundkarakterer!U$8:U$41,$AE14),"xx") -> xx | W51: =IF($C51="Ja",INDEX(Grundkarakterer!V$8:V$41,$AE14),"xx") -> xx | X51: =IF($C51="Ja",INDEX(Grundkarakterer!W$8:W$41,$AE14),"xx") -> xx | Y51: =IF($C51="Ja",INDEX(Grundkarakterer!X$8:X$41,$AE14),"xx") -> xx | Z51: =IF($C51="Ja",INDEX(Grundkarakterer!Y$8:Y$41,$AE14),"xx") -> xx | AA51: =IF($C51="Ja",INDEX(Grundkarakterer!Z$8:Z$41,$AE14),"xx") -> xx | AB51: =IF($C51="Ja",INDEX(Grundkarakterer!AA$8:AA$41,$AE14),"xx") -> xx | AC51: =IF($C51="Ja",INDEX(Grundkarakterer!AB$8:AB$41,$AE14),"xx") -> xx | AD51: =IF($C51="Ja",INDEX(Grundkarakterer!AC$8:AC$41,$AE14),"xx") -> xx | AE51: =IF($C51="Ja",INDEX(Grundkarakterer!G$8:G$41,$AE14),"xx") -> xx
A52: 13 | B52: =INDEX(Grundkarakterer!A$8:A$41,AE15) -> 13 | C52: Nej | D52: =IF(C52="Ja",INDEX(Grundkarakterer!B$8:B$41,AE15),"xx") -> xx | E52: =IF(C52="Ja",INDEX(Grundkarakterer!C$8:C$41,$AE15),"xx") -> xx | F52: =IF(C52="Ja",INDEX(Grundkarakterer!D$8:D$41,$AE15),"xx") -> xx | G52: =IF(C52="Ja",INDEX(Grundkarakterer!E$8:E$41,$AE15),"xx") -> xx | H52: =IF($C52="Ja",INDEX(Grundkarakterer!F$8:F$41,$AE15),"xx") -> xx | I52: =IF($C52="Ja",INDEX(Grundkarakterer!H$8:H$41,$AE15),"xx") -> xx | J52: =IF($C52="Ja",INDEX(Grundkarakterer!I$8:I$41,$AE15),"xx") -> xx | K52: =IF($C52="Ja",INDEX(Grundkarakterer!J$8:J$41,$AE15),"xx") -> xx | L52: =IF($C52="Ja",INDEX(Grundkarakterer!K$8:K$41,$AE15),"xx") -> xx | M52: =IF($C52="Ja",INDEX(Grundkarakterer!L$8:L$41,$AE15),"xx") -> xx | N52: =IF($C52="Ja",INDEX(Grundkarakterer!M$8:M$41,$AE15),"xx") -> xx | O52: =IF($C52="Ja",INDEX(Grundkarakterer!N$8:N$41,$AE15),"xx") -> xx | P52: =IF($C52="Ja",INDEX(Grundkarakterer!O$8:O$41,$AE15),"xx") -> xx | Q52: =IF($C52="Ja",INDEX(Grundkarakterer!P$8:P$41,$AE15),"xx") -> xx | R52: =IF($C52="Ja",INDEX(Grundkarakterer!Q$8:Q$41,$AE15),"xx") -> xx | S52: =IF($C52="Ja",INDEX(Grundkarakterer!R$8:R$41,$AE15),"xx") -> xx | T52: =IF($C52="Ja",INDEX(Grundkarakterer!S$8:S$41,$AE15),"xx") -> xx | U52: =IF($C52="Ja",INDEX(Grundkarakterer!T$8:T$41,$AE15),"xx") -> xx | V52: =IF($C52="Ja",INDEX(Grundkarakterer!U$8:U$41,$AE15),"xx") -> xx | W52: =IF($C52="Ja",INDEX(Grundkarakterer!V$8:V$41,$AE15),"xx") -> xx | X52: =IF($C52="Ja",INDEX(Grundkarakterer!W$8:W$41,$AE15),"xx") -> xx | Y52: =IF($C52="Ja",INDEX(Grundkarakterer!X$8:X$41,$AE15),"xx") -> xx | Z52: =IF($C52="Ja",INDEX(Grundkarakterer!Y$8:Y$41,$AE15),"xx") -> xx | AA52: =IF($C52="Ja",INDEX(Grundkarakterer!Z$8:Z$41,$AE15),"xx") -> xx | AB52: =IF($C52="Ja",INDEX(Grundkarakterer!AA$8:AA$41,$AE15),"xx") -> xx | AC52: =IF($C52="Ja",INDEX(Grundkarakterer!AB$8:AB$41,$AE15),"xx") -> xx | AD52: =IF($C52="Ja",INDEX(Grundkarakterer!AC$8:AC$41,$AE15),"xx") -> xx | AE52: =IF($C52="Ja",INDEX(Grundkarakterer!G$8:G$41,$AE15),"xx") -> xx
A53: 14 | B53: =INDEX(Grundkarakterer!A$8:A$41,AE16) -> 14 | C53: Nej | D53: =IF(C53="Ja",INDEX(Grundkarakterer!B$8:B$41,AE16),"xx") -> xx | E53: =IF(C53="Ja",INDEX(Grundkarakterer!C$8:C$41,$AE16),"xx") -> xx | F53: =IF(C53="Ja",INDEX(Grundkarakterer!D$8:D$41,$AE16),"xx") -> xx | G53: =IF(C53="Ja",INDEX(Grundkarakterer!E$8:E$41,$AE16),"xx") -> xx | H53: =IF($C53="Ja",INDEX(Grundkarakterer!F$8:F$41,$AE16),"xx") -> xx | I53: =IF($C53="Ja",INDEX(Grundkarakterer!H$8:H$41,$AE16),"xx") -> xx | J53: =IF($C53="Ja",INDEX(Grundkarakterer!I$8:I$41,$AE16),"xx") -> xx | K53: =IF($C53="Ja",INDEX(Grundkarakterer!J$8:J$41,$AE16),"xx") -> xx | L53: =IF($C53="Ja",INDEX(Grundkarakterer!K$8:K$41,$AE16),"xx") -> xx | M53: =IF($C53="Ja",INDEX(Grundkarakterer!L$8:L$41,$AE16),"xx") -> xx | N53: =IF($C53="Ja",INDEX(Grundkarakterer!M$8:M$41,$AE16),"xx") -> xx | O53: =IF($C53="Ja",INDEX(Grundkarakterer!N$8:N$41,$AE16),"xx") -> xx | P53: =IF($C53="Ja",INDEX(Grundkarakterer!O$8:O$41,$AE16),"xx") -> xx | Q53: =IF($C53="Ja",INDEX(Grundkarakterer!P$8:P$41,$AE16),"xx") -> xx | R53: =IF($C53="Ja",INDEX(Grundkarakterer!Q$8:Q$41,$AE16),"xx") -> xx | S53: =IF($C53="Ja",INDEX(Grundkarakterer!R$8:R$41,$AE16),"xx") -> xx | T53: =IF($C53="Ja",INDEX(Grundkarakterer!S$8:S$41,$AE16),"xx") -> xx | U53: =IF($C53="Ja",INDEX(Grundkarakterer!T$8:T$41,$AE16),"xx") -> xx | V53: =IF($C53="Ja",INDEX(Grundkarakterer!U$8:U$41,$AE16),"xx") -> xx | W53: =IF($C53="Ja",INDEX(Grundkarakterer!V$8:V$41,$AE16),"xx") -> xx | X53: =IF($C53="Ja",INDEX(Grundkarakterer!W$8:W$41,$AE16),"xx") -> xx | Y53: =IF($C53="Ja",INDEX(Grundkarakterer!X$8:X$41,$AE16),"xx") -> xx | Z53: =IF($C53="Ja",INDEX(Grundkarakterer!Y$8:Y$41,$AE16),"xx") -> xx | AA53: =IF($C53="Ja",INDEX(Grundkarakterer!Z$8:Z$41,$AE16),"xx") -> xx | AB53: =IF($C53="Ja",INDEX(Grundkarakterer!AA$8:AA$41,$AE16),"xx") -> xx | AC53: =IF($C53="Ja",INDEX(Grundkarakterer!AB$8:AB$41,$AE16),"xx") -> xx | AD53: =IF($C53="Ja",INDEX(Grundkarakterer!AC$8:AC$41,$AE16),"xx") -> xx | AE53: =IF($C53="Ja",INDEX(Grundkarakterer!G$8:G$41,$AE16),"xx") -> xx
A54: 15 | B54: =INDEX(Grundkarakterer!A$8:A$41,AE17) -> 15 | C54: Nej | D54: =IF(C54="Ja",INDEX(Grundkarakterer!B$8:B$41,AE17),"xx") -> xx | E54: =IF(C54="Ja",INDEX(Grundkarakterer!C$8:C$41,$AE17),"xx") -> xx | F54: =IF(C54="Ja",INDEX(Grundkarakterer!D$8:D$41,$AE17),"xx") -> xx | G54: =IF(C54="Ja",INDEX(Grundkarakterer!E$8:E$41,$AE17),"xx") -> xx | H54: =IF($C54="Ja",INDEX(Grundkarakterer!F$8:F$41,$AE17),"xx") -> xx | I54: =IF($C54="Ja",INDEX(Grundkarakterer!H$8:H$41,$AE17),"xx") -> xx | J54: =IF($C54="Ja",INDEX(Grundkarakterer!I$8:I$41,$AE17),"xx") -> xx | K54: =IF($C54="Ja",INDEX(Grundkarakterer!J$8:J$41,$AE17),"xx") -> xx | L54: =IF($C54="Ja",INDEX(Grundkarakterer!K$8:K$41,$AE17),"xx") -> xx | M54: =IF($C54="Ja",INDEX(Grundkarakterer!L$8:L$41,$AE17),"xx") -> xx | N54: =IF($C54="Ja",INDEX(Grundkarakterer!M$8:M$41,$AE17),"xx") -> xx | O54: =IF($C54="Ja",INDEX(Grundkarakterer!N$8:N$41,$AE17),"xx") -> xx | P54: =IF($C54="Ja",INDEX(Grundkarakterer!O$8:O$41,$AE17),"xx") -> xx | Q54: =IF($C54="Ja",INDEX(Grundkarakterer!P$8:P$41,$AE17),"xx") -> xx | R54: =IF($C54="Ja",INDEX(Grundkarakterer!Q$8:Q$41,$AE17),"xx") -> xx | S54: =IF($C54="Ja",INDEX(Grundkarakterer!R$8:R$41,$AE17),"xx") -> xx | T54: =IF($C54="Ja",INDEX(Grundkarakterer!S$8:S$41,$AE17),"xx") -> xx | U54: =IF($C54="Ja",INDEX(Grundkarakterer!T$8:T$41,$AE17),"xx") -> xx | V54: =IF($C54="Ja",INDEX(Grundkarakterer!U$8:U$41,$AE17),"xx") -> xx | W54: =IF($C54="Ja",INDEX(Grundkarakterer!V$8:V$41,$AE17),"xx") -> xx | X54: =IF($C54="Ja",INDEX(Grundkarakterer!W$8:W$41,$AE17),"xx") -> xx | Y54: =IF($C54="Ja",INDEX(Grundkarakterer!X$8:X$41,$AE17),"xx") -> xx | Z54: =IF($C54="Ja",INDEX(Grundkarakterer!Y$8:Y$41,$AE17),"xx") -> xx | AA54: =IF($C54="Ja",INDEX(Grundkarakterer!Z$8:Z$41,$AE17),"xx") -> xx | AB54: =IF($C54="Ja",INDEX(Grundkarakterer!AA$8:AA$41,$AE17),"xx") -> xx | AC54: =IF($C54="Ja",INDEX(Grundkarakterer!AB$8:AB$41,$AE17),"xx") -> xx | AD54: =IF($C54="Ja",INDEX(Grundkarakterer!AC$8:AC$41,$AE17),"xx") -> xx | AE54: =IF($C54="Ja",INDEX(Grundkarakterer!G$8:G$41,$AE17),"xx") -> xx
A55: 16 | B55: =INDEX(Grundkarakterer!A$8:A$41,AE18) -> 16 | C55: Nej | D55: =IF(C55="Ja",INDEX(Grundkarakterer!B$8:B$41,AE18),"xx") -> xx | E55: =IF(C55="Ja",INDEX(Grundkarakterer!C$8:C$41,$AE18),"xx") -> xx | F55: =IF(C55="Ja",INDEX(Grundkarakterer!D$8:D$41,$AE18),"xx") -> xx | G55: =IF(C55="Ja",INDEX(Grundkarakterer!E$8:E$41,$AE18),"xx") -> xx | H55: =IF($C55="Ja",INDEX(Grundkarakterer!F$8:F$41,$AE18),"xx") -> xx | I55: =IF($C55="Ja",INDEX(Grundkarakterer!H$8:H$41,$AE18),"xx") -> xx | J55: =IF($C55="Ja",INDEX(Grundkarakterer!I$8:I$41,$AE18),"xx") -> xx | K55: =IF($C55="Ja",INDEX(Grundkarakterer!J$8:J$41,$AE18),"xx") -> xx | L55: =IF($C55="Ja",INDEX(Grundkarakterer!K$8:K$41,$AE18),"xx") -> xx | M55: =IF($C55="Ja",INDEX(Grundkarakterer!L$8:L$41,$AE18),"xx") -> xx | N55: =IF($C55="Ja",INDEX(Grundkarakterer!M$8:M$41,$AE18),"xx") -> xx | O55: =IF($C55="Ja",INDEX(Grundkarakterer!N$8:N$41,$AE18),"xx") -> xx | P55: =IF($C55="Ja",INDEX(Grundkarakterer!O$8:O$41,$AE18),"xx") -> xx | Q55: =IF($C55="Ja",INDEX(Grundkarakterer!P$8:P$41,$AE18),"xx") -> xx | R55: =IF($C55="Ja",INDEX(Grundkarakterer!Q$8:Q$41,$AE18),"xx") -> xx | S55: =IF($C55="Ja",INDEX(Grundkarakterer!R$8:R$41,$AE18),"xx") -> xx | T55: =IF($C55="Ja",INDEX(Grundkarakterer!S$8:S$41,$AE18),"xx") -> xx | U55: =IF($C55="Ja",INDEX(Grundkarakterer!T$8:T$41,$AE18),"xx") -> xx | V55: =IF($C55="Ja",INDEX(Grundkarakterer!U$8:U$41,$AE18),"xx") -> xx | W55: =IF($C55="Ja",INDEX(Grundkarakterer!V$8:V$41,$AE18),"xx") -> xx | X55: =IF($C55="Ja",INDEX(Grundkarakterer!W$8:W$41,$AE18),"xx") -> xx | Y55: =IF($C55="Ja",INDEX(Grundkarakterer!X$8:X$41,$AE18),"xx") -> xx | Z55: =IF($C55="Ja",INDEX(Grundkarakterer!Y$8:Y$41,$AE18),"xx") -> xx | AA55: =IF($C55="Ja",INDEX(Grundkarakterer!Z$8:Z$41,$AE18),"xx") -> xx | AB55: =IF($C55="Ja",INDEX(Grundkarakterer!AA$8:AA$41,$AE18),"xx") -> xx | AC55: =IF($C55="Ja",INDEX(Grundkarakterer!AB$8:AB$41,$AE18),"xx") -> xx | AD55: =IF($C55="Ja",INDEX(Grundkarakterer!AC$8:AC$41,$AE18),"xx") -> xx | AE55: =IF($C55="Ja",INDEX(Grundkarakterer!G$8:G$41,$AE18),"xx") -> xx
A56: 17 | B56: =INDEX(Grundkarakterer!A$8:A$41,AE19) -> 17 | C56: Nej | D56: =IF(C56="Ja",INDEX(Grundkarakterer!B$8:B$41,AE19),"xx") -> xx | E56: =IF(C56="Ja",INDEX(Grundkarakterer!C$8:C$41,$AE19),"xx") -> xx | F56: =IF(C56="Ja",INDEX(Grundkarakterer!D$8:D$41,$AE19),"xx") -> xx | G56: =IF(C56="Ja",INDEX(Grundkarakterer!E$8:E$41,$AE19),"xx") -> xx | H56: =IF($C56="Ja",INDEX(Grundkarakterer!F$8:F$41,$AE19),"xx") -> xx | I56: =IF($C56="Ja",INDEX(Grundkarakterer!H$8:H$41,$AE19),"xx") -> xx | J56: =IF($C56="Ja",INDEX(Grundkarakterer!I$8:I$41,$AE19),"xx") -> xx | K56: =IF($C56="Ja",INDEX(Grundkarakterer!J$8:J$41,$AE19),"xx") -> xx | L56: =IF($C56="Ja",INDEX(Grundkarakterer!K$8:K$41,$AE19),"xx") -> xx | M56: =IF($C56="Ja",INDEX(Grundkarakterer!L$8:L$41,$AE19),"xx") -> xx | N56: =IF($C56="Ja",INDEX(Grundkarakterer!M$8:M$41,$AE19),"xx") -> xx | O56: =IF($C56="Ja",INDEX(Grundkarakterer!N$8:N$41,$AE19),"xx") -> xx | P56: =IF($C56="Ja",INDEX(Grundkarakterer!O$8:O$41,$AE19),"xx") -> xx | Q56: =IF($C56="Ja",INDEX(Grundkarakterer!P$8:P$41,$AE19),"xx") -> xx | R56: =IF($C56="Ja",INDEX(Grundkarakterer!Q$8:Q$41,$AE19),"xx") -> xx | S56: =IF($C56="Ja",INDEX(Grundkarakterer!R$8:R$41,$AE19),"xx") -> xx | T56: =IF($C56="Ja",INDEX(Grundkarakterer!S$8:S$41,$AE19),"xx") -> xx | U56: =IF($C56="Ja",INDEX(Grundkarakterer!T$8:T$41,$AE19),"xx") -> xx | V56: =IF($C56="Ja",INDEX(Grundkarakterer!U$8:U$41,$AE19),"xx") -> xx | W56: =IF($C56="Ja",INDEX(Grundkarakterer!V$8:V$41,$AE19),"xx") -> xx | X56: =IF($C56="Ja",INDEX(Grundkarakterer!W$8:W$41,$AE19),"xx") -> xx | Y56: =IF($C56="Ja",INDEX(Grundkarakterer!X$8:X$41,$AE19),"xx") -> xx | Z56: =IF($C56="Ja",INDEX(Grundkarakterer!Y$8:Y$41,$AE19),"xx") -> xx | AA56: =IF($C56="Ja",INDEX(Grundkarakterer!Z$8:Z$41,$AE19),"xx") -> xx | AB56: =IF($C56="Ja",INDEX(Grundkarakterer!AA$8:AA$41,$AE19),"xx") -> xx | AC56: =IF($C56="Ja",INDEX(Grundkarakterer!AB$8:AB$41,$AE19),"xx") -> xx | AD56: =IF($C56="Ja",INDEX(Grundkarakterer!AC$8:AC$41,$AE19),"xx") -> xx | AE56: =IF($C56="Ja",INDEX(Grundkarakterer!G$8:G$41,$AE19),"xx") -> xx
A57: 18 | B57: =INDEX(Grundkarakterer!A$8:A$41,AE20) -> 18 | C57: Nej | D57: =IF(C57="Ja",INDEX(Grundkarakterer!B$8:B$41,AE20),"xx") -> xx | E57: =IF(C57="Ja",INDEX(Grundkarakterer!C$8:C$41,$AE20),"xx") -> xx | F57: =IF(C57="Ja",INDEX(Grundkarakterer!D$8:D$41,$AE20),"xx") -> xx | G57: =IF(C57="Ja",INDEX(Grundkarakterer!E$8:E$41,$AE20),"xx") -> xx | H57: =IF($C57="Ja",INDEX(Grundkarakterer!F$8:F$41,$AE20),"xx") -> xx | I57: =IF($C57="Ja",INDEX(Grundkarakterer!H$8:H$41,$AE20),"xx") -> xx | J57: =IF($C57="Ja",INDEX(Grundkarakterer!I$8:I$41,$AE20),"xx") -> xx | K57: =IF($C57="Ja",INDEX(Grundkarakterer!J$8:J$41,$AE20),"xx") -> xx | L57: =IF($C57="Ja",INDEX(Grundkarakterer!K$8:K$41,$AE20),"xx") -> xx | M57: =IF($C57="Ja",INDEX(Grundkarakterer!L$8:L$41,$AE20),"xx") -> xx | N57: =IF($C57="Ja",INDEX(Grundkarakterer!M$8:M$41,$AE20),"xx") -> xx | O57: =IF($C57="Ja",INDEX(Grundkarakterer!N$8:N$41,$AE20),"xx") -> xx | P57: =IF($C57="Ja",INDEX(Grundkarakterer!O$8:O$41,$AE20),"xx") -> xx | Q57: =IF($C57="Ja",INDEX(Grundkarakterer!P$8:P$41,$AE20),"xx") -> xx | R57: =IF($C57="Ja",INDEX(Grundkarakterer!Q$8:Q$41,$AE20),"xx") -> xx | S57: =IF($C57="Ja",INDEX(Grundkarakterer!R$8:R$41,$AE20),"xx") -> xx | T57: =IF($C57="Ja",INDEX(Grundkarakterer!S$8:S$41,$AE20),"xx") -> xx | U57: =IF($C57="Ja",INDEX(Grundkarakterer!T$8:T$41,$AE20),"xx") -> xx | V57: =IF($C57="Ja",INDEX(Grundkarakterer!U$8:U$41,$AE20),"xx") -> xx | W57: =IF($C57="Ja",INDEX(Grundkarakterer!V$8:V$41,$AE20),"xx") -> xx | X57: =IF($C57="Ja",INDEX(Grundkarakterer!W$8:W$41,$AE20),"xx") -> xx | Y57: =IF($C57="Ja",INDEX(Grundkarakterer!X$8:X$41,$AE20),"xx") -> xx | Z57: =IF($C57="Ja",INDEX(Grundkarakterer!Y$8:Y$41,$AE20),"xx") -> xx | AA57: =IF($C57="Ja",INDEX(Grundkarakterer!Z$8:Z$41,$AE20),"xx") -> xx | AB57: =IF($C57="Ja",INDEX(Grundkarakterer!AA$8:AA$41,$AE20),"xx") -> xx | AC57: =IF($C57="Ja",INDEX(Grundkarakterer!AB$8:AB$41,$AE20),"xx") -> xx | AD57: =IF($C57="Ja",INDEX(Grundkarakterer!AC$8:AC$41,$AE20),"xx") -> xx | AE57: =IF($C57="Ja",INDEX(Grundkarakterer!G$8:G$41,$AE20),"xx") -> xx
A58: 19 | B58: =INDEX(Grundkarakterer!A$8:A$41,AE21) -> 19 | C58: Nej | D58: =IF(C58="Ja",INDEX(Grundkarakterer!B$8:B$41,AE21),"xx") -> xx | E58: =IF(C58="Ja",INDEX(Grundkarakterer!C$8:C$41,$AE21),"xx") -> xx | F58: =IF(C58="Ja",INDEX(Grundkarakterer!D$8:D$41,$AE21),"xx") -> xx | G58: =IF(C58="Ja",INDEX(Grundkarakterer!E$8:E$41,$AE21),"xx") -> xx | H58: =IF($C58="Ja",INDEX(Grundkarakterer!F$8:F$41,$AE21),"xx") -> xx | I58: =IF($C58="Ja",INDEX(Grundkarakterer!H$8:H$41,$AE21),"xx") -> xx | J58: =IF($C58="Ja",INDEX(Grundkarakterer!I$8:I$41,$AE21),"xx") -> xx | K58: =IF($C58="Ja",INDEX(Grundkarakterer!J$8:J$41,$AE21),"xx") -> xx | L58: =IF($C58="Ja",INDEX(Grundkarakterer!K$8:K$41,$AE21),"xx") -> xx | M58: =IF($C58="Ja",INDEX(Grundkarakterer!L$8:L$41,$AE21),"xx") -> xx | N58: =IF($C58="Ja",INDEX(Grundkarakterer!M$8:M$41,$AE21),"xx") -> xx | O58: =IF($C58="Ja",INDEX(Grundkarakterer!N$8:N$41,$AE21),"xx") -> xx | P58: =IF($C58="Ja",INDEX(Grundkarakterer!O$8:O$41,$AE21),"xx") -> xx | Q58: =IF($C58="Ja",INDEX(Grundkarakterer!P$8:P$41,$AE21),"xx") -> xx | R58: =IF($C58="Ja",INDEX(Grundkarakterer!Q$8:Q$41,$AE21),"xx") -> xx | S58: =IF($C58="Ja",INDEX(Grundkarakterer!R$8:R$41,$AE21),"xx") -> xx | T58: =IF($C58="Ja",INDEX(Grundkarakterer!S$8:S$41,$AE21),"xx") -> xx | U58: =IF($C58="Ja",INDEX(Grundkarakterer!T$8:T$41,$AE21),"xx") -> xx | V58: =IF($C58="Ja",INDEX(Grundkarakterer!U$8:U$41,$AE21),"xx") -> xx | W58: =IF($C58="Ja",INDEX(Grundkarakterer!V$8:V$41,$AE21),"xx") -> xx | X58: =IF($C58="Ja",INDEX(Grundkarakterer!W$8:W$41,$AE21),"xx") -> xx | Y58: =IF($C58="Ja",INDEX(Grundkarakterer!X$8:X$41,$AE21),"xx") -> xx | Z58: =IF($C58="Ja",INDEX(Grundkarakterer!Y$8:Y$41,$AE21),"xx") -> xx | AA58: =IF($C58="Ja",INDEX(Grundkarakterer!Z$8:Z$41,$AE21),"xx") -> xx | AB58: =IF($C58="Ja",INDEX(Grundkarakterer!AA$8:AA$41,$AE21),"xx") -> xx | AC58: =IF($C58="Ja",INDEX(Grundkarakterer!AB$8:AB$41,$AE21),"xx") -> xx | AD58: =IF($C58="Ja",INDEX(Grundkarakterer!AC$8:AC$41,$AE21),"xx") -> xx | AE58: =IF($C58="Ja",INDEX(Grundkarakterer!G$8:G$41,$AE21),"xx") -> xx
A59: 20 | B59: =INDEX(Grundkarakterer!A$8:A$41,AE22) -> 20 | C59: Nej | D59: =IF(C59="Ja",INDEX(Grundkarakterer!B$8:B$41,AE22),"xx") -> xx | E59: =IF(C59="Ja",INDEX(Grundkarakterer!C$8:C$41,$AE22),"xx") -> xx | F59: =IF(C59="Ja",INDEX(Grundkarakterer!D$8:D$41,$AE22),"xx") -> xx | G59: =IF(C59="Ja",INDEX(Grundkarakterer!E$8:E$41,$AE22),"xx") -> xx | H59: =IF($C59="Ja",INDEX(Grundkarakterer!F$8:F$41,$AE22),"xx") -> xx | I59: =IF($C59="Ja",INDEX(Grundkarakterer!H$8:H$41,$AE22),"xx") -> xx | J59: =IF($C59="Ja",INDEX(Grundkarakterer!I$8:I$41,$AE22),"xx") -> xx | K59: =IF($C59="Ja",INDEX(Grundkarakterer!J$8:J$41,$AE22),"xx") -> xx | L59: =IF($C59="Ja",INDEX(Grundkarakterer!K$8:K$41,$AE22),"xx") -> xx | M59: =IF($C59="Ja",INDEX(Grundkarakterer!L$8:L$41,$AE22),"xx") -> xx | N59: =IF($C59="Ja",INDEX(Grundkarakterer!M$8:M$41,$AE22),"xx") -> xx | O59: =IF($C59="Ja",INDEX(Grundkarakterer!N$8:N$41,$AE22),"xx") -> xx | P59: =IF($C59="Ja",INDEX(Grundkarakterer!O$8:O$41,$AE22),"xx") -> xx | Q59: =IF($C59="Ja",INDEX(Grundkarakterer!P$8:P$41,$AE22),"xx") -> xx | R59: =IF($C59="Ja",INDEX(Grundkarakterer!Q$8:Q$41,$AE22),"xx") -> xx | S59: =IF($C59="Ja",INDEX(Grundkarakterer!R$8:R$41,$AE22),"xx") -> xx | T59: =IF($C59="Ja",INDEX(Grundkarakterer!S$8:S$41,$AE22),"xx") -> xx | U59: =IF($C59="Ja",INDEX(Grundkarakterer!T$8:T$41,$AE22),"xx") -> xx | V59: =IF($C59="Ja",INDEX(Grundkarakterer!U$8:U$41,$AE22),"xx") -> xx | W59: =IF($C59="Ja",INDEX(Grundkarakterer!V$8:V$41,$AE22),"xx") -> xx | X59: =IF($C59="Ja",INDEX(Grundkarakterer!W$8:W$41,$AE22),"xx") -> xx | Y59: =IF($C59="Ja",INDEX(Grundkarakterer!X$8:X$41,$AE22),"xx") -> xx | Z59: =IF($C59="Ja",INDEX(Grundkarakterer!Y$8:Y$41,$AE22),"xx") -> xx | AA59: =IF($C59="Ja",INDEX(Grundkarakterer!Z$8:Z$41,$AE22),"xx") -> xx | AB59: =IF($C59="Ja",INDEX(Grundkarakterer!AA$8:AA$41,$AE22),"xx") -> xx | AC59: =IF($C59="Ja",INDEX(Grundkarakterer!AB$8:AB$41,$AE22),"xx") -> xx | AD59: =IF($C59="Ja",INDEX(Grundkarakterer!AC$8:AC$41,$AE22),"xx") -> xx | AE59: =IF($C59="Ja",INDEX(Grundkarakterer!G$8:G$41,$AE22),"xx") -> xx
A60: 21 | B60: =INDEX(Grundkarakterer!A$8:A$41,AE23) -> 21 | C60: Nej | D60: =IF(C60="Ja",INDEX(Grundkarakterer!B$8:B$41,AE23),"xx") -> xx | E60: =IF(C60="Ja",INDEX(Grundkarakterer!C$8:C$41,$AE23),"xx") -> xx | F60: =IF(C60="Ja",INDEX(Grundkarakterer!D$8:D$41,$AE23),"xx") -> xx | G60: =IF(C60="Ja",INDEX(Grundkarakterer!E$8:E$41,$AE23),"xx") -> xx | H60: =IF($C60="Ja",INDEX(Grundkarakterer!F$8:F$41,$AE23),"xx") -> xx | I60: =IF($C60="Ja",INDEX(Grundkarakterer!H$8:H$41,$AE23),"xx") -> xx | J60: =IF($C60="Ja",INDEX(Grundkarakterer!I$8:I$41,$AE23),"xx") -> xx | K60: =IF($C60="Ja",INDEX(Grundkarakterer!J$8:J$41,$AE23),"xx") -> xx | L60: =IF($C60="Ja",INDEX(Grundkarakterer!K$8:K$41,$AE23),"xx") -> xx | M60: =IF($C60="Ja",INDEX(Grundkarakterer!L$8:L$41,$AE23),"xx") -> xx | N60: =IF($C60="Ja",INDEX(Grundkarakterer!M$8:M$41,$AE23),"xx") -> xx | O60: =IF($C60="Ja",INDEX(Grundkarakterer!N$8:N$41,$AE23),"xx") -> xx | P60: =IF($C60="Ja",INDEX(Grundkarakterer!O$8:O$41,$AE23),"xx") -> xx | Q60: =IF($C60="Ja",INDEX(Grundkarakterer!P$8:P$41,$AE23),"xx") -> xx | R60: =IF($C60="Ja",INDEX(Grundkarakterer!Q$8:Q$41,$AE23),"xx") -> xx | S60: =IF($C60="Ja",INDEX(Grundkarakterer!R$8:R$41,$AE23),"xx") -> xx | T60: =IF($C60="Ja",INDEX(Grundkarakterer!S$8:S$41,$AE23),"xx") -> xx | U60: =IF($C60="Ja",INDEX(Grundkarakterer!T$8:T$41,$AE23),"xx") -> xx | V60: =IF($C60="Ja",INDEX(Grundkarakterer!U$8:U$41,$AE23),"xx") -> xx | W60: =IF($C60="Ja",INDEX(Grundkarakterer!V$8:V$41,$AE23),"xx") -> xx | X60: =IF($C60="Ja",INDEX(Grundkarakterer!W$8:W$41,$AE23),"xx") -> xx | Y60: =IF($C60="Ja",INDEX(Grundkarakterer!X$8:X$41,$AE23),"xx") -> xx | Z60: =IF($C60="Ja",INDEX(Grundkarakterer!Y$8:Y$41,$AE23),"xx") -> xx | AA60: =IF($C60="Ja",INDEX(Grundkarakterer!Z$8:Z$41,$AE23),"xx") -> xx | AB60: =IF($C60="Ja",INDEX(Grundkarakterer!AA$8:AA$41,$AE23),"xx") -> xx | AC60: =IF($C60="Ja",INDEX(Grundkarakterer!AB$8:AB$41,$AE23),"xx") -> xx | AD60: =IF($C60="Ja",INDEX(Grundkarakterer!AC$8:AC$41,$AE23),"xx") -> xx | AE60: =IF($C60="Ja",INDEX(Grundkarakterer!G$8:G$41,$AE23),"xx") -> xx
A61: 22 | B61: =INDEX(Grundkarakterer!A$8:A$41,AE24) -> 22 | C61: Nej | D61: =IF(C61="Ja",INDEX(Grundkarakterer!B$8:B$41,AE24),"xx") -> xx | E61: =IF(C61="Ja",INDEX(Grundkarakterer!C$8:C$41,$AE24),"xx") -> xx | F61: =IF(C61="Ja",INDEX(Grundkarakterer!D$8:D$41,$AE24),"xx") -> xx | G61: =IF(C61="Ja",INDEX(Grundkarakterer!E$8:E$41,$AE24),"xx") -> xx | H61: =IF($C61="Ja",INDEX(Grundkarakterer!F$8:F$41,$AE24),"xx") -> xx | I61: =IF($C61="Ja",INDEX(Grundkarakterer!H$8:H$41,$AE24),"xx") -> xx | J61: =IF($C61="Ja",INDEX(Grundkarakterer!I$8:I$41,$AE24),"xx") -> xx | K61: =IF($C61="Ja",INDEX(Grundkarakterer!J$8:J$41,$AE24),"xx") -> xx | L61: =IF($C61="Ja",INDEX(Grundkarakterer!K$8:K$41,$AE24),"xx") -> xx | M61: =IF($C61="Ja",INDEX(Grundkarakterer!L$8:L$41,$AE24),"xx") -> xx | N61: =IF($C61="Ja",INDEX(Grundkarakterer!M$8:M$41,$AE24),"xx") -> xx | O61: =IF($C61="Ja",INDEX(Grundkarakterer!N$8:N$41,$AE24),"xx") -> xx | P61: =IF($C61="Ja",INDEX(Grundkarakterer!O$8:O$41,$AE24),"xx") -> xx | Q61: =IF($C61="Ja",INDEX(Grundkarakterer!P$8:P$41,$AE24),"xx") -> xx | R61: =IF($C61="Ja",INDEX(Grundkarakterer!Q$8:Q$41,$AE24),"xx") -> xx | S61: =IF($C61="Ja",INDEX(Grundkarakterer!R$8:R$41,$AE24),"xx") -> xx | T61: =IF($C61="Ja",INDEX(Grundkarakterer!S$8:S$41,$AE24),"xx") -> xx | U61: =IF($C61="Ja",INDEX(Grundkarakterer!T$8:T$41,$AE24),"xx") -> xx | V61: =IF($C61="Ja",INDEX(Grundkarakterer!U$8:U$41,$AE24),"xx") -> xx | W61: =IF($C61="Ja",INDEX(Grundkarakterer!V$8:V$41,$AE24),"xx") -> xx | X61: =IF($C61="Ja",INDEX(Grundkarakterer!W$8:W$41,$AE24),"xx") -> xx | Y61: =IF($C61="Ja",INDEX(Grundkarakterer!X$8:X$41,$AE24),"xx") -> xx | Z61: =IF($C61="Ja",INDEX(Grundkarakterer!Y$8:Y$41,$AE24),"xx") -> xx | AA61: =IF($C61="Ja",INDEX(Grundkarakterer!Z$8:Z$41,$AE24),"xx") -> xx | AB61: =IF($C61="Ja",INDEX(Grundkarakterer!AA$8:AA$41,$AE24),"xx") -> xx | AC61: =IF($C61="Ja",INDEX(Grundkarakterer!AB$8:AB$41,$AE24),"xx") -> xx | AD61: =IF($C61="Ja",INDEX(Grundkarakterer!AC$8:AC$41,$AE24),"xx") -> xx | AE61: =IF($C61="Ja",INDEX(Grundkarakterer!G$8:G$41,$AE24),"xx") -> xx
A62: 23 | B62: =INDEX(Grundkarakterer!A$8:A$41,AE25) -> 23 | C62: Nej | D62: =IF(C62="Ja",INDEX(Grundkarakterer!B$8:B$41,AE25),"xx") -> xx | E62: =IF(C62="Ja",INDEX(Grundkarakterer!C$8:C$41,$AE25),"xx") -> xx | F62: =IF(C62="Ja",INDEX(Grundkarakterer!D$8:D$41,$AE25),"xx") -> xx | G62: =IF(C62="Ja",INDEX(Grundkarakterer!E$8:E$41,$AE25),"xx") -> xx | H62: =IF($C62="Ja",INDEX(Grundkarakterer!F$8:F$41,$AE25),"xx") -> xx | I62: =IF($C62="Ja",INDEX(Grundkarakterer!H$8:H$41,$AE25),"xx") -> xx | J62: =IF($C62="Ja",INDEX(Grundkarakterer!I$8:I$41,$AE25),"xx") -> xx | K62: =IF($C62="Ja",INDEX(Grundkarakterer!J$8:J$41,$AE25),"xx") -> xx | L62: =IF($C62="Ja",INDEX(Grundkarakterer!K$8:K$41,$AE25),"xx") -> xx | M62: =IF($C62="Ja",INDEX(Grundkarakterer!L$8:L$41,$AE25),"xx") -> xx | N62: =IF($C62="Ja",INDEX(Grundkarakterer!M$8:M$41,$AE25),"xx") -> xx | O62: =IF($C62="Ja",INDEX(Grundkarakterer!N$8:N$41,$AE25),"xx") -> xx | P62: =IF($C62="Ja",INDEX(Grundkarakterer!O$8:O$41,$AE25),"xx") -> xx | Q62: =IF($C62="Ja",INDEX(Grundkarakterer!P$8:P$41,$AE25),"xx") -> xx | R62: =IF($C62="Ja",INDEX(Grundkarakterer!Q$8:Q$41,$AE25),"xx") -> xx | S62: =IF($C62="Ja",INDEX(Grundkarakterer!R$8:R$41,$AE25),"xx") -> xx | T62: =IF($C62="Ja",INDEX(Grundkarakterer!S$8:S$41,$AE25),"xx") -> xx | U62: =IF($C62="Ja",INDEX(Grundkarakterer!T$8:T$41,$AE25),"xx") -> xx | V62: =IF($C62="Ja",INDEX(Grundkarakterer!U$8:U$41,$AE25),"xx") -> xx | W62: =IF($C62="Ja",INDEX(Grundkarakterer!V$8:V$41,$AE25),"xx") -> xx | X62: =IF($C62="Ja",INDEX(Grundkarakterer!W$8:W$41,$AE25),"xx") -> xx | Y62: =IF($C62="Ja",INDEX(Grundkarakterer!X$8:X$41,$AE25),"xx") -> xx | Z62: =IF($C62="Ja",INDEX(Grundkarakterer!Y$8:Y$41,$AE25),"xx") -> xx | AA62: =IF($C62="Ja",INDEX(Grundkarakterer!Z$8:Z$41,$AE25),"xx") -> xx | AB62: =IF($C62="Ja",INDEX(Grundkarakterer!AA$8:AA$41,$AE25),"xx") -> xx | AC62: =IF($C62="Ja",INDEX(Grundkarakterer!AB$8:AB$41,$AE25),"xx") -> xx | AD62: =IF($C62="Ja",INDEX(Grundkarakterer!AC$8:AC$41,$AE25),"xx") -> xx | AE62: =IF($C62="Ja",INDEX(Grundkarakterer!G$8:G$41,$AE25),"xx") -> xx
A63: 24 | B63: =INDEX(Grundkarakterer!A$8:A$41,AE26) -> 24 | C63: Nej | D63: =IF(C63="Ja",INDEX(Grundkarakterer!B$8:B$41,AE26),"xx") -> xx | E63: =IF(C63="Ja",INDEX(Grundkarakterer!C$8:C$41,$AE26),"xx") -> xx | F63: =IF(C63="Ja",INDEX(Grundkarakterer!D$8:D$41,$AE26),"xx") -> xx | G63: =IF(C63="Ja",INDEX(Grundkarakterer!E$8:E$41,$AE26),"xx") -> xx | H63: =IF($C63="Ja",INDEX(Grundkarakterer!F$8:F$41,$AE26),"xx") -> xx | I63: =IF($C63="Ja",INDEX(Grundkarakterer!H$8:H$41,$AE26),"xx") -> xx | J63: =IF($C63="Ja",INDEX(Grundkarakterer!I$8:I$41,$AE26),"xx") -> xx | K63: =IF($C63="Ja",INDEX(Grundkarakterer!J$8:J$41,$AE26),"xx") -> xx | L63: =IF($C63="Ja",INDEX(Grundkarakterer!K$8:K$41,$AE26),"xx") -> xx | M63: =IF($C63="Ja",INDEX(Grundkarakterer!L$8:L$41,$AE26),"xx") -> xx | N63: =IF($C63="Ja",INDEX(Grundkarakterer!M$8:M$41,$AE26),"xx") -> xx | O63: =IF($C63="Ja",INDEX(Grundkarakterer!N$8:N$41,$AE26),"xx") -> xx | P63: =IF($C63="Ja",INDEX(Grundkarakterer!O$8:O$41,$AE26),"xx") -> xx | Q63: =IF($C63="Ja",INDEX(Grundkarakterer!P$8:P$41,$AE26),"xx") -> xx | R63: =IF($C63="Ja",INDEX(Grundkarakterer!Q$8:Q$41,$AE26),"xx") -> xx | S63: =IF($C63="Ja",INDEX(Grundkarakterer!R$8:R$41,$AE26),"xx") -> xx | T63: =IF($C63="Ja",INDEX(Grundkarakterer!S$8:S$41,$AE26),"xx") -> xx | U63: =IF($C63="Ja",INDEX(Grundkarakterer!T$8:T$41,$AE26),"xx") -> xx | V63: =IF($C63="Ja",INDEX(Grundkarakterer!U$8:U$41,$AE26),"xx") -> xx | W63: =IF($C63="Ja",INDEX(Grundkarakterer!V$8:V$41,$AE26),"xx") -> xx | X63: =IF($C63="Ja",INDEX(Grundkarakterer!W$8:W$41,$AE26),"xx") -> xx | Y63: =IF($C63="Ja",INDEX(Grundkarakterer!X$8:X$41,$AE26),"xx") -> xx | Z63: =IF($C63="Ja",INDEX(Grundkarakterer!Y$8:Y$41,$AE26),"xx") -> xx | AA63: =IF($C63="Ja",INDEX(Grundkarakterer!Z$8:Z$41,$AE26),"xx") -> xx | AB63: =IF($C63="Ja",INDEX(Grundkarakterer!AA$8:AA$41,$AE26),"xx") -> xx | AC63: =IF($C63="Ja",INDEX(Grundkarakterer!AB$8:AB$41,$AE26),"xx") -> xx | AD63: =IF($C63="Ja",INDEX(Grundkarakterer!AC$8:AC$41,$AE26),"xx") -> xx | AE63: =IF($C63="Ja",INDEX(Grundkarakterer!G$8:G$41,$AE26),"xx") -> xx
A64: 25 | B64: =INDEX(Grundkarakterer!A$8:A$41,AE27) -> 25 | C64: Nej | D64: =IF(C64="Ja",INDEX(Grundkarakterer!B$8:B$41,AE27),"xx") -> xx | E64: =IF(C64="Ja",INDEX(Grundkarakterer!C$8:C$41,$AE27),"xx") -> xx | F64: =IF(C64="Ja",INDEX(Grundkarakterer!D$8:D$41,$AE27),"xx") -> xx | G64: =IF(C64="Ja",INDEX(Grundkarakterer!E$8:E$41,$AE27),"xx") -> xx | H64: =IF($C64="Ja",INDEX(Grundkarakterer!F$8:F$41,$AE27),"xx") -> xx | I64: =IF($C64="Ja",INDEX(Grundkarakterer!H$8:H$41,$AE27),"xx") -> xx | J64: =IF($C64="Ja",INDEX(Grundkarakterer!I$8:I$41,$AE27),"xx") -> xx | K64: =IF($C64="Ja",INDEX(Grundkarakterer!J$8:J$41,$AE27),"xx") -> xx | L64: =IF($C64="Ja",INDEX(Grundkarakterer!K$8:K$41,$AE27),"xx") -> xx | M64: =IF($C64="Ja",INDEX(Grundkarakterer!L$8:L$41,$AE27),"xx") -> xx | N64: =IF($C64="Ja",INDEX(Grundkarakterer!M$8:M$41,$AE27),"xx") -> xx | O64: =IF($C64="Ja",INDEX(Grundkarakterer!N$8:N$41,$AE27),"xx") -> xx | P64: =IF($C64="Ja",INDEX(Grundkarakterer!O$8:O$41,$AE27),"xx") -> xx | Q64: =IF($C64="Ja",INDEX(Grundkarakterer!P$8:P$41,$AE27),"xx") -> xx | R64: =IF($C64="Ja",INDEX(Grundkarakterer!Q$8:Q$41,$AE27),"xx") -> xx | S64: =IF($C64="Ja",INDEX(Grundkarakterer!R$8:R$41,$AE27),"xx") -> xx | T64: =IF($C64="Ja",INDEX(Grundkarakterer!S$8:S$41,$AE27),"xx") -> xx | U64: =IF($C64="Ja",INDEX(Grundkarakterer!T$8:T$41,$AE27),"xx") -> xx | V64: =IF($C64="Ja",INDEX(Grundkarakterer!U$8:U$41,$AE27),"xx") -> xx | W64: =IF($C64="Ja",INDEX(Grundkarakterer!V$8:V$41,$AE27),"xx") -> xx | X64: =IF($C64="Ja",INDEX(Grundkarakterer!W$8:W$41,$AE27),"xx") -> xx | Y64: =IF($C64="Ja",INDEX(Grundkarakterer!X$8:X$41,$AE27),"xx") -> xx | Z64: =IF($C64="Ja",INDEX(Grundkarakterer!Y$8:Y$41,$AE27),"xx") -> xx | AA64: =IF($C64="Ja",INDEX(Grundkarakterer!Z$8:Z$41,$AE27),"xx") -> xx | AB64: =IF($C64="Ja",INDEX(Grundkarakterer!AA$8:AA$41,$AE27),"xx") -> xx | AC64: =IF($C64="Ja",INDEX(Grundkarakterer!AB$8:AB$41,$AE27),"xx") -> xx | AD64: =IF($C64="Ja",INDEX(Grundkarakterer!AC$8:AC$41,$AE27),"xx") -> xx | AE64: =IF($C64="Ja",INDEX(Grundkarakterer!G$8:G$41,$AE27),"xx") -> xx
A65: 26 | B65: =INDEX(Grundkarakterer!A$8:A$41,AE28) -> 26 | C65: Nej | D65: =IF(C65="Ja",INDEX(Grundkarakterer!B$8:B$41,AE28),"xx") -> xx | E65: =IF(C65="Ja",INDEX(Grundkarakterer!C$8:C$41,$AE28),"xx") -> xx | F65: =IF(C65="Ja",INDEX(Grundkarakterer!D$8:D$41,$AE28),"xx") -> xx | G65: =IF(C65="Ja",INDEX(Grundkarakterer!E$8:E$41,$AE28),"xx") -> xx | H65: =IF($C65="Ja",INDEX(Grundkarakterer!F$8:F$41,$AE28),"xx") -> xx | I65: =IF($C65="Ja",INDEX(Grundkarakterer!H$8:H$41,$AE28),"xx") -> xx | J65: =IF($C65="Ja",INDEX(Grundkarakterer!I$8:I$41,$AE28),"xx") -> xx | K65: =IF($C65="Ja",INDEX(Grundkarakterer!J$8:J$41,$AE28),"xx") -> xx | L65: =IF($C65="Ja",INDEX(Grundkarakterer!K$8:K$41,$AE28),"xx") -> xx | M65: =IF($C65="Ja",INDEX(Grundkarakterer!L$8:L$41,$AE28),"xx") -> xx | N65: =IF($C65="Ja",INDEX(Grundkarakterer!M$8:M$41,$AE28),"xx") -> xx | O65: =IF($C65="Ja",INDEX(Grundkarakterer!N$8:N$41,$AE28),"xx") -> xx | P65: =IF($C65="Ja",INDEX(Grundkarakterer!O$8:O$41,$AE28),"xx") -> xx | Q65: =IF($C65="Ja",INDEX(Grundkarakterer!P$8:P$41,$AE28),"xx") -> xx | R65: =IF($C65="Ja",INDEX(Grundkarakterer!Q$8:Q$41,$AE28),"xx") -> xx | S65: =IF($C65="Ja",INDEX(Grundkarakterer!R$8:R$41,$AE28),"xx") -> xx | T65: =IF($C65="Ja",INDEX(Grundkarakterer!S$8:S$41,$AE28),"xx") -> xx | U65: =IF($C65="Ja",INDEX(Grundkarakterer!T$8:T$41,$AE28),"xx") -> xx | V65: =IF($C65="Ja",INDEX(Grundkarakterer!U$8:U$41,$AE28),"xx") -> xx | W65: =IF($C65="Ja",INDEX(Grundkarakterer!V$8:V$41,$AE28),"xx") -> xx | X65: =IF($C65="Ja",INDEX(Grundkarakterer!W$8:W$41,$AE28),"xx") -> xx | Y65: =IF($C65="Ja",INDEX(Grundkarakterer!X$8:X$41,$AE28),"xx") -> xx | Z65: =IF($C65="Ja",INDEX(Grundkarakterer!Y$8:Y$41,$AE28),"xx") -> xx | AA65: =IF($C65="Ja",INDEX(Grundkarakterer!Z$8:Z$41,$AE28),"xx") -> xx | AB65: =IF($C65="Ja",INDEX(Grundkarakterer!AA$8:AA$41,$AE28),"xx") -> xx | AC65: =IF($C65="Ja",INDEX(Grundkarakterer!AB$8:AB$41,$AE28),"xx") -> xx | AD65: =IF($C65="Ja",INDEX(Grundkarakterer!AC$8:AC$41,$AE28),"xx") -> xx | AE65: =IF($C65="Ja",INDEX(Grundkarakterer!G$8:G$41,$AE28),"xx") -> xx
A66: 27 | B66: =INDEX(Grundkarakterer!A$8:A$41,AE29) -> 27 | C66: Nej | D66: =IF(C66="Ja",INDEX(Grundkarakterer!B$8:B$41,AE29),"xx") -> xx | E66: =IF(C66="Ja",INDEX(Grundkarakterer!C$8:C$41,$AE29),"xx") -> xx | F66: =IF(C66="Ja",INDEX(Grundkarakterer!D$8:D$41,$AE29),"xx") -> xx | G66: =IF(C66="Ja",INDEX(Grundkarakterer!E$8:E$41,$AE29),"xx") -> xx | H66: =IF($C66="Ja",INDEX(Grundkarakterer!F$8:F$41,$AE29),"xx") -> xx | I66: =IF($C66="Ja",INDEX(Grundkarakterer!H$8:H$41,$AE29),"xx") -> xx | J66: =IF($C66="Ja",INDEX(Grundkarakterer!I$8:I$41,$AE29),"xx") -> xx | K66: =IF($C66="Ja",INDEX(Grundkarakterer!J$8:J$41,$AE29),"xx") -> xx | L66: =IF($C66="Ja",INDEX(Grundkarakterer!K$8:K$41,$AE29),"xx") -> xx | M66: =IF($C66="Ja",INDEX(Grundkarakterer!L$8:L$41,$AE29),"xx") -> xx | N66: =IF($C66="Ja",INDEX(Grundkarakterer!M$8:M$41,$AE29),"xx") -> xx | O66: =IF($C66="Ja",INDEX(Grundkarakterer!N$8:N$41,$AE29),"xx") -> xx | P66: =IF($C66="Ja",INDEX(Grundkarakterer!O$8:O$41,$AE29),"xx") -> xx | Q66: =IF($C66="Ja",INDEX(Grundkarakterer!P$8:P$41,$AE29),"xx") -> xx | R66: =IF($C66="Ja",INDEX(Grundkarakterer!Q$8:Q$41,$AE29),"xx") -> xx | S66: =IF($C66="Ja",INDEX(Grundkarakterer!R$8:R$41,$AE29),"xx") -> xx | T66: =IF($C66="Ja",INDEX(Grundkarakterer!S$8:S$41,$AE29),"xx") -> xx | U66: =IF($C66="Ja",INDEX(Grundkarakterer!T$8:T$41,$AE29),"xx") -> xx | V66: =IF($C66="Ja",INDEX(Grundkarakterer!U$8:U$41,$AE29),"xx") -> xx | W66: =IF($C66="Ja",INDEX(Grundkarakterer!V$8:V$41,$AE29),"xx") -> xx | X66: =IF($C66="Ja",INDEX(Grundkarakterer!W$8:W$41,$AE29),"xx") -> xx | Y66: =IF($C66="Ja",INDEX(Grundkarakterer!X$8:X$41,$AE29),"xx") -> xx | Z66: =IF($C66="Ja",INDEX(Grundkarakterer!Y$8:Y$41,$AE29),"xx") -> xx | AA66: =IF($C66="Ja",INDEX(Grundkarakterer!Z$8:Z$41,$AE29),"xx") -> xx | AB66: =IF($C66="Ja",INDEX(Grundkarakterer!AA$8:AA$41,$AE29),"xx") -> xx | AC66: =IF($C66="Ja",INDEX(Grundkarakterer!AB$8:AB$41,$AE29),"xx") -> xx | AD66: =IF($C66="Ja",INDEX(Grundkarakterer!AC$8:AC$41,$AE29),"xx") -> xx | AE66: =IF($C66="Ja",INDEX(Grundkarakterer!G$8:G$41,$AE29),"xx") -> xx
A67: 28 | B67: =INDEX(Grundkarakterer!A$8:A$41,AE30) -> 28 | C67: Nej | D67: =IF(C67="Ja",INDEX(Grundkarakterer!B$8:B$41,AE30),"xx") -> xx | E67: =IF(C67="Ja",INDEX(Grundkarakterer!C$8:C$41,$AE30),"xx") -> xx | F67: =IF(C67="Ja",INDEX(Grundkarakterer!D$8:D$41,$AE30),"xx") -> xx | G67: =IF(C67="Ja",INDEX(Grundkarakterer!E$8:E$41,$AE30),"xx") -> xx | H67: =IF($C67="Ja",INDEX(Grundkarakterer!F$8:F$41,$AE30),"xx") -> xx | I67: =IF($C67="Ja",INDEX(Grundkarakterer!H$8:H$41,$AE30),"xx") -> xx | J67: =IF($C67="Ja",INDEX(Grundkarakterer!I$8:I$41,$AE30),"xx") -> xx | K67: =IF($C67="Ja",INDEX(Grundkarakterer!J$8:J$41,$AE30),"xx") -> xx | L67: =IF($C67="Ja",INDEX(Grundkarakterer!K$8:K$41,$AE30),"xx") -> xx | M67: =IF($C67="Ja",INDEX(Grundkarakterer!L$8:L$41,$AE30),"xx") -> xx | N67: =IF($C67="Ja",INDEX(Grundkarakterer!M$8:M$41,$AE30),"xx") -> xx | O67: =IF($C67="Ja",INDEX(Grundkarakterer!N$8:N$41,$AE30),"xx") -> xx | P67: =IF($C67="Ja",INDEX(Grundkarakterer!O$8:O$41,$AE30),"xx") -> xx | Q67: =IF($C67="Ja",INDEX(Grundkarakterer!P$8:P$41,$AE30),"xx") -> xx | R67: =IF($C67="Ja",INDEX(Grundkarakterer!Q$8:Q$41,$AE30),"xx") -> xx | S67: =IF($C67="Ja",INDEX(Grundkarakterer!R$8:R$41,$AE30),"xx") -> xx | T67: =IF($C67="Ja",INDEX(Grundkarakterer!S$8:S$41,$AE30),"xx") -> xx | U67: =IF($C67="Ja",INDEX(Grundkarakterer!T$8:T$41,$AE30),"xx") -> xx | V67: =IF($C67="Ja",INDEX(Grundkarakterer!U$8:U$41,$AE30),"xx") -> xx | W67: =IF($C67="Ja",INDEX(Grundkarakterer!V$8:V$41,$AE30),"xx") -> xx | X67: =IF($C67="Ja",INDEX(Grundkarakterer!W$8:W$41,$AE30),"xx") -> xx | Y67: =IF($C67="Ja",INDEX(Grundkarakterer!X$8:X$41,$AE30),"xx") -> xx | Z67: =IF($C67="Ja",INDEX(Grundkarakterer!Y$8:Y$41,$AE30),"xx") -> xx | AA67: =IF($C67="Ja",INDEX(Grundkarakterer!Z$8:Z$41,$AE30),"xx") -> xx | AB67: =IF($C67="Ja",INDEX(Grundkarakterer!AA$8:AA$41,$AE30),"xx") -> xx | AC67: =IF($C67="Ja",INDEX(Grundkarakterer!AB$8:AB$41,$AE30),"xx") -> xx | AD67: =IF($C67="Ja",INDEX(Grundkarakterer!AC$8:AC$41,$AE30),"xx") -> xx | AE67: =IF($C67="Ja",INDEX(Grundkarakterer!G$8:G$41,$AE30),"xx") -> xx
A68: 29 | B68: =INDEX(Grundkarakterer!A$8:A$41,AE31) -> 29 | C68: Nej | D68: =IF(C68="Ja",INDEX(Grundkarakterer!B$8:B$41,AE31),"xx") -> xx | E68: =IF(C68="Ja",INDEX(Grundkarakterer!C$8:C$41,$AE31),"xx") -> xx | F68: =IF(C68="Ja",INDEX(Grundkarakterer!D$8:D$41,$AE31),"xx") -> xx | G68: =IF(C68="Ja",INDEX(Grundkarakterer!E$8:E$41,$AE31),"xx") -> xx | H68: =IF($C68="Ja",INDEX(Grundkarakterer!F$8:F$41,$AE31),"xx") -> xx | I68: =IF($C68="Ja",INDEX(Grundkarakterer!H$8:H$41,$AE31),"xx") -> xx | J68: =IF($C68="Ja",INDEX(Grundkarakterer!I$8:I$41,$AE31),"xx") -> xx | K68: =IF($C68="Ja",INDEX(Grundkarakterer!J$8:J$41,$AE31),"xx") -> xx | L68: =IF($C68="Ja",INDEX(Grundkarakterer!K$8:K$41,$AE31),"xx") -> xx | M68: =IF($C68="Ja",INDEX(Grundkarakterer!L$8:L$41,$AE31),"xx") -> xx | N68: =IF($C68="Ja",INDEX(Grundkarakterer!M$8:M$41,$AE31),"xx") -> xx | O68: =IF($C68="Ja",INDEX(Grundkarakterer!N$8:N$41,$AE31),"xx") -> xx | P68: =IF($C68="Ja",INDEX(Grundkarakterer!O$8:O$41,$AE31),"xx") -> xx | Q68: =IF($C68="Ja",INDEX(Grundkarakterer!P$8:P$41,$AE31),"xx") -> xx | R68: =IF($C68="Ja",INDEX(Grundkarakterer!Q$8:Q$41,$AE31),"xx") -> xx | S68: =IF($C68="Ja",INDEX(Grundkarakterer!R$8:R$41,$AE31),"xx") -> xx | T68: =IF($C68="Ja",INDEX(Grundkarakterer!S$8:S$41,$AE31),"xx") -> xx | U68: =IF($C68="Ja",INDEX(Grundkarakterer!T$8:T$41,$AE31),"xx") -> xx | V68: =IF($C68="Ja",INDEX(Grundkarakterer!U$8:U$41,$AE31),"xx") -> xx | W68: =IF($C68="Ja",INDEX(Grundkarakterer!V$8:V$41,$AE31),"xx") -> xx | X68: =IF($C68="Ja",INDEX(Grundkarakterer!W$8:W$41,$AE31),"xx") -> xx | Y68: =IF($C68="Ja",INDEX(Grundkarakterer!X$8:X$41,$AE31),"xx") -> xx | Z68: =IF($C68="Ja",INDEX(Grundkarakterer!Y$8:Y$41,$AE31),"xx") -> xx | AA68: =IF($C68="Ja",INDEX(Grundkarakterer!Z$8:Z$41,$AE31),"xx") -> xx | AB68: =IF($C68="Ja",INDEX(Grundkarakterer!AA$8:AA$41,$AE31),"xx") -> xx | AC68: =IF($C68="Ja",INDEX(Grundkarakterer!AB$8:AB$41,$AE31),"xx") -> xx | AD68: =IF($C68="Ja",INDEX(Grundkarakterer!AC$8:AC$41,$AE31),"xx") -> xx | AE68: =IF($C68="Ja",INDEX(Grundkarakterer!G$8:G$41,$AE31),"xx") -> xx
A69: 30 | B69: =INDEX(Grundkarakterer!A$8:A$41,AE32) -> 30 | C69: Nej | D69: =IF(C69="Ja",INDEX(Grundkarakterer!B$8:B$41,AE32),"xx") -> xx | E69: =IF(C69="Ja",INDEX(Grundkarakterer!C$8:C$41,$AE32),"xx") -> xx | F69: =IF(C69="Ja",INDEX(Grundkarakterer!D$8:D$41,$AE32),"xx") -> xx | G69: =IF(C69="Ja",INDEX(Grundkarakterer!E$8:E$41,$AE32),"xx") -> xx | H69: =IF($C69="Ja",INDEX(Grundkarakterer!F$8:F$41,$AE32),"xx") -> xx | I69: =IF($C69="Ja",INDEX(Grundkarakterer!H$8:H$41,$AE32),"xx") -> xx | J69: =IF($C69="Ja",INDEX(Grundkarakterer!I$8:I$41,$AE32),"xx") -> xx | K69: =IF($C69="Ja",INDEX(Grundkarakterer!J$8:J$41,$AE32),"xx") -> xx | L69: =IF($C69="Ja",INDEX(Grundkarakterer!K$8:K$41,$AE32),"xx") -> xx | M69: =IF($C69="Ja",INDEX(Grundkarakterer!L$8:L$41,$AE32),"xx") -> xx | N69: =IF($C69="Ja",INDEX(Grundkarakterer!M$8:M$41,$AE32),"xx") -> xx | O69: =IF($C69="Ja",INDEX(Grundkarakterer!N$8:N$41,$AE32),"xx") -> xx | P69: =IF($C69="Ja",INDEX(Grundkarakterer!O$8:O$41,$AE32),"xx") -> xx | Q69: =IF($C69="Ja",INDEX(Grundkarakterer!P$8:P$41,$AE32),"xx") -> xx | R69: =IF($C69="Ja",INDEX(Grundkarakterer!Q$8:Q$41,$AE32),"xx") -> xx | S69: =IF($C69="Ja",INDEX(Grundkarakterer!R$8:R$41,$AE32),"xx") -> xx | T69: =IF($C69="Ja",INDEX(Grundkarakterer!S$8:S$41,$AE32),"xx") -> xx | U69: =IF($C69="Ja",INDEX(Grundkarakterer!T$8:T$41,$AE32),"xx") -> xx | V69: =IF($C69="Ja",INDEX(Grundkarakterer!U$8:U$41,$AE32),"xx") -> xx | W69: =IF($C69="Ja",INDEX(Grundkarakterer!V$8:V$41,$AE32),"xx") -> xx | X69: =IF($C69="Ja",INDEX(Grundkarakterer!W$8:W$41,$AE32),"xx") -> xx | Y69: =IF($C69="Ja",INDEX(Grundkarakterer!X$8:X$41,$AE32),"xx") -> xx | Z69: =IF($C69="Ja",INDEX(Grundkarakterer!Y$8:Y$41,$AE32),"xx") -> xx | AA69: =IF($C69="Ja",INDEX(Grundkarakterer!Z$8:Z$41,$AE32),"xx") -> xx | AB69: =IF($C69="Ja",INDEX(Grundkarakterer!AA$8:AA$41,$AE32),"xx") -> xx | AC69: =IF($C69="Ja",INDEX(Grundkarakterer!AB$8:AB$41,$AE32),"xx") -> xx | AD69: =IF($C69="Ja",INDEX(Grundkarakterer!AC$8:AC$41,$AE32),"xx") -> xx | AE69: =IF($C69="Ja",INDEX(Grundkarakterer!G$8:G$41,$AE32),"xx") -> xx
A70: 31 | B70: =INDEX(Grundkarakterer!A$8:A$41,AE33) -> 31 | C70: Nej | D70: =IF(C70="Ja",INDEX(Grundkarakterer!B$8:B$41,AE33),"xx") -> xx | E70: =IF(C70="Ja",INDEX(Grundkarakterer!C$8:C$41,$AE33),"xx") -> xx | F70: =IF(C70="Ja",INDEX(Grundkarakterer!D$8:D$41,$AE33),"xx") -> xx | G70: =IF(C70="Ja",INDEX(Grundkarakterer!E$8:E$41,$AE33),"xx") -> xx | H70: =IF($C70="Ja",INDEX(Grundkarakterer!F$8:F$41,$AE33),"xx") -> xx | I70: =IF($C70="Ja",INDEX(Grundkarakterer!H$8:H$41,$AE33),"xx") -> xx | J70: =IF($C70="Ja",INDEX(Grundkarakterer!I$8:I$41,$AE33),"xx") -> xx | K70: =IF($C70="Ja",INDEX(Grundkarakterer!J$8:J$41,$AE33),"xx") -> xx | L70: =IF($C70="Ja",INDEX(Grundkarakterer!K$8:K$41,$AE33),"xx") -> xx | M70: =IF($C70="Ja",INDEX(Grundkarakterer!L$8:L$41,$AE33),"xx") -> xx | N70: =IF($C70="Ja",INDEX(Grundkarakterer!M$8:M$41,$AE33),"xx") -> xx | O70: =IF($C70="Ja",INDEX(Grundkarakterer!N$8:N$41,$AE33),"xx") -> xx | P70: =IF($C70="Ja",INDEX(Grundkarakterer!O$8:O$41,$AE33),"xx") -> xx | Q70: =IF($C70="Ja",INDEX(Grundkarakterer!P$8:P$41,$AE33),"xx") -> xx | R70: =IF($C70="Ja",INDEX(Grundkarakterer!Q$8:Q$41,$AE33),"xx") -> xx | S70: =IF($C70="Ja",INDEX(Grundkarakterer!R$8:R$41,$AE33),"xx") -> xx | T70: =IF($C70="Ja",INDEX(Grundkarakterer!S$8:S$41,$AE33),"xx") -> xx | U70: =IF($C70="Ja",INDEX(Grundkarakterer!T$8:T$41,$AE33),"xx") -> xx | V70: =IF($C70="Ja",INDEX(Grundkarakterer!U$8:U$41,$AE33),"xx") -> xx | W70: =IF($C70="Ja",INDEX(Grundkarakterer!V$8:V$41,$AE33),"xx") -> xx | X70: =IF($C70="Ja",INDEX(Grundkarakterer!W$8:W$41,$AE33),"xx") -> xx | Y70: =IF($C70="Ja",INDEX(Grundkarakterer!X$8:X$41,$AE33),"xx") -> xx | Z70: =IF($C70="Ja",INDEX(Grundkarakterer!Y$8:Y$41,$AE33),"xx") -> xx | AA70: =IF($C70="Ja",INDEX(Grundkarakterer!Z$8:Z$41,$AE33),"xx") -> xx | AB70: =IF($C70="Ja",INDEX(Grundkarakterer!AA$8:AA$41,$AE33),"xx") -> xx | AC70: =IF($C70="Ja",INDEX(Grundkarakterer!AB$8:AB$41,$AE33),"xx") -> xx | AD70: =IF($C70="Ja",INDEX(Grundkarakterer!AC$8:AC$41,$AE33),"xx") -> xx | AE70: =IF($C70="Ja",INDEX(Grundkarakterer!G$8:G$41,$AE33),"xx") -> xx
A71: 32 | B71: =INDEX(Grundkarakterer!A$8:A$41,AE34) -> 32 | C71: Nej | D71: =IF(C71="Ja",INDEX(Grundkarakterer!B$8:B$41,AE34),"xx") -> xx | E71: =IF(C71="Ja",INDEX(Grundkarakterer!C$8:C$41,$AE34),"xx") -> xx | F71: =IF(C71="Ja",INDEX(Grundkarakterer!D$8:D$41,$AE34),"xx") -> xx | G71: =IF(C71="Ja",INDEX(Grundkarakterer!E$8:E$41,$AE34),"xx") -> xx | H71: =IF($C71="Ja",INDEX(Grundkarakterer!F$8:F$41,$AE34),"xx") -> xx | I71: =IF($C71="Ja",INDEX(Grundkarakterer!H$8:H$41,$AE34),"xx") -> xx | J71: =IF($C71="Ja",INDEX(Grundkarakterer!I$8:I$41,$AE34),"xx") -> xx | K71: =IF($C71="Ja",INDEX(Grundkarakterer!J$8:J$41,$AE34),"xx") -> xx | L71: =IF($C71="Ja",INDEX(Grundkarakterer!K$8:K$41,$AE34),"xx") -> xx | M71: =IF($C71="Ja",INDEX(Grundkarakterer!L$8:L$41,$AE34),"xx") -> xx | N71: =IF($C71="Ja",INDEX(Grundkarakterer!M$8:M$41,$AE34),"xx") -> xx | O71: =IF($C71="Ja",INDEX(Grundkarakterer!N$8:N$41,$AE34),"xx") -> xx | P71: =IF($C71="Ja",INDEX(Grundkarakterer!O$8:O$41,$AE34),"xx") -> xx | Q71: =IF($C71="Ja",INDEX(Grundkarakterer!P$8:P$41,$AE34),"xx") -> xx | R71: =IF($C71="Ja",INDEX(Grundkarakterer!Q$8:Q$41,$AE34),"xx") -> xx | S71: =IF($C71="Ja",INDEX(Grundkarakterer!R$8:R$41,$AE34),"xx") -> xx | T71: =IF($C71="Ja",INDEX(Grundkarakterer!S$8:S$41,$AE34),"xx") -> xx | U71: =IF($C71="Ja",INDEX(Grundkarakterer!T$8:T$41,$AE34),"xx") -> xx | V71: =IF($C71="Ja",INDEX(Grundkarakterer!U$8:U$41,$AE34),"xx") -> xx | W71: =IF($C71="Ja",INDEX(Grundkarakterer!V$8:V$41,$AE34),"xx") -> xx | X71: =IF($C71="Ja",INDEX(Grundkarakterer!W$8:W$41,$AE34),"xx") -> xx | Y71: =IF($C71="Ja",INDEX(Grundkarakterer!X$8:X$41,$AE34),"xx") -> xx | Z71: =IF($C71="Ja",INDEX(Grundkarakterer!Y$8:Y$41,$AE34),"xx") -> xx | AA71: =IF($C71="Ja",INDEX(Grundkarakterer!Z$8:Z$41,$AE34),"xx") -> xx | AB71: =IF($C71="Ja",INDEX(Grundkarakterer!AA$8:AA$41,$AE34),"xx") -> xx | AC71: =IF($C71="Ja",INDEX(Grundkarakterer!AB$8:AB$41,$AE34),"xx") -> xx | AD71: =IF($C71="Ja",INDEX(Grundkarakterer!AC$8:AC$41,$AE34),"xx") -> xx | AE71: =IF($C71="Ja",INDEX(Grundkarakterer!G$8:G$41,$AE34),"xx") -> xx
A72: 33 | B72: =INDEX(Grundkarakterer!A$8:A$41,AE35) -> 33 | C72: Nej | D72: =IF(C72="Ja",INDEX(Grundkarakterer!B$8:B$41,AE35),"xx") -> xx | E72: =IF(C72="Ja",INDEX(Grundkarakterer!C$8:C$41,$AE35),"xx") -> xx | F72: =IF(C72="Ja",INDEX(Grundkarakterer!D$8:D$41,$AE35),"xx") -> xx | G72: =IF(C72="Ja",INDEX(Grundkarakterer!E$8:E$41,$AE35),"xx") -> xx | H72: =IF($C72="Ja",INDEX(Grundkarakterer!F$8:F$41,$AE35),"xx") -> xx | I72: =IF($C72="Ja",INDEX(Grundkarakterer!H$8:H$41,$AE35),"xx") -> xx | J72: =IF($C72="Ja",INDEX(Grundkarakterer!I$8:I$41,$AE35),"xx") -> xx | K72: =IF($C72="Ja",INDEX(Grundkarakterer!J$8:J$41,$AE35),"xx") -> xx | L72: =IF($C72="Ja",INDEX(Grundkarakterer!K$8:K$41,$AE35),"xx") -> xx | M72: =IF($C72="Ja",INDEX(Grundkarakterer!L$8:L$41,$AE35),"xx") -> xx | N72: =IF($C72="Ja",INDEX(Grundkarakterer!M$8:M$41,$AE35),"xx") -> xx | O72: =IF($C72="Ja",INDEX(Grundkarakterer!N$8:N$41,$AE35),"xx") -> xx | P72: =IF($C72="Ja",INDEX(Grundkarakterer!O$8:O$41,$AE35),"xx") -> xx | Q72: =IF($C72="Ja",INDEX(Grundkarakterer!P$8:P$41,$AE35),"xx") -> xx | R72: =IF($C72="Ja",INDEX(Grundkarakterer!Q$8:Q$41,$AE35),"xx") -> xx | S72: =IF($C72="Ja",INDEX(Grundkarakterer!R$8:R$41,$AE35),"xx") -> xx | T72: =IF($C72="Ja",INDEX(Grundkarakterer!S$8:S$41,$AE35),"xx") -> xx | U72: =IF($C72="Ja",INDEX(Grundkarakterer!T$8:T$41,$AE35),"xx") -> xx | V72: =IF($C72="Ja",INDEX(Grundkarakterer!U$8:U$41,$AE35),"xx") -> xx | W72: =IF($C72="Ja",INDEX(Grundkarakterer!V$8:V$41,$AE35),"xx") -> xx | X72: =IF($C72="Ja",INDEX(Grundkarakterer!W$8:W$41,$AE35),"xx") -> xx | Y72: =IF($C72="Ja",INDEX(Grundkarakterer!X$8:X$41,$AE35),"xx") -> xx | Z72: =IF($C72="Ja",INDEX(Grundkarakterer!Y$8:Y$41,$AE35),"xx") -> xx | AA72: =IF($C72="Ja",INDEX(Grundkarakterer!Z$8:Z$41,$AE35),"xx") -> xx | AB72: =IF($C72="Ja",INDEX(Grundkarakterer!AA$8:AA$41,$AE35),"xx") -> xx | AC72: =IF($C72="Ja",INDEX(Grundkarakterer!AB$8:AB$41,$AE35),"xx") -> xx | AD72: =IF($C72="Ja",INDEX(Grundkarakterer!AC$8:AC$41,$AE35),"xx") -> xx | AE72: =IF($C72="Ja",INDEX(Grundkarakterer!G$8:G$41,$AE35),"xx") -> xx
A73: 34 | B73: =INDEX(Grundkarakterer!A$8:A$41,AE36) -> 34 | C73: Nej | D73: =IF(C73="Ja",INDEX(Grundkarakterer!B$8:B$41,AE36),"xx") -> xx | E73: =IF(C73="Ja",INDEX(Grundkarakterer!C$8:C$41,$AE36),"xx") -> xx | F73: =IF(C73="Ja",INDEX(Grundkarakterer!D$8:D$41,$AE36),"xx") -> xx | G73: =IF(C73="Ja",INDEX(Grundkarakterer!E$8:E$41,$AE36),"xx") -> xx | H73: =IF($C73="Ja",INDEX(Grundkarakterer!F$8:F$41,$AE36),"xx") -> xx | I73: =IF($C73="Ja",INDEX(Grundkarakterer!H$8:H$41,$AE36),"xx") -> xx | J73: =IF($C73="Ja",INDEX(Grundkarakterer!I$8:I$41,$AE36),"xx") -> xx | K73: =IF($C73="Ja",INDEX(Grundkarakterer!J$8:J$41,$AE36),"xx") -> xx | L73: =IF($C73="Ja",INDEX(Grundkarakterer!K$8:K$41,$AE36),"xx") -> xx | M73: =IF($C73="Ja",INDEX(Grundkarakterer!L$8:L$41,$AE36),"xx") -> xx | N73: =IF($C73="Ja",INDEX(Grundkarakterer!M$8:M$41,$AE36),"xx") -> xx | O73: =IF($C73="Ja",INDEX(Grundkarakterer!N$8:N$41,$AE36),"xx") -> xx | P73: =IF($C73="Ja",INDEX(Grundkarakterer!O$8:O$41,$AE36),"xx") -> xx | Q73: =IF($C73="Ja",INDEX(Grundkarakterer!P$8:P$41,$AE36),"xx") -> xx | R73: =IF($C73="Ja",INDEX(Grundkarakterer!Q$8:Q$41,$AE36),"xx") -> xx | S73: =IF($C73="Ja",INDEX(Grundkarakterer!R$8:R$41,$AE36),"xx") -> xx | T73: =IF($C73="Ja",INDEX(Grundkarakterer!S$8:S$41,$AE36),"xx") -> xx | U73: =IF($C73="Ja",INDEX(Grundkarakterer!T$8:T$41,$AE36),"xx") -> xx | V73: =IF($C73="Ja",INDEX(Grundkarakterer!U$8:U$41,$AE36),"xx") -> xx | W73: =IF($C73="Ja",INDEX(Grundkarakterer!V$8:V$41,$AE36),"xx") -> xx | X73: =IF($C73="Ja",INDEX(Grundkarakterer!W$8:W$41,$AE36),"xx") -> xx | Y73: =IF($C73="Ja",INDEX(Grundkarakterer!X$8:X$41,$AE36),"xx") -> xx | Z73: =IF($C73="Ja",INDEX(Grundkarakterer!Y$8:Y$41,$AE36),"xx") -> xx | AA73: =IF($C73="Ja",INDEX(Grundkarakterer!Z$8:Z$41,$AE36),"xx") -> xx | AB73: =IF($C73="Ja",INDEX(Grundkarakterer!AA$8:AA$41,$AE36),"xx") -> xx | AC73: =IF($C73="Ja",INDEX(Grundkarakterer!AB$8:AB$41,$AE36),"xx") -> xx | AD73: =IF($C73="Ja",INDEX(Grundkarakterer!AC$8:AC$41,$AE36),"xx") -> xx | AE73: =IF($C73="Ja",INDEX(Grundkarakterer!G$8:G$41,$AE36),"xx") -> xx

Sheet Grundkarakterer (hidden)
A1: Såtidspunkt | C1: 1=sammen med
C2: 2=før høst
C3: 3=efter høst
A7: Index | B7: Efterafgrøde | C7: Afgrøde | D7: Tidspunkt | E7: Link | F7: Omkostninger | G7: Nettoomkostninger | H7: Pligtig efterafgrøde | I7: Pligtig mellemafgrøde | J7: MFO-efterafgrøde i blanding | K7: MFO-udlæg | L7: Miljø-efterafgrøder | M7: Frivillige efterafgrøder | N7: Grønne marker (2,3 DE-brug) | O7: Egnet til udlæg efterår i vinterkorn | P7: Egnet til udlæg forår | Q7: Egnet til udsåning 2-3 uger før høst | R7: Egnet til udsåning efter tidlig høst (10. august) | S7: Kvælstof-fikserende | T7: Stor kvælstof-eftervirkning | U7: Hurtig og dyb rodvækst på lerjord | V7: Er afgrøden robust mod ukrudtsmidler? | W7: Der findes sorter, der ikke opformerer kålbrok | X7: Der findes sorter, der er sanerende for roecystenematoder | Z7: Vinterfast | AA7: Egen udsæd kan anvendes | AB7: Tiebreak
A8: 1 | B8: Alm. rajgræs, dipl., udlæg | C8: 1. Vintersæd | D8: 1. Ved etablering af primærafgrøde | F8: ='Hjælpe beregning'!AB12*-1 ->  | G8: ='Hjælpe beregning'!AC12 ->  | H8: 1 | I8: 0 | J8: 0 | K8: 1 | L8: 1 | M8: 1 | N8: 1 | O8: 0 | P8: 3 | Q8: 1 | R8: 2 | S8: 0 | T8: 1 | U8: 0 | V8: 2 | W8: 3 | X8: 0 | Z8: 3 | AA8: 0 | AB8: 1
A9: 2 | B9: Ital. rajgræs, dipl., udlæg | C9: 1. Vintersæd | D9: 1. Ved etablering af primærafgrøde | F9: ='Hjælpe beregning'!AB13*-1 ->  | G9: ='Hjælpe beregning'!AC13 ->  | H9: 1 | I9: 0 | J9: 0 | K9: 1 | L9: 1 | M9: 1 | N9: 1 | O9: 0 | P9: 0 | Q9: 1 | R9: 2 | S9: 0 | T9: 1 | U9: 0 | V9: 3 | W9: 3 | X9: 0 | Z9: 2 | AA9: 0 | AB9: 2
A10: 3 | B10: Westerwoldisk rajgræs | F10: ='Hjælpe beregning'!AB14*-1 ->  | G10: ='Hjælpe beregning'!AC14 ->  | H10: 1 | I10: 0 | J10: 0 | K10: 1 | L10: 1 | M10: 1 | N10: 1 | O10: 0 | P10: 0 | Q10: 0 | R10: 3 | S10: 0 | T10: 1 | U10: 0 | V10: 3 | W10: 3 | X10: 0 | Z10: 3 | AA10: 0 | AB10: 3
A11: 4 | B11: Strandsvingel, udlæg | C11: 1. Vintersæd | D11: 1. Ved etablering af primærafgrøde | F11: ='Hjælpe beregning'!AB15*-1 ->  | G11: ='Hjælpe beregning'!AC15 ->  | H11: 1 | I11: 0 | J11: 0 | K11: 1 | L11: 1 | M11: 1 | N11: 1 | O11: 1 | P11: 3 | Q11: 0 | R11: 0 | S11: 0 | T11: 1 | U11: 0 | V11: 1 | W11: 3 | X11: 0 | Z11: 3 | AA11: 0 | AB11: 4
A12: 5 | B12: Rødsvingel, udlæg | C12: 1. Vintersæd | D12: 1. Ved etablering af primærafgrøde | F12: ='Hjælpe beregning'!AB16*-1 ->  | G12: ='Hjælpe beregning'!AC16 ->  | H12: 1 | I12: 0 | J12: 0 | K12: 1 | L12: 1 | M12: 1 | N12: 1 | O12: 1 | P12: 3 | Q12: 0 | R12: 0 | S12: 0 | T12: 1 | U12: 0 | V12: 3 | W12: 3 | X12: 0 | Z12: 3 | AA12: 0 | AB12: 5
A13: 6 | B13: Engrapgræs, udlæg | C13: 1. Vintersæd | D13: 1. Ved etablering af primærafgrøde | F13: ='Hjælpe beregning'!AB17*-1 ->  | G13: ='Hjælpe beregning'!AC17 ->  | H13: 1 | I13: 0 | J13: 0 | K13: 1 | L13: 1 | M13: 1 | N13: 1 | O13: 0 | P13: 2 | Q13: 0 | R13: 0 | S13: 0 | T13: 1 | U13: 0 | V13: 2 | W13: 3 | X13: 0 | Z13: 3 | AA13: 0 | AB13: 6
A14: 7 | B14: Hundegræs, udlæg | C14: 1. Vintersæd | D14: 1. Ved etablering af primærafgrøde | F14: ='Hjælpe beregning'!AB18*-1 ->  | G14: ='Hjælpe beregning'!AC18 ->  | H14: 1 | I14: 0 | J14: 0 | K14: 1 | L14: 1 | M14: 1 | N14: 1 | O14: 0 | P14: 3 | Q14: 1 | R14: 1 | S14: 0 | T14: 1 | U14: 0 | V14: 2 | W14: 3 | X14: 0 | Z14: 3 | AA14: 0 | AB14: 7
A15: 8 | B15: Frøgræs, udtjent | C15: 1. Vintersæd | D15: 1. Ved etablering af primærafgrøde | F15: ='Hjælpe beregning'!AB19*-1 ->  | G15: ='Hjælpe beregning'!AC19 ->  | H15: 1 | I15: 1 | J15: 0 | K15: 0 | L15: 1 | M15: 1 | N15: 1 | O15: 0 | P15: 0 | Q15: 0 | R15: 0 | S15: 0 | T15: 1 | U15: 0 | V15: 3 | W15: 3 | X15: 0 | Z15: 3 | AA15: 0 | AB15: 8
A16: 9 | B16: Gul sennep | C16: 1. Vintersæd | D16: 1. Ved etablering af primærafgrøde | F16: ='Hjælpe beregning'!AB20*-1 ->  | G16: ='Hjælpe beregning'!AC20 ->  | H16: 1 | I16: 1 | J16: 1 | K16: 0 | L16: 1 | M16: 1 | N16: 1 | O16: 0 | P16: 0 | Q16: 3 | R16: 3 | S16: 0 | T16: 2 | U16: 2 | V16: 3 | W16: 0 | X16: 3 | Z16: 0 | AA16: 0 | AB16: 9
A17: 10 | B17: Olieræddike | C17: 1. Vintersæd | D17: 1. Ved etablering af primærafgrøde | F17: ='Hjælpe beregning'!AB21*-1 ->  | G17: ='Hjælpe beregning'!AC21 ->  | H17: 1 | I17: 1 | J17: 1 | K17: 0 | L17: 1 | M17: 1 | N17: 1 | O17: 0 | P17: 0 | Q17: 3 | R17: 3 | S17: 0 | T17: 2 | U17: 3 | V17: 3 | W17: 2 | X17: 3 | Z17: 0 | AA17: 0 | AB17: 10
A18: 11 | B18: Vinterraps, hybrid | F18: ='Hjælpe beregning'!AB22*-1 ->  | G18: ='Hjælpe beregning'!AC22 ->  | H18: 1 | I18: 0 | J18: 1 | K18: 0 | L18: 1 | M18: 1 | N18: 1 | O18: 0 | P18: 0 | Q18: 2 | R18: 2 | S18: 0 | T18: 2 | U18: 3 | V18: 3 | W18: 0 | X18: 0 | Z18: 3 | AA18: 0 | AB18: 11
A19: 12 | B19: Vinterraps , linie | C19: 1. Vintersæd | D19: 1. Ved etablering af primærafgrøde | F19: ='Hjælpe beregning'!AB23*-1 ->  | G19: ='Hjælpe beregning'!AC23 ->  | H19: 1 | I19: 0 | J19: 1 | K19: 0 | L19: 1 | M19: 1 | N19: 1 | O19: 0 | P19: 0 | Q19: 2 | R19: 2 | S19: 0 | T19: 2 | U19: 3 | V19: 3 | W19: 0 | X19: 0 | Z19: 3 | AA19: 1 | AB19: 12
A20: 13 | B20: Foderradise (Strukturator) | F20: ='Hjælpe beregning'!AB24*-1 ->  | G20: ='Hjælpe beregning'!AC24 ->  | H20: 1 | I20: 0 | J20: 1 | K20: 0 | L20: 1 | M20: 1 | N20: 1 | O20: 0 | P20: 0 | Q20: 3 | R20: 3 | S20: 0 | T20: 2 | U20: 3 | V20: 3 | W20: 2 | X20: 0 | Z20: 0 | AA20: 0 | AB20: 13
A21: 14 | B21: Havre, sået inden 1. august | C21: 1. Vintersæd | D21: 1. Ved etablering af primærafgrøde | F21: ='Hjælpe beregning'!AB25*-1 ->  | G21: ='Hjælpe beregning'!AC25 ->  | H21: 1 | I21: 0 | J21: 1 | K21: 0 | L21: 1 | M21: 1 | N21: 1 | O21: 0 | P21: 0 | Q21: 1 | R21: 2 | S21: 0 | T21: 1 | U21: 1 | V21: 3 | W21: 3 | X21: 0 | Z21: 1 | AA21: 1 | AB21: 14
A22: 15 | B22: Havre, sået mellem 1. og 20. august | F22: ='Hjælpe beregning'!AB26*-1 ->  | G22: ='Hjælpe beregning'!AC26 ->  | H22: 0 | I22: 0 | J22: 0 | K22: 0 | L22: 1 | M22: 1 | N22: 1 | O22: 0 | P22: 0 | Q22: 0 | R22: 1 | S22: 0 | T22: 1 | U22: 1 | V22: 3 | W22: 3 | X22: 0 | Z22: 1 | AA22: 1 | AB22: 15
A23: 16 | B23: Stauderug, sået inden 1. august | C23: 1. Vintersæd | D23: 1. Ved etablering af primærafgrøde | F23: ='Hjælpe beregning'!AB27*-1 ->  | G23: ='Hjælpe beregning'!AC27 ->  | H23: 1 | I23: 0 | J23: 1 | K23: 0 | L23: 1 | M23: 1 | N23: 1 | O23: 0 | P23: 0 | Q23: 1 | R23: 2 | S23: 0 | T23: 1 | U23: 1 | V23: 3 | W23: 3 | X23: 0 | Z23: 3 | AA23: 0 | AB23: 16
A24: 17 | B24: Stauderug, sået mellem 1. og 20. august | F24: ='Hjælpe beregning'!AB28*-1 ->  | G24: ='Hjælpe beregning'!AC28 ->  | H24: 1 | I24: 0 | J24: 1 | K24: 0 | L24: 1 | M24: 1 | N24: 1 | O24: 0 | P24: 0 | Q24: 0 | R24: 1 | S24: 0 | T24: 1 | U24: 1 | V24: 3 | W24: 3 | X24: 0 | Z24: 3 | AA24: 0 | AB24: 17
A25: 18 | B25: Vårbyg, sået inden 1. august | C25: 1. Vintersæd | D25: 1. Ved etablering af primærafgrøde | F25: ='Hjælpe beregning'!AB29*-1 ->  | G25: ='Hjælpe beregning'!AC29 ->  | H25: 1 | I25: 0 | J25: 1 | K25: 0 | L25: 1 | M25: 1 | N25: 1 | O25: 0 | P25: 0 | Q25: 1 | R25: 2 | S25: 0 | T25: 1 | U25: 0 | V25: 3 | W25: 3 | X25: 0 | Z25: 1 | AA25: 1 | AB25: 18
A26: 19 | B26: Vårbyg, sået mellem 1. og 20. august | F26: ='Hjælpe beregning'!AB30*-1 ->  | G26: ='Hjælpe beregning'!AC30 ->  | H26: 1 | I26: 0 | J26: 1 | K26: 0 | L26: 1 | M26: 1 | N26: 1 | O26: 0 | P26: 0 | Q26: 0 | R26: 1 | S26: 0 | T26: 1 | U26: 0 | V26: 3 | W26: 3 | X26: 0 | Z26: 1 | AA26: 1 | AB26: 19
A27: 20 | B27: Vinterrug (population), sået inden 1. august | F27: ='Hjælpe beregning'!AB31*-1 ->  | G27: ='Hjælpe beregning'!AC31 ->  | H27: 1 | I27: 0 | J27: 1 | K27: 0 | L27: 1 | M27: 1 | N27: 1 | O27: 0 | P27: 0 | Q27: 1 | R27: 2 | S27: 0 | T27: 1 | U27: 1 | V27: 3 | W27: 3 | X27: 0 | Z27: 3 | AA27: 1 | AB27: 20
A28: 21 | B28: Vinterrug (population), sået inden 20. august | F28: ='Hjælpe beregning'!AB32*-1 ->  | G28: ='Hjælpe beregning'!AC32 ->  | H28: 1 | I28: 0 | J28: 1 | K28: 0 | L28: 1 | M28: 1 | N28: 1 | O28: 0 | P28: 0 | Q28: 0 | R28: 1 | S28: 0 | T28: 1 | U28: 1 | V28: 3 | W28: 3 | X28: 0 | Z28: 3 | AA28: 1 | AB28: 21
A29: 22 | B29: Vinterrug (hybrid og syntetisk), sået inden 1. august | C29: 1. Vintersæd | D29: 1. Ved etablering af primærafgrøde | F29: ='Hjælpe beregning'!AB33*-1 ->  | G29: ='Hjælpe beregning'!AC33 ->  | H29: 1 | I29: 0 | J29: 1 | K29: 0 | L29: 1 | M29: 1 | N29: 1 | O29: 0 | P29: 0 | Q29: 1 | R29: 2 | S29: 0 | T29: 1 | U29: 1 | V29: 3 | W29: 3 | X29: 0 | Z29: 3 | AA29: 0 | AB29: 22
A30: 23 | B30: Vinterrug (hybrid og syntetisk), sået inden 20. august | F30: ='Hjælpe beregning'!AB34*-1 ->  | G30: ='Hjælpe beregning'!AC34 ->  | H30: 1 | I30: 0 | J30: 1 | K30: 0 | L30: 1 | M30: 1 | N30: 1 | O30: 0 | P30: 0 | Q30: 0 | R30: 1 | S30: 0 | T30: 1 | U30: 1 | V30: 3 | W30: 3 | X30: 0 | Z30: 3 | AA30: 0 | AB30: 23
A31: 24 | B31: Cikorie | C31: 1. Vintersæd | D31: 1. Ved etablering af primærafgrøde | F31: ='Hjælpe beregning'!AB35*-1 ->  | G31: ='Hjælpe beregning'!AC35 ->  | H31: 1 | I31: 0 | J31: 1 | K31: 0 | L31: 1 | M31: 1 | N31: 1 | O31: 0 | P31: 3 | Q31: 0 | R31: 0 | S31: 0 | T31: 2 | U31: 3 | V31: 0 | W31: 3 | X31: 0 | Z31: 2 | AA31: 0 | AB31: 24
A32: 25 | B32: Honningurt | C32: 1. Vintersæd | D32: 1. Ved etablering af primærafgrøde | F32: ='Hjælpe beregning'!AB36*-1 ->  | G32: ='Hjælpe beregning'!AC36 ->  | H32: 1 | I32: 0 | J32: 1 | K32: 0 | L32: 1 | M32: 1 | N32: 1 | O32: 0 | P32: 0 | Q32: 2 | R32: 3 | S32: 0 | T32: 2 | U32: 3 | V32: 3 | W32: 3 | X32: 0 | Z32: 0 | AA32: 1 | AB32: 25
A33: 26 | B33: Fodervikke | C33: 1. Vintersæd | D33: 1. Ved etablering af primærafgrøde | F33: ='Hjælpe beregning'!AB37*-1 ->  | G33: ='Hjælpe beregning'!AC37 ->  | H33: 0 | I33: 0 | J33: 0 | K33: 0 | L33: 1 | M33: 1 | N33: 1 | O33: 0 | P33: 0 | Q33: 3 | R33: 3 | S33: 1 | T33: 3 | U33: 0 | V33: 3 | W33: 3 | X33: 0 | Z33: 0 | AA33: 1 | AB33: 26
A34: 27 | B34: Vintervikke | C34: 1. Vintersæd | D34: 1. Ved etablering af primærafgrøde | F34: ='Hjælpe beregning'!AB38*-1 ->  | G34: ='Hjælpe beregning'!AC38 ->  | H34: 0 | I34: 0 | J34: 0 | K34: 1 | L34: 1 | M34: 1 | N34: 1 | O34: 0 | P34: 0 | Q34: 0 | R34: 3 | S34: 1 | T34: 3 | U34: 0 | V34: 3 | W34: 3 | X34: 0 | Z34: 3 | AA34: 0 | AB34: 27
A35: 28 | B35: Alexandrinekløver | C35: 1. Vintersæd | D35: 1. Ved etablering af primærafgrøde | F35: ='Hjælpe beregning'!AB39*-1 ->  | G35: ='Hjælpe beregning'!AC39 ->  | H35: 0 | I35: 0 | J35: 0 | K35: 0 | L35: 1 | M35: 1 | N35: 1 | O35: 0 | P35: 2 | Q35: 3 | R35: 2 | S35: 1 | T35: 3 | U35: 0 | V35: 3 | W35: 3 | X35: 0 | Z35: 0 | AA35: 1 | AB35: 28
A36: 29 | B36: Hvidkløver | C36: 1. Vintersæd | D36: 1. Ved etablering af primærafgrøde | F36: ='Hjælpe beregning'!AB40*-1 ->  | G36: ='Hjælpe beregning'!AC40 ->  | H36: 0 | I36: 0 | J36: 0 | K36: 0 | L36: 1 | M36: 1 | N36: 1 | O36: 0 | P36: 3 | Q36: 1 | R36: 1 | S36: 1 | T36: 3 | U36: 0 | V36: 1 | W36: 3 | X36: 0 | Z36: 3 | AA36: 0 | AB36: 29
A37: 30 | B37: Blanding af olieræddike og fodervikke | C37: 1. Vintersæd | D37: 1. Ved etablering af primærafgrøde | F37: ='Hjælpe beregning'!AB41*-1 ->  | G37: ='Hjælpe beregning'!AC41 ->  | H37: 0 | I37: 0 | J37: 0 | K37: 0 | L37: 1 | M37: 1 | N37: 1 | O37: 0 | P37: 0 | Q37: 3 | R37: 2 | S37: 1 | T37: 3 | U37: 3 | V37: 3 | W37: 2 | X37: 0 | Z37: 0 | AA37: 0 | AB37: 30
A38: 31 | B38: Hvidkløver/alm. rajgræs | C38: 1. Vintersæd | D38: 1. Ved etablering af primærafgrøde | F38: ='Hjælpe beregning'!AB42*-1 ->  | G38: ='Hjælpe beregning'!AC42 ->  | H38: 0 | I38: 0 | J38: 0 | K38: 1 | L38: 1 | M38: 1 | N38: 1 | O38: 0 | P38: 3 | Q38: 1 | R38: 2 | S38: 1 | T38: 3 | U38: 0 | V38: 1 | W38: 3 | X38: 0 | Z38: 3 | AA38: 0 | AB38: 31
A39: 32 | B39: Rødkløver/strandsvingel | C39: 1. Vintersæd | D39: 1. Ved etablering af primærafgrøde | F39: ='Hjælpe beregning'!AB43*-1 ->  | G39: ='Hjælpe beregning'!AC43 ->  | H39: 0 | I39: 0 | J39: 0 | K39: 1 | L39: 1 | M39: 1 | N39: 1 | O39: 0 | P39: 1 | Q39: 0 | R39: 1 | S39: 1 | T39: 3 | U39: 0 | V39: 1 | W39: 3 | X39: 0 | Z39: 3 | AA39: 0 | AB39: 32
A40: 33 | B40: Vintervikke/vinterrug | C40: 1. Vintersæd | D40: 1. Ved etablering af primærafgrøde | F40: ='Hjælpe beregning'!AB44*-1 ->  | G40: ='Hjælpe beregning'!AC44 ->  | H40: 0 | I40: 0 | J40: 0 | K40: 0 | L40: 1 | M40: 1 | N40: 1 | O40: 0 | P40: 0 | Q40: 0 | R40: 3 | S40: 1 | T40: 3 | U40: 0 | V40: 3 | W40: 3 | X40: 0 | Z40: 3 | AA40: 0 | AB40: 33
A41: 34 | B41: Kløvergræs | C41: 1. Vintersæd | D41: 1. Ved etablering af primærafgrøde | F41: ='Hjælpe beregning'!AB45*-1 ->  | G41: ='Hjælpe beregning'!AC45 ->  | H41: 0 | I41: 0 | J41: 0 | K41: 1 | L41: 1 | M41: 1 | N41: 1 | O41: 0 | P41: 3 | Q41: 1 | R41: 3 | S41: 1 | T41: 3 | U41: 0 | V41: 1 | W41: 3 | X41: 0 | Z41: 3 | AA41: 0 | AB41: 34
C45: Ugyldig

Sheet 1. Anders (hidden)
A1: Return
B2: Dyrkningsvejledning for efterafgrøde Anders
C4: I Vintersæd
D6: Etablering ved tidlig udlæg
E7: dgsdfh dfghdfhdfhdfghjdfgjfgjfghjfghdfhsdh dfh df hdfgh dfgh d
E8: dfh dfgh dfghjdfklghj fjhlkæsdfjhskldjg sdgj sdkfgj klsdjfgklsdj fgsd gkl
E9: fh dfh dfh fhdfgh dfghdfgh dfhdfghd fgh
E11: dfhdfghdfghfgh dfgh dfgh d
D13: Etablering før høst
E14: dgsdfh dfghdfhdfhdfghjdfgjfgjfghjfghdfhsdh dfh df hdfgh dfgh d
E15: dfh dfgh dfghjdfklghj fjhlkæsdfjhskldjg sdgj sdkfgj klsdjfgklsdj fgsd gkl
E16: fh dfh dfh fhdfgh dfghdfgh dfhdfghd fgh
E18: dfhdfghdfghfgh dfgh dfgh d
D20: Etablering efter høst
E21: dgsdfh dfghdfhdfhdfghjdfgjfgjfghjfghdfhsdh dfh df hdfgh dfgh d
E22: dfh dfgh dfghjdfklghj fjhlkæsdfjhskldjg sdgj sdkfgj klsdjfgklsdj fgsd gkl
E23: fh dfh dfh fhdfgh dfghdfgh dfhdfghd fgh
E25: dfhdfghdfghfgh dfgh dfgh d
C27: I Vårsæd
D29: Etablering ved tidlig udlæg
E30: dgsdfh dfghdfhdfhdfghjdfgjfgjfghjfghdfhsdh dfh df hdfgh dfgh d
E31: dfh dfgh dfghjdfklghj fjhlkæsdfjhskldjg sdgj sdkfgj klsdjfgklsdj fgsd gkl
E32: fh dfh dfh fhdfgh dfghdfgh dfhdfghd fgh
E34: dfhdfghdfghfgh dfgh dfgh d
D37: Etablering før høst
E38: dgsdfh dfghdfhdfhdfghjdfgjfgjfghjfghdfhsdh dfh df hdfgh dfgh d
E39: dfh dfgh dfghjdfklghj fjhlkæsdfjhskldjg sdgj sdkfgj klsdjfgklsdj fgsd gkl
E40: fh dfh dfh fhdfgh dfghdfgh dfhdfghd fgh
E42: dfhdfghdfghfgh dfgh dfgh d
D44: Etablering efter høst
E45: dgsdfh dfghdfhdfhdfghjdfgjfgjfghjfghdfhsdh dfh df hdfgh dfgh d
E46: dfh dfgh dfghjdfklghj fjhlkæsdfjhskldjg sdgj sdkfgj klsdjfgklsdj fgsd gkl
E47: fh dfh dfh fhdfgh dfghdfgh dfhdfghd fgh
E49: dfhdfghdfghfgh dfgh dfgh d
C51: I Majs
D53: Etablering ved tidlig udlæg
E54: dgsdfh dfghdfhdfhdfghjdfgjfgjfghjfghdfhsdh dfh df hdfgh dfgh d
E55: dfh dfgh dfghjdfklghj fjhlkæsdfjhskldjg sdgj sdkfgj klsdjfgklsdj fgsd gkl
E56: fh dfh dfh fhdfgh dfghdfgh dfhdfghd fgh
E58: dfhdfghdfghfgh dfgh dfgh d
D60: Etablering efter høst
E61: dgsdfh dfghdfhdfhdfghjdfgjfgjfghjfghdfhsdh dfh df hdfgh dfgh d
E62: dfh dfgh dfghjdfklghj fjhlkæsdfjhskldjg sdgj sdkfgj klsdjfgklsdj fgsd gkl
E63: fh dfh dfh fhdfgh dfghdfgh dfhdfghd fgh
E65: dfhdfghdfghfgh dfgh dfgh d

Sheet 99. Andre efterafgrøder (hidden)
A1: Return
B2: Dyrkningsvejledning for øvrige efterafgrøde
C4: I Vintersæd
D6: Etablering ved tidlig udlæg
E7: dgsdfh dfghdfhdfhdfghjdfgjfgjfghjfghdfhsdh dfh df hdfgh dfgh d
E8: dfh dfgh dfghjdfklghj fjhlkæsdfjhskldjg sdgj sdkfgj klsdjfgklsdj fgsd gkl
E9: fh dfh dfh fhdfgh dfghdfgh dfhdfghd fgh
E11: dfhdfghdfghfgh dfgh dfgh d
D13: Etablering før høst
E14: dgsdfh dfghdfhdfhdfghjdfgjfgjfghjfghdfhsdh dfh df hdfgh dfgh d
E15: dfh dfgh dfghjdfklghj fjhlkæsdfjhskldjg sdgj sdkfgj klsdjfgklsdj fgsd gkl
E16: fh dfh dfh fhdfgh dfghdfgh dfhdfghd fgh
E18: dfhdfghdfghfgh dfgh dfgh d
D20: Etablering efter høst
E21: dgsdfh dfghdfhdfhdfghjdfgjfgjfghjfghdfhsdh dfh df hdfgh dfgh d
E22: dfh dfgh dfghjdfklghj fjhlkæsdfjhskldjg sdgj sdkfgj klsdjfgklsdj fgsd gkl
E23: fh dfh dfh fhdfgh dfghdfgh dfhdfghd fgh
E25: dfhdfghdfghfgh dfgh dfgh d
C27: I Vårsæd
D29: Etablering ved tidlig udlæg
E30: dgsdfh dfghdfhdfhdfghjdfgjfgjfghjfghdfhsdh dfh df hdfgh dfgh d
E31: dfh dfgh dfghjdfklghj fjhlkæsdfjhskldjg sdgj sdkfgj klsdjfgklsdj fgsd gkl
E32: fh dfh dfh fhdfgh dfghdfgh dfhdfghd fgh
E34: dfhdfghdfghfgh dfgh dfgh d
D37: Etablering før høst
E38: dgsdfh dfghdfhdfhdfghjdfgjfgjfghjfghdfhsdh dfh df hdfgh dfgh d
E39: dfh dfgh dfghjdfklghj fjhlkæsdfjhskldjg sdgj sdkfgj klsdjfgklsdj fgsd gkl
E40: fh dfh dfh fhdfgh dfghdfgh dfhdfghd fgh
E42: dfhdfghdfghfgh dfgh dfgh d
D44: Etablering efter høst
E45: dgsdfh dfghdfhdfhdfghjdfgjfgjfghjfghdfhsdh dfh df hdfgh dfgh d
E46: dfh dfgh dfghjdfklghj fjhlkæsdfjhskldjg sdgj sdkfgj klsdjfgklsdj fgsd gkl
E47: fh dfh dfh fhdfgh dfghdfgh dfhdfghd fgh
E49: dfhdfghdfghfgh dfgh dfgh d
C51: I Majs
D53: Etablering ved tidlig udlæg
E54: dgsdfh dfghdfhdfhdfghjdfgjfgjfghjfghdfhsdh dfh df hdfgh dfgh d
E55: dfh dfgh dfghjdfklghj fjhlkæsdfjhskldjg sdgj sdkfgj klsdjfgklsdj fgsd gkl
E56: fh dfh dfh fhdfgh dfghdfgh dfhdfghd fgh
E58: dfhdfghdfghfgh dfgh dfgh d
D60: Etablering efter høst
E61: dgsdfh dfghdfhdfhdfghjdfgjfgjfghjfghdfhsdh dfh df hdfgh dfgh d
E62: dfh dfgh dfghjdfklghj fjhlkæsdfjhskldjg sdgj sdkfgj klsdjfgklsdj fgsd gkl
E63: fh dfh dfh fhdfgh dfghdfgh dfhdfghd fgh
E65: dfhdfghdfghfgh dfgh dfgh d

Sheet Lister (hidden)
A3: Efterafgrødens funktion
A4: Vælg hvad afgrøden skal bruges som | F4: Karakterliste | K4: Basisvalg | P4: Afgrøde
A5: Pligtig efterafgrøde
A6: Pligtig efterafgrøde og MFO afgrøde | F6: Pris | G6: Ikke vigtigt | H6: Vigtigt | I6: Meget vigtigt | K6: Ja | L6: Nej | P6: Vælg afgrøde
A7: Kun MFO afgrøde | F7: Dyrkningssikkerhed | G7: Ikke vigtigt | H7: Vigtigt | I7: Meget vigtigt | P7: 1. Vintersæd
A8: Pligtig mellemafgrøde | F8: Stor eftervirkning | G8: Ikke vigtigt | H8: Vigtigt | I8: Meget vigtigt | P8: 2. Vårsæd
A9: Frivillig efterafgrøde | F9: Lovpligtig | G9: Ikke vigtigt | H9: Vigtigt | I9: Meget vigtigt
F10: Sygdomme | G10: Ikke vigtigt | H10: Nematoder | I10: Kålbrok | J10: Begge
F11: Tiebreak | G11: Ikke vigtigt | H11: Vigtigt | I11: Meget vigtigt | P11: Etableringstidspunkt
P12: Vælg tidspunkt | Q12: .
A13: Afgrøde type | P13: Ikke vigtigt | Q13: 0
A14: Vælg hovedafgrøde | P14: 1. Ved etablering af primærafgrøde | Q14: 500000
A15: Vintersæd | F15: Basis valg | P15: 2. Før høst | Q15: 500000
A16: Vårsæd | F16: Ja | G16: 1 | P16: 3. Efter høst | Q16: 500000
F17: Nej | G17: 0
A18: Etableringstidspunkt | F18: 0 | G18: 0
A19: Vælg etableringstidspunkt
A20: Ved såning af primærafgrøde | F20: Standard karaktere
A21: 2-3 uger før høst af primærafgrøde | F21: Ikke vigtigt | G21: 0
A22: Efter høst af primærafgrøde | F22: Vigtigt | G22: 2
F23: Meget vigtigt | G23: 6
A24: Jordtype
A25: Vælg jordtype | F25: Ikke vigtigt | G25: 0
A26: Sand | F26: Foretrækkes | G26: 3
A27: Ler | F27: Der må ikke opformeres kålbrok | G27: 9
F29: Ikke vigtigt | G29: 0
A30: Efterfølgende afgrøde | F30: Helst | G30: 3
A31: Vælg den afgrøde, der følger efter | F31: Egen udsæd skal anvendes | G31: 9
A32: Vårsæd
A33: =IF(OR('Efterafgrøde beslutningsstøtte'!A7="Pligtig mellemafgrøde"),"Vintersæd","") -> 

Sheet Hjælpe beregning (hidden)
B3: Søjle A= Løbenr
B4: I søjle B, =1 så er der forsøgsresultater mv ellers ikke | E4: Forsøgsresultat | H4: 0=findes ikke, 1=der er forsøgsresultater | K4: 1=Vintersæd
B5: Søjle C - nr. på afgrøden 1-34 | E5: Afgrøde efter efterafgrøde | H5: 1=vintersæd, 2=vårsæd
B6: Søjle E - kode for om den afgrøde der følger efter er vår- eller vintersæd | E6: Såtidspunkt | H6: 1=sammen med afgrøde, 2=før høst, 3=efter høst
B7: Søjle F - kode for såtidspunkt - med foregående afrøder, før eller efter høst | E7: Jordbund | H7: 1=sandjord, 2= lerjord
B8: Søjel G - kode for jordbund
B9: Søjle H - kode for hvor værdier skal findes i normer
I10: Udbytte | L10: Stykomkostninger | Q10: Maskin- og arbejdsomkostninger | AB10: Resultat
A11: Lbnr | B11: Forsøgsresultater | C11: Afgrødenr | E11: Afgrøde efter efterafgrøde | F11: Såtidspunkt | G11: Jordbund | H11: Kode for valg af tabel | I11: Merudbytte, hkg. pr. ha | J11: Pris merudbytte | K11: Værdi merudbytte | L11: Kg udsæd | M11: Pris udsæd | N11: Andre omk. | O11: Pris andre omk. | P11: I alt stykomkostninger | Q11: Såning antal | R11: Pris såning | S11: Høst, hkg. | T11: Pris mejetærskning | U11: Tørring | V11: Pris tørring | W11: Nedmuldning | X11: Pris nedmuldning | Y11: Andre kapa omk. | Z11: Pris andre kapa | AA11: I alt maskiner og arbejde | AB11: I alt omkostninger | AC11: Resultat
A12: 1 | B12: 0 | C12: 1 | D12: Alm. rajgræs, dipl., udlæg1) | E12: =IF('Efterafgrøde beslutningsstøtte'!A$19="Vintersæd",1,IF('Efterafgrøde beslutningsstøtte'!A$19="Vårsæd",2,"Fejl")) -> Fejl | F12: =IF('Efterafgrøde beslutningsstøtte'!A$13="Ved såning af primærafgrøde",1,IF('Efterafgrøde beslutningsstøtte'!A$13="2-3 uger før høst af primærafgrøde",2,IF('Efterafgrøde beslutningsstøtte'!A$13="Efter høst af primærafgrøde",3,"Fejl"))) -> Fejl | G12: =IF('Efterafgrøde beslutningsstøtte'!A$16="Sand",1,IF('Efterafgrøde beslutningsstøtte'!A$16="Ler",2,"Fejl")) -> Fejl | H12: =(G12-1)*6+(E12-1)*3+F12+2 ->  | I12: =VLOOKUP(C12,Norm!$B$19:$Y$52,H12,FALSE) ->  | J12: =IF(E12=1,Norm!$D$9,Norm!$D$10) -> 110 | K12: =I12*J12 ->  | L12: =VLOOKUP(C12,Norm!$B$19:$Y$52,14+F12,FALSE) ->  | M12: =VLOOKUP($C12,Norm!$B$19:$Y$52,18) -> 40 | N12: =VLOOKUP($C12,Norm!$B$19:$Y$52,19) -> 0 | O12: =VLOOKUP($C12,Norm!$B$19:$Y$52,20) -> 0 | P12: =L12*M12+N12*O12 ->  | Q12: 1 | R12: =IF(F12=1,Norm!$D$3,IF(F12=2,Norm!$D$4,IF(F12=3,Norm!$D$5))) -> FALSE | S12: =I12 ->  | T12: =Norm!$D$12 -> 7 | U12: =S12 ->  | V12: =Norm!$D$7 -> 10 | W12: =VLOOKUP($C12,Norm!$B$19:$Y$52,23) -> 0 | X12: =VLOOKUP($C12,Norm!$B$19:$Y$52,24) -> 0 | Y12: =VLOOKUP($C12,Norm!$B$19:$Y$52,21) -> 0 | Z12: =VLOOKUP($C12,Norm!$B$19:$Y$52,22) -> 0 | AA12: =Q12*R12+S12*T12+U12*V12+W12*X12+Y12*Z12 ->  | AB12: =P12+AA12 ->  | AC12: =IF(K12>0,K12-AB12,"-") -> 
A13: 2 | B13: 0 | C13: 2 | D13: Ital. rajgræs, dipl., udlæg1) | E13: =IF('Efterafgrøde beslutningsstøtte'!A$19="Vintersæd",1,IF('Efterafgrøde beslutningsstøtte'!A$19="Vårsæd",2,"Fejl")) -> Fejl | F13: =IF('Efterafgrøde beslutningsstøtte'!A$13="Ved såning af primærafgrøde",1,IF('Efterafgrøde beslutningsstøtte'!A$13="2-3 uger før høst af primærafgrøde",2,IF('Efterafgrøde beslutningsstøtte'!A$13="Efter høst af primærafgrøde",3,"Fejl"))) -> Fejl | G13: =IF('Efterafgrøde beslutningsstøtte'!A$16="Sand",1,IF('Efterafgrøde beslutningsstøtte'!A$16="Ler",2,"Fejl")) -> Fejl | H13: =(G13-1)*6+(E13-1)*3+F13+2 ->  | I13: =VLOOKUP(C13,Norm!$B$19:$Y$52,H13,FALSE) ->  | J13: =IF(E13=1,Norm!$D$9,Norm!$D$10) -> 110 | K13: =I13*J13 ->  | L13: =VLOOKUP(C13,Norm!$B$19:$Y$52,14+F13,FALSE) ->  | M13: =VLOOKUP($C13,Norm!$B$19:$Y$52,18) -> 40 | N13: =VLOOKUP($C13,Norm!$B$19:$Y$52,19) -> 0 | O13: =VLOOKUP($C13,Norm!$B$19:$Y$52,20) -> 0 | P13: =L13*M13+N13*O13 ->  | Q13: 1 | R13: =IF(F13=1,Norm!$D$3,IF(F13=2,Norm!$D$4,IF(F13=3,Norm!$D$5))) -> FALSE | S13: =I13 ->  | T13: =Norm!$D$12 -> 7 | U13: =S13 ->  | V13: =Norm!$D$7 -> 10 | W13: =VLOOKUP($C13,Norm!$B$19:$Y$52,23) -> 0 | X13: =VLOOKUP($C13,Norm!$B$19:$Y$52,24) -> 0 | Y13: =VLOOKUP($C13,Norm!$B$19:$Y$52,21) -> 0 | Z13: =VLOOKUP($C13,Norm!$B$19:$Y$52,22) -> 0 | AA13: =Q13*R13+S13*T13+U13*V13+W13*X13+Y13*Z13 ->  | AB13: =P13+AA13 ->  | AC13: =IF(K13>0,K13-AB13,"-") -> 
A14: 3 | B14: 0 | C14: 3 | D14: Westerwoldisk rajgræs | E14: =IF('Efterafgrøde beslutningsstøtte'!A$19="Vintersæd",1,IF('Efterafgrøde beslutningsstøtte'!A$19="Vårsæd",2,"Fejl")) -> Fejl | F14: =IF('Efterafgrøde beslutningsstøtte'!A$13="Ved såning af primærafgrøde",1,IF('Efterafgrøde beslutningsstøtte'!A$13="2-3 uger før høst af primærafgrøde",2,IF('Efterafgrøde beslutningsstøtte'!A$13="Efter høst af primærafgrøde",3,"Fejl"))) -> Fejl | G14: =IF('Efterafgrøde beslutningsstøtte'!A$16="Sand",1,IF('Efterafgrøde beslutningsstøtte'!A$16="Ler",2,"Fejl")) -> Fejl | I14: =VLOOKUP(C14,Norm!$B$19:$Y$52,H14,FALSE) ->  | J14: =IF(E14=1,Norm!$D$9,Norm!$D$10) -> 110 | L14: =VLOOKUP(C14,Norm!$B$19:$Y$52,14+F14,FALSE) ->  | M14: =VLOOKUP($C14,Norm!$B$19:$Y$52,18) -> 40 | N14: =VLOOKUP($C14,Norm!$B$19:$Y$52,19) -> 0 | O14: =VLOOKUP($C14,Norm!$B$19:$Y$52,20) -> 0 | Q14: 1 | R14: =IF(F14=1,Norm!$D$3,IF(F14=2,Norm!$D$4,IF(F14=3,Norm!$D$5))) -> FALSE | T14: =Norm!$D$12 -> 7 | V14: =Norm!$D$7 -> 10 | W14: =VLOOKUP($C14,Norm!$B$19:$Y$52,23) -> 0 | X14: =VLOOKUP($C14,Norm!$B$19:$Y$52,24) -> 0 | Y14: =VLOOKUP($C14,Norm!$B$19:$Y$52,21) -> 0 | Z14: =VLOOKUP($C14,Norm!$B$19:$Y$52,22) -> 0
A15: 4 | B15: 0 | C15: 4 | D15: Strandsvingel, udlæg1) | E15: =IF('Efterafgrøde beslutningsstøtte'!A$19="Vintersæd",1,IF('Efterafgrøde beslutningsstøtte'!A$19="Vårsæd",2,"Fejl")) -> Fejl | F15: =IF('Efterafgrøde beslutningsstøtte'!A$13="Ved såning af primærafgrøde",1,IF('Efterafgrøde beslutningsstøtte'!A$13="2-3 uger før høst af primærafgrøde",2,IF('Efterafgrøde beslutningsstøtte'!A$13="Efter høst af primærafgrøde",3,"Fejl"))) -> Fejl | G15: =IF('Efterafgrøde beslutningsstøtte'!A$16="Sand",1,IF('Efterafgrøde beslutningsstøtte'!A$16="Ler",2,"Fejl")) -> Fejl | I15: =VLOOKUP(C15,Norm!$B$19:$Y$52,H15,FALSE) ->  | J15: =IF(E15=1,Norm!$D$9,Norm!$D$10) -> 110 | L15: =VLOOKUP(C15,Norm!$B$19:$Y$52,14+F15,FALSE) ->  | M15: =VLOOKUP($C15,Norm!$B$19:$Y$52,18) -> 35 | N15: =VLOOKUP($C15,Norm!$B$19:$Y$52,19) -> 0 | O15: =VLOOKUP($C15,Norm!$B$19:$Y$52,20) -> 0 | Q15: 1 | R15: =IF(F15=1,Norm!$D$3,IF(F15=2,Norm!$D$4,IF(F15=3,Norm!$D$5))) -> FALSE | T15: =Norm!$D$12 -> 7 | V15: =Norm!$D$7 -> 10 | W15: =VLOOKUP($C15,Norm!$B$19:$Y$52,23) -> 0 | X15: =VLOOKUP($C15,Norm!$B$19:$Y$52,24) -> 0 | Y15: =VLOOKUP($C15,Norm!$B$19:$Y$52,21) -> 0 | Z15: =VLOOKUP($C15,Norm!$B$19:$Y$52,22) -> 0
A16: 5 | B16: 0 | C16: 5 | D16: Rødsvingel, udlæg1) | E16: =IF('Efterafgrøde beslutningsstøtte'!A$19="Vintersæd",1,IF('Efterafgrøde beslutningsstøtte'!A$19="Vårsæd",2,"Fejl")) -> Fejl | F16: =IF('Efterafgrøde beslutningsstøtte'!A$13="Ved såning af primærafgrøde",1,IF('Efterafgrøde beslutningsstøtte'!A$13="2-3 uger før høst af primærafgrøde",2,IF('Efterafgrøde beslutningsstøtte'!A$13="Efter høst af primærafgrøde",3,"Fejl"))) -> Fejl | G16: =IF('Efterafgrøde beslutningsstøtte'!A$16="Sand",1,IF('Efterafgrøde beslutningsstøtte'!A$16="Ler",2,"Fejl")) -> Fejl | H16: =(G16-1)*6+(E16-1)*3+F16+2 ->  | I16: =VLOOKUP(C16,Norm!$B$19:$Y$52,H16,FALSE) ->  | J16: =IF(E16=1,Norm!$D$9,Norm!$D$10) -> 110 | K16: =I16*J16 ->  | L16: =VLOOKUP(C16,Norm!$B$19:$Y$52,14+F16,FALSE) ->  | M16: =VLOOKUP($C16,Norm!$B$19:$Y$52,18) -> 40 | N16: =VLOOKUP($C16,Norm!$B$19:$Y$52,19) -> 0 | O16: =VLOOKUP($C16,Norm!$B$19:$Y$52,20) -> 0 | Q16: 1 | R16: =IF(F16=1,Norm!$D$3,IF(F16=2,Norm!$D$4,IF(F16=3,Norm!$D$5))) -> FALSE | T16: =Norm!$D$12 -> 7 | V16: =Norm!$D$7 -> 10 | W16: =VLOOKUP($C16,Norm!$B$19:$Y$52,23) -> 0 | X16: =VLOOKUP($C16,Norm!$B$19:$Y$52,24) -> 0 | Y16: =VLOOKUP($C16,Norm!$B$19:$Y$52,21) -> 0 | Z16: =VLOOKUP($C16,Norm!$B$19:$Y$52,22) -> 0
A17: 6 | B17: 0 | C17: 6 | D17: Engrapgræs, udlæg1) | E17: =IF('Efterafgrøde beslutningsstøtte'!A$19="Vintersæd",1,IF('Efterafgrøde beslutningsstøtte'!A$19="Vårsæd",2,"Fejl")) -> Fejl | F17: =IF('Efterafgrøde beslutningsstøtte'!A$13="Ved såning af primærafgrøde",1,IF('Efterafgrøde beslutningsstøtte'!A$13="2-3 uger før høst af primærafgrøde",2,IF('Efterafgrøde beslutningsstøtte'!A$13="Efter høst af primærafgrøde",3,"Fejl"))) -> Fejl | G17: =IF('Efterafgrøde beslutningsstøtte'!A$16="Sand",1,IF('Efterafgrøde beslutningsstøtte'!A$16="Ler",2,"Fejl")) -> Fejl | I17: =VLOOKUP(C17,Norm!$B$19:$Y$52,H17,FALSE) ->  | J17: =IF(E17=1,Norm!$D$9,Norm!$D$10) -> 110 | L17: =VLOOKUP(C17,Norm!$B$19:$Y$52,14+F17,FALSE) ->  | M17: =VLOOKUP($C17,Norm!$B$19:$Y$52,18) -> 60 | N17: =VLOOKUP($C17,Norm!$B$19:$Y$52,19) -> 0 | O17: =VLOOKUP($C17,Norm!$B$19:$Y$52,20) -> 0 | Q17: 1 | R17: =IF(F17=1,Norm!$D$3,IF(F17=2,Norm!$D$4,IF(F17=3,Norm!$D$5))) -> FALSE | T17: =Norm!$D$12 -> 7 | V17: =Norm!$D$7 -> 10 | W17: =VLOOKUP($C17,Norm!$B$19:$Y$52,23) -> 0 | X17: =VLOOKUP($C17,Norm!$B$19:$Y$52,24) -> 0 | Y17: =VLOOKUP($C17,Norm!$B$19:$Y$52,21) -> 0 | Z17: =VLOOKUP($C17,Norm!$B$19:$Y$52,22) -> 0
A18: 7 | B18: 0 | C18: 7 | D18: Hundegræs, udlæg1) | E18: =IF('Efterafgrøde beslutningsstøtte'!A$19="Vintersæd",1,IF('Efterafgrøde beslutningsstøtte'!A$19="Vårsæd",2,"Fejl")) -> Fejl | F18: =IF('Efterafgrøde beslutningsstøtte'!A$13="Ved såning af primærafgrøde",1,IF('Efterafgrøde beslutningsstøtte'!A$13="2-3 uger før høst af primærafgrøde",2,IF('Efterafgrøde beslutningsstøtte'!A$13="Efter høst af primærafgrøde",3,"Fejl"))) -> Fejl | G18: =IF('Efterafgrøde beslutningsstøtte'!A$16="Sand",1,IF('Efterafgrøde beslutningsstøtte'!A$16="Ler",2,"Fejl")) -> Fejl | I18: =VLOOKUP(C18,Norm!$B$19:$Y$52,H18,FALSE) ->  | J18: =IF(E18=1,Norm!$D$9,Norm!$D$10) -> 110 | K18: =I18*J18 ->  | L18: =VLOOKUP(C18,Norm!$B$19:$Y$52,14+F18,FALSE) ->  | M18: =VLOOKUP($C18,Norm!$B$19:$Y$52,18) -> 60 | N18: =VLOOKUP($C18,Norm!$B$19:$Y$52,19) -> 0 | O18: =VLOOKUP($C18,Norm!$B$19:$Y$52,20) -> 0 | Q18: 1 | R18: =IF(F18=1,Norm!$D$3,IF(F18=2,Norm!$D$4,IF(F18=3,Norm!$D$5))) -> FALSE | T18: =Norm!$D$12 -> 7 | V18: =Norm!$D$7 -> 10 | W18: =VLOOKUP($C18,Norm!$B$19:$Y$52,23) -> 0 | X18: =VLOOKUP($C18,Norm!$B$19:$Y$52,24) -> 0 | Y18: =VLOOKUP($C18,Norm!$B$19:$Y$52,21) -> 0 | Z18: =VLOOKUP($C18,Norm!$B$19:$Y$52,22) -> 0
A19: 8 | B19: 0 | C19: 8 | D19: Frøgræs, udtjent | E19: =IF('Efterafgrøde beslutningsstøtte'!A$19="Vintersæd",1,IF('Efterafgrøde beslutningsstøtte'!A$19="Vårsæd",2,"Fejl")) -> Fejl | F19: =IF('Efterafgrøde beslutningsstøtte'!A$13="Ved såning af primærafgrøde",1,IF('Efterafgrøde beslutningsstøtte'!A$13="2-3 uger før høst af primærafgrøde",2,IF('Efterafgrøde beslutningsstøtte'!A$13="Efter høst af primærafgrøde",3,"Fejl"))) -> Fejl | G19: =IF('Efterafgrøde beslutningsstøtte'!A$16="Sand",1,IF('Efterafgrøde beslutningsstøtte'!A$16="Ler",2,"Fejl")) -> Fejl | I19: =VLOOKUP(C19,Norm!$B$19:$Y$52,H19,FALSE) ->  | J19: =IF(E19=1,Norm!$D$9,Norm!$D$10) -> 110 | K19: =I19*J19 ->  | L19: =VLOOKUP(C19,Norm!$B$19:$Y$52,14+F19,FALSE) ->  | M19: =VLOOKUP($C19,Norm!$B$19:$Y$52,18) -> 30 | N19: =VLOOKUP($C19,Norm!$B$19:$Y$52,19) -> 0 | O19: =VLOOKUP($C19,Norm!$B$19:$Y$52,20) -> 0 | Q19: 1 | R19: =IF(F19=1,Norm!$D$3,IF(F19=2,Norm!$D$4,IF(F19=3,Norm!$D$5))) -> FALSE | T19: =Norm!$D$12 -> 7 | V19: =Norm!$D$7 -> 10 | W19: =VLOOKUP($C19,Norm!$B$19:$Y$52,23) -> 0 | X19: =VLOOKUP($C19,Norm!$B$19:$Y$52,24) -> 0 | Y19: =VLOOKUP($C19,Norm!$B$19:$Y$52,21) -> 0 | Z19: =VLOOKUP($C19,Norm!$B$19:$Y$52,22) -> 0
A20: 9 | B20: 0 | C20: 9 | D20: Gul sennep | E20: =IF('Efterafgrøde beslutningsstøtte'!A$19="Vintersæd",1,IF('Efterafgrøde beslutningsstøtte'!A$19="Vårsæd",2,"Fejl")) -> Fejl | F20: =IF('Efterafgrøde beslutningsstøtte'!A$13="Ved såning af primærafgrøde",1,IF('Efterafgrøde beslutningsstøtte'!A$13="2-3 uger før høst af primærafgrøde",2,IF('Efterafgrøde beslutningsstøtte'!A$13="Efter høst af primærafgrøde",3,"Fejl"))) -> Fejl | G20: =IF('Efterafgrøde beslutningsstøtte'!A$16="Sand",1,IF('Efterafgrøde beslutningsstøtte'!A$16="Ler",2,"Fejl")) -> Fejl | I20: =VLOOKUP(C20,Norm!$B$19:$Y$52,H20,FALSE) ->  | J20: =IF(E20=1,Norm!$D$9,Norm!$D$10) -> 110 | L20: =VLOOKUP(C20,Norm!$B$19:$Y$52,14+F20,FALSE) ->  | M20: =VLOOKUP($C20,Norm!$B$19:$Y$52,18) -> 90 | N20: =VLOOKUP($C20,Norm!$B$19:$Y$52,19) -> 0 | O20: =VLOOKUP($C20,Norm!$B$19:$Y$52,20) -> 0 | Q20: 1 | R20: =IF(F20=1,Norm!$D$3,IF(F20=2,Norm!$D$4,IF(F20=3,Norm!$D$5))) -> FALSE | T20: =Norm!$D$12 -> 7 | V20: =Norm!$D$7 -> 10 | W20: =VLOOKUP($C20,Norm!$B$19:$Y$52,23) -> 0 | X20: =VLOOKUP($C20,Norm!$B$19:$Y$52,24) -> 0 | Y20: =VLOOKUP($C20,Norm!$B$19:$Y$52,21) -> 0 | Z20: =VLOOKUP($C20,Norm!$B$19:$Y$52,22) -> 0
A21: 10 | B21: 0 | C21: 10 | D21: Olieræddike | E21: =IF('Efterafgrøde beslutningsstøtte'!A$19="Vintersæd",1,IF('Efterafgrøde beslutningsstøtte'!A$19="Vårsæd",2,"Fejl")) -> Fejl | F21: =IF('Efterafgrøde beslutningsstøtte'!A$13="Ved såning af primærafgrøde",1,IF('Efterafgrøde beslutningsstøtte'!A$13="2-3 uger før høst af primærafgrøde",2,IF('Efterafgrøde beslutningsstøtte'!A$13="Efter høst af primærafgrøde",3,"Fejl"))) -> Fejl | G21: =IF('Efterafgrøde beslutningsstøtte'!A$16="Sand",1,IF('Efterafgrøde beslutningsstøtte'!A$16="Ler",2,"Fejl")) -> Fejl | I21: =VLOOKUP(C21,Norm!$B$19:$Y$52,H21,FALSE) ->  | J21: =IF(E21=1,Norm!$D$9,Norm!$D$10) -> 110 | L21: =VLOOKUP(C21,Norm!$B$19:$Y$52,14+F21,FALSE) ->  | M21: =VLOOKUP($C21,Norm!$B$19:$Y$52,18) -> 25 | N21: =VLOOKUP($C21,Norm!$B$19:$Y$52,19) -> 0 | O21: =VLOOKUP($C21,Norm!$B$19:$Y$52,20) -> 0 | Q21: 1 | R21: =IF(F21=1,Norm!$D$3,IF(F21=2,Norm!$D$4,IF(F21=3,Norm!$D$5))) -> FALSE | T21: =Norm!$D$12 -> 7 | V21: =Norm!$D$7 -> 10 | W21: =VLOOKUP($C21,Norm!$B$19:$Y$52,23) -> 0 | X21: =VLOOKUP($C21,Norm!$B$19:$Y$52,24) -> 0 | Y21: =VLOOKUP($C21,Norm!$B$19:$Y$52,21) -> 0 | Z21: =VLOOKUP($C21,Norm!$B$19:$Y$52,22) -> 0
A22: 11 | B22: 0 | C22: 11 | D22: Vinterraps, hybrid | E22: =IF('Efterafgrøde beslutningsstøtte'!A$19="Vintersæd",1,IF('Efterafgrøde beslutningsstøtte'!A$19="Vårsæd",2,"Fejl")) -> Fejl | F22: =IF('Efterafgrøde beslutningsstøtte'!A$13="Ved såning af primærafgrøde",1,IF('Efterafgrøde beslutningsstøtte'!A$13="2-3 uger før høst af primærafgrøde",2,IF('Efterafgrøde beslutningsstøtte'!A$13="Efter høst af primærafgrøde",3,"Fejl"))) -> Fejl | G22: =IF('Efterafgrøde beslutningsstøtte'!A$16="Sand",1,IF('Efterafgrøde beslutningsstøtte'!A$16="Ler",2,"Fejl")) -> Fejl | I22: =VLOOKUP(C22,Norm!$B$19:$Y$52,H22,FALSE) ->  | J22: =IF(E22=1,Norm!$D$9,Norm!$D$10) -> 110 | L22: =VLOOKUP(C22,Norm!$B$19:$Y$52,14+F22,FALSE) ->  | M22: =VLOOKUP($C22,Norm!$B$19:$Y$52,18) -> 90 | N22: =VLOOKUP($C22,Norm!$B$19:$Y$52,19) -> 0 | O22: =VLOOKUP($C22,Norm!$B$19:$Y$52,20) -> 0 | Q22: 1 | R22: =IF(F22=1,Norm!$D$3,IF(F22=2,Norm!$D$4,IF(F22=3,Norm!$D$5))) -> FALSE | T22: =Norm!$D$12 -> 7 | V22: =Norm!$D$7 -> 10 | W22: =VLOOKUP($C22,Norm!$B$19:$Y$52,23) -> 0 | X22: =VLOOKUP($C22,Norm!$B$19:$Y$52,24) -> 0 | Y22: =VLOOKUP($C22,Norm!$B$19:$Y$52,21) -> 0 | Z22: =VLOOKUP($C22,Norm!$B$19:$Y$52,22) -> 0
A23: 12 | B23: 0 | C23: 12 | D23: Vinterraps , linie | E23: =IF('Efterafgrøde beslutningsstøtte'!A$19="Vintersæd",1,IF('Efterafgrøde beslutningsstøtte'!A$19="Vårsæd",2,"Fejl")) -> Fejl | F23: =IF('Efterafgrøde beslutningsstøtte'!A$13="Ved såning af primærafgrøde",1,IF('Efterafgrøde beslutningsstøtte'!A$13="2-3 uger før høst af primærafgrøde",2,IF('Efterafgrøde beslutningsstøtte'!A$13="Efter høst af primærafgrøde",3,"Fejl"))) -> Fejl | G23: =IF('Efterafgrøde beslutningsstøtte'!A$16="Sand",1,IF('Efterafgrøde beslutningsstøtte'!A$16="Ler",2,"Fejl")) -> Fejl | I23: =VLOOKUP(C23,Norm!$B$19:$Y$52,H23,FALSE) ->  | J23: =IF(E23=1,Norm!$D$9,Norm!$D$10) -> 110 | L23: =VLOOKUP(C23,Norm!$B$19:$Y$52,14+F23,FALSE) ->  | M23: =VLOOKUP($C23,Norm!$B$19:$Y$52,18) -> 80 | N23: =VLOOKUP($C23,Norm!$B$19:$Y$52,19) -> 0 | O23: =VLOOKUP($C23,Norm!$B$19:$Y$52,20) -> 0 | Q23: 1 | R23: =IF(F23=1,Norm!$D$3,IF(F23=2,Norm!$D$4,IF(F23=3,Norm!$D$5))) -> FALSE | T23: =Norm!$D$12 -> 7 | V23: =Norm!$D$7 -> 10 | W23: =VLOOKUP($C23,Norm!$B$19:$Y$52,23) -> 0 | X23: =VLOOKUP($C23,Norm!$B$19:$Y$52,24) -> 0 | Y23: =VLOOKUP($C23,Norm!$B$19:$Y$52,21) -> 0 | Z23: =VLOOKUP($C23,Norm!$B$19:$Y$52,22) -> 0
A24: 13 | B24: 0 | C24: 13 | D24: Foderradise (Strukturator) | E24: =IF('Efterafgrøde beslutningsstøtte'!A$19="Vintersæd",1,IF('Efterafgrøde beslutningsstøtte'!A$19="Vårsæd",2,"Fejl")) -> Fejl | F24: =IF('Efterafgrøde beslutningsstøtte'!A$13="Ved såning af primærafgrøde",1,IF('Efterafgrøde beslutningsstøtte'!A$13="2-3 uger før høst af primærafgrøde",2,IF('Efterafgrøde beslutningsstøtte'!A$13="Efter høst af primærafgrøde",3,"Fejl"))) -> Fejl | G24: =IF('Efterafgrøde beslutningsstøtte'!A$16="Sand",1,IF('Efterafgrøde beslutningsstøtte'!A$16="Ler",2,"Fejl")) -> Fejl | I24: =VLOOKUP(C24,Norm!$B$19:$Y$52,H24,FALSE) ->  | J24: =IF(E24=1,Norm!$D$9,Norm!$D$10) -> 110 | L24: =VLOOKUP(C24,Norm!$B$19:$Y$52,14+F24,FALSE) ->  | M24: =VLOOKUP($C24,Norm!$B$19:$Y$52,18) -> 70 | N24: =VLOOKUP($C24,Norm!$B$19:$Y$52,19) -> 0 | O24: =VLOOKUP($C24,Norm!$B$19:$Y$52,20) -> 0 | Q24: 1 | R24: =IF(F24=1,Norm!$D$3,IF(F24=2,Norm!$D$4,IF(F24=3,Norm!$D$5))) -> FALSE | T24: =Norm!$D$12 -> 7 | V24: =Norm!$D$7 -> 10 | W24: =VLOOKUP($C24,Norm!$B$19:$Y$52,23) -> 0 | X24: =VLOOKUP($C24,Norm!$B$19:$Y$52,24) -> 0 | Y24: =VLOOKUP($C24,Norm!$B$19:$Y$52,21) -> 0 | Z24: =VLOOKUP($C24,Norm!$B$19:$Y$52,22) -> 0
A25: 14 | B25: 0 | C25: 14 | D25: Havre, sået inden 1. august | E25: =IF('Efterafgrøde beslutningsstøtte'!A$19="Vintersæd",1,IF('Efterafgrøde beslutningsstøtte'!A$19="Vårsæd",2,"Fejl")) -> Fejl | F25: =IF('Efterafgrøde beslutningsstøtte'!A$13="Ved såning af primærafgrøde",1,IF('Efterafgrøde beslutningsstøtte'!A$13="2-3 uger før høst af primærafgrøde",2,IF('Efterafgrøde beslutningsstøtte'!A$13="Efter høst af primærafgrøde",3,"Fejl"))) -> Fejl | G25: =IF('Efterafgrøde beslutningsstøtte'!A$16="Sand",1,IF('Efterafgrøde beslutningsstøtte'!A$16="Ler",2,"Fejl")) -> Fejl | I25: =VLOOKUP(C25,Norm!$B$19:$Y$52,H25,FALSE) ->  | J25: =IF(E25=1,Norm!$D$9,Norm!$D$10) -> 110 | L25: =VLOOKUP(C25,Norm!$B$19:$Y$52,14+F25,FALSE) ->  | M25: =VLOOKUP($C25,Norm!$B$19:$Y$52,18) -> 2.85 | N25: =VLOOKUP($C25,Norm!$B$19:$Y$52,19) -> 0 | O25: =VLOOKUP($C25,Norm!$B$19:$Y$52,20) -> 0 | Q25: 1 | R25: =IF(F25=1,Norm!$D$3,IF(F25=2,Norm!$D$4,IF(F25=3,Norm!$D$5))) -> FALSE | T25: =Norm!$D$12 -> 7 | V25: =Norm!$D$7 -> 10 | W25: =VLOOKUP($C25,Norm!$B$19:$Y$52,23) -> 0 | X25: =VLOOKUP($C25,Norm!$B$19:$Y$52,24) -> 0 | Y25: =VLOOKUP($C25,Norm!$B$19:$Y$52,21) -> 0 | Z25: =VLOOKUP($C25,Norm!$B$19:$Y$52,22) -> 0
A26: 15 | B26: 0 | C26: 15 | D26: Havre, sået mellem 1. og 20. august | E26: =IF('Efterafgrøde beslutningsstøtte'!A$19="Vintersæd",1,IF('Efterafgrøde beslutningsstøtte'!A$19="Vårsæd",2,"Fejl")) -> Fejl | F26: =IF('Efterafgrøde beslutningsstøtte'!A$13="Ved såning af primærafgrøde",1,IF('Efterafgrøde beslutningsstøtte'!A$13="2-3 uger før høst af primærafgrøde",2,IF('Efterafgrøde beslutningsstøtte'!A$13="Efter høst af primærafgrøde",3,"Fejl"))) -> Fejl | G26: =IF('Efterafgrøde beslutningsstøtte'!A$16="Sand",1,IF('Efterafgrøde beslutningsstøtte'!A$16="Ler",2,"Fejl")) -> Fejl | I26: =VLOOKUP(C26,Norm!$B$19:$Y$52,H26,FALSE) ->  | J26: =IF(E26=1,Norm!$D$9,Norm!$D$10) -> 110 | L26: =VLOOKUP(C26,Norm!$B$19:$Y$52,14+F26,FALSE) ->  | M26: =VLOOKUP($C26,Norm!$B$19:$Y$52,18) -> 2.85 | N26: =VLOOKUP($C26,Norm!$B$19:$Y$52,19) -> 0 | O26: =VLOOKUP($C26,Norm!$B$19:$Y$52,20) -> 0 | Q26: 1 | R26: =IF(F26=1,Norm!$D$3,IF(F26=2,Norm!$D$4,IF(F26=3,Norm!$D$5))) -> FALSE | T26: =Norm!$D$12 -> 7 | V26: =Norm!$D$7 -> 10 | W26: =VLOOKUP($C26,Norm!$B$19:$Y$52,23) -> 0 | X26: =VLOOKUP($C26,Norm!$B$19:$Y$52,24) -> 0 | Y26: =VLOOKUP($C26,Norm!$B$19:$Y$52,21) -> 0 | Z26: =VLOOKUP($C26,Norm!$B$19:$Y$52,22) -> 0
A27: 16 | B27: 0 | C27: 16 | D27: Stauderug, sået inden 1. august | E27: =IF('Efterafgrøde beslutningsstøtte'!A$19="Vintersæd",1,IF('Efterafgrøde beslutningsstøtte'!A$19="Vårsæd",2,"Fejl")) -> Fejl | F27: =IF('Efterafgrøde beslutningsstøtte'!A$13="Ved såning af primærafgrøde",1,IF('Efterafgrøde beslutningsstøtte'!A$13="2-3 uger før høst af primærafgrøde",2,IF('Efterafgrøde beslutningsstøtte'!A$13="Efter høst af primærafgrøde",3,"Fejl"))) -> Fejl | G27: =IF('Efterafgrøde beslutningsstøtte'!A$16="Sand",1,IF('Efterafgrøde beslutningsstøtte'!A$16="Ler",2,"Fejl")) -> Fejl | I27: =VLOOKUP(C27,Norm!$B$19:$Y$52,H27,FALSE) ->  | J27: =IF(E27=1,Norm!$D$9,Norm!$D$10) -> 110 | L27: =VLOOKUP(C27,Norm!$B$19:$Y$52,14+F27,FALSE) ->  | M27: =VLOOKUP($C27,Norm!$B$19:$Y$52,18) -> 4 | N27: =VLOOKUP($C27,Norm!$B$19:$Y$52,19) -> 0 | O27: =VLOOKUP($C27,Norm!$B$19:$Y$52,20) -> 0 | Q27: 1 | R27: =IF(F27=1,Norm!$D$3,IF(F27=2,Norm!$D$4,IF(F27=3,Norm!$D$5))) -> FALSE | T27: =Norm!$D$12 -> 7 | V27: =Norm!$D$7 -> 10 | W27: =VLOOKUP($C27,Norm!$B$19:$Y$52,23) -> 0 | X27: =VLOOKUP($C27,Norm!$B$19:$Y$52,24) -> 0 | Y27: =VLOOKUP($C27,Norm!$B$19:$Y$52,21) -> 0 | Z27: =VLOOKUP($C27,Norm!$B$19:$Y$52,22) -> 0
A28: 17 | B28: 0 | C28: 17 | D28: Stauderug, sået mellem 1. og 20. august | E28: =IF('Efterafgrøde beslutningsstøtte'!A$19="Vintersæd",1,IF('Efterafgrøde beslutningsstøtte'!A$19="Vårsæd",2,"Fejl")) -> Fejl | F28: =IF('Efterafgrøde beslutningsstøtte'!A$13="Ved såning af primærafgrøde",1,IF('Efterafgrøde beslutningsstøtte'!A$13="2-3 uger før høst af primærafgrøde",2,IF('Efterafgrøde beslutningsstøtte'!A$13="Efter høst af primærafgrøde",3,"Fejl"))) -> Fejl | G28: =IF('Efterafgrøde beslutningsstøtte'!A$16="Sand",1,IF('Efterafgrøde beslutningsstøtte'!A$16="Ler",2,"Fejl")) -> Fejl | I28: =VLOOKUP(C28,Norm!$B$19:$Y$52,H28,FALSE) ->  | J28: =IF(E28=1,Norm!$D$9,Norm!$D$10) -> 110 | L28: =VLOOKUP(C28,Norm!$B$19:$Y$52,14+F28,FALSE) ->  | M28: =VLOOKUP($C28,Norm!$B$19:$Y$52,18) -> 4 | N28: =VLOOKUP($C28,Norm!$B$19:$Y$52,19) -> 0 | O28: =VLOOKUP($C28,Norm!$B$19:$Y$52,20) -> 0 | Q28: 1 | R28: =IF(F28=1,Norm!$D$3,IF(F28=2,Norm!$D$4,IF(F28=3,Norm!$D$5))) -> FALSE | T28: =Norm!$D$12 -> 7 | V28: =Norm!$D$7 -> 10 | W28: =VLOOKUP($C28,Norm!$B$19:$Y$52,23) -> 0 | X28: =VLOOKUP($C28,Norm!$B$19:$Y$52,24) -> 0 | Y28: =VLOOKUP($C28,Norm!$B$19:$Y$52,21) -> 0 | Z28: =VLOOKUP($C28,Norm!$B$19:$Y$52,22) -> 0
A29: 18 | B29: 0 | C29: 18 | D29: Vårbyg, sået inden 1. august | E29: =IF('Efterafgrøde beslutningsstøtte'!A$19="Vintersæd",1,IF('Efterafgrøde beslutningsstøtte'!A$19="Vårsæd",2,"Fejl")) -> Fejl | F29: =IF('Efterafgrøde beslutningsstøtte'!A$13="Ved såning af primærafgrøde",1,IF('Efterafgrøde beslutningsstøtte'!A$13="2-3 uger før høst af primærafgrøde",2,IF('Efterafgrøde beslutningsstøtte'!A$13="Efter høst af primærafgrøde",3,"Fejl"))) -> Fejl | G29: =IF('Efterafgrøde beslutningsstøtte'!A$16="Sand",1,IF('Efterafgrøde beslutningsstøtte'!A$16="Ler",2,"Fejl")) -> Fejl | I29: =VLOOKUP(C29,Norm!$B$19:$Y$52,H29,FALSE) ->  | J29: =IF(E29=1,Norm!$D$9,Norm!$D$10) -> 110 | L29: =VLOOKUP(C29,Norm!$B$19:$Y$52,14+F29,FALSE) ->  | M29: =VLOOKUP($C29,Norm!$B$19:$Y$52,18) -> 2.7 | N29: =VLOOKUP($C29,Norm!$B$19:$Y$52,19) -> 0 | O29: =VLOOKUP($C29,Norm!$B$19:$Y$52,20) -> 0 | Q29: 1 | R29: =IF(F29=1,Norm!$D$3,IF(F29=2,Norm!$D$4,IF(F29=3,Norm!$D$5))) -> FALSE | T29: =Norm!$D$12 -> 7 | V29: =Norm!$D$7 -> 10 | W29: =VLOOKUP($C29,Norm!$B$19:$Y$52,23) -> 0 | X29: =VLOOKUP($C29,Norm!$B$19:$Y$52,24) -> 0 | Y29: =VLOOKUP($C29,Norm!$B$19:$Y$52,21) -> 0 | Z29: =VLOOKUP($C29,Norm!$B$19:$Y$52,22) -> 0
A30: 19 | B30: 0 | C30: 19 | D30: Vårbyg, sået mellem 1. og 20. august | E30: =IF('Efterafgrøde beslutningsstøtte'!A$19="Vintersæd",1,IF('Efterafgrøde beslutningsstøtte'!A$19="Vårsæd",2,"Fejl")) -> Fejl | F30: =IF('Efterafgrøde beslutningsstøtte'!A$13="Ved såning af primærafgrøde",1,IF('Efterafgrøde beslutningsstøtte'!A$13="2-3 uger før høst af primærafgrøde",2,IF('Efterafgrøde beslutningsstøtte'!A$13="Efter høst af primærafgrøde",3,"Fejl"))) -> Fejl | G30: =IF('Efterafgrøde beslutningsstøtte'!A$16="Sand",1,IF('Efterafgrøde beslutningsstøtte'!A$16="Ler",2,"Fejl")) -> Fejl | I30: =VLOOKUP(C30,Norm!$B$19:$Y$52,H30,FALSE) ->  | J30: =IF(E30=1,Norm!$D$9,Norm!$D$10) -> 110 | L30: =VLOOKUP(C30,Norm!$B$19:$Y$52,14+F30,FALSE) ->  | M30: =VLOOKUP($C30,Norm!$B$19:$Y$52,18) -> 2.7 | N30: =VLOOKUP($C30,Norm!$B$19:$Y$52,19) -> 0 | O30: =VLOOKUP($C30,Norm!$B$19:$Y$52,20) -> 0 | Q30: 1 | R30: =IF(F30=1,Norm!$D$3,IF(F30=2,Norm!$D$4,IF(F30=3,Norm!$D$5))) -> FALSE | T30: =Norm!$D$12 -> 7 | V30: =Norm!$D$7 -> 10 | W30: =VLOOKUP($C30,Norm!$B$19:$Y$52,23) -> 0 | X30: =VLOOKUP($C30,Norm!$B$19:$Y$52,24) -> 0 | Y30: =VLOOKUP($C30,Norm!$B$19:$Y$52,21) -> 0 | Z30: =VLOOKUP($C30,Norm!$B$19:$Y$52,22) -> 0
A31: 20 | B31: 0 | C31: 20 | D31: Vinterrug (population), sået inden 1. august | E31: =IF('Efterafgrøde beslutningsstøtte'!A$19="Vintersæd",1,IF('Efterafgrøde beslutningsstøtte'!A$19="Vårsæd",2,"Fejl")) -> Fejl | F31: =IF('Efterafgrøde beslutningsstøtte'!A$13="Ved såning af primærafgrøde",1,IF('Efterafgrøde beslutningsstøtte'!A$13="2-3 uger før høst af primærafgrøde",2,IF('Efterafgrøde beslutningsstøtte'!A$13="Efter høst af primærafgrøde",3,"Fejl"))) -> Fejl | G31: =IF('Efterafgrøde beslutningsstøtte'!A$16="Sand",1,IF('Efterafgrøde beslutningsstøtte'!A$16="Ler",2,"Fejl")) -> Fejl | I31: =VLOOKUP(C31,Norm!$B$19:$Y$52,H31,FALSE) ->  | J31: =IF(E31=1,Norm!$D$9,Norm!$D$10) -> 110 | L31: =VLOOKUP(C31,Norm!$B$19:$Y$52,14+F31,FALSE) ->  | M31: =VLOOKUP($C31,Norm!$B$19:$Y$52,18) -> 4 | N31: =VLOOKUP($C31,Norm!$B$19:$Y$52,19) -> 0 | O31: =VLOOKUP($C31,Norm!$B$19:$Y$52,20) -> 0 | Q31: 1 | R31: =IF(F31=1,Norm!$D$3,IF(F31=2,Norm!$D$4,IF(F31=3,Norm!$D$5))) -> FALSE | T31: =Norm!$D$12 -> 7 | V31: =Norm!$D$7 -> 10 | W31: =VLOOKUP($C31,Norm!$B$19:$Y$52,23) -> 0 | X31: =VLOOKUP($C31,Norm!$B$19:$Y$52,24) -> 0 | Y31: =VLOOKUP($C31,Norm!$B$19:$Y$52,21) -> 0 | Z31: =VLOOKUP($C31,Norm!$B$19:$Y$52,22) -> 0
A32: 21 | B32: 0 | C32: 21 | D32: Vinterrug (population), sået inden 20. august | E32: =IF('Efterafgrøde beslutningsstøtte'!A$19="Vintersæd",1,IF('Efterafgrøde beslutningsstøtte'!A$19="Vårsæd",2,"Fejl")) -> Fejl | F32: =IF('Efterafgrøde beslutningsstøtte'!A$13="Ved såning af primærafgrøde",1,IF('Efterafgrøde beslutningsstøtte'!A$13="2-3 uger før høst af primærafgrøde",2,IF('Efterafgrøde beslutningsstøtte'!A$13="Efter høst af primærafgrøde",3,"Fejl"))) -> Fejl | G32: =IF('Efterafgrøde beslutningsstøtte'!A$16="Sand",1,IF('Efterafgrøde beslutningsstøtte'!A$16="Ler",2,"Fejl")) -> Fejl | I32: =VLOOKUP(C32,Norm!$B$19:$Y$52,H32,FALSE) ->  | J32: =IF(E32=1,Norm!$D$9,Norm!$D$10) -> 110 | L32: =VLOOKUP(C32,Norm!$B$19:$Y$52,14+F32,FALSE) ->  | M32: =VLOOKUP($C32,Norm!$B$19:$Y$52,18) -> 4 | N32: =VLOOKUP($C32,Norm!$B$19:$Y$52,19) -> 0 | O32: =VLOOKUP($C32,Norm!$B$19:$Y$52,20) -> 0 | Q32: 1 | R32: =IF(F32=1,Norm!$D$3,IF(F32=2,Norm!$D$4,IF(F32=3,Norm!$D$5))) -> FALSE | T32: =Norm!$D$12 -> 7 | V32: =Norm!$D$7 -> 10 | W32: =VLOOKUP($C32,Norm!$B$19:$Y$52,23) -> 0 | X32: =VLOOKUP($C32,Norm!$B$19:$Y$52,24) -> 0 | Y32: =VLOOKUP($C32,Norm!$B$19:$Y$52,21) -> 0 | Z32: =VLOOKUP($C32,Norm!$B$19:$Y$52,22) -> 0
A33: 22 | B33: 0 | C33: 22 | D33: Vinterrug (hybrid og syntetisk), sået inden 1. august | E33: =IF('Efterafgrøde beslutningsstøtte'!A$19="Vintersæd",1,IF('Efterafgrøde beslutningsstøtte'!A$19="Vårsæd",2,"Fejl")) -> Fejl | F33: =IF('Efterafgrøde beslutningsstøtte'!A$13="Ved såning af primærafgrøde",1,IF('Efterafgrøde beslutningsstøtte'!A$13="2-3 uger før høst af primærafgrøde",2,IF('Efterafgrøde beslutningsstøtte'!A$13="Efter høst af primærafgrøde",3,"Fejl"))) -> Fejl | G33: =IF('Efterafgrøde beslutningsstøtte'!A$16="Sand",1,IF('Efterafgrøde beslutningsstøtte'!A$16="Ler",2,"Fejl")) -> Fejl | I33: =VLOOKUP(C33,Norm!$B$19:$Y$52,H33,FALSE) ->  | J33: =IF(E33=1,Norm!$D$9,Norm!$D$10) -> 110 | L33: =VLOOKUP(C33,Norm!$B$19:$Y$52,14+F33,FALSE) ->  | M33: =VLOOKUP($C33,Norm!$B$19:$Y$52,18) -> 9 | N33: =VLOOKUP($C33,Norm!$B$19:$Y$52,19) -> 0 | O33: =VLOOKUP($C33,Norm!$B$19:$Y$52,20) -> 0 | Q33: 1 | R33: =IF(F33=1,Norm!$D$3,IF(F33=2,Norm!$D$4,IF(F33=3,Norm!$D$5))) -> FALSE | T33: =Norm!$D$12 -> 7 | V33: =Norm!$D$7 -> 10 | W33: =VLOOKUP($C33,Norm!$B$19:$Y$52,23) -> 0 | X33: =VLOOKUP($C33,Norm!$B$19:$Y$52,24) -> 0 | Y33: =VLOOKUP($C33,Norm!$B$19:$Y$52,21) -> 0 | Z33: =VLOOKUP($C33,Norm!$B$19:$Y$52,22) -> 0
A34: 23 | B34: 0 | C34: 23 | D34: Vinterrug (hybrid og syntetisk), sået inden 20. august | E34: =IF('Efterafgrøde beslutningsstøtte'!A$19="Vintersæd",1,IF('Efterafgrøde beslutningsstøtte'!A$19="Vårsæd",2,"Fejl")) -> Fejl | F34: =IF('Efterafgrøde beslutningsstøtte'!A$13="Ved såning af primærafgrøde",1,IF('Efterafgrøde beslutningsstøtte'!A$13="2-3 uger før høst af primærafgrøde",2,IF('Efterafgrøde beslutningsstøtte'!A$13="Efter høst af primærafgrøde",3,"Fejl"))) -> Fejl | G34: =IF('Efterafgrøde beslutningsstøtte'!A$16="Sand",1,IF('Efterafgrøde beslutningsstøtte'!A$16="Ler",2,"Fejl")) -> Fejl | I34: =VLOOKUP(C34,Norm!$B$19:$Y$52,H34,FALSE) ->  | J34: =IF(E34=1,Norm!$D$9,Norm!$D$10) -> 110 | L34: =VLOOKUP(C34,Norm!$B$19:$Y$52,14+F34,FALSE) ->  | M34: =VLOOKUP($C34,Norm!$B$19:$Y$52,18) -> 9 | N34: =VLOOKUP($C34,Norm!$B$19:$Y$52,19) -> 0 | O34: =VLOOKUP($C34,Norm!$B$19:$Y$52,20) -> 0 | Q34: 1 | R34: =IF(F34=1,Norm!$D$3,IF(F34=2,Norm!$D$4,IF(F34=3,Norm!$D$5))) -> FALSE | T34: =Norm!$D$12 -> 7 | V34: =Norm!$D$7 -> 10 | W34: =VLOOKUP($C34,Norm!$B$19:$Y$52,23) -> 0 | X34: =VLOOKUP($C34,Norm!$B$19:$Y$52,24) -> 0 | Y34: =VLOOKUP($C34,Norm!$B$19:$Y$52,21) -> 0 | Z34: =VLOOKUP($C34,Norm!$B$19:$Y$52,22) -> 0
A35: 24 | B35: 0 | C35: 24 | D35: Cikorie | E35: =IF('Efterafgrøde beslutningsstøtte'!A$19="Vintersæd",1,IF('Efterafgrøde beslutningsstøtte'!A$19="Vårsæd",2,"Fejl")) -> Fejl | F35: =IF('Efterafgrøde beslutningsstøtte'!A$13="Ved såning af primærafgrøde",1,IF('Efterafgrøde beslutningsstøtte'!A$13="2-3 uger før høst af primærafgrøde",2,IF('Efterafgrøde beslutningsstøtte'!A$13="Efter høst af primærafgrøde",3,"Fejl"))) -> Fejl | G35: =IF('Efterafgrøde beslutningsstøtte'!A$16="Sand",1,IF('Efterafgrøde beslutningsstøtte'!A$16="Ler",2,"Fejl")) -> Fejl | I35: =VLOOKUP(C35,Norm!$B$19:$Y$52,H35,FALSE) ->  | J35: =IF(E35=1,Norm!$D$9,Norm!$D$10) -> 110 | L35: =VLOOKUP(C35,Norm!$B$19:$Y$52,14+F35,FALSE) ->  | M35: =VLOOKUP($C35,Norm!$B$19:$Y$52,18) -> 70 | N35: =VLOOKUP($C35,Norm!$B$19:$Y$52,19) -> 0 | O35: =VLOOKUP($C35,Norm!$B$19:$Y$52,20) -> 0 | Q35: 1 | R35: =IF(F35=1,Norm!$D$3,IF(F35=2,Norm!$D$4,IF(F35=3,Norm!$D$5))) -> FALSE | T35: =Norm!$D$12 -> 7 | V35: =Norm!$D$7 -> 10 | W35: =VLOOKUP($C35,Norm!$B$19:$Y$52,23) -> 0 | X35: =VLOOKUP($C35,Norm!$B$19:$Y$52,24) -> 0 | Y35: =VLOOKUP($C35,Norm!$B$19:$Y$52,21) -> 0 | Z35: =VLOOKUP($C35,Norm!$B$19:$Y$52,22) -> 0
A36: 25 | B36: 0 | C36: 25 | D36: Honningurt | E36: =IF('Efterafgrøde beslutningsstøtte'!A$19="Vintersæd",1,IF('Efterafgrøde beslutningsstøtte'!A$19="Vårsæd",2,"Fejl")) -> Fejl | F36: =IF('Efterafgrøde beslutningsstøtte'!A$13="Ved såning af primærafgrøde",1,IF('Efterafgrøde beslutningsstøtte'!A$13="2-3 uger før høst af primærafgrøde",2,IF('Efterafgrøde beslutningsstøtte'!A$13="Efter høst af primærafgrøde",3,"Fejl"))) -> Fejl | G36: =IF('Efterafgrøde beslutningsstøtte'!A$16="Sand",1,IF('Efterafgrøde beslutningsstøtte'!A$16="Ler",2,"Fejl")) -> Fejl | I36: =VLOOKUP(C36,Norm!$B$19:$Y$52,H36,FALSE) ->  | J36: =IF(E36=1,Norm!$D$9,Norm!$D$10) -> 110 | L36: =VLOOKUP(C36,Norm!$B$19:$Y$52,14+F36,FALSE) ->  | M36: =VLOOKUP($C36,Norm!$B$19:$Y$52,18) -> 40 | N36: =VLOOKUP($C36,Norm!$B$19:$Y$52,19) -> 0 | O36: =VLOOKUP($C36,Norm!$B$19:$Y$52,20) -> 0 | Q36: 1 | R36: =IF(F36=1,Norm!$D$3,IF(F36=2,Norm!$D$4,IF(F36=3,Norm!$D$5))) -> FALSE | T36: =Norm!$D$12 -> 7 | V36: =Norm!$D$7 -> 10 | W36: =VLOOKUP($C36,Norm!$B$19:$Y$52,23) -> 0 | X36: =VLOOKUP($C36,Norm!$B$19:$Y$52,24) -> 0 | Y36: =VLOOKUP($C36,Norm!$B$19:$Y$52,21) -> 0 | Z36: =VLOOKUP($C36,Norm!$B$19:$Y$52,22) -> 0
A37: 26 | B37: 0 | C37: 26 | D37: Fodervikke | E37: =IF('Efterafgrøde beslutningsstøtte'!A$19="Vintersæd",1,IF('Efterafgrøde beslutningsstøtte'!A$19="Vårsæd",2,"Fejl")) -> Fejl | F37: =IF('Efterafgrøde beslutningsstøtte'!A$13="Ved såning af primærafgrøde",1,IF('Efterafgrøde beslutningsstøtte'!A$13="2-3 uger før høst af primærafgrøde",2,IF('Efterafgrøde beslutningsstøtte'!A$13="Efter høst af primærafgrøde",3,"Fejl"))) -> Fejl | G37: =IF('Efterafgrøde beslutningsstøtte'!A$16="Sand",1,IF('Efterafgrøde beslutningsstøtte'!A$16="Ler",2,"Fejl")) -> Fejl | I37: =VLOOKUP(C37,Norm!$B$19:$Y$52,H37,FALSE) ->  | J37: =IF(E37=1,Norm!$D$9,Norm!$D$10) -> 110 | L37: =VLOOKUP(C37,Norm!$B$19:$Y$52,14+F37,FALSE) ->  | M37: =VLOOKUP($C37,Norm!$B$19:$Y$52,18) -> 5 | N37: =VLOOKUP($C37,Norm!$B$19:$Y$52,19) -> 0 | O37: =VLOOKUP($C37,Norm!$B$19:$Y$52,20) -> 0 | Q37: 1 | R37: =IF(F37=1,Norm!$D$3,IF(F37=2,Norm!$D$4,IF(F37=3,Norm!$D$5))) -> FALSE | T37: =Norm!$D$12 -> 7 | V37: =Norm!$D$7 -> 10 | W37: =VLOOKUP($C37,Norm!$B$19:$Y$52,23) -> 0 | X37: =VLOOKUP($C37,Norm!$B$19:$Y$52,24) -> 0 | Y37: =VLOOKUP($C37,Norm!$B$19:$Y$52,21) -> 0 | Z37: =VLOOKUP($C37,Norm!$B$19:$Y$52,22) -> 0
A38: 27 | B38: 0 | C38: 27 | D38: Vintervikke | E38: =IF('Efterafgrøde beslutningsstøtte'!A$19="Vintersæd",1,IF('Efterafgrøde beslutningsstøtte'!A$19="Vårsæd",2,"Fejl")) -> Fejl | F38: =IF('Efterafgrøde beslutningsstøtte'!A$13="Ved såning af primærafgrøde",1,IF('Efterafgrøde beslutningsstøtte'!A$13="2-3 uger før høst af primærafgrøde",2,IF('Efterafgrøde beslutningsstøtte'!A$13="Efter høst af primærafgrøde",3,"Fejl"))) -> Fejl | G38: =IF('Efterafgrøde beslutningsstøtte'!A$16="Sand",1,IF('Efterafgrøde beslutningsstøtte'!A$16="Ler",2,"Fejl")) -> Fejl | I38: =VLOOKUP(C38,Norm!$B$19:$Y$52,H38,FALSE) ->  | J38: =IF(E38=1,Norm!$D$9,Norm!$D$10) -> 110 | L38: =VLOOKUP(C38,Norm!$B$19:$Y$52,14+F38,FALSE) ->  | M38: =VLOOKUP($C38,Norm!$B$19:$Y$52,18) -> 5 | N38: =VLOOKUP($C38,Norm!$B$19:$Y$52,19) -> 0 | O38: =VLOOKUP($C38,Norm!$B$19:$Y$52,20) -> 0 | Q38: 1 | R38: =IF(F38=1,Norm!$D$3,IF(F38=2,Norm!$D$4,IF(F38=3,Norm!$D$5))) -> FALSE | T38: =Norm!$D$12 -> 7 | V38: =Norm!$D$7 -> 10 | W38: =VLOOKUP($C38,Norm!$B$19:$Y$52,23) -> 0 | X38: =VLOOKUP($C38,Norm!$B$19:$Y$52,24) -> 0 | Y38: =VLOOKUP($C38,Norm!$B$19:$Y$52,21) -> 0 | Z38: =VLOOKUP($C38,Norm!$B$19:$Y$52,22) -> 0
A39: 28 | B39: 0 | C39: 28 | D39: Alexandrinekløver | E39: =IF('Efterafgrøde beslutningsstøtte'!A$19="Vintersæd",1,IF('Efterafgrøde beslutningsstøtte'!A$19="Vårsæd",2,"Fejl")) -> Fejl | F39: =IF('Efterafgrøde beslutningsstøtte'!A$13="Ved såning af primærafgrøde",1,IF('Efterafgrøde beslutningsstøtte'!A$13="2-3 uger før høst af primærafgrøde",2,IF('Efterafgrøde beslutningsstøtte'!A$13="Efter høst af primærafgrøde",3,"Fejl"))) -> Fejl | G39: =IF('Efterafgrøde beslutningsstøtte'!A$16="Sand",1,IF('Efterafgrøde beslutningsstøtte'!A$16="Ler",2,"Fejl")) -> Fejl | I39: =VLOOKUP(C39,Norm!$B$19:$Y$52,H39,FALSE) ->  | J39: =IF(E39=1,Norm!$D$9,Norm!$D$10) -> 110 | L39: =VLOOKUP(C39,Norm!$B$19:$Y$52,14+F39,FALSE) ->  | M39: =VLOOKUP($C39,Norm!$B$19:$Y$52,18) -> 30 | N39: =VLOOKUP($C39,Norm!$B$19:$Y$52,19) -> 0 | O39: =VLOOKUP($C39,Norm!$B$19:$Y$52,20) -> 0 | Q39: 1 | R39: =IF(F39=1,Norm!$D$3,IF(F39=2,Norm!$D$4,IF(F39=3,Norm!$D$5))) -> FALSE | T39: =Norm!$D$12 -> 7 | V39: =Norm!$D$7 -> 10 | W39: =VLOOKUP($C39,Norm!$B$19:$Y$52,23) -> 0 | X39: =VLOOKUP($C39,Norm!$B$19:$Y$52,24) -> 0 | Y39: =VLOOKUP($C39,Norm!$B$19:$Y$52,21) -> 0 | Z39: =VLOOKUP($C39,Norm!$B$19:$Y$52,22) -> 0
A40: 29 | B40: 0 | C40: 29 | D40: Hvidkløver | E40: =IF('Efterafgrøde beslutningsstøtte'!A$19="Vintersæd",1,IF('Efterafgrøde beslutningsstøtte'!A$19="Vårsæd",2,"Fejl")) -> Fejl | F40: =IF('Efterafgrøde beslutningsstøtte'!A$13="Ved såning af primærafgrøde",1,IF('Efterafgrøde beslutningsstøtte'!A$13="2-3 uger før høst af primærafgrøde",2,IF('Efterafgrøde beslutningsstøtte'!A$13="Efter høst af primærafgrøde",3,"Fejl"))) -> Fejl | G40: =IF('Efterafgrøde beslutningsstøtte'!A$16="Sand",1,IF('Efterafgrøde beslutningsstøtte'!A$16="Ler",2,"Fejl")) -> Fejl | I40: =VLOOKUP(C40,Norm!$B$19:$Y$52,H40,FALSE) ->  | J40: =IF(E40=1,Norm!$D$9,Norm!$D$10) -> 110 | L40: =VLOOKUP(C40,Norm!$B$19:$Y$52,14+F40,FALSE) ->  | M40: =VLOOKUP($C40,Norm!$B$19:$Y$52,18) -> 90 | N40: =VLOOKUP($C40,Norm!$B$19:$Y$52,19) -> 0 | O40: =VLOOKUP($C40,Norm!$B$19:$Y$52,20) -> 0 | Q40: 1 | R40: =IF(F40=1,Norm!$D$3,IF(F40=2,Norm!$D$4,IF(F40=3,Norm!$D$5))) -> FALSE | T40: =Norm!$D$12 -> 7 | V40: =Norm!$D$7 -> 10 | W40: =VLOOKUP($C40,Norm!$B$19:$Y$52,23) -> 0 | X40: =VLOOKUP($C40,Norm!$B$19:$Y$52,24) -> 0 | Y40: =VLOOKUP($C40,Norm!$B$19:$Y$52,21) -> 0 | Z40: =VLOOKUP($C40,Norm!$B$19:$Y$52,22) -> 0
A41: 30 | B41: 0 | C41: 30 | D41: Blanding af olieræddike og fodervikke | E41: =IF('Efterafgrøde beslutningsstøtte'!A$19="Vintersæd",1,IF('Efterafgrøde beslutningsstøtte'!A$19="Vårsæd",2,"Fejl")) -> Fejl | F41: =IF('Efterafgrøde beslutningsstøtte'!A$13="Ved såning af primærafgrøde",1,IF('Efterafgrøde beslutningsstøtte'!A$13="2-3 uger før høst af primærafgrøde",2,IF('Efterafgrøde beslutningsstøtte'!A$13="Efter høst af primærafgrøde",3,"Fejl"))) -> Fejl | G41: =IF('Efterafgrøde beslutningsstøtte'!A$16="Sand",1,IF('Efterafgrøde beslutningsstøtte'!A$16="Ler",2,"Fejl")) -> Fejl | I41: =VLOOKUP(C41,Norm!$B$19:$Y$52,H41,FALSE) ->  | J41: =IF(E41=1,Norm!$D$9,Norm!$D$10) -> 110 | L41: =VLOOKUP(C41,Norm!$B$19:$Y$52,14+F41,FALSE) ->  | M41: =VLOOKUP($C41,Norm!$B$19:$Y$52,18) -> 7.45 | N41: =VLOOKUP($C41,Norm!$B$19:$Y$52,19) -> 0 | O41: =VLOOKUP($C41,Norm!$B$19:$Y$52,20) -> 0 | Q41: 1 | R41: =IF(F41=1,Norm!$D$3,IF(F41=2,Norm!$D$4,IF(F41=3,Norm!$D$5))) -> FALSE | T41: =Norm!$D$12 -> 7 | V41: =Norm!$D$7 -> 10 | W41: =VLOOKUP($C41,Norm!$B$19:$Y$52,23) -> 0 | X41: =VLOOKUP($C41,Norm!$B$19:$Y$52,24) -> 0 | Y41: =VLOOKUP($C41,Norm!$B$19:$Y$52,21) -> 0 | Z41: =VLOOKUP($C41,Norm!$B$19:$Y$52,22) -> 0
A42: 31 | B42: 0 | C42: 31 | D42: Hvidkløver/alm. rajgræs | E42: =IF('Efterafgrøde beslutningsstøtte'!A$19="Vintersæd",1,IF('Efterafgrøde beslutningsstøtte'!A$19="Vårsæd",2,"Fejl")) -> Fejl | F42: =IF('Efterafgrøde beslutningsstøtte'!A$13="Ved såning af primærafgrøde",1,IF('Efterafgrøde beslutningsstøtte'!A$13="2-3 uger før høst af primærafgrøde",2,IF('Efterafgrøde beslutningsstøtte'!A$13="Efter høst af primærafgrøde",3,"Fejl"))) -> Fejl | G42: =IF('Efterafgrøde beslutningsstøtte'!A$16="Sand",1,IF('Efterafgrøde beslutningsstøtte'!A$16="Ler",2,"Fejl")) -> Fejl | I42: =VLOOKUP(C42,Norm!$B$19:$Y$52,H42,FALSE) ->  | J42: =IF(E42=1,Norm!$D$9,Norm!$D$10) -> 110 | L42: =VLOOKUP(C42,Norm!$B$19:$Y$52,14+F42,FALSE) ->  | M42: =VLOOKUP($C42,Norm!$B$19:$Y$52,18) -> 50 | N42: =VLOOKUP($C42,Norm!$B$19:$Y$52,19) -> 0 | O42: =VLOOKUP($C42,Norm!$B$19:$Y$52,20) -> 0 | Q42: 1 | R42: =IF(F42=1,Norm!$D$3,IF(F42=2,Norm!$D$4,IF(F42=3,Norm!$D$5))) -> FALSE | T42: =Norm!$D$12 -> 7 | V42: =Norm!$D$7 -> 10 | W42: =VLOOKUP($C42,Norm!$B$19:$Y$52,23) -> 0 | X42: =VLOOKUP($C42,Norm!$B$19:$Y$52,24) -> 0 | Y42: =VLOOKUP($C42,Norm!$B$19:$Y$52,21) -> 0 | Z42: =VLOOKUP($C42,Norm!$B$19:$Y$52,22) -> 0
A43: 32 | B43: 0 | C43: 32 | D43: Rødkløver/strandsvingel | E43: =IF('Efterafgrøde beslutningsstøtte'!A$19="Vintersæd",1,IF('Efterafgrøde beslutningsstøtte'!A$19="Vårsæd",2,"Fejl")) -> Fejl | F43: =IF('Efterafgrøde beslutningsstøtte'!A$13="Ved såning af primærafgrøde",1,IF('Efterafgrøde beslutningsstøtte'!A$13="2-3 uger før høst af primærafgrøde",2,IF('Efterafgrøde beslutningsstøtte'!A$13="Efter høst af primærafgrøde",3,"Fejl"))) -> Fejl | G43: =IF('Efterafgrøde beslutningsstøtte'!A$16="Sand",1,IF('Efterafgrøde beslutningsstøtte'!A$16="Ler",2,"Fejl")) -> Fejl | I43: =VLOOKUP(C43,Norm!$B$19:$Y$52,H43,FALSE) ->  | J43: =IF(E43=1,Norm!$D$9,Norm!$D$10) -> 110 | L43: =VLOOKUP(C43,Norm!$B$19:$Y$52,14+F43,FALSE) ->  | M43: =VLOOKUP($C43,Norm!$B$19:$Y$52,18) -> 42 | N43: =VLOOKUP($C43,Norm!$B$19:$Y$52,19) -> 0 | O43: =VLOOKUP($C43,Norm!$B$19:$Y$52,20) -> 0 | Q43: 1 | R43: =IF(F43=1,Norm!$D$3,IF(F43=2,Norm!$D$4,IF(F43=3,Norm!$D$5))) -> FALSE | T43: =Norm!$D$12 -> 7 | V43: =Norm!$D$7 -> 10 | W43: =VLOOKUP($C43,Norm!$B$19:$Y$52,23) -> 0 | X43: =VLOOKUP($C43,Norm!$B$19:$Y$52,24) -> 0 | Y43: =VLOOKUP($C43,Norm!$B$19:$Y$52,21) -> 0 | Z43: =VLOOKUP($C43,Norm!$B$19:$Y$52,22) -> 0
A44: 33 | B44: 0 | C44: 33 | D44: Vintervikke/vinterrug | E44: =IF('Efterafgrøde beslutningsstøtte'!A$19="Vintersæd",1,IF('Efterafgrøde beslutningsstøtte'!A$19="Vårsæd",2,"Fejl")) -> Fejl | F44: =IF('Efterafgrøde beslutningsstøtte'!A$13="Ved såning af primærafgrøde",1,IF('Efterafgrøde beslutningsstøtte'!A$13="2-3 uger før høst af primærafgrøde",2,IF('Efterafgrøde beslutningsstøtte'!A$13="Efter høst af primærafgrøde",3,"Fejl"))) -> Fejl | G44: =IF('Efterafgrøde beslutningsstøtte'!A$16="Sand",1,IF('Efterafgrøde beslutningsstøtte'!A$16="Ler",2,"Fejl")) -> Fejl | I44: =VLOOKUP(C44,Norm!$B$19:$Y$52,H44,FALSE) ->  | J44: =IF(E44=1,Norm!$D$9,Norm!$D$10) -> 110 | L44: =VLOOKUP(C44,Norm!$B$19:$Y$52,14+F44,FALSE) ->  | M44: =VLOOKUP($C44,Norm!$B$19:$Y$52,18) -> 4.5 | N44: =VLOOKUP($C44,Norm!$B$19:$Y$52,19) -> 0 | O44: =VLOOKUP($C44,Norm!$B$19:$Y$52,20) -> 0 | Q44: 1 | R44: =IF(F44=1,Norm!$D$3,IF(F44=2,Norm!$D$4,IF(F44=3,Norm!$D$5))) -> FALSE | T44: =Norm!$D$12 -> 7 | V44: =Norm!$D$7 -> 10 | W44: =VLOOKUP($C44,Norm!$B$19:$Y$52,23) -> 0 | X44: =VLOOKUP($C44,Norm!$B$19:$Y$52,24) -> 0 | Y44: =VLOOKUP($C44,Norm!$B$19:$Y$52,21) -> 0 | Z44: =VLOOKUP($C44,Norm!$B$19:$Y$52,22) -> 0
A45: 34 | B45: 0 | C45: 34 | D45: Kløvergræs | E45: =IF('Efterafgrøde beslutningsstøtte'!A$19="Vintersæd",1,IF('Efterafgrøde beslutningsstøtte'!A$19="Vårsæd",2,"Fejl")) -> Fejl | F45: =IF('Efterafgrøde beslutningsstøtte'!A$13="Ved såning af primærafgrøde",1,IF('Efterafgrøde beslutningsstøtte'!A$13="2-3 uger før høst af primærafgrøde",2,IF('Efterafgrøde beslutningsstøtte'!A$13="Efter høst af primærafgrøde",3,"Fejl"))) -> Fejl | G45: =IF('Efterafgrøde beslutningsstøtte'!A$16="Sand",1,IF('Efterafgrøde beslutningsstøtte'!A$16="Ler",2,"Fejl")) -> Fejl | I45: =VLOOKUP(C45,Norm!$B$19:$Y$52,H45,FALSE) ->  | J45: =IF(E45=1,Norm!$D$9,Norm!$D$10) -> 110 | L45: =VLOOKUP(C45,Norm!$B$19:$Y$52,14+F45,FALSE) ->  | M45: =VLOOKUP($C45,Norm!$B$19:$Y$52,18) -> 40 | N45: =VLOOKUP($C45,Norm!$B$19:$Y$52,19) -> 0 | O45: =VLOOKUP($C45,Norm!$B$19:$Y$52,20) -> 0 | Q45: 1 | R45: =IF(F45=1,Norm!$D$3,IF(F45=2,Norm!$D$4,IF(F45=3,Norm!$D$5))) -> FALSE | T45: =Norm!$D$12 -> 7 | V45: =Norm!$D$7 -> 10 | W45: =VLOOKUP($C45,Norm!$B$19:$Y$52,23) -> 0 | X45: =VLOOKUP($C45,Norm!$B$19:$Y$52,24) -> 0 | Y45: =VLOOKUP($C45,Norm!$B$19:$Y$52,21) -> 0 | Z45: =VLOOKUP($C45,Norm!$B$19:$Y$52,22) -> 0

Sheet Norm
C2: Omkostninger såning | E2: Kode
C3: Sammen med afgrøden | D3: 55 | E3: 1
C4: Før høst | D4: 75 | E4: 2
C5: Efter høst | D5: 185 | E5: 3
C7: Omkostninger tørring | D7: 10 | E7: kr. pr. hkg.
C9: Pris vintersæd (vinerhvede) | D9: 130 | E9: kr. pr. hkg.
C10: Pris vårsæd (foderbyg) | D10: 110 | E10: kr. pr. hkg.
C11: Mejetærskning - basis | D11: 800 | E11: kr. pr ha
C12: Mejetærskning - korrektion pr. hkg. | D12: 7 | E12: kr. pr. hkg.
D14: Jordbund
D15: Sandjord | J15: Lerjord
D16: Merudbytte, hkg pr. ha | J16: Merudbytte, hkg pr. ha | V16: Andre kapacitetsomkostninger | X16: Nedmulding
C17: Afgrøde | D17: Vintersæd | G17: Vårsæd | J17: Vintersæd | M17: Vårsæd | P17: Udsæd - kg. pr. ha | T17: Andre stykomk
C18: Såtid | D18: Sammen med | E18: Før | F18: Efter | G18: Sammen med | H18: Før | I18: Efter | J18: Sammen med | K18: Før | L18: Efter | M18: Sammen med | N18: Før | O18: Efter | P18: Sammenmed | Q18: Før | R18: Efter | S18: Pris | T18: Antal | U18: Pris | V18: Antal | W18: Pris | X18: Antal | Y18: Pris
B19: 1 | C19: Alm. rajgræs, dipl., udlæg1) | D19: 0 | E19: 0 | F19: 0 | G19: 3 | H19: 0 | I19: 0 | J19: 0 | K19: 0 | L19: 0 | M19: 1 | N19: 0 | O19: 0 | P19: 8 | Q19: 12 | R19: 8 | S19: 40 | T19: 0 | U19: 0 | V19: 0 | W19: 0 | X19: 0 | Y19: 0
B20: 2 | C20: Ital. rajgræs, dipl., udlæg1) | D20: 0 | E20: 0 | F20: 0 | G20: 3 | H20: 0 | I20: 0 | J20: 0 | K20: 0 | L20: 0 | M20: 1 | N20: 0 | O20: 0 | P20: 6 | Q20: 10 | R20: 8 | S20: 40 | T20: 0 | U20: 0 | V20: 0 | W20: 0 | X20: 0 | Y20: 0
B21: 3 | C21: Westerwoldisk rajgræs | D21: 0 | E21: 0 | F21: 0 | G21: 3 | H21: 0 | I21: 0 | J21: 0 | K21: 0 | L21: 0 | M21: 1 | N21: 0 | O21: 0 | P21: 6 | Q21: 10 | R21: 8 | S21: 40 | T21: 0 | U21: 0 | V21: 0 | W21: 0 | X21: 0 | Y21: 0
B22: 4 | C22: Strandsvingel, udlæg1) | D22: 0 | E22: 0 | F22: 0 | G22: 3 | H22: 0 | I22: 0 | J22: 0 | K22: 0 | L22: 0 | M22: 1 | N22: 0 | O22: 0 | P22: 10 | Q22: 14 | R22: 12 | S22: 35 | T22: 0 | U22: 0 | V22: 0 | W22: 0 | X22: 0 | Y22: 0
B23: 5 | C23: Rødsvingel, udlæg1) | D23: 0 | E23: 0 | F23: 0 | G23: 0 | H23: 0 | I23: 0 | J23: 1 | K23: 0 | L23: 0 | M23: 1 | N23: 0 | O23: 0 | P23: 5 | Q23: 8 | R23: 6 | S23: 40 | T23: 0 | U23: 0 | V23: 0 | W23: 0 | X23: 0 | Y23: 0
B24: 6 | C24: Engrapgræs, udlæg1) | D24: 0 | E24: 0 | F24: 0 | G24: 0 | H24: 0 | I24: 0 | J24: 0 | K24: 0 | L24: 0 | M24: 1 | N24: 0 | O24: 0 | P24: 5 | Q24: 8 | R24: 6 | S24: 60 | T24: 0 | U24: 0 | V24: 0 | W24: 0 | X24: 0 | Y24: 0
B25: 7 | C25: Hundegræs, udlæg1) | D25: 0 | E25: 0 | F25: 0 | G25: 3 | H25: 0 | I25: 0 | J25: 0 | K25: 0 | L25: 0 | M25: 1 | N25: 0 | O25: 0 | P25: 5 | Q25: 8 | R25: 6 | S25: 60 | T25: 0 | U25: 0 | V25: 0 | W25: 0 | X25: 0 | Y25: 0
B26: 8 | C26: Frøgræs, udtjent | D26: 0 | E26: 0 | F26: 0 | G26: 0 | H26: 0 | I26: 0 | J26: 0 | K26: 0 | L26: 0 | M26: 0 | N26: 0 | O26: 0 | P26: 5 | Q26: 8 | R26: 6 | S26: 30 | T26: 0 | U26: 0 | V26: 0 | W26: 0 | X26: 0 | Y26: 0
B27: 9 | C27: Gul sennep | D27: 0 | E27: 0 | F27: 0 | G27: 0 | H27: 0 | I27: 0 | J27: 0 | K27: 4 | L27: 4 | M27: 0 | N27: 4 | O27: 4 | P27: 8 | Q27: 8 | R27: 6 | S27: 90 | T27: 0 | U27: 0 | V27: 0 | W27: 0 | X27: 0 | Y27: 0
B28: 10 | C28: Olieræddike | D28: 0 | E28: 0 | F28: 0 | G28: 0 | H28: 0 | I28: 0 | J28: 0 | K28: 4 | L28: 4 | M28: 0 | N28: 4 | O28: 4 | P28: 14 | Q28: 14 | R28: 12 | S28: 25 | T28: 0 | U28: 0 | V28: 0 | W28: 0 | X28: 0 | Y28: 0
B29: 11 | C29: Vinterraps, hybrid | D29: 0 | E29: 0 | F29: 0 | G29: 0 | H29: 0 | I29: 0 | J29: 0 | K29: 2 | L29: 2 | M29: 0 | N29: 2 | O29: 2 | P29: 8 | Q29: 8 | R29: 5 | S29: 90 | T29: 0 | U29: 0 | V29: 0 | W29: 0 | X29: 0 | Y29: 0
B30: 12 | C30: Vinterraps , linie | D30: 0 | E30: 0 | F30: 0 | G30: 0 | H30: 0 | I30: 0 | J30: 0 | K30: 2 | L30: 2 | M30: 0 | N30: 2 | O30: 2 | P30: 8 | Q30: 8 | R30: 5 | S30: 80 | T30: 0 | U30: 0 | V30: 0 | W30: 0 | X30: 0 | Y30: 0
B31: 13 | C31: Foderradise (Strukturator) | D31: 0 | E31: 0 | F31: 0 | G31: 0 | H31: 0 | I31: 0 | J31: 0 | K31: 4 | L31: 4 | M31: 0 | N31: 4 | O31: 4 | P31: 14 | Q31: 14 | R31: 12 | S31: 70 | T31: 0 | U31: 0 | V31: 0 | W31: 0 | X31: 0 | Y31: 0
B32: 14 | C32: Havre, sået inden 1. august | D32: 0 | E32: 1 | F32: 1 | G32: 0 | H32: 1 | I32: 1 | J32: 0 | K32: 0 | L32: 0 | M32: 0 | N32: 0 | O32: 0 | P32: 180 | Q32: 180 | R32: 150 | S32: 2.85 | T32: 0 | U32: 0 | V32: 0 | W32: 0 | X32: 0 | Y32: 0
B33: 15 | C33: Havre, sået mellem 1. og 20. august | D33: 0 | E33: 0 | F33: 0 | G33: 0 | H33: 0 | I33: 0 | J33: 0 | K33: 0 | L33: 0 | M33: 0 | N33: 0 | O33: 0 | P33: 180 | Q33: 180 | R33: 150 | S33: 2.85 | T33: 0 | U33: 0 | V33: 0 | W33: 0 | X33: 0 | Y33: 0
B34: 16 | C34: Stauderug, sået inden 1. august | D34: 0 | E34: 1 | F34: 1 | G34: 0 | H34: 1 | I34: 1 | J34: 0 | K34: 0 | L34: 0 | M34: 0 | N34: 0 | O34: 0 | P34: 120 | Q34: 120 | R34: 100 | S34: 4 | T34: 0 | U34: 0 | V34: 0 | W34: 0 | X34: 0 | Y34: 0
B35: 17 | C35: Stauderug, sået mellem 1. og 20. august | D35: 0 | E35: 0 | F35: 0 | G35: 0 | H35: 0 | I35: 0 | J35: 0 | K35: 0 | L35: 0 | M35: 0 | N35: 0 | O35: 0 | P35: 120 | Q35: 120 | R35: 100 | S35: 4 | T35: 0 | U35: 0 | V35: 0 | W35: 0 | X35: 0 | Y35: 0
B36: 18 | C36: Vårbyg, sået inden 1. august | D36: 0 | E36: 1 | F36: 1 | G36: 0 | H36: 1 | I36: 1 | J36: 0 | K36: 0 | L36: 0 | M36: 0 | N36: 0 | O36: 0 | P36: 120 | Q36: 120 | R36: 100 | S36: 2.7 | T36: 0 | U36: 0 | V36: 0 | W36: 0 | X36: 0 | Y36: 0
B37: 19 | C37: Vårbyg, sået mellem 1. og 20. august | D37: 0 | E37: 0 | F37: 0 | G37: 0 | H37: 0 | I37: 0 | J37: 0 | K37: 0 | L37: 0 | M37: 0 | N37: 0 | O37: 0 | P37: 120 | Q37: 120 | R37: 100 | S37: 2.7 | T37: 0 | U37: 0 | V37: 0 | W37: 0 | X37: 0 | Y37: 0
B38: 20 | C38: Vinterrug (population), sået inden 1. august | D38: 0 | E38: 1 | F38: 1 | G38: 0 | H38: 1 | I38: 1 | J38: 0 | K38: 0 | L38: 0 | M38: 0 | N38: 0 | O38: 0 | P38: 120 | Q38: 120 | R38: 100 | S38: 4 | T38: 0 | U38: 0 | V38: 0 | W38: 0 | X38: 0 | Y38: 0
B39: 21 | C39: Vinterrug (population), sået inden 20. august | D39: 0 | E39: 0 | F39: 0 | G39: 0 | H39: 0 | I39: 0 | J39: 0 | K39: 0 | L39: 0 | M39: 0 | N39: 0 | O39: 0 | P39: 120 | Q39: 120 | R39: 100 | S39: 4 | T39: 0 | U39: 0 | V39: 0 | W39: 0 | X39: 0 | Y39: 0
B40: 22 | C40: Vinterrug (hybrid og syntetisk), sået inden 1. august | D40: 0 | E40: 1 | F40: 1 | G40: 0 | H40: 1 | I40: 1 | J40: 0 | K40: 0 | L40: 0 | M40: 0 | N40: 0 | O40: 0 | P40: 120 | Q40: 120 | R40: 100 | S40: 9 | T40: 0 | U40: 0 | V40: 0 | W40: 0 | X40: 0 | Y40: 0
B41: 23 | C41: Vinterrug (hybrid og syntetisk), sået inden 20. august | D41: 0 | E41: 0 | F41: 0 | G41: 0 | H41: 0 | I41: 0 | J41: 0 | K41: 0 | L41: 0 | M41: 0 | N41: 0 | O41: 0 | P41: 120 | Q41: 120 | R41: 100 | S41: 9 | T41: 0 | U41: 0 | V41: 0 | W41: 0 | X41: 0 | Y41: 0
B42: 24 | C42: Cikorie | D42: 0 | E42: 0 | F42: 0 | G42: 5 | H42: 0 | I42: 0 | J42: 0 | K42: 0 | L42: 0 | M42: 3 | N42: 0 | O42: 0 | P42: 5 | Q42: 5 | R42: 5 | S42: 70 | T42: 0 | U42: 0 | V42: 0 | W42: 0 | X42: 0 | Y42: 0
B43: 25 | C43: Honningurt | D43: 0 | E43: 3 | F43: 3 | G43: 0 | H43: 3 | I43: 3 | J43: 0 | K43: 2 | L43: 2 | M43: 0 | N43: 2 | O43: 2 | P43: 10 | Q43: 10 | R43: 8 | S43: 40 | T43: 0 | U43: 0 | V43: 0 | W43: 0 | X43: 0 | Y43: 0
B44: 26 | C44: Fodervikke | D44: 0 | E44: 6 | F44: 6 | G44: 0 | H44: 6 | I44: 6 | J44: 0 | K44: 10 | L44: 10 | M44: 0 | N44: 10 | O44: 10 | P44: 100 | Q44: 100 | R44: 80 | S44: 5 | T44: 0 | U44: 0 | V44: 0 | W44: 0 | X44: 0 | Y44: 0
B45: 27 | C45: Vintervikke | D45: 0 | E45: 6 | F45: 6 | G45: 0 | H45: 6 | I45: 6 | J45: 0 | K45: 10 | L45: 10 | M45: 0 | N45: 10 | O45: 10 | P45: 90 | Q45: 90 | R45: 75 | S45: 5 | T45: 0 | U45: 0 | V45: 0 | W45: 0 | X45: 0 | Y45: 0
B46: 28 | C46: Alexandrinekløver | D46: 0 | E46: 0 | F46: 0 | G46: 0 | H46: 0 | I46: 0 | J46: 0 | K46: 7 | L46: 7 | M46: 0 | N46: 7 | O46: 7 | P46: 12 | Q46: 12 | R46: 10 | S46: 30 | T46: 0 | U46: 0 | V46: 0 | W46: 0 | X46: 0 | Y46: 0
B47: 29 | C47: Hvidkløver | D47: 0 | E47: 0 | F47: 0 | G47: 7 | H47: 0 | I47: 0 | J47: 0 | K47: 0 | L47: 0 | M47: 5 | N47: 0 | O47: 0 | P47: 4 | Q47: 4 | R47: 4 | S47: 90 | T47: 0 | U47: 0 | V47: 0 | W47: 0 | X47: 0 | Y47: 0
B48: 30 | C48: Blanding af olieræddike og fodervikke | D48: 0 | E48: 5 | F48: 5 | G48: 0 | H48: 5 | I48: 5 | J48: 0 | K48: 8 | L48: 8 | M48: 0 | N48: 8 | O48: 8 | P48: 58 | Q48: 58 | R48: 58 | S48: 7.45 | T48: 0 | U48: 0 | V48: 0 | W48: 0 | X48: 0 | Y48: 0 | Z48: 8 kg. olieræddike + 50 kg. fodervikke
B49: 31 | C49: Hvidkløver/alm. rajgræs | D49: 0 | E49: 0 | F49: 0 | G49: 5 | H49: 0 | I49: 0 | J49: 0 | K49: 0 | L49: 0 | M49: 5 | N49: 0 | O49: 0 | P49: 10 | Q49: 10 | R49: 10 | S49: 50 | T49: 0 | U49: 0 | V49: 0 | W49: 0 | X49: 0 | Y49: 0 | Z49: 2 kg hvidkløver + 8 kg. alm rajgræs
B50: 32 | C50: Rødkløver/strandsvingel | D50: 0 | E50: 0 | F50: 0 | G50: 6 | H50: 0 | I50: 0 | J50: 0 | K50: 0 | L50: 0 | M50: 5 | N50: 0 | O50: 0 | P50: 10 | Q50: 10 | R50: 10 | S50: 42 | T50: 0 | U50: 0 | V50: 0 | W50: 0 | X50: 0 | Y50: 0 | Z50: 2 kg. rødkløver + 8 kg. strandsvingel
B51: 33 | C51: Vintervikke/vinterrug | D51: 0 | E51: 5 | F51: 5 | G51: 0 | H51: 5 | I51: 5 | J51: 0 | K51: 5 | L51: 5 | M51: 0 | N51: 5 | O51: 5 | P51: 100 | Q51: 100 | R51: 80 | S51: 4.5 | T51: 0 | U51: 0 | V51: 0 | W51: 0 | X51: 0 | Y51: 0 | Z51: 50 kg. vintervikke + 50 kg. vinterrug
B52: 34 | C52: Kløvergræs | D52: 0 | E52: 0 | F52: 0 | G52: 7 | H52: 0 | I52: 0 | J52: 0 | K52: 0 | L52: 0 | M52: 5 | N52: 0 | O52: 0 | P52: 24.5 | Q52: 24.5 | R52: 24.5 | S52: 40 | T52: 0 | U52: 0 | V52: 0 | W52: 0 | X52: 0 | Y52: 0

Sheet Basis_norm (hidden)
C2: Omkostninger såning | E2: Kode
C3: Sammen med afgrøden | D3: 55 | E3: 1
C4: Før høst | D4: 75 | E4: 2
C5: Efter høst | D5: 185 | E5: 3
C7: Omkostninger tørring | D7: 10 | E7: kr. pr. hkg.
C9: Pris vintersæd (vinerhvede) | D9: 130 | E9: kr. pr. hkg.
C10: Pris vårsæd (foderbyg) | D10: 110 | E10: kr. pr. hkg.
C11: Mejetærskning - basis | D11: 800 | E11: kr. pr ha
C12: Mejetærskning - korrektion pr. hkg. | D12: 7 | E12: kr. pr. hkg.
D14: Jordbund
D15: Sandjord | J15: Lerjord
D16: Merudbytte, hkg pr. ha | J16: Merudbytte, hkg pr. ha | V16: Andre kapacitetsomkostninger | X16: Nedmulding
C17: Afgrøde | D17: Vintersæd | G17: Vårsæd | J17: Vintersæd | M17: Vårsæd | P17: Udsæd - kg. pr. ha | T17: Andre stykomk
C18: Såtid | D18: Sammen med | E18: Før | F18: Efter | G18: Sammen med | H18: Før | I18: Efter | J18: Sammen med | K18: Før | L18: Efter | M18: Sammen med | N18: Før | O18: Efter | P18: Sammenmed | Q18: Før | R18: Efter | S18: Pris | T18: Antal | U18: Pris | V18: Antal | W18: Pris | X18: Antal | Y18: Pris
B19: 1 | C19: Alm. rajgræs, dipl., udlæg1) | D19: 0 | E19: 0 | F19: 0 | G19: 3 | H19: 0 | I19: 0 | J19: 0 | K19: 0 | L19: 0 | M19: 1 | N19: 0 | O19: 0 | P19: 8 | Q19: 12 | R19: 8 | S19: 40 | T19: 0 | U19: 0 | V19: 0 | W19: 0 | X19: 0 | Y19: 0
B20: 2 | C20: Ital. rajgræs, dipl., udlæg1) | D20: 0 | E20: 0 | F20: 0 | G20: 3 | H20: 0 | I20: 0 | J20: 0 | K20: 0 | L20: 0 | M20: 1 | N20: 0 | O20: 0 | P20: 6 | Q20: 10 | R20: 8 | S20: 40 | T20: 0 | U20: 0 | V20: 0 | W20: 0 | X20: 0 | Y20: 0
B21: 3 | C21: Westerwoldisk rajgræs | D21: 0 | E21: 0 | F21: 0 | G21: 3 | H21: 0 | I21: 0 | J21: 0 | K21: 0 | L21: 0 | M21: 1 | N21: 0 | O21: 0 | P21: 6 | Q21: 10 | R21: 8 | S21: 40 | T21: 0 | U21: 0 | V21: 0 | W21: 0 | X21: 0 | Y21: 0
B22: 4 | C22: Strandsvingel, udlæg1) | D22: 0 | E22: 0 | F22: 0 | G22: 3 | H22: 0 | I22: 0 | J22: 0 | K22: 0 | L22: 0 | M22: 1 | N22: 0 | O22: 0 | P22: 10 | Q22: 14 | R22: 12 | S22: 35 | T22: 0 | U22: 0 | V22: 0 | W22: 0 | X22: 0 | Y22: 0
B23: 5 | C23: Rødsvingel, udlæg1) | D23: 0 | E23: 0 | F23: 0 | G23: 0 | H23: 0 | I23: 0 | J23: 1 | K23: 0 | L23: 0 | M23: 1 | N23: 0 | O23: 0 | P23: 5 | Q23: 8 | R23: 6 | S23: 40 | T23: 0 | U23: 0 | V23: 0 | W23: 0 | X23: 0 | Y23: 0
B24: 6 | C24: Engrapgræs, udlæg1) | D24: 0 | E24: 0 | F24: 0 | G24: 0 | H24: 0 | I24: 0 | J24: 0 | K24: 0 | L24: 0 | M24: 1 | N24: 0 | O24: 0 | P24: 5 | Q24: 8 | R24: 6 | S24: 60 | T24: 0 | U24: 0 | V24: 0 | W24: 0 | X24: 0 | Y24: 0
B25: 7 | C25: Hundegræs, udlæg1) | D25: 0 | E25: 0 | F25: 0 | G25: 3 | H25: 0 | I25: 0 | J25: 0 | K25: 0 | L25: 0 | M25: 1 | N25: 0 | O25: 0 | P25: 5 | Q25: 8 | R25: 6 | S25: 60 | T25: 0 | U25: 0 | V25: 0 | W25: 0 | X25: 0 | Y25: 0
B26: 8 | C26: Frøgræs, udtjent | D26: 0 | E26: 0 | F26: 0 | G26: 0 | H26: 0 | I26: 0 | J26: 0 | K26: 0 | L26: 0 | M26: 0 | N26: 0 | O26: 0 | P26: 5 | Q26: 8 | R26: 6 | S26: 30 | T26: 0 | U26: 0 | V26: 0 | W26: 0 | X26: 0 | Y26: 0
B27: 9 | C27: Gul sennep | D27: 0 | E27: 0 | F27: 0 | G27: 0 | H27: 0 | I27: 0 | J27: 0 | K27: 4 | L27: 4 | M27: 0 | N27: 4 | O27: 4 | P27: 8 | Q27: 8 | R27: 6 | S27: 90 | T27: 0 | U27: 0 | V27: 0 | W27: 0 | X27: 0 | Y27: 0
B28: 10 | C28: Olieræddike | D28: 0 | E28: 0 | F28: 0 | G28: 0 | H28: 0 | I28: 0 | J28: 0 | K28: 4 | L28: 4 | M28: 0 | N28: 4 | O28: 4 | P28: 14 | Q28: 14 | R28: 12 | S28: 25 | T28: 0 | U28: 0 | V28: 0 | W28: 0 | X28: 0 | Y28: 0
B29: 11 | C29: Vinterraps, hybrid | D29: 0 | E29: 0 | F29: 0 | G29: 0 | H29: 0 | I29: 0 | J29: 0 | K29: 2 | L29: 2 | M29: 0 | N29: 2 | O29: 2 | P29: 8 | Q29: 8 | R29: 5 | S29: 90 | T29: 0 | U29: 0 | V29: 0 | W29: 0 | X29: 0 | Y29: 0
B30: 12 | C30: Vinterraps , linie | D30: 0 | E30: 0 | F30: 0 | G30: 0 | H30: 0 | I30: 0 | J30: 0 | K30: 2 | L30: 2 | M30: 0 | N30: 2 | O30: 2 | P30: 8 | Q30: 8 | R30: 5 | S30: 80 | T30: 0 | U30: 0 | V30: 0 | W30: 0 | X30: 0 | Y30: 0
B31: 13 | C31: Foderradise (Strukturator) | D31: 0 | E31: 0 | F31: 0 | G31: 0 | H31: 0 | I31: 0 | J31: 0 | K31: 4 | L31: 4 | M31: 0 | N31: 4 | O31: 4 | P31: 14 | Q31: 14 | R31: 12 | S31: 70 | T31: 0 | U31: 0 | V31: 0 | W31: 0 | X31: 0 | Y31: 0
B32: 14 | C32: Havre, sået inden 1. august | D32: 0 | E32: 1 | F32: 1 | G32: 0 | H32: 1 | I32: 1 | J32: 0 | K32: 0 | L32: 0 | M32: 0 | N32: 0 | O32: 0 | P32: 180 | Q32: 180 | R32: 150 | S32: 2.85 | T32: 0 | U32: 0 | V32: 0 | W32: 0 | X32: 0 | Y32: 0
B33: 15 | C33: Havre, sået mellem 1. og 20. august | D33: 0 | E33: 0 | F33: 0 | G33: 0 | H33: 0 | I33: 0 | J33: 0 | K33: 0 | L33: 0 | M33: 0 | N33: 0 | O33: 0 | P33: 180 | Q33: 180 | R33: 150 | S33: 2.85 | T33: 0 | U33: 0 | V33: 0 | W33: 0 | X33: 0 | Y33: 0
B34: 16 | C34: Stauderug, sået inden 1. august | D34: 0 | E34: 1 | F34: 1 | G34: 0 | H34: 1 | I34: 1 | J34: 0 | K34: 0 | L34: 0 | M34: 0 | N34: 0 | O34: 0 | P34: 120 | Q34: 120 | R34: 100 | S34: 4 | T34: 0 | U34: 0 | V34: 0 | W34: 0 | X34: 0 | Y34: 0
B35: 17 | C35: Stauderug, sået mellem 1. og 20. august | D35: 0 | E35: 0 | F35: 0 | G35: 0 | H35: 0 | I35: 0 | J35: 0 | K35: 0 | L35: 0 | M35: 0 | N35: 0 | O35: 0 | P35: 120 | Q35: 120 | R35: 100 | S35: 4 | T35: 0 | U35: 0 | V35: 0 | W35: 0 | X35: 0 | Y35: 0
B36: 18 | C36: Vårbyg, sået inden 1. august | D36: 0 | E36: 1 | F36: 1 | G36: 0 | H36: 1 | I36: 1 | J36: 0 | K36: 0 | L36: 0 | M36: 0 | N36: 0 | O36: 0 | P36: 120 | Q36: 120 | R36: 100 | S36: 2.7 | T36: 0 | U36: 0 | V36: 0 | W36: 0 | X36: 0 | Y36: 0
B37: 19 | C37: Vårbyg, sået mellem 1. og 20. august | D37: 0 | E37: 0 | F37: 0 | G37: 0 | H37: 0 | I37: 0 | J37: 0 | K37: 0 | L37: 0 | M37: 0 | N37: 0 | O37: 0 | P37: 120 | Q37: 120 | R37: 100 | S37: 2.7 | T37: 0 | U37: 0 | V37: 0 | W37: 0 | X37: 0 | Y37: 0
B38: 20 | C38: Vinterrug (population), sået inden 1. august | D38: 0 | E38: 1 | F38: 1 | G38: 0 | H38: 1 | I38: 1 | J38: 0 | K38: 0 | L38: 0 | M38: 0 | N38: 0 | O38: 0 | P38: 120 | Q38: 120 | R38: 100 | S38: 4 | T38: 0 | U38: 0 | V38: 0 | W38: 0 | X38: 0 | Y38: 0
B39: 21 | C39: Vinterrug (population), sået inden 20. august | D39: 0 | E39: 0 | F39: 0 | G39: 0 | H39: 0 | I39: 0 | J39: 0 | K39: 0 | L39: 0 | M39: 0 | N39: 0 | O39: 0 | P39: 120 | Q39: 120 | R39: 100 | S39: 4 | T39: 0 | U39: 0 | V39: 0 | W39: 0 | X39: 0 | Y39: 0
B40: 22 | C40: Vinterrug (hybrid og syntetisk), sået inden 1. august | D40: 0 | E40: 1 | F40: 1 | G40: 0 | H40: 1 | I40: 1 | J40: 0 | K40: 0 | L40: 0 | M40: 0 | N40: 0 | O40: 0 | P40: 120 | Q40: 120 | R40: 100 | S40: 9 | T40: 0 | U40: 0 | V40: 0 | W40: 0 | X40: 0 | Y40: 0
B41: 23 | C41: Vinterrug (hybrid og syntetisk), sået inden 20. august | D41: 0 | E41: 0 | F41: 0 | G41: 0 | H41: 0 | I41: 0 | J41: 0 | K41: 0 | L41: 0 | M41: 0 | N41: 0 | O41: 0 | P41: 120 | Q41: 120 | R41: 100 | S41: 9 | T41: 0 | U41: 0 | V41: 0 | W41: 0 | X41: 0 | Y41: 0
B42: 24 | C42: Cikorie | D42: 0 | E42: 0 | F42: 0 | G42: 5 | H42: 0 | I42: 0 | J42: 0 | K42: 0 | L42: 0 | M42: 3 | N42: 0 | O42: 0 | P42: 5 | Q42: 5 | R42: 5 | S42: 70 | T42: 0 | U42: 0 | V42: 0 | W42: 0 | X42: 0 | Y42: 0
B43: 25 | C43: Honningurt | D43: 0 | E43: 3 | F43: 3 | G43: 0 | H43: 3 | I43: 3 | J43: 0 | K43: 2 | L43: 2 | M43: 0 | N43: 2 | O43: 2 | P43: 10 | Q43: 10 | R43: 8 | S43: 40 | T43: 0 | U43: 0 | V43: 0 | W43: 0 | X43: 0 | Y43: 0
B44: 26 | C44: Fodervikke | D44: 0 | E44: 6 | F44: 6 | G44: 0 | H44: 6 | I44: 6 | J44: 0 | K44: 10 | L44: 10 | M44: 0 | N44: 10 | O44: 10 | P44: 100 | Q44: 100 | R44: 80 | S44: 5 | T44: 0 | U44: 0 | V44: 0 | W44: 0 | X44: 0 | Y44: 0
B45: 27 | C45: Vintervikke | D45: 0 | E45: 6 | F45: 6 | G45: 0 | H45: 6 | I45: 6 | J45: 0 | K45: 10 | L45: 10 | M45: 0 | N45: 10 | O45: 10 | P45: 90 | Q45: 90 | R45: 75 | S45: 5 | T45: 0 | U45: 0 | V45: 0 | W45: 0 | X45: 0 | Y45: 0
B46: 28 | C46: Alexandrinekløver | D46: 0 | E46: 0 | F46: 0 | G46: 0 | H46: 0 | I46: 0 | J46: 0 | K46: 7 | L46: 7 | M46: 0 | N46: 7 | O46: 7 | P46: 12 | Q46: 12 | R46: 10 | S46: 30 | T46: 0 | U46: 0 | V46: 0 | W46: 0 | X46: 0 | Y46: 0
B47: 29 | C47: Hvidkløver | D47: 0 | E47: 0 | F47: 0 | G47: 7 | H47: 0 | I47: 0 | J47: 0 | K47: 0 | L47: 0 | M47: 5 | N47: 0 | O47: 0 | P47: 4 | Q47: 4 | R47: 4 | S47: 90 | T47: 0 | U47: 0 | V47: 0 | W47: 0 | X47: 0 | Y47: 0
B48: 30 | C48: Blanding af olieræddike og fodervikke | D48: 0 | E48: 5 | F48: 5 | G48: 0 | H48: 5 | I48: 5 | J48: 0 | K48: 8 | L48: 8 | M48: 0 | N48: 8 | O48: 8 | P48: 58 | Q48: 58 | R48: 58 | S48: 7.45 | T48: 0 | U48: 0 | V48: 0 | W48: 0 | X48: 0 | Y48: 0 | Z48: 8 kg. olieræddike + 50 kg. fodervikke
B49: 31 | C49: Hvidkløver/alm. rajgræs | D49: 0 | E49: 0 | F49: 0 | G49: 5 | H49: 0 | I49: 0 | J49: 0 | K49: 0 | L49: 0 | M49: 5 | N49: 0 | O49: 0 | P49: 10 | Q49: 10 | R49: 10 | S49: 50 | T49: 0 | U49: 0 | V49: 0 | W49: 0 | X49: 0 | Y49: 0 | Z49: 2 kg hvidkløver + 8 kg. alm rajgræs
B50: 32 | C50: Rødkløver/strandsvingel | D50: 0 | E50: 0 | F50: 0 | G50: 6 | H50: 0 | I50: 0 | J50: 0 | K50: 0 | L50: 0 | M50: 5 | N50: 0 | O50: 0 | P50: 10 | Q50: 10 | R50: 10 | S50: 42 | T50: 0 | U50: 0 | V50: 0 | W50: 0 | X50: 0 | Y50: 0 | Z50: 2 kg. rødkløver + 8 kg. strandsvingel
B51: 33 | C51: Vintervikke/vinterrug | D51: 0 | E51: 5 | F51: 5 | G51: 0 | H51: 5 | I51: 5 | J51: 0 | K51: 5 | L51: 5 | M51: 0 | N51: 5 | O51: 5 | P51: 100 | Q51: 100 | R51: 80 | S51: 4.5 | T51: 0 | U51: 0 | V51: 0 | W51: 0 | X51: 0 | Y51: 0 | Z51: 50 kg. vintervikke + 50 kg. vinterrug
B52: 34 | C52: Kløvergræs | D52: 0 | E52: 0 | F52: 0 | G52: 7 | H52: 0 | I52: 0 | J52: 0 | K52: 0 | L52: 0 | M52: 5 | N52: 0 | O52: 0 | P52: 24.5 | Q52: 24.5 | R52: 24.5 | S52: 40 | T52: 0 | U52: 0 | V52: 0 | W52: 0 | X52: 0 | Y52: 0

Sheet Norm lig basisnorm (hidden)
C3: Omkostninger såning | E3: Kode
C4: Sammen med afgrøden | D4: =Norm!D3=Basis_norm!D3 -> TRUE | E4: =Norm!E3=Basis_norm!E3 -> TRUE
C5: Før høst | D5: =Norm!D4=Basis_norm!D4 -> TRUE | E5: =Norm!E4=Basis_norm!E4 -> TRUE
C6: Efter høst | D6: =Norm!D5=Basis_norm!D5 -> TRUE | E6: =Norm!E5=Basis_norm!E5 -> TRUE
C8: Omkostninger tørring | D8: =Norm!D7=Basis_norm!D7 -> TRUE | E8: kr. pr. hkg.
C10: Pris vintersæd (vinerhvede) | D10: =Norm!D9=Basis_norm!D9 -> TRUE | E10: kr. pr. hkg.
C11: Pris vårsæd (foderbyg) | D11: =Norm!D10=Basis_norm!D10 -> TRUE | E11: kr. pr. hkg.
C12: Mejetærskning - basis | D12: =Norm!D11=Basis_norm!D11 -> TRUE | E12: kr. pr ha
C13: Mejetærskning - korrektion pr. hkg. | D13: =Norm!D12=Basis_norm!D12 -> TRUE | E13: kr. pr. hkg.
D15: Jordbund
D16: Sandjord | J16: Lerjord
D17: Merudbytte | J17: Merudbytte | V17: Andre kapacitetsomkostninger | X17: Nedmulding
C18: Afgrøde | D18: Vintersæd | G18: Vårsæd | J18: Vintersæd | M18: Vårsæd | P18: Udsæd - kg. pr. ha | T18: Andre stykomk
C19: Såtid | D19: Sammen med | E19: Før | F19: Efter | G19: Sammen med | H19: Før | I19: Efter | J19: Sammen med | K19: Før | L19: Efter | M19: Sammen med | N19: Før | O19: Efter | P19: Sammenmed | Q19: Før | R19: Efter | S19: Pris | T19: Antal | U19: Pris | V19: Antal | W19: Pris | X19: Antal | Y19: Pris
B20: 1 | C20: Alm. rajgræs, dipl., udlæg1) | D20: =Norm!D19=Basis_norm!D19 -> TRUE | E20: =Norm!E19=Basis_norm!E19 -> TRUE | F20: =Norm!F19=Basis_norm!F19 -> TRUE | G20: =Norm!G19=Basis_norm!G19 -> TRUE | H20: =Norm!H19=Basis_norm!H19 -> TRUE | I20: =Norm!I19=Basis_norm!I19 -> TRUE | J20: =Norm!J19=Basis_norm!J19 -> TRUE | K20: =Norm!K19=Basis_norm!K19 -> TRUE | L20: =Norm!L19=Basis_norm!L19 -> TRUE | M20: =Norm!M19=Basis_norm!M19 -> TRUE | N20: =Norm!N19=Basis_norm!N19 -> TRUE | O20: =Norm!O19=Basis_norm!O19 -> TRUE | P20: =Norm!P19=Basis_norm!P19 -> TRUE | Q20: =Norm!Q19=Basis_norm!Q19 -> TRUE | R20: =Norm!R19=Basis_norm!R19 -> TRUE | S20: =Norm!S19=Basis_norm!S19 -> TRUE | T20: =Norm!T19=Basis_norm!T19 -> TRUE | U20: =Norm!U19=Basis_norm!U19 -> TRUE | V20: =Norm!V19=Basis_norm!V19 -> TRUE | W20: =Norm!W19=Basis_norm!W19 -> TRUE | X20: =Norm!X19=Basis_norm!X19 -> TRUE | Y20: =Norm!Y19=Basis_norm!Y19 -> TRUE
B21: 2 | C21: Ital. rajgræs, dipl., udlæg1) | D21: =Norm!D20=Basis_norm!D20 -> TRUE | E21: =Norm!E20=Basis_norm!E20 -> TRUE | F21: =Norm!F20=Basis_norm!F20 -> TRUE | G21: =Norm!G20=Basis_norm!G20 -> TRUE | H21: =Norm!H20=Basis_norm!H20 -> TRUE | I21: =Norm!I20=Basis_norm!I20 -> TRUE | J21: =Norm!J20=Basis_norm!J20 -> TRUE | K21: =Norm!K20=Basis_norm!K20 -> TRUE | L21: =Norm!L20=Basis_norm!L20 -> TRUE | M21: =Norm!M20=Basis_norm!M20 -> TRUE | N21: =Norm!N20=Basis_norm!N20 -> TRUE | O21: =Norm!O20=Basis_norm!O20 -> TRUE | P21: =Norm!P20=Basis_norm!P20 -> TRUE | Q21: =Norm!Q20=Basis_norm!Q20 -> TRUE | R21: =Norm!R20=Basis_norm!R20 -> TRUE | S21: =Norm!S20=Basis_norm!S20 -> TRUE | T21: =Norm!T20=Basis_norm!T20 -> TRUE | U21: =Norm!U20=Basis_norm!U20 -> TRUE | V21: =Norm!V20=Basis_norm!V20 -> TRUE | W21: =Norm!W20=Basis_norm!W20 -> TRUE | X21: =Norm!X20=Basis_norm!X20 -> TRUE | Y21: =Norm!Y20=Basis_norm!Y20 -> TRUE
B22: 3 | C22: Westerwoldisk rajgræs | D22: =Norm!D21=Basis_norm!D21 -> TRUE | E22: =Norm!E21=Basis_norm!E21 -> TRUE | F22: =Norm!F21=Basis_norm!F21 -> TRUE | G22: =Norm!G21=Basis_norm!G21 -> TRUE | H22: =Norm!H21=Basis_norm!H21 -> TRUE | I22: =Norm!I21=Basis_norm!I21 -> TRUE | J22: =Norm!J21=Basis_norm!J21 -> TRUE | K22: =Norm!K21=Basis_norm!K21 -> TRUE | L22: =Norm!L21=Basis_norm!L21 -> TRUE | M22: =Norm!M21=Basis_norm!M21 -> TRUE | N22: =Norm!N21=Basis_norm!N21 -> TRUE | O22: =Norm!O21=Basis_norm!O21 -> TRUE | P22: =Norm!P21=Basis_norm!P21 -> TRUE | Q22: =Norm!Q21=Basis_norm!Q21 -> TRUE | R22: =Norm!R21=Basis_norm!R21 -> TRUE | S22: =Norm!S21=Basis_norm!S21 -> TRUE | T22: =Norm!T21=Basis_norm!T21 -> TRUE | U22: =Norm!U21=Basis_norm!U21 -> TRUE | V22: =Norm!V21=Basis_norm!V21 -> TRUE | W22: =Norm!W21=Basis_norm!W21 -> TRUE | X22: =Norm!X21=Basis_norm!X21 -> TRUE | Y22: =Norm!Y21=Basis_norm!Y21 -> TRUE
B23: 4 | C23: Strandsvingel, udlæg1) | D23: =Norm!D22=Basis_norm!D22 -> TRUE | E23: =Norm!E22=Basis_norm!E22 -> TRUE | F23: =Norm!F22=Basis_norm!F22 -> TRUE | G23: =Norm!G22=Basis_norm!G22 -> TRUE | H23: =Norm!H22=Basis_norm!H22 -> TRUE | I23: =Norm!I22=Basis_norm!I22 -> TRUE | J23: =Norm!J22=Basis_norm!J22 -> TRUE | K23: =Norm!K22=Basis_norm!K22 -> TRUE | L23: =Norm!L22=Basis_norm!L22 -> TRUE | M23: =Norm!M22=Basis_norm!M22 -> TRUE | N23: =Norm!N22=Basis_norm!N22 -> TRUE | O23: =Norm!O22=Basis_norm!O22 -> TRUE | P23: =Norm!P22=Basis_norm!P22 -> TRUE | Q23: =Norm!Q22=Basis_norm!Q22 -> TRUE | R23: =Norm!R22=Basis_norm!R22 -> TRUE | S23: =Norm!S22=Basis_norm!S22 -> TRUE | T23: =Norm!T22=Basis_norm!T22 -> TRUE | U23: =Norm!U22=Basis_norm!U22 -> TRUE | V23: =Norm!V22=Basis_norm!V22 -> TRUE | W23: =Norm!W22=Basis_norm!W22 -> TRUE | X23: =Norm!X22=Basis_norm!X22 -> TRUE | Y23: =Norm!Y22=Basis_norm!Y22 -> TRUE
B24: 5 | C24: Rødsvingel, udlæg1) | D24: =Norm!D23=Basis_norm!D23 -> TRUE | E24: =Norm!E23=Basis_norm!E23 -> TRUE | F24: =Norm!F23=Basis_norm!F23 -> TRUE | G24: =Norm!G23=Basis_norm!G23 -> TRUE | H24: =Norm!H23=Basis_norm!H23 -> TRUE | I24: =Norm!I23=Basis_norm!I23 -> TRUE | J24: =Norm!J23=Basis_norm!J23 -> TRUE | K24: =Norm!K23=Basis_norm!K23 -> TRUE | L24: =Norm!L23=Basis_norm!L23 -> TRUE | M24: =Norm!M23=Basis_norm!M23 -> TRUE | N24: =Norm!N23=Basis_norm!N23 -> TRUE | O24: =Norm!O23=Basis_norm!O23 -> TRUE | P24: =Norm!P23=Basis_norm!P23 -> TRUE | Q24: =Norm!Q23=Basis_norm!Q23 -> TRUE | R24: =Norm!R23=Basis_norm!R23 -> TRUE | S24: =Norm!S23=Basis_norm!S23 -> TRUE | T24: =Norm!T23=Basis_norm!T23 -> TRUE | U24: =Norm!U23=Basis_norm!U23 -> TRUE | V24: =Norm!V23=Basis_norm!V23 -> TRUE | W24: =Norm!W23=Basis_norm!W23 -> TRUE | X24: =Norm!X23=Basis_norm!X23 -> TRUE | Y24: =Norm!Y23=Basis_norm!Y23 -> TRUE
B25: 6 | C25: Engrapgræs, udlæg1) | D25: =Norm!D24=Basis_norm!D24 -> TRUE | E25: =Norm!E24=Basis_norm!E24 -> TRUE | F25: =Norm!F24=Basis_norm!F24 -> TRUE | G25: =Norm!G24=Basis_norm!G24 -> TRUE | H25: =Norm!H24=Basis_norm!H24 -> TRUE | I25: =Norm!I24=Basis_norm!I24 -> TRUE | J25: =Norm!J24=Basis_norm!J24 -> TRUE | K25: =Norm!K24=Basis_norm!K24 -> TRUE | L25: =Norm!L24=Basis_norm!L24 -> TRUE | M25: =Norm!M24=Basis_norm!M24 -> TRUE | N25: =Norm!N24=Basis_norm!N24 -> TRUE | O25: =Norm!O24=Basis_norm!O24 -> TRUE | P25: =Norm!P24=Basis_norm!P24 -> TRUE | Q25: =Norm!Q24=Basis_norm!Q24 -> TRUE | R25: =Norm!R24=Basis_norm!R24 -> TRUE | S25: =Norm!S24=Basis_norm!S24 -> TRUE | T25: =Norm!T24=Basis_norm!T24 -> TRUE | U25: =Norm!U24=Basis_norm!U24 -> TRUE | V25: =Norm!V24=Basis_norm!V24 -> TRUE | W25: =Norm!W24=Basis_norm!W24 -> TRUE | X25: =Norm!X24=Basis_norm!X24 -> TRUE | Y25: =Norm!Y24=Basis_norm!Y24 -> TRUE
B26: 7 | C26: Hundegræs, udlæg1) | D26: =Norm!D25=Basis_norm!D25 -> TRUE | E26: =Norm!E25=Basis_norm!E25 -> TRUE | F26: =Norm!F25=Basis_norm!F25 -> TRUE | G26: =Norm!G25=Basis_norm!G25 -> TRUE | H26: =Norm!H25=Basis_norm!H25 -> TRUE | I26: =Norm!I25=Basis_norm!I25 -> TRUE | J26: =Norm!J25=Basis_norm!J25 -> TRUE | K26: =Norm!K25=Basis_norm!K25 -> TRUE | L26: =Norm!L25=Basis_norm!L25 -> TRUE | M26: =Norm!M25=Basis_norm!M25 -> TRUE | N26: =Norm!N25=Basis_norm!N25 -> TRUE | O26: =Norm!O25=Basis_norm!O25 -> TRUE | P26: =Norm!P25=Basis_norm!P25 -> TRUE | Q26: =Norm!Q25=Basis_norm!Q25 -> TRUE | R26: =Norm!R25=Basis_norm!R25 -> TRUE | S26: =Norm!S25=Basis_norm!S25 -> TRUE | T26: =Norm!T25=Basis_norm!T25 -> TRUE | U26: =Norm!U25=Basis_norm!U25 -> TRUE | V26: =Norm!V25=Basis_norm!V25 -> TRUE | W26: =Norm!W25=Basis_norm!W25 -> TRUE | X26: =Norm!X25=Basis_norm!X25 -> TRUE | Y26: =Norm!Y25=Basis_norm!Y25 -> TRUE
B27: 8 | C27: Frøgræs, udtjent | D27: =Norm!D26=Basis_norm!D26 -> TRUE | E27: =Norm!E26=Basis_norm!E26 -> TRUE | F27: =Norm!F26=Basis_norm!F26 -> TRUE | G27: =Norm!G26=Basis_norm!G26 -> TRUE | H27: =Norm!H26=Basis_norm!H26 -> TRUE | I27: =Norm!I26=Basis_norm!I26 -> TRUE | J27: =Norm!J26=Basis_norm!J26 -> TRUE | K27: =Norm!K26=Basis_norm!K26 -> TRUE | L27: =Norm!L26=Basis_norm!L26 -> TRUE | M27: =Norm!M26=Basis_norm!M26 -> TRUE | N27: =Norm!N26=Basis_norm!N26 -> TRUE | O27: =Norm!O26=Basis_norm!O26 -> TRUE | P27: =Norm!P26=Basis_norm!P26 -> TRUE | Q27: =Norm!Q26=Basis_norm!Q26 -> TRUE | R27: =Norm!R26=Basis_norm!R26 -> TRUE | S27: =Norm!S26=Basis_norm!S26 -> TRUE | T27: =Norm!T26=Basis_norm!T26 -> TRUE | U27: =Norm!U26=Basis_norm!U26 -> TRUE | V27: =Norm!V26=Basis_norm!V26 -> TRUE | W27: =Norm!W26=Basis_norm!W26 -> TRUE | X27: =Norm!X26=Basis_norm!X26 -> TRUE | Y27: =Norm!Y26=Basis_norm!Y26 -> TRUE
B28: 9 | C28: Gul sennep | D28: =Norm!D27=Basis_norm!D27 -> TRUE | E28: =Norm!E27=Basis_norm!E27 -> TRUE | F28: =Norm!F27=Basis_norm!F27 -> TRUE | G28: =Norm!G27=Basis_norm!G27 -> TRUE | H28: =Norm!H27=Basis_norm!H27 -> TRUE | I28: =Norm!I27=Basis_norm!I27 -> TRUE | J28: =Norm!J27=Basis_norm!J27 -> TRUE | K28: =Norm!K27=Basis_norm!K27 -> TRUE | L28: =Norm!L27=Basis_norm!L27 -> TRUE | M28: =Norm!M27=Basis_norm!M27 -> TRUE | N28: =Norm!N27=Basis_norm!N27 -> TRUE | O28: =Norm!O27=Basis_norm!O27 -> TRUE | P28: =Norm!P27=Basis_norm!P27 -> TRUE | Q28: =Norm!Q27=Basis_norm!Q27 -> TRUE | R28: =Norm!R27=Basis_norm!R27 -> TRUE | S28: =Norm!S27=Basis_norm!S27 -> TRUE | T28: =Norm!T27=Basis_norm!T27 -> TRUE | U28: =Norm!U27=Basis_norm!U27 -> TRUE | V28: =Norm!V27=Basis_norm!V27 -> TRUE | W28: =Norm!W27=Basis_norm!W27 -> TRUE | X28: =Norm!X27=Basis_norm!X27 -> TRUE | Y28: =Norm!Y27=Basis_norm!Y27 -> TRUE
B29: 10 | C29: Olieræddike | D29: =Norm!D28=Basis_norm!D28 -> TRUE | E29: =Norm!E28=Basis_norm!E28 -> TRUE | F29: =Norm!F28=Basis_norm!F28 -> TRUE | G29: =Norm!G28=Basis_norm!G28 -> TRUE | H29: =Norm!H28=Basis_norm!H28 -> TRUE | I29: =Norm!I28=Basis_norm!I28 -> TRUE | J29: =Norm!J28=Basis_norm!J28 -> TRUE | K29: =Norm!K28=Basis_norm!K28 -> TRUE | L29: =Norm!L28=Basis_norm!L28 -> TRUE | M29: =Norm!M28=Basis_norm!M28 -> TRUE | N29: =Norm!N28=Basis_norm!N28 -> TRUE | O29: =Norm!O28=Basis_norm!O28 -> TRUE | P29: =Norm!P28=Basis_norm!P28 -> TRUE | Q29: =Norm!Q28=Basis_norm!Q28 -> TRUE | R29: =Norm!R28=Basis_norm!R28 -> TRUE | S29: =Norm!S28=Basis_norm!S28 -> TRUE | T29: =Norm!T28=Basis_norm!T28 -> TRUE | U29: =Norm!U28=Basis_norm!U28 -> TRUE | V29: =Norm!V28=Basis_norm!V28 -> TRUE | W29: =Norm!W28=Basis_norm!W28 -> TRUE | X29: =Norm!X28=Basis_norm!X28 -> TRUE | Y29: =Norm!Y28=Basis_norm!Y28 -> TRUE
